Workbook

Sheet Planilha Resumo
J4: 100
A6: Obra: | D6: SERVIÇOS E FORNECIMENTO DE EQUIPAMENTOS E INSUMOS RELATIVOS À IMPLANTAÇÃO DO "SISTEMINHA" - SITEMA INTEGRADO PARA PRODUÇÃO DE ALIMENTOS EM MUNICÍPIOS DA ÁREA DE ATUAÇÃO DA 15ª SUPERINTENDÊNCIA REGIONAL DA CODEVASF (RECIFE/PE).
A8: Local: | D8: Comunidades dispersas situadas na zona rural dos municípios de Abreu e Lima, Agrestina, Água Preta, Aliança, Altinho, Amaraji, Angelim, Araçoiaba, Barra de Guabiraba, Barreiros, Belém de Maria, Bezzeros, Bom Conselho, Bom Jardim, Bonito, Brejão, Buenos Aires, Cabo de Santo Agostinho, Caetés, Calçado, Camaragibe, Camocim de São Félix, Camutanga, Canhotinho, Carpina, Caruaru, Casinhas, Catende, Chã de Alegria, Chã Grande, Condado, Correntes, Cortês, Cumaru, Cupira, Escada, Feira Nova, Fernando de Noronha, Ferreiros, Frei Miguelinho, Gameleira, Garanhuns, Glória do Goitá, Goiana, Gravatá, Iati, Ibirajuba, Igarassu, Ilha de Itamaracá, Ipojuca, Itambé, Itapissuma, Itaquitinga, Jaboatão dos Guararapes, Jaqueira, João Alfredo, Joaquim Nabuco, Jucati, Jupi, Jurema, Lagoa de Itaenga, Lagoa do Carro, Lagoa do Ouro, Lagoa dos Gatos, Lajedo, Limoeiro, Macaparana, Machados, Maraial, Moreno, Nazaré da Mata, Olinda, Orobó, Palmares, Palmeirina, Panelas, Paranatama, Passira, Paudalho, Paulista, Pombos, Primavera, Quipapá, Recife, Riacho das Almas, Ribeirão, Rio Formoso, Sairé, Salgadinho, Saloá, Santa Cruz do Capibaribe, Santa Maria do Cambucá, São Benedito do Sul, São Caitano, São João, São Joaquim do Monte, São José da Coroa Grande, São Lourenço da Mata, São Vicente Férrer, Sirinhaém, Surubim, Tamandaré, Taquaratinga do Norte, Terezinha, Timbaúba, Toritama, Tracunhaém, Vertente do Lério, Vertentes, Vicência, Vitória do Santo Antão e Xexéu, no estado de Pernambuco, inseridos na área de atuação da 15ª Superintendência Regional da Codevasf.
E9: Total
E10: BDI SERVIÇO | F10: =BDI!$D$27 -> 0.235 | H10: BDI INSUMO | I10: =BDI!$I$23 -> 0.114
A11: codigo | B11: ITEM | C11: COD | D11: DESCRIÇÃO DOS SERVIÇOS | E11: UNID. | F11: QUANT. | G11: PREÇO (R$)
G12: UNITÁRIO S/BDI | H12: UNITÁRIO C/BDI | I12: TOTAL COM BDI
B13: 1 | D13: Serviços Preliminares | I13: =SUM(I14:I19) -> 770319.13
A14: CPU CODEVASF | B14: 1.1 | C14: CPU-01 | D14: =IF(A14="Comp. Sinapi",VLOOKUP(C14,'COMP SINAPI'!G:M,2,0),IF(A14="Comp. Seinfra",VLOOKUP(C14,'COMP. SEINFRA'!B:G,2,0),IF(A14="COMP. ORSE",VLOOKUP(C14,'COMP. ORSE'!A:D,2,0),IF(A14="Ins. Seinfra",VLOOKUP(C14,'INS. SEINFRA'!$A:$D,2,0),IF(A14="Ins. Sinapi",VLOOKUP(C14,'INS SINAPI'!A:E,2,0),IF(A14="Ins. Orse",VLOOKUP(C14,'INS. ORSE'!A:D,2,0),IF(A14="CPU CODEVASF",VLOOKUP(C14,CPU!B:I,4,0),IF(A14="COTAÇÃO",VLOOKUP(C14,COTAÇÃO!A:D,2,0))))))))) -> MOBILIZAÇÃO DE EQUIPAMENTOS, MATERIAIS E PESSOAL | E14: =IF(A14="CPU CODEVASF",VLOOKUP(C14,CPU!B:I,5,0),IF(A14="INS. SEINFRA",VLOOKUP(C14,'INS. SEINFRA'!A:D,3,0),IF(A14="INS. SINAPI",VLOOKUP(C14,'INS SINAPI'!A:E,3,0),IF(A14="COMP. SINAPI",VLOOKUP(C14,'COMP SINAPI'!G:M,3,0),IF(A14="INS. ORSE",VLOOKUP(C14,'INS. ORSE'!A:D,3,0),IF(A14="COTAÇÃO",VLOOKUP(C14,COTAÇÃO!A:D,3,0),IF(A14="COMP. ORSE",VLOOKUP(C14,'COMP. ORSE'!A:D,3,0),IF(A14="COMP. SEINFRA",VLOOKUP(C14,'COMP. SEINFRA'!B:G,5,0))))))))) -> UNID | F14: 100 | G14: =IF(A14="CPU CODEVASF",VLOOKUP(C14,CPU!F:I,4,0),IF(A14="COTAÇÃO",VLOOKUP(C14,COTAÇÃO!A:D,4,0),IF(A14="INS. SEINFRA",VLOOKUP(C14,'INS. SEINFRA'!A:D,4,0),IF(A14="INS. SINAPI",VLOOKUP(C14,'INS SINAPI'!A:E,5,0),IF(A14="COMP. SINAPI",VLOOKUP(C14,'COMP SINAPI'!G:M,5,0),IF(A14="INS. ORSE",VLOOKUP(C14,'INS. ORSE'!A:D,4,0),IF(A14="COMP. ORSE",VLOOKUP(C14,'COMP. ORSE'!A:D,4,0),IF(A14="COMP. SEINFRA",VLOOKUP(C14,'COMP. SEINFRA'!B:G,6,0))))))))) -> 357.82 | H14: =TRUNC(G14*(1+$F$10),2) -> 441.9 | I14: =TRUNC(H14*F14,2) -> 44190 | J14: =SUM(I14:I19) -> 770319.13
A15: CPU CODEVASF | B15: 1.2 | C15: CPU-02 | D15: =IF(A15="Comp. Sinapi",VLOOKUP(C15,'COMP SINAPI'!G:M,2,0),IF(A15="Comp. Seinfra",VLOOKUP(C15,'COMP. SEINFRA'!B:G,2,0),IF(A15="COMP. ORSE",VLOOKUP(C15,'COMP. ORSE'!A:D,2,0),IF(A15="Ins. Seinfra",VLOOKUP(C15,'INS. SEINFRA'!$A:$D,2,0),IF(A15="Ins. Sinapi",VLOOKUP(C15,'INS SINAPI'!A:E,2,0),IF(A15="Ins. Orse",VLOOKUP(C15,'INS. ORSE'!A:D,2,0),IF(A15="CPU CODEVASF",VLOOKUP(C15,CPU!B:I,4,0),IF(A15="COTAÇÃO",VLOOKUP(C15,COTAÇÃO!A:D,2,0))))))))) -> DESMOBILIZAÇÃO DE EQUIPAMENTOS, MATERIAIS E PESSOAL | E15: =IF(A15="CPU CODEVASF",VLOOKUP(C15,CPU!B:I,5,0),IF(A15="INS. SEINFRA",VLOOKUP(C15,'INS. SEINFRA'!A:D,3,0),IF(A15="INS. SINAPI",VLOOKUP(C15,'INS SINAPI'!A:E,3,0),IF(A15="COMP. SINAPI",VLOOKUP(C15,'COMP SINAPI'!G:M,3,0),IF(A15="INS. ORSE",VLOOKUP(C15,'INS. ORSE'!A:D,3,0),IF(A15="COTAÇÃO",VLOOKUP(C15,COTAÇÃO!A:D,3,0),IF(A15="COMP. ORSE",VLOOKUP(C15,'COMP. ORSE'!A:D,3,0),IF(A15="COMP. SEINFRA",VLOOKUP(C15,'COMP. SEINFRA'!B:G,5,0))))))))) -> UNID | F15: 100 | G15: =IF(A15="CPU CODEVASF",VLOOKUP(C15,CPU!F:I,4,0),IF(A15="COTAÇÃO",VLOOKUP(C15,COTAÇÃO!A:D,4,0),IF(A15="INS. SEINFRA",VLOOKUP(C15,'INS. SEINFRA'!A:D,4,0),IF(A15="INS. SINAPI",VLOOKUP(C15,'INS SINAPI'!A:E,5,0),IF(A15="COMP. SINAPI",VLOOKUP(C15,'COMP SINAPI'!G:M,5,0),IF(A15="INS. ORSE",VLOOKUP(C15,'INS. ORSE'!A:D,4,0),IF(A15="COMP. ORSE",VLOOKUP(C15,'COMP. ORSE'!A:D,4,0),IF(A15="COMP. SEINFRA",VLOOKUP(C15,'COMP. SEINFRA'!B:G,6,0))))))))) -> 357.82 | H15: =TRUNC(G15*(1+$F$10),2) -> 441.9 | I15: =TRUNC(H15*F15,2) -> 44190
A16: CPU CODEVASF | B16: 1.3 | C16: CPU-03 | D16: =IF(A16="Comp. Sinapi",VLOOKUP(C16,'COMP SINAPI'!G:M,2,0),IF(A16="Comp. Seinfra",VLOOKUP(C16,'COMP. SEINFRA'!B:G,2,0),IF(A16="COMP. ORSE",VLOOKUP(C16,'COMP. ORSE'!A:D,2,0),IF(A16="Ins. Seinfra",VLOOKUP(C16,'INS. SEINFRA'!$A:$D,2,0),IF(A16="Ins. Sinapi",VLOOKUP(C16,'INS SINAPI'!A:E,2,0),IF(A16="Ins. Orse",VLOOKUP(C16,'INS. ORSE'!A:D,2,0),IF(A16="CPU CODEVASF",VLOOKUP(C16,CPU!B:I,4,0),IF(A16="COTAÇÃO",VLOOKUP(C16,COTAÇÃO!A:D,2,0))))))))) -> PLACA DE OBRA EM CHAPA DE ACO GALVANIZADO | E16: =IF(A16="CPU CODEVASF",VLOOKUP(C16,CPU!B:I,5,0),IF(A16="INS. SEINFRA",VLOOKUP(C16,'INS. SEINFRA'!A:D,3,0),IF(A16="INS. SINAPI",VLOOKUP(C16,'INS SINAPI'!A:E,3,0),IF(A16="COMP. SINAPI",VLOOKUP(C16,'COMP SINAPI'!G:M,3,0),IF(A16="INS. ORSE",VLOOKUP(C16,'INS. ORSE'!A:D,3,0),IF(A16="COTAÇÃO",VLOOKUP(C16,COTAÇÃO!A:D,3,0),IF(A16="COMP. ORSE",VLOOKUP(C16,'COMP. ORSE'!A:D,3,0),IF(A16="COMP. SEINFRA",VLOOKUP(C16,'COMP. SEINFRA'!B:G,5,0))))))))) -> M² | F16: =TRUNC(90*6,2) -> 540 | G16: =IF(A16="CPU CODEVASF",VLOOKUP(C16,CPU!F:I,4,0),IF(A16="COTAÇÃO",VLOOKUP(C16,COTAÇÃO!A:D,4,0),IF(A16="INS. SEINFRA",VLOOKUP(C16,'INS. SEINFRA'!A:D,4,0),IF(A16="INS. SINAPI",VLOOKUP(C16,'INS SINAPI'!A:E,5,0),IF(A16="COMP. SINAPI",VLOOKUP(C16,'COMP SINAPI'!G:M,5,0),IF(A16="INS. ORSE",VLOOKUP(C16,'INS. ORSE'!A:D,4,0),IF(A16="COMP. ORSE",VLOOKUP(C16,'COMP. ORSE'!A:D,4,0),IF(A16="COMP. SEINFRA",VLOOKUP(C16,'COMP. SEINFRA'!B:G,6,0))))))))) -> 365.24 | H16: 451.07 | I16: 243577.8
A17: CPU CODEVASF | B17: 1.4 | C17: CPU-04 | D17: =IF(A17="Comp. Sinapi",VLOOKUP(C17,'COMP SINAPI'!G:M,2,0),IF(A17="Comp. Seinfra",VLOOKUP(C17,'COMP. SEINFRA'!B:G,2,0),IF(A17="COMP. ORSE",VLOOKUP(C17,'COMP. ORSE'!A:D,2,0),IF(A17="Ins. Seinfra",VLOOKUP(C17,'INS. SEINFRA'!$A:$D,2,0),IF(A17="Ins. Sinapi",VLOOKUP(C17,'INS SINAPI'!A:E,2,0),IF(A17="Ins. Orse",VLOOKUP(C17,'INS. ORSE'!A:D,2,0),IF(A17="CPU CODEVASF",VLOOKUP(C17,CPU!B:I,4,0),IF(A17="COTAÇÃO",VLOOKUP(C17,COTAÇÃO!A:D,2,0))))))))) -> VEÍCULO PARA APOIO A FISCALIZAÇÃO | E17: =IF(A17="CPU CODEVASF",VLOOKUP(C17,CPU!B:I,5,0),IF(A17="INS. SEINFRA",VLOOKUP(C17,'INS. SEINFRA'!A:D,3,0),IF(A17="INS. SINAPI",VLOOKUP(C17,'INS SINAPI'!A:E,3,0),IF(A17="COMP. SINAPI",VLOOKUP(C17,'COMP SINAPI'!G:M,3,0),IF(A17="INS. ORSE",VLOOKUP(C17,'INS. ORSE'!A:D,3,0),IF(A17="COTAÇÃO",VLOOKUP(C17,COTAÇÃO!A:D,3,0),IF(A17="COMP. ORSE",VLOOKUP(C17,'COMP. ORSE'!A:D,3,0),IF(A17="COMP. SEINFRA",VLOOKUP(C17,'COMP. SEINFRA'!B:G,5,0))))))))) -> MÊS | F17: 12 | G17: =IF(A17="CPU CODEVASF",VLOOKUP(C17,CPU!F:I,4,0),IF(A17="COTAÇÃO",VLOOKUP(C17,COTAÇÃO!A:D,4,0),IF(A17="INS. SEINFRA",VLOOKUP(C17,'INS. SEINFRA'!A:D,4,0),IF(A17="INS. SINAPI",VLOOKUP(C17,'INS SINAPI'!A:E,5,0),IF(A17="COMP. SINAPI",VLOOKUP(C17,'COMP SINAPI'!G:M,5,0),IF(A17="INS. ORSE",VLOOKUP(C17,'INS. ORSE'!A:D,4,0),IF(A17="COMP. ORSE",VLOOKUP(C17,'COMP. ORSE'!A:D,4,0),IF(A17="COMP. SEINFRA",VLOOKUP(C17,'COMP. SEINFRA'!B:G,6,0))))))))) -> 11311.2 | H17: 13969.33 | I17: 167631.96 | J17: =J20+J14 -> 4852146.13
A18: CPU CODEVASF | B18: 1.5 | C18: CPU-05 | D18: =IF(A18="Comp. Sinapi",VLOOKUP(C18,'COMP SINAPI'!G:M,2,0),IF(A18="Comp. Seinfra",VLOOKUP(C18,'COMP. SEINFRA'!B:G,2,0),IF(A18="COMP. ORSE",VLOOKUP(C18,'COMP. ORSE'!A:D,2,0),IF(A18="Ins. Seinfra",VLOOKUP(C18,'INS. SEINFRA'!$A:$D,2,0),IF(A18="Ins. Sinapi",VLOOKUP(C18,'INS SINAPI'!A:E,2,0),IF(A18="Ins. Orse",VLOOKUP(C18,'INS. ORSE'!A:D,2,0),IF(A18="CPU CODEVASF",VLOOKUP(C18,CPU!B:I,4,0),IF(A18="COTAÇÃO",VLOOKUP(C18,COTAÇÃO!A:D,2,0))))))))) -> FORNECIMENTO DE MATERIAL DE APOIO A FISCALIZAÇÃO | E18: =IF(A18="CPU CODEVASF",VLOOKUP(C18,CPU!B:I,5,0),IF(A18="INS. SEINFRA",VLOOKUP(C18,'INS. SEINFRA'!A:D,3,0),IF(A18="INS. SINAPI",VLOOKUP(C18,'INS SINAPI'!A:E,3,0),IF(A18="COMP. SINAPI",VLOOKUP(C18,'COMP SINAPI'!G:M,3,0),IF(A18="INS. ORSE",VLOOKUP(C18,'INS. ORSE'!A:D,3,0),IF(A18="COTAÇÃO",VLOOKUP(C18,COTAÇÃO!A:D,3,0),IF(A18="COMP. ORSE",VLOOKUP(C18,'COMP. ORSE'!A:D,3,0),IF(A18="COMP. SEINFRA",VLOOKUP(C18,'COMP. SEINFRA'!B:G,5,0))))))))) -> UNID | F18: 12 | G18: =IF(A18="CPU CODEVASF",VLOOKUP(C18,CPU!F:I,4,0),IF(A18="COTAÇÃO",VLOOKUP(C18,COTAÇÃO!A:D,4,0),IF(A18="INS. SEINFRA",VLOOKUP(C18,'INS. SEINFRA'!A:D,4,0),IF(A18="INS. SINAPI",VLOOKUP(C18,'INS SINAPI'!A:E,5,0),IF(A18="COMP. SINAPI",VLOOKUP(C18,'COMP SINAPI'!G:M,5,0),IF(A18="INS. ORSE",VLOOKUP(C18,'INS. ORSE'!A:D,4,0),IF(A18="COMP. ORSE",VLOOKUP(C18,'COMP. ORSE'!A:D,4,0),IF(A18="COMP. SEINFRA",VLOOKUP(C18,'COMP. SEINFRA'!B:G,6,0))))))))) -> 1229.28 | H18: 1518.16 | I18: 18217.92
A19: CPU CODEVASF | B19: 1.6 | C19: CPU-06 | D19: =IF(A19="Comp. Sinapi",VLOOKUP(C19,'COMP SINAPI'!G:M,2,0),IF(A19="Comp. Seinfra",VLOOKUP(C19,'COMP. SEINFRA'!B:G,2,0),IF(A19="COMP. ORSE",VLOOKUP(C19,'COMP. ORSE'!A:D,2,0),IF(A19="Ins. Seinfra",VLOOKUP(C19,'INS. SEINFRA'!$A:$D,2,0),IF(A19="Ins. Sinapi",VLOOKUP(C19,'INS SINAPI'!A:E,2,0),IF(A19="Ins. Orse",VLOOKUP(C19,'INS. ORSE'!A:D,2,0),IF(A19="CPU CODEVASF",VLOOKUP(C19,CPU!B:I,4,0),IF(A19="COTAÇÃO",VLOOKUP(C19,COTAÇÃO!A:D,2,0))))))))) -> ADMINISTRAÇÃO LOCAL DA OBRA | E19: =IF(A19="CPU CODEVASF",VLOOKUP(C19,CPU!B:I,5,0),IF(A19="INS. SEINFRA",VLOOKUP(C19,'INS. SEINFRA'!A:D,3,0),IF(A19="INS. SINAPI",VLOOKUP(C19,'INS SINAPI'!A:E,3,0),IF(A19="COMP. SINAPI",VLOOKUP(C19,'COMP SINAPI'!G:M,3,0),IF(A19="INS. ORSE",VLOOKUP(C19,'INS. ORSE'!A:D,3,0),IF(A19="COTAÇÃO",VLOOKUP(C19,COTAÇÃO!A:D,3,0),IF(A19="COMP. ORSE",VLOOKUP(C19,'COMP. ORSE'!A:D,3,0),IF(A19="COMP. SEINFRA",VLOOKUP(C19,'COMP. SEINFRA'!B:G,5,0))))))))) -> UNID | F19: 1 | G19: =IF(A19="CPU CODEVASF",VLOOKUP(C19,CPU!F:I,4,0),IF(A19="COTAÇÃO",VLOOKUP(C19,COTAÇÃO!A:D,4,0),IF(A19="INS. SEINFRA",VLOOKUP(C19,'INS. SEINFRA'!A:D,4,0),IF(A19="INS. SINAPI",VLOOKUP(C19,'INS SINAPI'!A:E,5,0),IF(A19="COMP. SINAPI",VLOOKUP(C19,'COMP SINAPI'!G:M,5,0),IF(A19="INS. ORSE",VLOOKUP(C19,'INS. ORSE'!A:D,4,0),IF(A19="COMP. ORSE",VLOOKUP(C19,'COMP. ORSE'!A:D,4,0),IF(A19="COMP. SEINFRA",VLOOKUP(C19,'COMP. SEINFRA'!B:G,6,0))))))))) -> 204462.72 | H19: 252511.45 | I19: =TRUNC(H19*F19,2) -> 252511.45
A20: SISTEMINHA - SISTEMA INTEGRADO PARA PRODUÇÃO DE ALIMENTOS | H20: =I22+I31+I58+I67+I90+I99+I125+I129+I142+I144+I157+I159+I170+I172+I180+I182 -> 42966.6 | J20: =H20*95 -> 4081827
A21: MÓDULO 1 - TANQUE DE PISCICULTURA
B22: 2.1 | D22: Serviços | I22: =SUM(I23:I30) -> 6093.7 | J22: =G9-H13 -> 0
A23: Comp. Sinapi | B23: 2.1.1 | C23: 98524 | D23: =IF(A23="Comp. Sinapi",VLOOKUP(C23,'COMP SINAPI'!G:M,2,0),IF(A23="Comp. Seinfra",VLOOKUP(C23,'COMP. SEINFRA'!B:G,2,0),IF(A23="COMP. ORSE",VLOOKUP(C23,'COMP. ORSE'!A:D,2,0),IF(A23="Ins. Seinfra",VLOOKUP(C23,'INS. SEINFRA'!$A:$D,2,0),IF(A23="Ins. Sinapi",VLOOKUP(C23,'INS SINAPI'!A:E,2,0),IF(A23="Ins. Orse",VLOOKUP(C23,'INS. ORSE'!A:D,2,0),IF(A23="CPU CODEVASF",VLOOKUP(C23,CPU!B:I,4,0),IF(A23="COTAÇÃO",VLOOKUP(C23,COTAÇÃO!A:D,2,0))))))))) -> LIMPEZA MANUAL DE VEGETAÇÃO EM TERRENO COM ENXADA.AF_05/2018 | E23: =IF(A23="CPU CODEVASF",VLOOKUP(C23,CPU!B:I,5,0),IF(A23="INS. SEINFRA",VLOOKUP(C23,'INS. SEINFRA'!A:D,3,0),IF(A23="INS. SINAPI",VLOOKUP(C23,'INS SINAPI'!A:E,3,0),IF(A23="COMP. SINAPI",VLOOKUP(C23,'COMP SINAPI'!G:M,3,0),IF(A23="INS. ORSE",VLOOKUP(C23,'INS. ORSE'!A:D,3,0),IF(A23="COTAÇÃO",VLOOKUP(C23,COTAÇÃO!A:D,3,0),IF(A23="COMP. ORSE",VLOOKUP(C23,'COMP. ORSE'!A:D,3,0),IF(A23="COMP. SEINFRA",VLOOKUP(C23,'COMP. SEINFRA'!B:G,5,0))))))))) -> M2 | F23: 25 | G23: =IF(A23="CPU CODEVASF",VLOOKUP(C23,CPU!F:I,4,0),IF(A23="COTAÇÃO",VLOOKUP(C23,COTAÇÃO!A:D,4,0),IF(A23="INS. SEINFRA",VLOOKUP(C23,'INS. SEINFRA'!A:D,4,0),IF(A23="INS. SINAPI",VLOOKUP(C23,'INS SINAPI'!A:E,5,0),IF(A23="COMP. SINAPI",VLOOKUP(C23,'COMP SINAPI'!G:M,5,0),IF(A23="INS. ORSE",VLOOKUP(C23,'INS. ORSE'!A:D,4,0),IF(A23="COMP. ORSE",VLOOKUP(C23,'COMP. ORSE'!A:D,4,0),IF(A23="COMP. SEINFRA",VLOOKUP(C23,'COMP. SEINFRA'!B:G,6,0))))))))) -> 3,11 | H23: =TRUNC(G23*(1+$F$10),2) -> 3.84 | I23: =TRUNC(H23*F23,2) -> 96
A24: Comp. Seinfra | B24: 2.1.2 | C24: C2784 | D24: =IF(A24="Comp. Sinapi",VLOOKUP(C24,'COMP SINAPI'!G:M,2,0),IF(A24="Comp. Seinfra",VLOOKUP(C24,'COMP. SEINFRA'!B:G,2,0),IF(A24="COMP. ORSE",VLOOKUP(C24,'COMP. ORSE'!A:D,2,0),IF(A24="Ins. Seinfra",VLOOKUP(C24,'INS. SEINFRA'!$A:$D,2,0),IF(A24="Ins. Sinapi",VLOOKUP(C24,'INS SINAPI'!A:E,2,0),IF(A24="Ins. Orse",VLOOKUP(C24,'INS. ORSE'!A:D,2,0),IF(A24="CPU CODEVASF",VLOOKUP(C24,CPU!B:I,4,0),IF(A24="COTAÇÃO",VLOOKUP(C24,COTAÇÃO!A:D,2,0))))))))) -> ESCAVAÇÃO MANUAL SOLO DE 1A.CAT. PROF. ATÉ 1.50m | E24: =IF(A24="CPU CODEVASF",VLOOKUP(C24,CPU!B:I,5,0),IF(A24="INS. SEINFRA",VLOOKUP(C24,'INS. SEINFRA'!A:D,3,0),IF(A24="INS. SINAPI",VLOOKUP(C24,'INS SINAPI'!A:E,3,0),IF(A24="COMP. SINAPI",VLOOKUP(C24,'COMP SINAPI'!G:M,3,0),IF(A24="INS. ORSE",VLOOKUP(C24,'INS. ORSE'!A:D,3,0),IF(A24="COTAÇÃO",VLOOKUP(C24,COTAÇÃO!A:D,3,0),IF(A24="COMP. ORSE",VLOOKUP(C24,'COMP. ORSE'!A:D,3,0),IF(A24="COMP. SEINFRA",VLOOKUP(C24,'COMP. SEINFRA'!B:G,5,0))))))))) -> M3 | F24: 1.66 | G24: =IF(A24="CPU CODEVASF",VLOOKUP(C24,CPU!F:I,4,0),IF(A24="COTAÇÃO",VLOOKUP(C24,COTAÇÃO!A:D,4,0),IF(A24="INS. SEINFRA",VLOOKUP(C24,'INS. SEINFRA'!A:D,4,0),IF(A24="INS. SINAPI",VLOOKUP(C24,'INS SINAPI'!A:E,5,0),IF(A24="COMP. SINAPI",VLOOKUP(C24,'COMP SINAPI'!G:M,5,0),IF(A24="INS. ORSE",VLOOKUP(C24,'INS. ORSE'!A:D,4,0),IF(A24="COMP. ORSE",VLOOKUP(C24,'COMP. ORSE'!A:D,4,0),IF(A24="COMP. SEINFRA",VLOOKUP(C24,'COMP. SEINFRA'!B:G,6,0))))))))) -> 53.69 | H24: 66.3 | I24: 110.05
A25: Comp. Sinapi | B25: 2.1.3 | C25: 103076 | D25: =IF(A25="Comp. Sinapi",VLOOKUP(C25,'COMP SINAPI'!G:M,2,0),IF(A25="Comp. Seinfra",VLOOKUP(C25,'COMP. SEINFRA'!B:G,2,0),IF(A25="COMP. ORSE",VLOOKUP(C25,'COMP. ORSE'!A:D,2,0),IF(A25="Ins. Seinfra",VLOOKUP(C25,'INS. SEINFRA'!$A:$D,2,0),IF(A25="Ins. Sinapi",VLOOKUP(C25,'INS SINAPI'!A:E,2,0),IF(A25="Ins. Orse",VLOOKUP(C25,'INS. ORSE'!A:D,2,0),IF(A25="CPU CODEVASF",VLOOKUP(C25,CPU!B:I,4,0),IF(A25="COTAÇÃO",VLOOKUP(C25,COTAÇÃO!A:D,2,0))))))))) -> EXECUÇÃO DE LAJE SOBRE SOLO, ESPESSURA DE 10 CM, FCK = 30 MPA, COM USO DE FORMAS EM MADEIRA SERRADA. AF_09/2021 | E25: =IF(A25="CPU CODEVASF",VLOOKUP(C25,CPU!B:I,5,0),IF(A25="INS. SEINFRA",VLOOKUP(C25,'INS. SEINFRA'!A:D,3,0),IF(A25="INS. SINAPI",VLOOKUP(C25,'INS SINAPI'!A:E,3,0),IF(A25="COMP. SINAPI",VLOOKUP(C25,'COMP SINAPI'!G:M,3,0),IF(A25="INS. ORSE",VLOOKUP(C25,'INS. ORSE'!A:D,3,0),IF(A25="COTAÇÃO",VLOOKUP(C25,COTAÇÃO!A:D,3,0),IF(A25="COMP. ORSE",VLOOKUP(C25,'COMP. ORSE'!A:D,3,0),IF(A25="COMP. SEINFRA",VLOOKUP(C25,'COMP. SEINFRA'!B:G,5,0))))))))) -> M2 | F25: 15.21 | G25: =IF(A25="CPU CODEVASF",VLOOKUP(C25,CPU!F:I,4,0),IF(A25="COTAÇÃO",VLOOKUP(C25,COTAÇÃO!A:D,4,0),IF(A25="INS. SEINFRA",VLOOKUP(C25,'INS. SEINFRA'!A:D,4,0),IF(A25="INS. SINAPI",VLOOKUP(C25,'INS SINAPI'!A:E,5,0),IF(A25="COMP. SINAPI",VLOOKUP(C25,'COMP SINAPI'!G:M,5,0),IF(A25="INS. ORSE",VLOOKUP(C25,'INS. ORSE'!A:D,4,0),IF(A25="COMP. ORSE",VLOOKUP(C25,'COMP. ORSE'!A:D,4,0),IF(A25="COMP. SEINFRA",VLOOKUP(C25,'COMP. SEINFRA'!B:G,6,0))))))))) -> 140,64 | H25: 173.69 | I25: =TRUNC(H25*F25,2) -> 2641.82
A26: CPU CODEVASF | B26: 2.1.4 | C26: CPU-08 | D26: =IF(A26="Comp. Sinapi",VLOOKUP(C26,'COMP SINAPI'!G:M,2,0),IF(A26="Comp. Seinfra",VLOOKUP(C26,'COMP. SEINFRA'!B:G,2,0),IF(A26="COMP. ORSE",VLOOKUP(C26,'COMP. ORSE'!A:D,2,0),IF(A26="Ins. Seinfra",VLOOKUP(C26,'INS. SEINFRA'!$A:$D,2,0),IF(A26="Ins. Sinapi",VLOOKUP(C26,'INS SINAPI'!A:E,2,0),IF(A26="Ins. Orse",VLOOKUP(C26,'INS. ORSE'!A:D,2,0),IF(A26="CPU CODEVASF",VLOOKUP(C26,CPU!B:I,4,0),IF(A26="COTAÇÃO",VLOOKUP(C26,COTAÇÃO!A:D,2,0))))))))) -> CINTA PARA FUNDAÇÃO MOLDADA IN LOCO COM UTILIZAÇÃO DE BLOCOS CANALETA 14X19X39 | E26: =IF(A26="CPU CODEVASF",VLOOKUP(C26,CPU!B:I,5,0),IF(A26="INS. SEINFRA",VLOOKUP(C26,'INS. SEINFRA'!A:D,3,0),IF(A26="INS. SINAPI",VLOOKUP(C26,'INS SINAPI'!A:E,3,0),IF(A26="COMP. SINAPI",VLOOKUP(C26,'COMP SINAPI'!G:M,3,0),IF(A26="INS. ORSE",VLOOKUP(C26,'INS. ORSE'!A:D,3,0),IF(A26="COTAÇÃO",VLOOKUP(C26,COTAÇÃO!A:D,3,0),IF(A26="COMP. ORSE",VLOOKUP(C26,'COMP. ORSE'!A:D,3,0),IF(A26="COMP. SEINFRA",VLOOKUP(C26,'COMP. SEINFRA'!B:G,5,0))))))))) -> M | F26: 13.82 | G26: =IF(A26="CPU CODEVASF",VLOOKUP(C26,CPU!F:I,4,0),IF(A26="COTAÇÃO",VLOOKUP(C26,COTAÇÃO!A:D,4,0),IF(A26="INS. SEINFRA",VLOOKUP(C26,'INS. SEINFRA'!A:D,4,0),IF(A26="INS. SINAPI",VLOOKUP(C26,'INS SINAPI'!A:E,5,0),IF(A26="COMP. SINAPI",VLOOKUP(C26,'COMP SINAPI'!G:M,5,0),IF(A26="INS. ORSE",VLOOKUP(C26,'INS. ORSE'!A:D,4,0),IF(A26="COMP. ORSE",VLOOKUP(C26,'COMP. ORSE'!A:D,4,0),IF(A26="COMP. SEINFRA",VLOOKUP(C26,'COMP. SEINFRA'!B:G,6,0))))))))) -> 34.66 | H26: 42.8 | I26: 591.49
A27: CPU CODEVASF | B27: 2.1.5 | C27: CPU-09 | D27: =IF(A27="Comp. Sinapi",VLOOKUP(C27,'COMP SINAPI'!G:M,2,0),IF(A27="Comp. Seinfra",VLOOKUP(C27,'COMP. SEINFRA'!B:G,2,0),IF(A27="COMP. ORSE",VLOOKUP(C27,'COMP. ORSE'!A:D,2,0),IF(A27="Ins. Seinfra",VLOOKUP(C27,'INS. SEINFRA'!$A:$D,2,0),IF(A27="Ins. Sinapi",VLOOKUP(C27,'INS SINAPI'!A:E,2,0),IF(A27="Ins. Orse",VLOOKUP(C27,'INS. ORSE'!A:D,2,0),IF(A27="CPU CODEVASF",VLOOKUP(C27,CPU!B:I,4,0),IF(A27="COTAÇÃO",VLOOKUP(C27,COTAÇÃO!A:D,2,0))))))))) -> EXECUÇÃO DE PILARETES EM CONCRETO ARMADO, FCK=20MPA, COM DIMENSÕES DE 0,09X0,10X1,10 M | E27: =IF(A27="CPU CODEVASF",VLOOKUP(C27,CPU!B:I,5,0),IF(A27="INS. SEINFRA",VLOOKUP(C27,'INS. SEINFRA'!A:D,3,0),IF(A27="INS. SINAPI",VLOOKUP(C27,'INS SINAPI'!A:E,3,0),IF(A27="COMP. SINAPI",VLOOKUP(C27,'COMP SINAPI'!G:M,3,0),IF(A27="INS. ORSE",VLOOKUP(C27,'INS. ORSE'!A:D,3,0),IF(A27="COTAÇÃO",VLOOKUP(C27,COTAÇÃO!A:D,3,0),IF(A27="COMP. ORSE",VLOOKUP(C27,'COMP. ORSE'!A:D,3,0),IF(A27="COMP. SEINFRA",VLOOKUP(C27,'COMP. SEINFRA'!B:G,5,0))))))))) -> UNID | F27: 12 | G27: =IF(A27="CPU CODEVASF",VLOOKUP(C27,CPU!F:I,4,0),IF(A27="COTAÇÃO",VLOOKUP(C27,COTAÇÃO!A:D,4,0),IF(A27="INS. SEINFRA",VLOOKUP(C27,'INS. SEINFRA'!A:D,4,0),IF(A27="INS. SINAPI",VLOOKUP(C27,'INS SINAPI'!A:E,5,0),IF(A27="COMP. SINAPI",VLOOKUP(C27,'COMP SINAPI'!G:M,5,0),IF(A27="INS. ORSE",VLOOKUP(C27,'INS. ORSE'!A:D,4,0),IF(A27="COMP. ORSE",VLOOKUP(C27,'COMP. ORSE'!A:D,4,0),IF(A27="COMP. SEINFRA",VLOOKUP(C27,'COMP. SEINFRA'!B:G,6,0))))))))) -> 27.42 | H27: 33.86 | I27: 406.32
A28: Comp. Sinapi | B28: 2.1.6 | C28: 103328 | D28: =IF(A28="Comp. Sinapi",VLOOKUP(C28,'COMP SINAPI'!G:M,2,0),IF(A28="Comp. Seinfra",VLOOKUP(C28,'COMP. SEINFRA'!B:G,2,0),IF(A28="COMP. ORSE",VLOOKUP(C28,'COMP. ORSE'!A:D,2,0),IF(A28="Ins. Seinfra",VLOOKUP(C28,'INS. SEINFRA'!$A:$D,2,0),IF(A28="Ins. Sinapi",VLOOKUP(C28,'INS SINAPI'!A:E,2,0),IF(A28="Ins. Orse",VLOOKUP(C28,'INS. ORSE'!A:D,2,0),IF(A28="CPU CODEVASF",VLOOKUP(C28,CPU!B:I,4,0),IF(A28="COTAÇÃO",VLOOKUP(C28,COTAÇÃO!A:D,2,0))))))))) -> ALVENARIA DE VEDAÇÃO DE BLOCOS CERÂMICOS FURADOS NA HORIZONTAL DE 9X19X19 CM (ESPESSURA 9 CM) E ARGAMASSA DE ASSENTAMENTO COM PREPARO EM BETONEIRA. AF_12/2021 | E28: =IF(A28="CPU CODEVASF",VLOOKUP(C28,CPU!B:I,5,0),IF(A28="INS. SEINFRA",VLOOKUP(C28,'INS. SEINFRA'!A:D,3,0),IF(A28="INS. SINAPI",VLOOKUP(C28,'INS SINAPI'!A:E,3,0),IF(A28="COMP. SINAPI",VLOOKUP(C28,'COMP SINAPI'!G:M,3,0),IF(A28="INS. ORSE",VLOOKUP(C28,'INS. ORSE'!A:D,3,0),IF(A28="COTAÇÃO",VLOOKUP(C28,COTAÇÃO!A:D,3,0),IF(A28="COMP. ORSE",VLOOKUP(C28,'COMP. ORSE'!A:D,3,0),IF(A28="COMP. SEINFRA",VLOOKUP(C28,'COMP. SEINFRA'!B:G,5,0))))))))) -> M2 | F28: 12.44 | G28: =IF(A28="CPU CODEVASF",VLOOKUP(C28,CPU!F:I,4,0),IF(A28="COTAÇÃO",VLOOKUP(C28,COTAÇÃO!A:D,4,0),IF(A28="INS. SEINFRA",VLOOKUP(C28,'INS. SEINFRA'!A:D,4,0),IF(A28="INS. SINAPI",VLOOKUP(C28,'INS SINAPI'!A:E,5,0),IF(A28="COMP. SINAPI",VLOOKUP(C28,'COMP SINAPI'!G:M,5,0),IF(A28="INS. ORSE",VLOOKUP(C28,'INS. ORSE'!A:D,4,0),IF(A28="COMP. ORSE",VLOOKUP(C28,'COMP. ORSE'!A:D,4,0),IF(A28="COMP. SEINFRA",VLOOKUP(C28,'COMP. SEINFRA'!B:G,6,0))))))))) -> 80,98 | H28: 100.01 | I28: 1244.12
A29: Comp. Orse | B29: 2.1.7 | C29: 7727 | D29: =IF(A29="Comp. Sinapi",VLOOKUP(C29,'COMP SINAPI'!G:M,2,0),IF(A29="Comp. Seinfra",VLOOKUP(C29,'COMP. SEINFRA'!B:G,2,0),IF(A29="COMP. ORSE",VLOOKUP(C29,'COMP. ORSE'!A:D,2,0),IF(A29="Ins. Seinfra",VLOOKUP(C29,'INS. SEINFRA'!$A:$D,2,0),IF(A29="Ins. Sinapi",VLOOKUP(C29,'INS SINAPI'!A:E,2,0),IF(A29="Ins. Orse",VLOOKUP(C29,'INS. ORSE'!A:D,2,0),IF(A29="CPU CODEVASF",VLOOKUP(C29,CPU!B:I,4,0),IF(A29="COTAÇÃO",VLOOKUP(C29,COTAÇÃO!A:D,2,0))))))))) -> Impermeabilização de superficie c/argamassa 1:4 (cimento e areia), esp=2,5cm, c/impermeabilizante Vedacit ou similar | E29: =IF(A29="CPU CODEVASF",VLOOKUP(C29,CPU!B:I,5,0),IF(A29="INS. SEINFRA",VLOOKUP(C29,'INS. SEINFRA'!A:D,3,0),IF(A29="INS. SINAPI",VLOOKUP(C29,'INS SINAPI'!A:E,3,0),IF(A29="COMP. SINAPI",VLOOKUP(C29,'COMP SINAPI'!G:M,3,0),IF(A29="INS. ORSE",VLOOKUP(C29,'INS. ORSE'!A:D,3,0),IF(A29="COTAÇÃO",VLOOKUP(C29,COTAÇÃO!A:D,3,0),IF(A29="COMP. ORSE",VLOOKUP(C29,'COMP. ORSE'!A:D,3,0),IF(A29="COMP. SEINFRA",VLOOKUP(C29,'COMP. SEINFRA'!B:G,5,0))))))))) -> M2 | F29: 24.88 | G29: =IF(A29="CPU CODEVASF",VLOOKUP(C29,CPU!F:I,4,0),IF(A29="COTAÇÃO",VLOOKUP(C29,COTAÇÃO!A:D,4,0),IF(A29="INS. SEINFRA",VLOOKUP(C29,'INS. SEINFRA'!A:D,4,0),IF(A29="INS. SINAPI",VLOOKUP(C29,'INS SINAPI'!A:E,5,0),IF(A29="COMP. SINAPI",VLOOKUP(C29,'COMP SINAPI'!G:M,5,0),IF(A29="INS. ORSE",VLOOKUP(C29,'INS. ORSE'!A:D,4,0),IF(A29="COMP. ORSE",VLOOKUP(C29,'COMP. ORSE'!A:D,4,0),IF(A29="COMP. SEINFRA",VLOOKUP(C29,'COMP. SEINFRA'!B:G,6,0))))))))) -> 28.16 | H29: 34.77 | I29: 865.07
A30: Comp. Sinapi | B30: 2.1.8 | C30: 104641 | D30: =IF(A30="Comp. Sinapi",VLOOKUP(C30,'COMP SINAPI'!G:M,2,0),IF(A30="Comp. Seinfra",VLOOKUP(C30,'COMP. SEINFRA'!B:G,2,0),IF(A30="COMP. ORSE",VLOOKUP(C30,'COMP. ORSE'!A:D,2,0),IF(A30="Ins. Seinfra",VLOOKUP(C30,'INS. SEINFRA'!$A:$D,2,0),IF(A30="Ins. Sinapi",VLOOKUP(C30,'INS SINAPI'!A:E,2,0),IF(A30="Ins. Orse",VLOOKUP(C30,'INS. ORSE'!A:D,2,0),IF(A30="CPU CODEVASF",VLOOKUP(C30,CPU!B:I,4,0),IF(A30="COTAÇÃO",VLOOKUP(C30,COTAÇÃO!A:D,2,0))))))))) -> PINTURA LÁTEX ACRÍLICA ECONÔMICA, APLICAÇÃO MANUAL EM PAREDES, DUAS DEMÃOS. AF_04/2023 | E30: =IF(A30="CPU CODEVASF",VLOOKUP(C30,CPU!B:I,5,0),IF(A30="INS. SEINFRA",VLOOKUP(C30,'INS. SEINFRA'!A:D,3,0),IF(A30="INS. SINAPI",VLOOKUP(C30,'INS SINAPI'!A:E,3,0),IF(A30="COMP. SINAPI",VLOOKUP(C30,'COMP SINAPI'!G:M,3,0),IF(A30="INS. ORSE",VLOOKUP(C30,'INS. ORSE'!A:D,3,0),IF(A30="COTAÇÃO",VLOOKUP(C30,COTAÇÃO!A:D,3,0),IF(A30="COMP. ORSE",VLOOKUP(C30,'COMP. ORSE'!A:D,3,0),IF(A30="COMP. SEINFRA",VLOOKUP(C30,'COMP. SEINFRA'!B:G,5,0))))))))) -> M2 | F30: 12.44 | G30: =IF(A30="CPU CODEVASF",VLOOKUP(C30,CPU!F:I,4,0),IF(A30="COTAÇÃO",VLOOKUP(C30,COTAÇÃO!A:D,4,0),IF(A30="INS. SEINFRA",VLOOKUP(C30,'INS. SEINFRA'!A:D,4,0),IF(A30="INS. SINAPI",VLOOKUP(C30,'INS SINAPI'!A:E,5,0),IF(A30="COMP. SINAPI",VLOOKUP(C30,'COMP SINAPI'!G:M,5,0),IF(A30="INS. ORSE",VLOOKUP(C30,'INS. ORSE'!A:D,4,0),IF(A30="COMP. ORSE",VLOOKUP(C30,'COMP. ORSE'!A:D,4,0),IF(A30="COMP. SEINFRA",VLOOKUP(C30,'COMP. SEINFRA'!B:G,6,0))))))))) -> 9,04 | H30: 11.16 | I30: 138.83
B31: 2.2 | D31: Materiais e Equipamentos | I31: =SUM(I32:I56) -> 2010.67
A32: Ins. Sinapi | B32: 2.2.1 | C32: 1191 | D32: =IF(A32="Comp. Sinapi",VLOOKUP(C32,'COMP SINAPI'!G:M,2,0),IF(A32="Comp. Seinfra",VLOOKUP(C32,'COMP. SEINFRA'!B:G,2,0),IF(A32="COMP. ORSE",VLOOKUP(C32,'COMP. ORSE'!A:D,2,0),IF(A32="Ins. Seinfra",VLOOKUP(C32,'INS. SEINFRA'!$A:$D,2,0),IF(A32="Ins. Sinapi",VLOOKUP(C32,'INS SINAPI'!A:E,2,0),IF(A32="Ins. Orse",VLOOKUP(C32,'INS. ORSE'!A:D,2,0),IF(A32="CPU CODEVASF",VLOOKUP(C32,CPU!B:I,4,0),IF(A32="COTAÇÃO",VLOOKUP(C32,COTAÇÃO!A:D,2,0))))))))) -> CAP PVC, SOLDAVEL, 20 MM, PARA AGUA FRIA PREDIAL | E32: =IF(A32="CPU CODEVASF",VLOOKUP(C32,CPU!B:I,5,0),IF(A32="INS. SEINFRA",VLOOKUP(C32,'INS. SEINFRA'!A:D,3,0),IF(A32="INS. SINAPI",VLOOKUP(C32,'INS SINAPI'!A:E,3,0),IF(A32="COMP. SINAPI",VLOOKUP(C32,'COMP SINAPI'!G:M,3,0),IF(A32="INS. ORSE",VLOOKUP(C32,'INS. ORSE'!A:D,3,0),IF(A32="COTAÇÃO",VLOOKUP(C32,COTAÇÃO!A:D,3,0),IF(A32="COMP. ORSE",VLOOKUP(C32,'COMP. ORSE'!A:D,3,0),IF(A32="COMP. SEINFRA",VLOOKUP(C32,'COMP. SEINFRA'!B:G,5,0))))))))) -> UN | F32: 1 | G32: =IF(A32="CPU CODEVASF",VLOOKUP(C32,CPU!F:I,4,0),IF(A32="COTAÇÃO",VLOOKUP(C32,COTAÇÃO!A:D,4,0),IF(A32="INS. SEINFRA",VLOOKUP(C32,'INS. SEINFRA'!A:D,4,0),IF(A32="INS. SINAPI",VLOOKUP(C32,'INS SINAPI'!A:E,5,0),IF(A32="COMP. SINAPI",VLOOKUP(C32,'COMP SINAPI'!G:M,5,0),IF(A32="INS. ORSE",VLOOKUP(C32,'INS. ORSE'!A:D,4,0),IF(A32="COMP. ORSE",VLOOKUP(C32,'COMP. ORSE'!A:D,4,0),IF(A32="COMP. SEINFRA",VLOOKUP(C32,'COMP. SEINFRA'!B:G,6,0))))))))) -> 1,39 | H32: =TRUNC(G32*(1+$I$10),2) -> 1.54 | I32: 1.54
A33: Ins. Seinfra | B33: 2.2.2 | C33: I1972 | D33: =IF(A33="Comp. Sinapi",VLOOKUP(C33,'COMP SINAPI'!G:M,2,0),IF(A33="Comp. Seinfra",VLOOKUP(C33,'COMP. SEINFRA'!B:G,2,0),IF(A33="COMP. ORSE",VLOOKUP(C33,'COMP. ORSE'!A:D,2,0),IF(A33="Ins. Seinfra",VLOOKUP(C33,'INS. SEINFRA'!$A:$D,2,0),IF(A33="Ins. Sinapi",VLOOKUP(C33,'INS SINAPI'!A:E,2,0),IF(A33="Ins. Orse",VLOOKUP(C33,'INS. ORSE'!A:D,2,0),IF(A33="CPU CODEVASF",VLOOKUP(C33,CPU!B:I,4,0),IF(A33="COTAÇÃO",VLOOKUP(C33,COTAÇÃO!A:D,2,0))))))))) -> TE PVC SOLDAVEL 25MM | E33: =IF(A33="CPU CODEVASF",VLOOKUP(C33,CPU!B:I,5,0),IF(A33="INS. SEINFRA",VLOOKUP(C33,'INS. SEINFRA'!A:D,3,0),IF(A33="INS. SINAPI",VLOOKUP(C33,'INS SINAPI'!A:E,3,0),IF(A33="COMP. SINAPI",VLOOKUP(C33,'COMP SINAPI'!G:M,3,0),IF(A33="INS. ORSE",VLOOKUP(C33,'INS. ORSE'!A:D,3,0),IF(A33="COTAÇÃO",VLOOKUP(C33,COTAÇÃO!A:D,3,0),IF(A33="COMP. ORSE",VLOOKUP(C33,'COMP. ORSE'!A:D,3,0),IF(A33="COMP. SEINFRA",VLOOKUP(C33,'COMP. SEINFRA'!B:G,5,0))))))))) -> UN | F33: 3 | G33: =IF(A33="CPU CODEVASF",VLOOKUP(C33,CPU!F:I,4,0),IF(A33="COTAÇÃO",VLOOKUP(C33,COTAÇÃO!A:D,4,0),IF(A33="INS. SEINFRA",VLOOKUP(C33,'INS. SEINFRA'!A:D,4,0),IF(A33="INS. SINAPI",VLOOKUP(C33,'INS SINAPI'!A:E,5,0),IF(A33="COMP. SINAPI",VLOOKUP(C33,'COMP SINAPI'!G:M,5,0),IF(A33="INS. ORSE",VLOOKUP(C33,'INS. ORSE'!A:D,4,0),IF(A33="COMP. ORSE",VLOOKUP(C33,'COMP. ORSE'!A:D,4,0),IF(A33="COMP. SEINFRA",VLOOKUP(C33,'COMP. SEINFRA'!B:G,6,0))))))))) -> 1.31 | H33: =TRUNC(G33*(1+$I$10),2) -> 1.45 | I33: 4.35
A34: Ins. Sinapi | B34: 2.2.3 | C34: 10 | D34: =IF(A34="Comp. Sinapi",VLOOKUP(C34,'COMP SINAPI'!G:M,2,0),IF(A34="Comp. Seinfra",VLOOKUP(C34,'COMP. SEINFRA'!B:G,2,0),IF(A34="COMP. ORSE",VLOOKUP(C34,'COMP. ORSE'!A:D,2,0),IF(A34="Ins. Seinfra",VLOOKUP(C34,'INS. SEINFRA'!$A:$D,2,0),IF(A34="Ins. Sinapi",VLOOKUP(C34,'INS SINAPI'!A:E,2,0),IF(A34="Ins. Orse",VLOOKUP(C34,'INS. ORSE'!A:D,2,0),IF(A34="CPU CODEVASF",VLOOKUP(C34,CPU!B:I,4,0),IF(A34="COTAÇÃO",VLOOKUP(C34,COTAÇÃO!A:D,2,0))))))))) -> BALDE PLASTICO CAPACIDADE *10* L | E34: =IF(A34="CPU CODEVASF",VLOOKUP(C34,CPU!B:I,5,0),IF(A34="INS. SEINFRA",VLOOKUP(C34,'INS. SEINFRA'!A:D,3,0),IF(A34="INS. SINAPI",VLOOKUP(C34,'INS SINAPI'!A:E,3,0),IF(A34="COMP. SINAPI",VLOOKUP(C34,'COMP SINAPI'!G:M,3,0),IF(A34="INS. ORSE",VLOOKUP(C34,'INS. ORSE'!A:D,3,0),IF(A34="COTAÇÃO",VLOOKUP(C34,COTAÇÃO!A:D,3,0),IF(A34="COMP. ORSE",VLOOKUP(C34,'COMP. ORSE'!A:D,3,0),IF(A34="COMP. SEINFRA",VLOOKUP(C34,'COMP. SEINFRA'!B:G,5,0))))))))) -> UN | F34: 1 | G34: =IF(A34="CPU CODEVASF",VLOOKUP(C34,CPU!F:I,4,0),IF(A34="COTAÇÃO",VLOOKUP(C34,COTAÇÃO!A:D,4,0),IF(A34="INS. SEINFRA",VLOOKUP(C34,'INS. SEINFRA'!A:D,4,0),IF(A34="INS. SINAPI",VLOOKUP(C34,'INS SINAPI'!A:E,5,0),IF(A34="COMP. SINAPI",VLOOKUP(C34,'COMP SINAPI'!G:M,5,0),IF(A34="INS. ORSE",VLOOKUP(C34,'INS. ORSE'!A:D,4,0),IF(A34="COMP. ORSE",VLOOKUP(C34,'COMP. ORSE'!A:D,4,0),IF(A34="COMP. SEINFRA",VLOOKUP(C34,'COMP. SEINFRA'!B:G,6,0))))))))) -> 13,28 | H34: 14.79 | I34: 14.79
A35: COTAÇÃO | B35: 2.2.4 | C35: COT. 01 | D35: =IF(A35="Comp. Sinapi",VLOOKUP(C35,'COMP SINAPI'!G:M,2,0),IF(A35="Comp. Seinfra",VLOOKUP(C35,'COMP. SEINFRA'!B:G,2,0),IF(A35="COMP. ORSE",VLOOKUP(C35,'COMP. ORSE'!A:D,2,0),IF(A35="Ins. Seinfra",VLOOKUP(C35,'INS. SEINFRA'!$A:$D,2,0),IF(A35="Ins. Sinapi",VLOOKUP(C35,'INS SINAPI'!A:E,2,0),IF(A35="Ins. Orse",VLOOKUP(C35,'INS. ORSE'!A:D,2,0),IF(A35="CPU CODEVASF",VLOOKUP(C35,CPU!B:I,4,0),IF(A35="COTAÇÃO",VLOOKUP(C35,COTAÇÃO!A:D,2,0))))))))) -> TAMBOR/BOMBONA 70 LITROS RESERVATÓRIO DE ÁGUA | E35: =IF(A35="CPU CODEVASF",VLOOKUP(C35,CPU!B:I,5,0),IF(A35="INS. SEINFRA",VLOOKUP(C35,'INS. SEINFRA'!A:D,3,0),IF(A35="INS. SINAPI",VLOOKUP(C35,'INS SINAPI'!A:E,3,0),IF(A35="COMP. SINAPI",VLOOKUP(C35,'COMP SINAPI'!G:M,3,0),IF(A35="INS. ORSE",VLOOKUP(C35,'INS. ORSE'!A:D,3,0),IF(A35="COTAÇÃO",VLOOKUP(C35,COTAÇÃO!A:D,3,0),IF(A35="COMP. ORSE",VLOOKUP(C35,'COMP. ORSE'!A:D,3,0),IF(A35="COMP. SEINFRA",VLOOKUP(C35,'COMP. SEINFRA'!B:G,5,0))))))))) -> UND | F35: 1 | G35: =IF(A35="CPU CODEVASF",VLOOKUP(C35,CPU!F:I,4,0),IF(A35="COTAÇÃO",VLOOKUP(C35,COTAÇÃO!A:D,4,0),IF(A35="INS. SEINFRA",VLOOKUP(C35,'INS. SEINFRA'!A:D,4,0),IF(A35="INS. SINAPI",VLOOKUP(C35,'INS SINAPI'!A:E,5,0),IF(A35="COMP. SINAPI",VLOOKUP(C35,'COMP SINAPI'!G:M,5,0),IF(A35="INS. ORSE",VLOOKUP(C35,'INS. ORSE'!A:D,4,0),IF(A35="COMP. ORSE",VLOOKUP(C35,'COMP. ORSE'!A:D,4,0),IF(A35="COMP. SEINFRA",VLOOKUP(C35,'COMP. SEINFRA'!B:G,6,0))))))))) -> 129.12 | H35: 143.83 | I35: 143.83
A36: COTAÇÃO | B36: 2.2.5 | C36: COT. 02 | D36: =IF(A36="Comp. Sinapi",VLOOKUP(C36,'COMP SINAPI'!G:M,2,0),IF(A36="Comp. Seinfra",VLOOKUP(C36,'COMP. SEINFRA'!B:G,2,0),IF(A36="COMP. ORSE",VLOOKUP(C36,'COMP. ORSE'!A:D,2,0),IF(A36="Ins. Seinfra",VLOOKUP(C36,'INS. SEINFRA'!$A:$D,2,0),IF(A36="Ins. Sinapi",VLOOKUP(C36,'INS SINAPI'!A:E,2,0),IF(A36="Ins. Orse",VLOOKUP(C36,'INS. ORSE'!A:D,2,0),IF(A36="CPU CODEVASF",VLOOKUP(C36,CPU!B:I,4,0),IF(A36="COTAÇÃO",VLOOKUP(C36,COTAÇÃO!A:D,2,0))))))))) -> BALDE PLÁSTICO RECICLÁVEL (TIPO TAMPA LACRE E ALÇA) - CAPACIDADE 20 LITROS | E36: =IF(A36="CPU CODEVASF",VLOOKUP(C36,CPU!B:I,5,0),IF(A36="INS. SEINFRA",VLOOKUP(C36,'INS. SEINFRA'!A:D,3,0),IF(A36="INS. SINAPI",VLOOKUP(C36,'INS SINAPI'!A:E,3,0),IF(A36="COMP. SINAPI",VLOOKUP(C36,'COMP SINAPI'!G:M,3,0),IF(A36="INS. ORSE",VLOOKUP(C36,'INS. ORSE'!A:D,3,0),IF(A36="COTAÇÃO",VLOOKUP(C36,COTAÇÃO!A:D,3,0),IF(A36="COMP. ORSE",VLOOKUP(C36,'COMP. ORSE'!A:D,3,0),IF(A36="COMP. SEINFRA",VLOOKUP(C36,'COMP. SEINFRA'!B:G,5,0))))))))) -> UND | F36: 1 | G36: =IF(A36="CPU CODEVASF",VLOOKUP(C36,CPU!F:I,4,0),IF(A36="COTAÇÃO",VLOOKUP(C36,COTAÇÃO!A:D,4,0),IF(A36="INS. SEINFRA",VLOOKUP(C36,'INS. SEINFRA'!A:D,4,0),IF(A36="INS. SINAPI",VLOOKUP(C36,'INS SINAPI'!A:E,5,0),IF(A36="COMP. SINAPI",VLOOKUP(C36,'COMP SINAPI'!G:M,5,0),IF(A36="INS. ORSE",VLOOKUP(C36,'INS. ORSE'!A:D,4,0),IF(A36="COMP. ORSE",VLOOKUP(C36,'COMP. ORSE'!A:D,4,0),IF(A36="COMP. SEINFRA",VLOOKUP(C36,'COMP. SEINFRA'!B:G,6,0))))))))) -> 26.1 | H36: 29.07 | I36: 29.07
A37: Ins. Orse | B37: 2.2.6 | C37: 3804 | D37: =IF(A37="Comp. Sinapi",VLOOKUP(C37,'COMP SINAPI'!G:M,2,0),IF(A37="Comp. Seinfra",VLOOKUP(C37,'COMP. SEINFRA'!B:G,2,0),IF(A37="COMP. ORSE",VLOOKUP(C37,'COMP. ORSE'!A:D,2,0),IF(A37="Ins. Seinfra",VLOOKUP(C37,'INS. SEINFRA'!$A:$D,2,0),IF(A37="Ins. Sinapi",VLOOKUP(C37,'INS SINAPI'!A:E,2,0),IF(A37="Ins. Orse",VLOOKUP(C37,'INS. ORSE'!A:D,2,0),IF(A37="CPU CODEVASF",VLOOKUP(C37,CPU!B:I,4,0),IF(A37="COTAÇÃO",VLOOKUP(C37,COTAÇÃO!A:D,2,0))))))))) -> Cabo de cobre PP Cordplast 2 x 2,5 mm2, 450/750v | E37: =IF(A37="CPU CODEVASF",VLOOKUP(C37,CPU!B:I,5,0),IF(A37="INS. SEINFRA",VLOOKUP(C37,'INS. SEINFRA'!A:D,3,0),IF(A37="INS. SINAPI",VLOOKUP(C37,'INS SINAPI'!A:E,3,0),IF(A37="COMP. SINAPI",VLOOKUP(C37,'COMP SINAPI'!G:M,3,0),IF(A37="INS. ORSE",VLOOKUP(C37,'INS. ORSE'!A:D,3,0),IF(A37="COTAÇÃO",VLOOKUP(C37,COTAÇÃO!A:D,3,0),IF(A37="COMP. ORSE",VLOOKUP(C37,'COMP. ORSE'!A:D,3,0),IF(A37="COMP. SEINFRA",VLOOKUP(C37,'COMP. SEINFRA'!B:G,5,0))))))))) -> M | F37: 15 | G37: =IF(A37="CPU CODEVASF",VLOOKUP(C37,CPU!F:I,4,0),IF(A37="COTAÇÃO",VLOOKUP(C37,COTAÇÃO!A:D,4,0),IF(A37="INS. SEINFRA",VLOOKUP(C37,'INS. SEINFRA'!A:D,4,0),IF(A37="INS. SINAPI",VLOOKUP(C37,'INS SINAPI'!A:E,5,0),IF(A37="COMP. SINAPI",VLOOKUP(C37,'COMP SINAPI'!G:M,5,0),IF(A37="INS. ORSE",VLOOKUP(C37,'INS. ORSE'!A:D,4,0),IF(A37="COMP. ORSE",VLOOKUP(C37,'COMP. ORSE'!A:D,4,0),IF(A37="COMP. SEINFRA",VLOOKUP(C37,'COMP. SEINFRA'!B:G,6,0))))))))) -> 4.82 | H37: 5.36 | I37: 80.4
A38: Ins. Sinapi | B38: 2.2.7 | C38: 2676 | D38: =IF(A38="Comp. Sinapi",VLOOKUP(C38,'COMP SINAPI'!G:M,2,0),IF(A38="Comp. Seinfra",VLOOKUP(C38,'COMP. SEINFRA'!B:G,2,0),IF(A38="COMP. ORSE",VLOOKUP(C38,'COMP. ORSE'!A:D,2,0),IF(A38="Ins. Seinfra",VLOOKUP(C38,'INS. SEINFRA'!$A:$D,2,0),IF(A38="Ins. Sinapi",VLOOKUP(C38,'INS SINAPI'!A:E,2,0),IF(A38="Ins. Orse",VLOOKUP(C38,'INS. ORSE'!A:D,2,0),IF(A38="CPU CODEVASF",VLOOKUP(C38,CPU!B:I,4,0),IF(A38="COTAÇÃO",VLOOKUP(C38,COTAÇÃO!A:D,2,0))))))))) -> ELETRODUTO DE PVC RIGIDO SOLDAVEL, CLASSE B, DE 20 MM | E38: =IF(A38="CPU CODEVASF",VLOOKUP(C38,CPU!B:I,5,0),IF(A38="INS. SEINFRA",VLOOKUP(C38,'INS. SEINFRA'!A:D,3,0),IF(A38="INS. SINAPI",VLOOKUP(C38,'INS SINAPI'!A:E,3,0),IF(A38="COMP. SINAPI",VLOOKUP(C38,'COMP SINAPI'!G:M,3,0),IF(A38="INS. ORSE",VLOOKUP(C38,'INS. ORSE'!A:D,3,0),IF(A38="COTAÇÃO",VLOOKUP(C38,COTAÇÃO!A:D,3,0),IF(A38="COMP. ORSE",VLOOKUP(C38,'COMP. ORSE'!A:D,3,0),IF(A38="COMP. SEINFRA",VLOOKUP(C38,'COMP. SEINFRA'!B:G,5,0))))))))) -> M | F38: 16 | G38: =IF(A38="CPU CODEVASF",VLOOKUP(C38,CPU!F:I,4,0),IF(A38="COTAÇÃO",VLOOKUP(C38,COTAÇÃO!A:D,4,0),IF(A38="INS. SEINFRA",VLOOKUP(C38,'INS. SEINFRA'!A:D,4,0),IF(A38="INS. SINAPI",VLOOKUP(C38,'INS SINAPI'!A:E,5,0),IF(A38="COMP. SINAPI",VLOOKUP(C38,'COMP SINAPI'!G:M,5,0),IF(A38="INS. ORSE",VLOOKUP(C38,'INS. ORSE'!A:D,4,0),IF(A38="COMP. ORSE",VLOOKUP(C38,'COMP. ORSE'!A:D,4,0),IF(A38="COMP. SEINFRA",VLOOKUP(C38,'COMP. SEINFRA'!B:G,6,0))))))))) -> 2,50 | H38: 2.78 | I38: 44.48
A39: Ins. Sinapi | B39: 2.2.8 | C39: 39330 | D39: =IF(A39="Comp. Sinapi",VLOOKUP(C39,'COMP SINAPI'!G:M,2,0),IF(A39="Comp. Seinfra",VLOOKUP(C39,'COMP. SEINFRA'!B:G,2,0),IF(A39="COMP. ORSE",VLOOKUP(C39,'COMP. ORSE'!A:D,2,0),IF(A39="Ins. Seinfra",VLOOKUP(C39,'INS. SEINFRA'!$A:$D,2,0),IF(A39="Ins. Sinapi",VLOOKUP(C39,'INS SINAPI'!A:E,2,0),IF(A39="Ins. Orse",VLOOKUP(C39,'INS. ORSE'!A:D,2,0),IF(A39="CPU CODEVASF",VLOOKUP(C39,CPU!B:I,4,0),IF(A39="COTAÇÃO",VLOOKUP(C39,COTAÇÃO!A:D,2,0))))))))) -> CONDULETE EM PVC, TIPO "C", SEM TAMPA, DE 1/2" | E39: =IF(A39="CPU CODEVASF",VLOOKUP(C39,CPU!B:I,5,0),IF(A39="INS. SEINFRA",VLOOKUP(C39,'INS. SEINFRA'!A:D,3,0),IF(A39="INS. SINAPI",VLOOKUP(C39,'INS SINAPI'!A:E,3,0),IF(A39="COMP. SINAPI",VLOOKUP(C39,'COMP SINAPI'!G:M,3,0),IF(A39="INS. ORSE",VLOOKUP(C39,'INS. ORSE'!A:D,3,0),IF(A39="COTAÇÃO",VLOOKUP(C39,COTAÇÃO!A:D,3,0),IF(A39="COMP. ORSE",VLOOKUP(C39,'COMP. ORSE'!A:D,3,0),IF(A39="COMP. SEINFRA",VLOOKUP(C39,'COMP. SEINFRA'!B:G,5,0))))))))) -> UN | F39: 2 | G39: =IF(A39="CPU CODEVASF",VLOOKUP(C39,CPU!F:I,4,0),IF(A39="COTAÇÃO",VLOOKUP(C39,COTAÇÃO!A:D,4,0),IF(A39="INS. SEINFRA",VLOOKUP(C39,'INS. SEINFRA'!A:D,4,0),IF(A39="INS. SINAPI",VLOOKUP(C39,'INS SINAPI'!A:E,5,0),IF(A39="COMP. SINAPI",VLOOKUP(C39,'COMP SINAPI'!G:M,5,0),IF(A39="INS. ORSE",VLOOKUP(C39,'INS. ORSE'!A:D,4,0),IF(A39="COMP. ORSE",VLOOKUP(C39,'COMP. ORSE'!A:D,4,0),IF(A39="COMP. SEINFRA",VLOOKUP(C39,'COMP. SEINFRA'!B:G,6,0))))))))) -> 15,28 | H39: 17.02 | I39: 34.04
A40: Ins. Sinapi | B40: 2.2.9 | C40: 7528 | D40: =IF(A40="Comp. Sinapi",VLOOKUP(C40,'COMP SINAPI'!G:M,2,0),IF(A40="Comp. Seinfra",VLOOKUP(C40,'COMP. SEINFRA'!B:G,2,0),IF(A40="COMP. ORSE",VLOOKUP(C40,'COMP. ORSE'!A:D,2,0),IF(A40="Ins. Seinfra",VLOOKUP(C40,'INS. SEINFRA'!$A:$D,2,0),IF(A40="Ins. Sinapi",VLOOKUP(C40,'INS SINAPI'!A:E,2,0),IF(A40="Ins. Orse",VLOOKUP(C40,'INS. ORSE'!A:D,2,0),IF(A40="CPU CODEVASF",VLOOKUP(C40,CPU!B:I,4,0),IF(A40="COTAÇÃO",VLOOKUP(C40,COTAÇÃO!A:D,2,0))))))))) -> TOMADA 2P+T 10A, 250V, CONJUNTO MONTADO PARA EMBUTIR 4" X 2" (PLACA + SUPORTE + MODULO) | E40: =IF(A40="CPU CODEVASF",VLOOKUP(C40,CPU!B:I,5,0),IF(A40="INS. SEINFRA",VLOOKUP(C40,'INS. SEINFRA'!A:D,3,0),IF(A40="INS. SINAPI",VLOOKUP(C40,'INS SINAPI'!A:E,3,0),IF(A40="COMP. SINAPI",VLOOKUP(C40,'COMP SINAPI'!G:M,3,0),IF(A40="INS. ORSE",VLOOKUP(C40,'INS. ORSE'!A:D,3,0),IF(A40="COTAÇÃO",VLOOKUP(C40,COTAÇÃO!A:D,3,0),IF(A40="COMP. ORSE",VLOOKUP(C40,'COMP. ORSE'!A:D,3,0),IF(A40="COMP. SEINFRA",VLOOKUP(C40,'COMP. SEINFRA'!B:G,5,0))))))))) -> UN | F40: 2 | G40: =IF(A40="CPU CODEVASF",VLOOKUP(C40,CPU!F:I,4,0),IF(A40="COTAÇÃO",VLOOKUP(C40,COTAÇÃO!A:D,4,0),IF(A40="INS. SEINFRA",VLOOKUP(C40,'INS. SEINFRA'!A:D,4,0),IF(A40="INS. SINAPI",VLOOKUP(C40,'INS SINAPI'!A:E,5,0),IF(A40="COMP. SINAPI",VLOOKUP(C40,'COMP SINAPI'!G:M,5,0),IF(A40="INS. ORSE",VLOOKUP(C40,'INS. ORSE'!A:D,4,0),IF(A40="COMP. ORSE",VLOOKUP(C40,'COMP. ORSE'!A:D,4,0),IF(A40="COMP. SEINFRA",VLOOKUP(C40,'COMP. SEINFRA'!B:G,6,0))))))))) -> 9,28 | H40: 10.33 | I40: 20.66
A41: COTAÇÃO | B41: 2.2.10 | C41: COT. 03 | D41: =IF(A41="Comp. Sinapi",VLOOKUP(C41,'COMP SINAPI'!G:M,2,0),IF(A41="Comp. Seinfra",VLOOKUP(C41,'COMP. SEINFRA'!B:G,2,0),IF(A41="COMP. ORSE",VLOOKUP(C41,'COMP. ORSE'!A:D,2,0),IF(A41="Ins. Seinfra",VLOOKUP(C41,'INS. SEINFRA'!$A:$D,2,0),IF(A41="Ins. Sinapi",VLOOKUP(C41,'INS SINAPI'!A:E,2,0),IF(A41="Ins. Orse",VLOOKUP(C41,'INS. ORSE'!A:D,2,0),IF(A41="CPU CODEVASF",VLOOKUP(C41,CPU!B:I,4,0),IF(A41="COTAÇÃO",VLOOKUP(C41,COTAÇÃO!A:D,2,0))))))))) -> BOMBA SUBMERSA SARLO SB2000 (TENSÃO 220V) | E41: =IF(A41="CPU CODEVASF",VLOOKUP(C41,CPU!B:I,5,0),IF(A41="INS. SEINFRA",VLOOKUP(C41,'INS. SEINFRA'!A:D,3,0),IF(A41="INS. SINAPI",VLOOKUP(C41,'INS SINAPI'!A:E,3,0),IF(A41="COMP. SINAPI",VLOOKUP(C41,'COMP SINAPI'!G:M,3,0),IF(A41="INS. ORSE",VLOOKUP(C41,'INS. ORSE'!A:D,3,0),IF(A41="COTAÇÃO",VLOOKUP(C41,COTAÇÃO!A:D,3,0),IF(A41="COMP. ORSE",VLOOKUP(C41,'COMP. ORSE'!A:D,3,0),IF(A41="COMP. SEINFRA",VLOOKUP(C41,'COMP. SEINFRA'!B:G,5,0))))))))) -> UND | F41: 2 | G41: =IF(A41="CPU CODEVASF",VLOOKUP(C41,CPU!F:I,4,0),IF(A41="COTAÇÃO",VLOOKUP(C41,COTAÇÃO!A:D,4,0),IF(A41="INS. SEINFRA",VLOOKUP(C41,'INS. SEINFRA'!A:D,4,0),IF(A41="INS. SINAPI",VLOOKUP(C41,'INS SINAPI'!A:E,5,0),IF(A41="COMP. SINAPI",VLOOKUP(C41,'COMP SINAPI'!G:M,5,0),IF(A41="INS. ORSE",VLOOKUP(C41,'INS. ORSE'!A:D,4,0),IF(A41="COMP. ORSE",VLOOKUP(C41,'COMP. ORSE'!A:D,4,0),IF(A41="COMP. SEINFRA",VLOOKUP(C41,'COMP. SEINFRA'!B:G,6,0))))))))) -> 259.14 | H41: 288.68 | I41: 577.36
A42: Ins. Seinfra | B42: 2.2.11 | C42: I0405 | D42: =IF(A42="Comp. Sinapi",VLOOKUP(C42,'COMP SINAPI'!G:M,2,0),IF(A42="Comp. Seinfra",VLOOKUP(C42,'COMP. SEINFRA'!B:G,2,0),IF(A42="COMP. ORSE",VLOOKUP(C42,'COMP. ORSE'!A:D,2,0),IF(A42="Ins. Seinfra",VLOOKUP(C42,'INS. SEINFRA'!$A:$D,2,0),IF(A42="Ins. Sinapi",VLOOKUP(C42,'INS SINAPI'!A:E,2,0),IF(A42="Ins. Orse",VLOOKUP(C42,'INS. ORSE'!A:D,2,0),IF(A42="CPU CODEVASF",VLOOKUP(C42,CPU!B:I,4,0),IF(A42="COTAÇÃO",VLOOKUP(C42,COTAÇÃO!A:D,2,0))))))))) -> CAIBRO DE 2"x1" | E42: =IF(A42="CPU CODEVASF",VLOOKUP(C42,CPU!B:I,5,0),IF(A42="INS. SEINFRA",VLOOKUP(C42,'INS. SEINFRA'!A:D,3,0),IF(A42="INS. SINAPI",VLOOKUP(C42,'INS SINAPI'!A:E,3,0),IF(A42="COMP. SINAPI",VLOOKUP(C42,'COMP SINAPI'!G:M,3,0),IF(A42="INS. ORSE",VLOOKUP(C42,'INS. ORSE'!A:D,3,0),IF(A42="COTAÇÃO",VLOOKUP(C42,COTAÇÃO!A:D,3,0),IF(A42="COMP. ORSE",VLOOKUP(C42,'COMP. ORSE'!A:D,3,0),IF(A42="COMP. SEINFRA",VLOOKUP(C42,'COMP. SEINFRA'!B:G,5,0))))))))) -> M | F42: 7.2 | G42: =IF(A42="CPU CODEVASF",VLOOKUP(C42,CPU!F:I,4,0),IF(A42="COTAÇÃO",VLOOKUP(C42,COTAÇÃO!A:D,4,0),IF(A42="INS. SEINFRA",VLOOKUP(C42,'INS. SEINFRA'!A:D,4,0),IF(A42="INS. SINAPI",VLOOKUP(C42,'INS SINAPI'!A:E,5,0),IF(A42="COMP. SINAPI",VLOOKUP(C42,'COMP SINAPI'!G:M,5,0),IF(A42="INS. ORSE",VLOOKUP(C42,'INS. ORSE'!A:D,4,0),IF(A42="COMP. ORSE",VLOOKUP(C42,'COMP. ORSE'!A:D,4,0),IF(A42="COMP. SEINFRA",VLOOKUP(C42,'COMP. SEINFRA'!B:G,6,0))))))))) -> 6.4 | H42: 7.12 | I42: 51.26
A43: Ins. Seinfra | B43: 2.2.12 | C43: I6220 | D43: =IF(A43="Comp. Sinapi",VLOOKUP(C43,'COMP SINAPI'!G:M,2,0),IF(A43="Comp. Seinfra",VLOOKUP(C43,'COMP. SEINFRA'!B:G,2,0),IF(A43="COMP. ORSE",VLOOKUP(C43,'COMP. ORSE'!A:D,2,0),IF(A43="Ins. Seinfra",VLOOKUP(C43,'INS. SEINFRA'!$A:$D,2,0),IF(A43="Ins. Sinapi",VLOOKUP(C43,'INS SINAPI'!A:E,2,0),IF(A43="Ins. Orse",VLOOKUP(C43,'INS. ORSE'!A:D,2,0),IF(A43="CPU CODEVASF",VLOOKUP(C43,CPU!B:I,4,0),IF(A43="COTAÇÃO",VLOOKUP(C43,COTAÇÃO!A:D,2,0))))))))) -> CORDA DE NYLON DE 4mm | E43: =IF(A43="CPU CODEVASF",VLOOKUP(C43,CPU!B:I,5,0),IF(A43="INS. SEINFRA",VLOOKUP(C43,'INS. SEINFRA'!A:D,3,0),IF(A43="INS. SINAPI",VLOOKUP(C43,'INS SINAPI'!A:E,3,0),IF(A43="COMP. SINAPI",VLOOKUP(C43,'COMP SINAPI'!G:M,3,0),IF(A43="INS. ORSE",VLOOKUP(C43,'INS. ORSE'!A:D,3,0),IF(A43="COTAÇÃO",VLOOKUP(C43,COTAÇÃO!A:D,3,0),IF(A43="COMP. ORSE",VLOOKUP(C43,'COMP. ORSE'!A:D,3,0),IF(A43="COMP. SEINFRA",VLOOKUP(C43,'COMP. SEINFRA'!B:G,5,0))))))))) -> M | F43: 30 | G43: =IF(A43="CPU CODEVASF",VLOOKUP(C43,CPU!F:I,4,0),IF(A43="COTAÇÃO",VLOOKUP(C43,COTAÇÃO!A:D,4,0),IF(A43="INS. SEINFRA",VLOOKUP(C43,'INS. SEINFRA'!A:D,4,0),IF(A43="INS. SINAPI",VLOOKUP(C43,'INS SINAPI'!A:E,5,0),IF(A43="COMP. SINAPI",VLOOKUP(C43,'COMP SINAPI'!G:M,5,0),IF(A43="INS. ORSE",VLOOKUP(C43,'INS. ORSE'!A:D,4,0),IF(A43="COMP. ORSE",VLOOKUP(C43,'COMP. ORSE'!A:D,4,0),IF(A43="COMP. SEINFRA",VLOOKUP(C43,'COMP. SEINFRA'!B:G,6,0))))))))) -> 0.29 | H43: 0.32 | I43: 9.6
A44: Ins. Sinapi | B44: 2.2.13 | C44: 1107 | D44: =IF(A44="Comp. Sinapi",VLOOKUP(C44,'COMP SINAPI'!G:M,2,0),IF(A44="Comp. Seinfra",VLOOKUP(C44,'COMP. SEINFRA'!B:G,2,0),IF(A44="COMP. ORSE",VLOOKUP(C44,'COMP. ORSE'!A:D,2,0),IF(A44="Ins. Seinfra",VLOOKUP(C44,'INS. SEINFRA'!$A:$D,2,0),IF(A44="Ins. Sinapi",VLOOKUP(C44,'INS SINAPI'!A:E,2,0),IF(A44="Ins. Orse",VLOOKUP(C44,'INS. ORSE'!A:D,2,0),IF(A44="CPU CODEVASF",VLOOKUP(C44,CPU!B:I,4,0),IF(A44="COTAÇÃO",VLOOKUP(C44,COTAÇÃO!A:D,2,0))))))))) -> CAL VIRGEM COMUM PARA ARGAMASSAS (NBR 6453) | E44: =IF(A44="CPU CODEVASF",VLOOKUP(C44,CPU!B:I,5,0),IF(A44="INS. SEINFRA",VLOOKUP(C44,'INS. SEINFRA'!A:D,3,0),IF(A44="INS. SINAPI",VLOOKUP(C44,'INS SINAPI'!A:E,3,0),IF(A44="COMP. SINAPI",VLOOKUP(C44,'COMP SINAPI'!G:M,3,0),IF(A44="INS. ORSE",VLOOKUP(C44,'INS. ORSE'!A:D,3,0),IF(A44="COTAÇÃO",VLOOKUP(C44,COTAÇÃO!A:D,3,0),IF(A44="COMP. ORSE",VLOOKUP(C44,'COMP. ORSE'!A:D,3,0),IF(A44="COMP. SEINFRA",VLOOKUP(C44,'COMP. SEINFRA'!B:G,5,0))))))))) -> KG | F44: 20 | G44: =IF(A44="CPU CODEVASF",VLOOKUP(C44,CPU!F:I,4,0),IF(A44="COTAÇÃO",VLOOKUP(C44,COTAÇÃO!A:D,4,0),IF(A44="INS. SEINFRA",VLOOKUP(C44,'INS. SEINFRA'!A:D,4,0),IF(A44="INS. SINAPI",VLOOKUP(C44,'INS SINAPI'!A:E,5,0),IF(A44="COMP. SINAPI",VLOOKUP(C44,'COMP SINAPI'!G:M,5,0),IF(A44="INS. ORSE",VLOOKUP(C44,'INS. ORSE'!A:D,4,0),IF(A44="COMP. ORSE",VLOOKUP(C44,'COMP. ORSE'!A:D,4,0),IF(A44="COMP. SEINFRA",VLOOKUP(C44,'COMP. SEINFRA'!B:G,6,0))))))))) -> 1,23 | H44: 1.37 | I44: 27.4
A45: Ins. Sinapi | B45: 2.2.14 | C45: 3315 | D45: =IF(A45="Comp. Sinapi",VLOOKUP(C45,'COMP SINAPI'!G:M,2,0),IF(A45="Comp. Seinfra",VLOOKUP(C45,'COMP. SEINFRA'!B:G,2,0),IF(A45="COMP. ORSE",VLOOKUP(C45,'COMP. ORSE'!A:D,2,0),IF(A45="Ins. Seinfra",VLOOKUP(C45,'INS. SEINFRA'!$A:$D,2,0),IF(A45="Ins. Sinapi",VLOOKUP(C45,'INS SINAPI'!A:E,2,0),IF(A45="Ins. Orse",VLOOKUP(C45,'INS. ORSE'!A:D,2,0),IF(A45="CPU CODEVASF",VLOOKUP(C45,CPU!B:I,4,0),IF(A45="COTAÇÃO",VLOOKUP(C45,COTAÇÃO!A:D,2,0))))))))) -> GESSO EM PO PARA REVESTIMENTOS/MOLDURAS/SANCAS E USO GERAL | E45: =IF(A45="CPU CODEVASF",VLOOKUP(C45,CPU!B:I,5,0),IF(A45="INS. SEINFRA",VLOOKUP(C45,'INS. SEINFRA'!A:D,3,0),IF(A45="INS. SINAPI",VLOOKUP(C45,'INS SINAPI'!A:E,3,0),IF(A45="COMP. SINAPI",VLOOKUP(C45,'COMP SINAPI'!G:M,3,0),IF(A45="INS. ORSE",VLOOKUP(C45,'INS. ORSE'!A:D,3,0),IF(A45="COTAÇÃO",VLOOKUP(C45,COTAÇÃO!A:D,3,0),IF(A45="COMP. ORSE",VLOOKUP(C45,'COMP. ORSE'!A:D,3,0),IF(A45="COMP. SEINFRA",VLOOKUP(C45,'COMP. SEINFRA'!B:G,5,0))))))))) -> KG | F45: 20 | G45: =IF(A45="CPU CODEVASF",VLOOKUP(C45,CPU!F:I,4,0),IF(A45="COTAÇÃO",VLOOKUP(C45,COTAÇÃO!A:D,4,0),IF(A45="INS. SEINFRA",VLOOKUP(C45,'INS. SEINFRA'!A:D,4,0),IF(A45="INS. SINAPI",VLOOKUP(C45,'INS SINAPI'!A:E,5,0),IF(A45="COMP. SINAPI",VLOOKUP(C45,'COMP SINAPI'!G:M,5,0),IF(A45="INS. ORSE",VLOOKUP(C45,'INS. ORSE'!A:D,4,0),IF(A45="COMP. ORSE",VLOOKUP(C45,'COMP. ORSE'!A:D,4,0),IF(A45="COMP. SEINFRA",VLOOKUP(C45,'COMP. SEINFRA'!B:G,6,0))))))))) -> 0,75 | H45: 0.83 | I45: 16.6
A46: Ins. Sinapi | B46: 2.2.15 | C46: 3904 | D46: =IF(A46="Comp. Sinapi",VLOOKUP(C46,'COMP SINAPI'!G:M,2,0),IF(A46="Comp. Seinfra",VLOOKUP(C46,'COMP. SEINFRA'!B:G,2,0),IF(A46="COMP. ORSE",VLOOKUP(C46,'COMP. ORSE'!A:D,2,0),IF(A46="Ins. Seinfra",VLOOKUP(C46,'INS. SEINFRA'!$A:$D,2,0),IF(A46="Ins. Sinapi",VLOOKUP(C46,'INS SINAPI'!A:E,2,0),IF(A46="Ins. Orse",VLOOKUP(C46,'INS. ORSE'!A:D,2,0),IF(A46="CPU CODEVASF",VLOOKUP(C46,CPU!B:I,4,0),IF(A46="COTAÇÃO",VLOOKUP(C46,COTAÇÃO!A:D,2,0))))))))) -> LUVA PVC SOLDAVEL, 25 MM, PARA AGUA FRIA PREDIAL | E46: =IF(A46="CPU CODEVASF",VLOOKUP(C46,CPU!B:I,5,0),IF(A46="INS. SEINFRA",VLOOKUP(C46,'INS. SEINFRA'!A:D,3,0),IF(A46="INS. SINAPI",VLOOKUP(C46,'INS SINAPI'!A:E,3,0),IF(A46="COMP. SINAPI",VLOOKUP(C46,'COMP SINAPI'!G:M,3,0),IF(A46="INS. ORSE",VLOOKUP(C46,'INS. ORSE'!A:D,3,0),IF(A46="COTAÇÃO",VLOOKUP(C46,COTAÇÃO!A:D,3,0),IF(A46="COMP. ORSE",VLOOKUP(C46,'COMP. ORSE'!A:D,3,0),IF(A46="COMP. SEINFRA",VLOOKUP(C46,'COMP. SEINFRA'!B:G,5,0))))))))) -> UN | F46: 1 | G46: =IF(A46="CPU CODEVASF",VLOOKUP(C46,CPU!F:I,4,0),IF(A46="COTAÇÃO",VLOOKUP(C46,COTAÇÃO!A:D,4,0),IF(A46="INS. SEINFRA",VLOOKUP(C46,'INS. SEINFRA'!A:D,4,0),IF(A46="INS. SINAPI",VLOOKUP(C46,'INS SINAPI'!A:E,5,0),IF(A46="COMP. SINAPI",VLOOKUP(C46,'COMP SINAPI'!G:M,5,0),IF(A46="INS. ORSE",VLOOKUP(C46,'INS. ORSE'!A:D,4,0),IF(A46="COMP. ORSE",VLOOKUP(C46,'COMP. ORSE'!A:D,4,0),IF(A46="COMP. SEINFRA",VLOOKUP(C46,'COMP. SEINFRA'!B:G,6,0))))))))) -> 0,91 | H46: 1.01 | I46: 1.01
A47: Ins. Sinapi | B47: 2.2.16 | C47: 20185 | D47: =IF(A47="Comp. Sinapi",VLOOKUP(C47,'COMP SINAPI'!G:M,2,0),IF(A47="Comp. Seinfra",VLOOKUP(C47,'COMP. SEINFRA'!B:G,2,0),IF(A47="COMP. ORSE",VLOOKUP(C47,'COMP. ORSE'!A:D,2,0),IF(A47="Ins. Seinfra",VLOOKUP(C47,'INS. SEINFRA'!$A:$D,2,0),IF(A47="Ins. Sinapi",VLOOKUP(C47,'INS SINAPI'!A:E,2,0),IF(A47="Ins. Orse",VLOOKUP(C47,'INS. ORSE'!A:D,2,0),IF(A47="CPU CODEVASF",VLOOKUP(C47,CPU!B:I,4,0),IF(A47="COTAÇÃO",VLOOKUP(C47,COTAÇÃO!A:D,2,0))))))))) -> MANGUEIRA DE PVC FLEXIVEL,TIPO FLAT/ACHATADA, COR LARANJA, D = 1 1/2" (40 MM), PARA CONDUCAO DE AGUA, SERVICOS LEVES E MEDIOS | E47: =IF(A47="CPU CODEVASF",VLOOKUP(C47,CPU!B:I,5,0),IF(A47="INS. SEINFRA",VLOOKUP(C47,'INS. SEINFRA'!A:D,3,0),IF(A47="INS. SINAPI",VLOOKUP(C47,'INS SINAPI'!A:E,3,0),IF(A47="COMP. SINAPI",VLOOKUP(C47,'COMP SINAPI'!G:M,3,0),IF(A47="INS. ORSE",VLOOKUP(C47,'INS. ORSE'!A:D,3,0),IF(A47="COTAÇÃO",VLOOKUP(C47,COTAÇÃO!A:D,3,0),IF(A47="COMP. ORSE",VLOOKUP(C47,'COMP. ORSE'!A:D,3,0),IF(A47="COMP. SEINFRA",VLOOKUP(C47,'COMP. SEINFRA'!B:G,5,0))))))))) -> M | F47: 4.5 | G47: =IF(A47="CPU CODEVASF",VLOOKUP(C47,CPU!F:I,4,0),IF(A47="COTAÇÃO",VLOOKUP(C47,COTAÇÃO!A:D,4,0),IF(A47="INS. SEINFRA",VLOOKUP(C47,'INS. SEINFRA'!A:D,4,0),IF(A47="INS. SINAPI",VLOOKUP(C47,'INS SINAPI'!A:E,5,0),IF(A47="COMP. SINAPI",VLOOKUP(C47,'COMP SINAPI'!G:M,5,0),IF(A47="INS. ORSE",VLOOKUP(C47,'INS. ORSE'!A:D,4,0),IF(A47="COMP. ORSE",VLOOKUP(C47,'COMP. ORSE'!A:D,4,0),IF(A47="COMP. SEINFRA",VLOOKUP(C47,'COMP. SEINFRA'!B:G,6,0))))))))) -> 20,31 | H47: 22.62 | I47: 101.79
A48: Ins. Sinapi | B48: 2.2.17 | C48: 37461 | D48: =IF(A48="Comp. Sinapi",VLOOKUP(C48,'COMP SINAPI'!G:M,2,0),IF(A48="Comp. Seinfra",VLOOKUP(C48,'COMP. SEINFRA'!B:G,2,0),IF(A48="COMP. ORSE",VLOOKUP(C48,'COMP. ORSE'!A:D,2,0),IF(A48="Ins. Seinfra",VLOOKUP(C48,'INS. SEINFRA'!$A:$D,2,0),IF(A48="Ins. Sinapi",VLOOKUP(C48,'INS SINAPI'!A:E,2,0),IF(A48="Ins. Orse",VLOOKUP(C48,'INS. ORSE'!A:D,2,0),IF(A48="CPU CODEVASF",VLOOKUP(C48,CPU!B:I,4,0),IF(A48="COTAÇÃO",VLOOKUP(C48,COTAÇÃO!A:D,2,0))))))))) -> MANGUEIRA CRISTAL TRANCADA, PVC COM REFORCO, COM PRESSAO DE TRABALHO (PT) 250 LBS/POL2, DE 3/4" X *2,8* MM | E48: =IF(A48="CPU CODEVASF",VLOOKUP(C48,CPU!B:I,5,0),IF(A48="INS. SEINFRA",VLOOKUP(C48,'INS. SEINFRA'!A:D,3,0),IF(A48="INS. SINAPI",VLOOKUP(C48,'INS SINAPI'!A:E,3,0),IF(A48="COMP. SINAPI",VLOOKUP(C48,'COMP SINAPI'!G:M,3,0),IF(A48="INS. ORSE",VLOOKUP(C48,'INS. ORSE'!A:D,3,0),IF(A48="COTAÇÃO",VLOOKUP(C48,COTAÇÃO!A:D,3,0),IF(A48="COMP. ORSE",VLOOKUP(C48,'COMP. ORSE'!A:D,3,0),IF(A48="COMP. SEINFRA",VLOOKUP(C48,'COMP. SEINFRA'!B:G,5,0))))))))) -> M | F48: 2.5 | G48: =IF(A48="CPU CODEVASF",VLOOKUP(C48,CPU!F:I,4,0),IF(A48="COTAÇÃO",VLOOKUP(C48,COTAÇÃO!A:D,4,0),IF(A48="INS. SEINFRA",VLOOKUP(C48,'INS. SEINFRA'!A:D,4,0),IF(A48="INS. SINAPI",VLOOKUP(C48,'INS SINAPI'!A:E,5,0),IF(A48="COMP. SINAPI",VLOOKUP(C48,'COMP SINAPI'!G:M,5,0),IF(A48="INS. ORSE",VLOOKUP(C48,'INS. ORSE'!A:D,4,0),IF(A48="COMP. ORSE",VLOOKUP(C48,'COMP. ORSE'!A:D,4,0),IF(A48="COMP. SEINFRA",VLOOKUP(C48,'COMP. SEINFRA'!B:G,6,0))))))))) -> 12,49 | H48: 13.91 | I48: 34.77
A49: Ins. Sinapi | B49: 2.2.18 | C49: 37456 | D49: =IF(A49="Comp. Sinapi",VLOOKUP(C49,'COMP SINAPI'!G:M,2,0),IF(A49="Comp. Seinfra",VLOOKUP(C49,'COMP. SEINFRA'!B:G,2,0),IF(A49="COMP. ORSE",VLOOKUP(C49,'COMP. ORSE'!A:D,2,0),IF(A49="Ins. Seinfra",VLOOKUP(C49,'INS. SEINFRA'!$A:$D,2,0),IF(A49="Ins. Sinapi",VLOOKUP(C49,'INS SINAPI'!A:E,2,0),IF(A49="Ins. Orse",VLOOKUP(C49,'INS. ORSE'!A:D,2,0),IF(A49="CPU CODEVASF",VLOOKUP(C49,CPU!B:I,4,0),IF(A49="COTAÇÃO",VLOOKUP(C49,COTAÇÃO!A:D,2,0))))))))) -> MANGUEIRA CRISTAL PARA NIVEL, LISA, PVC TRANSPARENTE, 5/16" X1 MM | E49: =IF(A49="CPU CODEVASF",VLOOKUP(C49,CPU!B:I,5,0),IF(A49="INS. SEINFRA",VLOOKUP(C49,'INS. SEINFRA'!A:D,3,0),IF(A49="INS. SINAPI",VLOOKUP(C49,'INS SINAPI'!A:E,3,0),IF(A49="COMP. SINAPI",VLOOKUP(C49,'COMP SINAPI'!G:M,3,0),IF(A49="INS. ORSE",VLOOKUP(C49,'INS. ORSE'!A:D,3,0),IF(A49="COTAÇÃO",VLOOKUP(C49,COTAÇÃO!A:D,3,0),IF(A49="COMP. ORSE",VLOOKUP(C49,'COMP. ORSE'!A:D,3,0),IF(A49="COMP. SEINFRA",VLOOKUP(C49,'COMP. SEINFRA'!B:G,5,0))))))))) -> M | F49: 1 | G49: =IF(A49="CPU CODEVASF",VLOOKUP(C49,CPU!F:I,4,0),IF(A49="COTAÇÃO",VLOOKUP(C49,COTAÇÃO!A:D,4,0),IF(A49="INS. SEINFRA",VLOOKUP(C49,'INS. SEINFRA'!A:D,4,0),IF(A49="INS. SINAPI",VLOOKUP(C49,'INS SINAPI'!A:E,5,0),IF(A49="COMP. SINAPI",VLOOKUP(C49,'COMP SINAPI'!G:M,5,0),IF(A49="INS. ORSE",VLOOKUP(C49,'INS. ORSE'!A:D,4,0),IF(A49="COMP. ORSE",VLOOKUP(C49,'COMP. ORSE'!A:D,4,0),IF(A49="COMP. SEINFRA",VLOOKUP(C49,'COMP. SEINFRA'!B:G,6,0))))))))) -> 1,77 | H49: 1.97 | I49: 1.97
A50: Ins. Sinapi | B50: 2.2.19 | C50: 3868 | D50: =IF(A50="Comp. Sinapi",VLOOKUP(C50,'COMP SINAPI'!G:M,2,0),IF(A50="Comp. Seinfra",VLOOKUP(C50,'COMP. SEINFRA'!B:G,2,0),IF(A50="COMP. ORSE",VLOOKUP(C50,'COMP. ORSE'!A:D,2,0),IF(A50="Ins. Seinfra",VLOOKUP(C50,'INS. SEINFRA'!$A:$D,2,0),IF(A50="Ins. Sinapi",VLOOKUP(C50,'INS SINAPI'!A:E,2,0),IF(A50="Ins. Orse",VLOOKUP(C50,'INS. ORSE'!A:D,2,0),IF(A50="CPU CODEVASF",VLOOKUP(C50,CPU!B:I,4,0),IF(A50="COTAÇÃO",VLOOKUP(C50,COTAÇÃO!A:D,2,0))))))))) -> LUVA DE REDUCAO SOLDAVEL, PVC, 25 MM X 20 MM, PARA AGUA FRIA PREDIAL | E50: =IF(A50="CPU CODEVASF",VLOOKUP(C50,CPU!B:I,5,0),IF(A50="INS. SEINFRA",VLOOKUP(C50,'INS. SEINFRA'!A:D,3,0),IF(A50="INS. SINAPI",VLOOKUP(C50,'INS SINAPI'!A:E,3,0),IF(A50="COMP. SINAPI",VLOOKUP(C50,'COMP SINAPI'!G:M,3,0),IF(A50="INS. ORSE",VLOOKUP(C50,'INS. ORSE'!A:D,3,0),IF(A50="COTAÇÃO",VLOOKUP(C50,COTAÇÃO!A:D,3,0),IF(A50="COMP. ORSE",VLOOKUP(C50,'COMP. ORSE'!A:D,3,0),IF(A50="COMP. SEINFRA",VLOOKUP(C50,'COMP. SEINFRA'!B:G,5,0))))))))) -> UN | F50: 1 | G50: =IF(A50="CPU CODEVASF",VLOOKUP(C50,CPU!F:I,4,0),IF(A50="COTAÇÃO",VLOOKUP(C50,COTAÇÃO!A:D,4,0),IF(A50="INS. SEINFRA",VLOOKUP(C50,'INS. SEINFRA'!A:D,4,0),IF(A50="INS. SINAPI",VLOOKUP(C50,'INS SINAPI'!A:E,5,0),IF(A50="COMP. SINAPI",VLOOKUP(C50,'COMP SINAPI'!G:M,5,0),IF(A50="INS. ORSE",VLOOKUP(C50,'INS. ORSE'!A:D,4,0),IF(A50="COMP. ORSE",VLOOKUP(C50,'COMP. ORSE'!A:D,4,0),IF(A50="COMP. SEINFRA",VLOOKUP(C50,'COMP. SEINFRA'!B:G,6,0))))))))) -> 1,56 | H50: 1.73 | I50: 1.73
A51: Ins. Orse | B51: 2.2.20 | C51: 1943 | D51: =IF(A51="Comp. Sinapi",VLOOKUP(C51,'COMP SINAPI'!G:M,2,0),IF(A51="Comp. Seinfra",VLOOKUP(C51,'COMP. SEINFRA'!B:G,2,0),IF(A51="COMP. ORSE",VLOOKUP(C51,'COMP. ORSE'!A:D,2,0),IF(A51="Ins. Seinfra",VLOOKUP(C51,'INS. SEINFRA'!$A:$D,2,0),IF(A51="Ins. Sinapi",VLOOKUP(C51,'INS SINAPI'!A:E,2,0),IF(A51="Ins. Orse",VLOOKUP(C51,'INS. ORSE'!A:D,2,0),IF(A51="CPU CODEVASF",VLOOKUP(C51,CPU!B:I,4,0),IF(A51="COTAÇÃO",VLOOKUP(C51,COTAÇÃO!A:D,2,0))))))))) -> Registro PVC esfera c/borboleta d = 3/4" | E51: =IF(A51="CPU CODEVASF",VLOOKUP(C51,CPU!B:I,5,0),IF(A51="INS. SEINFRA",VLOOKUP(C51,'INS. SEINFRA'!A:D,3,0),IF(A51="INS. SINAPI",VLOOKUP(C51,'INS SINAPI'!A:E,3,0),IF(A51="COMP. SINAPI",VLOOKUP(C51,'COMP SINAPI'!G:M,3,0),IF(A51="INS. ORSE",VLOOKUP(C51,'INS. ORSE'!A:D,3,0),IF(A51="COTAÇÃO",VLOOKUP(C51,COTAÇÃO!A:D,3,0),IF(A51="COMP. ORSE",VLOOKUP(C51,'COMP. ORSE'!A:D,3,0),IF(A51="COMP. SEINFRA",VLOOKUP(C51,'COMP. SEINFRA'!B:G,5,0))))))))) -> UND | F51: 2 | G51: =IF(A51="CPU CODEVASF",VLOOKUP(C51,CPU!F:I,4,0),IF(A51="COTAÇÃO",VLOOKUP(C51,COTAÇÃO!A:D,4,0),IF(A51="INS. SEINFRA",VLOOKUP(C51,'INS. SEINFRA'!A:D,4,0),IF(A51="INS. SINAPI",VLOOKUP(C51,'INS SINAPI'!A:E,5,0),IF(A51="COMP. SINAPI",VLOOKUP(C51,'COMP SINAPI'!G:M,5,0),IF(A51="INS. ORSE",VLOOKUP(C51,'INS. ORSE'!A:D,4,0),IF(A51="COMP. ORSE",VLOOKUP(C51,'COMP. ORSE'!A:D,4,0),IF(A51="COMP. SEINFRA",VLOOKUP(C51,'COMP. SEINFRA'!B:G,6,0))))))))) -> 10 | H51: 11.14 | I51: 22.28
A52: Ins. Sinapi | B52: 2.2.21 | C52: 3529 | D52: =IF(A52="Comp. Sinapi",VLOOKUP(C52,'COMP SINAPI'!G:M,2,0),IF(A52="Comp. Seinfra",VLOOKUP(C52,'COMP. SEINFRA'!B:G,2,0),IF(A52="COMP. ORSE",VLOOKUP(C52,'COMP. ORSE'!A:D,2,0),IF(A52="Ins. Seinfra",VLOOKUP(C52,'INS. SEINFRA'!$A:$D,2,0),IF(A52="Ins. Sinapi",VLOOKUP(C52,'INS SINAPI'!A:E,2,0),IF(A52="Ins. Orse",VLOOKUP(C52,'INS. ORSE'!A:D,2,0),IF(A52="CPU CODEVASF",VLOOKUP(C52,CPU!B:I,4,0),IF(A52="COTAÇÃO",VLOOKUP(C52,COTAÇÃO!A:D,2,0))))))))) -> JOELHO PVC, SOLDAVEL, 90 GRAUS, 25 MM, COR MARROM, PARA AGUA FRIA PREDIAL | E52: =IF(A52="CPU CODEVASF",VLOOKUP(C52,CPU!B:I,5,0),IF(A52="INS. SEINFRA",VLOOKUP(C52,'INS. SEINFRA'!A:D,3,0),IF(A52="INS. SINAPI",VLOOKUP(C52,'INS SINAPI'!A:E,3,0),IF(A52="COMP. SINAPI",VLOOKUP(C52,'COMP SINAPI'!G:M,3,0),IF(A52="INS. ORSE",VLOOKUP(C52,'INS. ORSE'!A:D,3,0),IF(A52="COTAÇÃO",VLOOKUP(C52,COTAÇÃO!A:D,3,0),IF(A52="COMP. ORSE",VLOOKUP(C52,'COMP. ORSE'!A:D,3,0),IF(A52="COMP. SEINFRA",VLOOKUP(C52,'COMP. SEINFRA'!B:G,5,0))))))))) -> UN | F52: 4 | G52: =IF(A52="CPU CODEVASF",VLOOKUP(C52,CPU!F:I,4,0),IF(A52="COTAÇÃO",VLOOKUP(C52,COTAÇÃO!A:D,4,0),IF(A52="INS. SEINFRA",VLOOKUP(C52,'INS. SEINFRA'!A:D,4,0),IF(A52="INS. SINAPI",VLOOKUP(C52,'INS SINAPI'!A:E,5,0),IF(A52="COMP. SINAPI",VLOOKUP(C52,'COMP SINAPI'!G:M,5,0),IF(A52="INS. ORSE",VLOOKUP(C52,'INS. ORSE'!A:D,4,0),IF(A52="COMP. ORSE",VLOOKUP(C52,'COMP. ORSE'!A:D,4,0),IF(A52="COMP. SEINFRA",VLOOKUP(C52,'COMP. SEINFRA'!B:G,6,0))))))))) -> 0,81 | H52: 0.9 | I52: 3.6
A53: Ins. Sinapi | B53: 2.2.22 | C53: 9868 | D53: =IF(A53="Comp. Sinapi",VLOOKUP(C53,'COMP SINAPI'!G:M,2,0),IF(A53="Comp. Seinfra",VLOOKUP(C53,'COMP. SEINFRA'!B:G,2,0),IF(A53="COMP. ORSE",VLOOKUP(C53,'COMP. ORSE'!A:D,2,0),IF(A53="Ins. Seinfra",VLOOKUP(C53,'INS. SEINFRA'!$A:$D,2,0),IF(A53="Ins. Sinapi",VLOOKUP(C53,'INS SINAPI'!A:E,2,0),IF(A53="Ins. Orse",VLOOKUP(C53,'INS. ORSE'!A:D,2,0),IF(A53="CPU CODEVASF",VLOOKUP(C53,CPU!B:I,4,0),IF(A53="COTAÇÃO",VLOOKUP(C53,COTAÇÃO!A:D,2,0))))))))) -> TUBO PVC, SOLDAVEL, DE 25 MM, AGUA FRIA (NBR-5648) | E53: =IF(A53="CPU CODEVASF",VLOOKUP(C53,CPU!B:I,5,0),IF(A53="INS. SEINFRA",VLOOKUP(C53,'INS. SEINFRA'!A:D,3,0),IF(A53="INS. SINAPI",VLOOKUP(C53,'INS SINAPI'!A:E,3,0),IF(A53="COMP. SINAPI",VLOOKUP(C53,'COMP SINAPI'!G:M,3,0),IF(A53="INS. ORSE",VLOOKUP(C53,'INS. ORSE'!A:D,3,0),IF(A53="COTAÇÃO",VLOOKUP(C53,COTAÇÃO!A:D,3,0),IF(A53="COMP. ORSE",VLOOKUP(C53,'COMP. ORSE'!A:D,3,0),IF(A53="COMP. SEINFRA",VLOOKUP(C53,'COMP. SEINFRA'!B:G,5,0))))))))) -> M | F53: 25 | G53: =IF(A53="CPU CODEVASF",VLOOKUP(C53,CPU!F:I,4,0),IF(A53="COTAÇÃO",VLOOKUP(C53,COTAÇÃO!A:D,4,0),IF(A53="INS. SEINFRA",VLOOKUP(C53,'INS. SEINFRA'!A:D,4,0),IF(A53="INS. SINAPI",VLOOKUP(C53,'INS SINAPI'!A:E,5,0),IF(A53="COMP. SINAPI",VLOOKUP(C53,'COMP SINAPI'!G:M,5,0),IF(A53="INS. ORSE",VLOOKUP(C53,'INS. ORSE'!A:D,4,0),IF(A53="COMP. ORSE",VLOOKUP(C53,'COMP. ORSE'!A:D,4,0),IF(A53="COMP. SEINFRA",VLOOKUP(C53,'COMP. SEINFRA'!B:G,6,0))))))))) -> 4,61 | H53: 5.13 | I53: 128.25
A54: Ins. Sinapi | B54: 2.2.23 | C54: 3143 | D54: =IF(A54="Comp. Sinapi",VLOOKUP(C54,'COMP SINAPI'!G:M,2,0),IF(A54="Comp. Seinfra",VLOOKUP(C54,'COMP. SEINFRA'!B:G,2,0),IF(A54="COMP. ORSE",VLOOKUP(C54,'COMP. ORSE'!A:D,2,0),IF(A54="Ins. Seinfra",VLOOKUP(C54,'INS. SEINFRA'!$A:$D,2,0),IF(A54="Ins. Sinapi",VLOOKUP(C54,'INS SINAPI'!A:E,2,0),IF(A54="Ins. Orse",VLOOKUP(C54,'INS. ORSE'!A:D,2,0),IF(A54="CPU CODEVASF",VLOOKUP(C54,CPU!B:I,4,0),IF(A54="COTAÇÃO",VLOOKUP(C54,COTAÇÃO!A:D,2,0))))))))) -> FITA VEDA ROSCA EM ROLOS DE 18 MM X 25 M (L X C) | E54: =IF(A54="CPU CODEVASF",VLOOKUP(C54,CPU!B:I,5,0),IF(A54="INS. SEINFRA",VLOOKUP(C54,'INS. SEINFRA'!A:D,3,0),IF(A54="INS. SINAPI",VLOOKUP(C54,'INS SINAPI'!A:E,3,0),IF(A54="COMP. SINAPI",VLOOKUP(C54,'COMP SINAPI'!G:M,3,0),IF(A54="INS. ORSE",VLOOKUP(C54,'INS. ORSE'!A:D,3,0),IF(A54="COTAÇÃO",VLOOKUP(C54,COTAÇÃO!A:D,3,0),IF(A54="COMP. ORSE",VLOOKUP(C54,'COMP. ORSE'!A:D,3,0),IF(A54="COMP. SEINFRA",VLOOKUP(C54,'COMP. SEINFRA'!B:G,5,0))))))))) -> UN | F54: 1 | G54: =IF(A54="CPU CODEVASF",VLOOKUP(C54,CPU!F:I,4,0),IF(A54="COTAÇÃO",VLOOKUP(C54,COTAÇÃO!A:D,4,0),IF(A54="INS. SEINFRA",VLOOKUP(C54,'INS. SEINFRA'!A:D,4,0),IF(A54="INS. SINAPI",VLOOKUP(C54,'INS SINAPI'!A:E,5,0),IF(A54="COMP. SINAPI",VLOOKUP(C54,'COMP SINAPI'!G:M,5,0),IF(A54="INS. ORSE",VLOOKUP(C54,'INS. ORSE'!A:D,4,0),IF(A54="COMP. ORSE",VLOOKUP(C54,'COMP. ORSE'!A:D,4,0),IF(A54="COMP. SEINFRA",VLOOKUP(C54,'COMP. SEINFRA'!B:G,6,0))))))))) -> 6,82 | H54: 7.59 | I54: 7.59
A55: Ins. Sinapi | B55: 2.2.24 | C55: 9867 | D55: =IF(A55="Comp. Sinapi",VLOOKUP(C55,'COMP SINAPI'!G:M,2,0),IF(A55="Comp. Seinfra",VLOOKUP(C55,'COMP. SEINFRA'!B:G,2,0),IF(A55="COMP. ORSE",VLOOKUP(C55,'COMP. ORSE'!A:D,2,0),IF(A55="Ins. Seinfra",VLOOKUP(C55,'INS. SEINFRA'!$A:$D,2,0),IF(A55="Ins. Sinapi",VLOOKUP(C55,'INS SINAPI'!A:E,2,0),IF(A55="Ins. Orse",VLOOKUP(C55,'INS. ORSE'!A:D,2,0),IF(A55="CPU CODEVASF",VLOOKUP(C55,CPU!B:I,4,0),IF(A55="COTAÇÃO",VLOOKUP(C55,COTAÇÃO!A:D,2,0))))))))) -> TUBO PVC, SOLDAVEL, DE 20 MM, AGUA FRIA (NBR-5648) | E55: =IF(A55="CPU CODEVASF",VLOOKUP(C55,CPU!B:I,5,0),IF(A55="INS. SEINFRA",VLOOKUP(C55,'INS. SEINFRA'!A:D,3,0),IF(A55="INS. SINAPI",VLOOKUP(C55,'INS SINAPI'!A:E,3,0),IF(A55="COMP. SINAPI",VLOOKUP(C55,'COMP SINAPI'!G:M,3,0),IF(A55="INS. ORSE",VLOOKUP(C55,'INS. ORSE'!A:D,3,0),IF(A55="COTAÇÃO",VLOOKUP(C55,COTAÇÃO!A:D,3,0),IF(A55="COMP. ORSE",VLOOKUP(C55,'COMP. ORSE'!A:D,3,0),IF(A55="COMP. SEINFRA",VLOOKUP(C55,'COMP. SEINFRA'!B:G,5,0))))))))) -> M | F55: 1 | G55: =IF(A55="CPU CODEVASF",VLOOKUP(C55,CPU!F:I,4,0),IF(A55="COTAÇÃO",VLOOKUP(C55,COTAÇÃO!A:D,4,0),IF(A55="INS. SEINFRA",VLOOKUP(C55,'INS. SEINFRA'!A:D,4,0),IF(A55="INS. SINAPI",VLOOKUP(C55,'INS SINAPI'!A:E,5,0),IF(A55="COMP. SINAPI",VLOOKUP(C55,'COMP SINAPI'!G:M,5,0),IF(A55="INS. ORSE",VLOOKUP(C55,'INS. ORSE'!A:D,4,0),IF(A55="COMP. ORSE",VLOOKUP(C55,'COMP. ORSE'!A:D,4,0),IF(A55="COMP. SEINFRA",VLOOKUP(C55,'COMP. SEINFRA'!B:G,6,0))))))))) -> 4,08 | H55: 4.54 | I55: 4.54
A56: CPU CODEVASF | B56: 2.2.25 | C56: CPU-07 | D56: =IF(A56="Comp. Sinapi",VLOOKUP(C56,'COMP SINAPI'!G:M,2,0),IF(A56="Comp. Seinfra",VLOOKUP(C56,'COMP. SEINFRA'!B:G,2,0),IF(A56="COMP. ORSE",VLOOKUP(C56,'COMP. ORSE'!A:D,2,0),IF(A56="Ins. Seinfra",VLOOKUP(C56,'INS. SEINFRA'!$A:$D,2,0),IF(A56="Ins. Sinapi",VLOOKUP(C56,'INS SINAPI'!A:E,2,0),IF(A56="Ins. Orse",VLOOKUP(C56,'INS. ORSE'!A:D,2,0),IF(A56="CPU CODEVASF",VLOOKUP(C56,CPU!B:I,4,0),IF(A56="COTAÇÃO",VLOOKUP(C56,COTAÇÃO!A:D,2,0))))))))) -> KIT SISTEMINHA - (PEIXES E RAÇÃO POR 02 CICLOS) | E56: =IF(A56="CPU CODEVASF",VLOOKUP(C56,CPU!B:I,5,0),IF(A56="INS. SEINFRA",VLOOKUP(C56,'INS. SEINFRA'!A:D,3,0),IF(A56="INS. SINAPI",VLOOKUP(C56,'INS SINAPI'!A:E,3,0),IF(A56="COMP. SINAPI",VLOOKUP(C56,'COMP SINAPI'!G:M,3,0),IF(A56="INS. ORSE",VLOOKUP(C56,'INS. ORSE'!A:D,3,0),IF(A56="COTAÇÃO",VLOOKUP(C56,COTAÇÃO!A:D,3,0),IF(A56="COMP. ORSE",VLOOKUP(C56,'COMP. ORSE'!A:D,3,0),IF(A56="COMP. SEINFRA",VLOOKUP(C56,'COMP. SEINFRA'!B:G,5,0))))))))) -> UNID | F56: 2 | G56: =IF(A56="CPU CODEVASF",VLOOKUP(C56,CPU!F:I,4,0),IF(A56="COTAÇÃO",VLOOKUP(C56,COTAÇÃO!A:D,4,0),IF(A56="INS. SEINFRA",VLOOKUP(C56,'INS. SEINFRA'!A:D,4,0),IF(A56="INS. SINAPI",VLOOKUP(C56,'INS SINAPI'!A:E,5,0),IF(A56="COMP. SINAPI",VLOOKUP(C56,'COMP SINAPI'!G:M,5,0),IF(A56="INS. ORSE",VLOOKUP(C56,'INS. ORSE'!A:D,4,0),IF(A56="COMP. ORSE",VLOOKUP(C56,'COMP. ORSE'!A:D,4,0),IF(A56="COMP. SEINFRA",VLOOKUP(C56,'COMP. SEINFRA'!B:G,6,0))))))))) -> 290.74 | H56: 323.88 | I56: 647.76
A57: MÓDULO 2 - AVIARIO DE CORTE
B58: 3.1 | D58: Serviços | I58: =SUM(I59:I66) -> 6506.58 | J58: =G46-H50 -> -0.82
A59: Comp. Sinapi | B59: 3.1.1 | C59: 98524 | D59: =IF(A59="Comp. Sinapi",VLOOKUP(C59,'COMP SINAPI'!G:M,2,0),IF(A59="Comp. Seinfra",VLOOKUP(C59,'COMP. SEINFRA'!B:G,2,0),IF(A59="COMP. ORSE",VLOOKUP(C59,'COMP. ORSE'!A:D,2,0),IF(A59="Ins. Seinfra",VLOOKUP(C59,'INS. SEINFRA'!$A:$D,2,0),IF(A59="Ins. Sinapi",VLOOKUP(C59,'INS SINAPI'!A:E,2,0),IF(A59="Ins. Orse",VLOOKUP(C59,'INS. ORSE'!A:D,2,0),IF(A59="CPU CODEVASF",VLOOKUP(C59,CPU!B:I,4,0),IF(A59="COTAÇÃO",VLOOKUP(C59,COTAÇÃO!A:D,2,0))))))))) -> LIMPEZA MANUAL DE VEGETAÇÃO EM TERRENO COM ENXADA.AF_05/2018 | E59: =IF(A59="CPU CODEVASF",VLOOKUP(C59,CPU!B:I,5,0),IF(A59="INS. SEINFRA",VLOOKUP(C59,'INS. SEINFRA'!A:D,3,0),IF(A59="INS. SINAPI",VLOOKUP(C59,'INS SINAPI'!A:E,3,0),IF(A59="COMP. SINAPI",VLOOKUP(C59,'COMP SINAPI'!G:M,3,0),IF(A59="INS. ORSE",VLOOKUP(C59,'INS. ORSE'!A:D,3,0),IF(A59="COTAÇÃO",VLOOKUP(C59,COTAÇÃO!A:D,3,0),IF(A59="COMP. ORSE",VLOOKUP(C59,'COMP. ORSE'!A:D,3,0),IF(A59="COMP. SEINFRA",VLOOKUP(C59,'COMP. SEINFRA'!B:G,5,0))))))))) -> M2 | F59: 43.2 | G59: =IF(A59="CPU CODEVASF",VLOOKUP(C59,CPU!F:I,4,0),IF(A59="COTAÇÃO",VLOOKUP(C59,COTAÇÃO!A:D,4,0),IF(A59="INS. SEINFRA",VLOOKUP(C59,'INS. SEINFRA'!A:D,4,0),IF(A59="INS. SINAPI",VLOOKUP(C59,'INS SINAPI'!A:E,5,0),IF(A59="COMP. SINAPI",VLOOKUP(C59,'COMP SINAPI'!G:M,5,0),IF(A59="INS. ORSE",VLOOKUP(C59,'INS. ORSE'!A:D,4,0),IF(A59="COMP. ORSE",VLOOKUP(C59,'COMP. ORSE'!A:D,4,0),IF(A59="COMP. SEINFRA",VLOOKUP(C59,'COMP. SEINFRA'!B:G,6,0))))))))) -> 3,11 | H59: =TRUNC(G59*(1+$F$10),2) -> 3.84 | I59: =TRUNC(H59*F59,2) -> 165.88
A60: Comp. Seinfra | B60: 3.1.2 | C60: C2784 | D60: =IF(A60="Comp. Sinapi",VLOOKUP(C60,'COMP SINAPI'!G:M,2,0),IF(A60="Comp. Seinfra",VLOOKUP(C60,'COMP. SEINFRA'!B:G,2,0),IF(A60="COMP. ORSE",VLOOKUP(C60,'COMP. ORSE'!A:D,2,0),IF(A60="Ins. Seinfra",VLOOKUP(C60,'INS. SEINFRA'!$A:$D,2,0),IF(A60="Ins. Sinapi",VLOOKUP(C60,'INS SINAPI'!A:E,2,0),IF(A60="Ins. Orse",VLOOKUP(C60,'INS. ORSE'!A:D,2,0),IF(A60="CPU CODEVASF",VLOOKUP(C60,CPU!B:I,4,0),IF(A60="COTAÇÃO",VLOOKUP(C60,COTAÇÃO!A:D,2,0))))))))) -> ESCAVAÇÃO MANUAL SOLO DE 1A.CAT. PROF. ATÉ 1.50m | E60: =IF(A60="CPU CODEVASF",VLOOKUP(C60,CPU!B:I,5,0),IF(A60="INS. SEINFRA",VLOOKUP(C60,'INS. SEINFRA'!A:D,3,0),IF(A60="INS. SINAPI",VLOOKUP(C60,'INS SINAPI'!A:E,3,0),IF(A60="COMP. SINAPI",VLOOKUP(C60,'COMP SINAPI'!G:M,3,0),IF(A60="INS. ORSE",VLOOKUP(C60,'INS. ORSE'!A:D,3,0),IF(A60="COTAÇÃO",VLOOKUP(C60,COTAÇÃO!A:D,3,0),IF(A60="COMP. ORSE",VLOOKUP(C60,'COMP. ORSE'!A:D,3,0),IF(A60="COMP. SEINFRA",VLOOKUP(C60,'COMP. SEINFRA'!B:G,5,0))))))))) -> M3 | F60: 1.25 | G60: =IF(A60="CPU CODEVASF",VLOOKUP(C60,CPU!F:I,4,0),IF(A60="COTAÇÃO",VLOOKUP(C60,COTAÇÃO!A:D,4,0),IF(A60="INS. SEINFRA",VLOOKUP(C60,'INS. SEINFRA'!A:D,4,0),IF(A60="INS. SINAPI",VLOOKUP(C60,'INS SINAPI'!A:E,5,0),IF(A60="COMP. SINAPI",VLOOKUP(C60,'COMP SINAPI'!G:M,5,0),IF(A60="INS. ORSE",VLOOKUP(C60,'INS. ORSE'!A:D,4,0),IF(A60="COMP. ORSE",VLOOKUP(C60,'COMP. ORSE'!A:D,4,0),IF(A60="COMP. SEINFRA",VLOOKUP(C60,'COMP. SEINFRA'!B:G,6,0))))))))) -> 53.69 | H60: 66.3 | I60: 82.87
A61: Comp. Sinapi | B61: 3.1.3 | C61: 103328 | D61: =IF(A61="Comp. Sinapi",VLOOKUP(C61,'COMP SINAPI'!G:M,2,0),IF(A61="Comp. Seinfra",VLOOKUP(C61,'COMP. SEINFRA'!B:G,2,0),IF(A61="COMP. ORSE",VLOOKUP(C61,'COMP. ORSE'!A:D,2,0),IF(A61="Ins. Seinfra",VLOOKUP(C61,'INS. SEINFRA'!$A:$D,2,0),IF(A61="Ins. Sinapi",VLOOKUP(C61,'INS SINAPI'!A:E,2,0),IF(A61="Ins. Orse",VLOOKUP(C61,'INS. ORSE'!A:D,2,0),IF(A61="CPU CODEVASF",VLOOKUP(C61,CPU!B:I,4,0),IF(A61="COTAÇÃO",VLOOKUP(C61,COTAÇÃO!A:D,2,0))))))))) -> ALVENARIA DE VEDAÇÃO DE BLOCOS CERÂMICOS FURADOS NA HORIZONTAL DE 9X19X19 CM (ESPESSURA 9 CM) E ARGAMASSA DE ASSENTAMENTO COM PREPARO EM BETONEIRA. AF_12/2021 | E61: =IF(A61="CPU CODEVASF",VLOOKUP(C61,CPU!B:I,5,0),IF(A61="INS. SEINFRA",VLOOKUP(C61,'INS. SEINFRA'!A:D,3,0),IF(A61="INS. SINAPI",VLOOKUP(C61,'INS SINAPI'!A:E,3,0),IF(A61="COMP. SINAPI",VLOOKUP(C61,'COMP SINAPI'!G:M,3,0),IF(A61="INS. ORSE",VLOOKUP(C61,'INS. ORSE'!A:D,3,0),IF(A61="COTAÇÃO",VLOOKUP(C61,COTAÇÃO!A:D,3,0),IF(A61="COMP. ORSE",VLOOKUP(C61,'COMP. ORSE'!A:D,3,0),IF(A61="COMP. SEINFRA",VLOOKUP(C61,'COMP. SEINFRA'!B:G,5,0))))))))) -> M2 | F61: 4.16 | G61: =IF(A61="CPU CODEVASF",VLOOKUP(C61,CPU!F:I,4,0),IF(A61="COTAÇÃO",VLOOKUP(C61,COTAÇÃO!A:D,4,0),IF(A61="INS. SEINFRA",VLOOKUP(C61,'INS. SEINFRA'!A:D,4,0),IF(A61="INS. SINAPI",VLOOKUP(C61,'INS SINAPI'!A:E,5,0),IF(A61="COMP. SINAPI",VLOOKUP(C61,'COMP SINAPI'!G:M,5,0),IF(A61="INS. ORSE",VLOOKUP(C61,'INS. ORSE'!A:D,4,0),IF(A61="COMP. ORSE",VLOOKUP(C61,'COMP. ORSE'!A:D,4,0),IF(A61="COMP. SEINFRA",VLOOKUP(C61,'COMP. SEINFRA'!B:G,6,0))))))))) -> 80,98 | H61: 100.01 | I61: 416.04
A62: Comp. Sinapi | B62: 3.1.4 | C62: 103328 | D62: =IF(A62="Comp. Sinapi",VLOOKUP(C62,'COMP SINAPI'!G:M,2,0),IF(A62="Comp. Seinfra",VLOOKUP(C62,'COMP. SEINFRA'!B:G,2,0),IF(A62="COMP. ORSE",VLOOKUP(C62,'COMP. ORSE'!A:D,2,0),IF(A62="Ins. Seinfra",VLOOKUP(C62,'INS. SEINFRA'!$A:$D,2,0),IF(A62="Ins. Sinapi",VLOOKUP(C62,'INS SINAPI'!A:E,2,0),IF(A62="Ins. Orse",VLOOKUP(C62,'INS. ORSE'!A:D,2,0),IF(A62="CPU CODEVASF",VLOOKUP(C62,CPU!B:I,4,0),IF(A62="COTAÇÃO",VLOOKUP(C62,COTAÇÃO!A:D,2,0))))))))) -> ALVENARIA DE VEDAÇÃO DE BLOCOS CERÂMICOS FURADOS NA HORIZONTAL DE 9X19X19 CM (ESPESSURA 9 CM) E ARGAMASSA DE ASSENTAMENTO COM PREPARO EM BETONEIRA. AF_12/2021 | E62: =IF(A62="CPU CODEVASF",VLOOKUP(C62,CPU!B:I,5,0),IF(A62="INS. SEINFRA",VLOOKUP(C62,'INS. SEINFRA'!A:D,3,0),IF(A62="INS. SINAPI",VLOOKUP(C62,'INS SINAPI'!A:E,3,0),IF(A62="COMP. SINAPI",VLOOKUP(C62,'COMP SINAPI'!G:M,3,0),IF(A62="INS. ORSE",VLOOKUP(C62,'INS. ORSE'!A:D,3,0),IF(A62="COTAÇÃO",VLOOKUP(C62,COTAÇÃO!A:D,3,0),IF(A62="COMP. ORSE",VLOOKUP(C62,'COMP. ORSE'!A:D,3,0),IF(A62="COMP. SEINFRA",VLOOKUP(C62,'COMP. SEINFRA'!B:G,5,0))))))))) -> M2 | F62: 12.48 | G62: =IF(A62="CPU CODEVASF",VLOOKUP(C62,CPU!F:I,4,0),IF(A62="COTAÇÃO",VLOOKUP(C62,COTAÇÃO!A:D,4,0),IF(A62="INS. SEINFRA",VLOOKUP(C62,'INS. SEINFRA'!A:D,4,0),IF(A62="INS. SINAPI",VLOOKUP(C62,'INS SINAPI'!A:E,5,0),IF(A62="COMP. SINAPI",VLOOKUP(C62,'COMP SINAPI'!G:M,5,0),IF(A62="INS. ORSE",VLOOKUP(C62,'INS. ORSE'!A:D,4,0),IF(A62="COMP. ORSE",VLOOKUP(C62,'COMP. ORSE'!A:D,4,0),IF(A62="COMP. SEINFRA",VLOOKUP(C62,'COMP. SEINFRA'!B:G,6,0))))))))) -> 80,98 | H62: 100.01 | I62: 1248.12
A63: Comp. Sinapi | B63: 3.1.5 | C63: 92543 | D63: =IF(A63="Comp. Sinapi",VLOOKUP(C63,'COMP SINAPI'!G:M,2,0),IF(A63="Comp. Seinfra",VLOOKUP(C63,'COMP. SEINFRA'!B:G,2,0),IF(A63="COMP. ORSE",VLOOKUP(C63,'COMP. ORSE'!A:D,2,0),IF(A63="Ins. Seinfra",VLOOKUP(C63,'INS. SEINFRA'!$A:$D,2,0),IF(A63="Ins. Sinapi",VLOOKUP(C63,'INS SINAPI'!A:E,2,0),IF(A63="Ins. Orse",VLOOKUP(C63,'INS. ORSE'!A:D,2,0),IF(A63="CPU CODEVASF",VLOOKUP(C63,CPU!B:I,4,0),IF(A63="COTAÇÃO",VLOOKUP(C63,COTAÇÃO!A:D,2,0))))))))) -> TRAMA DE MADEIRA COMPOSTA POR TERÇAS PARA TELHADOS DE ATÉ 2 ÁGUAS PARA TELHA ONDULADA DE FIBROCIMENTO, METÁLICA, PLÁSTICA OU TERMOACÚSTICA, INCLUSO TRANSPORTE VERTICAL. AF_07/2019 | E63: =IF(A63="CPU CODEVASF",VLOOKUP(C63,CPU!B:I,5,0),IF(A63="INS. SEINFRA",VLOOKUP(C63,'INS. SEINFRA'!A:D,3,0),IF(A63="INS. SINAPI",VLOOKUP(C63,'INS SINAPI'!A:E,3,0),IF(A63="COMP. SINAPI",VLOOKUP(C63,'COMP SINAPI'!G:M,3,0),IF(A63="INS. ORSE",VLOOKUP(C63,'INS. ORSE'!A:D,3,0),IF(A63="COTAÇÃO",VLOOKUP(C63,COTAÇÃO!A:D,3,0),IF(A63="COMP. ORSE",VLOOKUP(C63,'COMP. ORSE'!A:D,3,0),IF(A63="COMP. SEINFRA",VLOOKUP(C63,'COMP. SEINFRA'!B:G,5,0))))))))) -> M2 | F63: 18.47 | G63: =IF(A63="CPU CODEVASF",VLOOKUP(C63,CPU!F:I,4,0),IF(A63="COTAÇÃO",VLOOKUP(C63,COTAÇÃO!A:D,4,0),IF(A63="INS. SEINFRA",VLOOKUP(C63,'INS. SEINFRA'!A:D,4,0),IF(A63="INS. SINAPI",VLOOKUP(C63,'INS SINAPI'!A:E,5,0),IF(A63="COMP. SINAPI",VLOOKUP(C63,'COMP SINAPI'!G:M,5,0),IF(A63="INS. ORSE",VLOOKUP(C63,'INS. ORSE'!A:D,4,0),IF(A63="COMP. ORSE",VLOOKUP(C63,'COMP. ORSE'!A:D,4,0),IF(A63="COMP. SEINFRA",VLOOKUP(C63,'COMP. SEINFRA'!B:G,6,0))))))))) -> 26,17 | H63: 32.31 | I63: 596.76
A64: Comp. Orse | B64: 3.1.6 | C64: 235 | D64: =IF(A64="Comp. Sinapi",VLOOKUP(C64,'COMP SINAPI'!G:M,2,0),IF(A64="Comp. Seinfra",VLOOKUP(C64,'COMP. SEINFRA'!B:G,2,0),IF(A64="COMP. ORSE",VLOOKUP(C64,'COMP. ORSE'!A:D,2,0),IF(A64="Ins. Seinfra",VLOOKUP(C64,'INS. SEINFRA'!$A:$D,2,0),IF(A64="Ins. Sinapi",VLOOKUP(C64,'INS SINAPI'!A:E,2,0),IF(A64="Ins. Orse",VLOOKUP(C64,'INS. ORSE'!A:D,2,0),IF(A64="CPU CODEVASF",VLOOKUP(C64,CPU!B:I,4,0),IF(A64="COTAÇÃO",VLOOKUP(C64,COTAÇÃO!A:D,2,0))))))))) -> Telhamento com telha de fibrocimento ondulada esp = 6mm, fixada com parafuso. Rev 02 | E64: =IF(A64="CPU CODEVASF",VLOOKUP(C64,CPU!B:I,5,0),IF(A64="INS. SEINFRA",VLOOKUP(C64,'INS. SEINFRA'!A:D,3,0),IF(A64="INS. SINAPI",VLOOKUP(C64,'INS SINAPI'!A:E,3,0),IF(A64="COMP. SINAPI",VLOOKUP(C64,'COMP SINAPI'!G:M,3,0),IF(A64="INS. ORSE",VLOOKUP(C64,'INS. ORSE'!A:D,3,0),IF(A64="COTAÇÃO",VLOOKUP(C64,COTAÇÃO!A:D,3,0),IF(A64="COMP. ORSE",VLOOKUP(C64,'COMP. ORSE'!A:D,3,0),IF(A64="COMP. SEINFRA",VLOOKUP(C64,'COMP. SEINFRA'!B:G,5,0))))))))) -> M2 | F64: 18.47 | G64: =IF(A64="CPU CODEVASF",VLOOKUP(C64,CPU!F:I,4,0),IF(A64="COTAÇÃO",VLOOKUP(C64,COTAÇÃO!A:D,4,0),IF(A64="INS. SEINFRA",VLOOKUP(C64,'INS. SEINFRA'!A:D,4,0),IF(A64="INS. SINAPI",VLOOKUP(C64,'INS SINAPI'!A:E,5,0),IF(A64="COMP. SINAPI",VLOOKUP(C64,'COMP SINAPI'!G:M,5,0),IF(A64="INS. ORSE",VLOOKUP(C64,'INS. ORSE'!A:D,4,0),IF(A64="COMP. ORSE",VLOOKUP(C64,'COMP. ORSE'!A:D,4,0),IF(A64="COMP. SEINFRA",VLOOKUP(C64,'COMP. SEINFRA'!B:G,6,0))))))))) -> 50.46 | H64: 62.31 | I64: 1150.86
A65: CPU CODEVASF | B65: 3.1.7 | C65: CPU-10 | D65: =IF(A65="Comp. Sinapi",VLOOKUP(C65,'COMP SINAPI'!G:M,2,0),IF(A65="Comp. Seinfra",VLOOKUP(C65,'COMP. SEINFRA'!B:G,2,0),IF(A65="COMP. ORSE",VLOOKUP(C65,'COMP. ORSE'!A:D,2,0),IF(A65="Ins. Seinfra",VLOOKUP(C65,'INS. SEINFRA'!$A:$D,2,0),IF(A65="Ins. Sinapi",VLOOKUP(C65,'INS SINAPI'!A:E,2,0),IF(A65="Ins. Orse",VLOOKUP(C65,'INS. ORSE'!A:D,2,0),IF(A65="CPU CODEVASF",VLOOKUP(C65,CPU!B:I,4,0),IF(A65="COTAÇÃO",VLOOKUP(C65,COTAÇÃO!A:D,2,0))))))))) -> PILAR EM MADEIRA COMPOSTO POR DUAS PEÇAS DE VIGA *7,5 X 10* CM EM PINUS, MISTA OU EQUIVALENTE DA REGIÃO - BRUTA | E65: =IF(A65="CPU CODEVASF",VLOOKUP(C65,CPU!B:I,5,0),IF(A65="INS. SEINFRA",VLOOKUP(C65,'INS. SEINFRA'!A:D,3,0),IF(A65="INS. SINAPI",VLOOKUP(C65,'INS SINAPI'!A:E,3,0),IF(A65="COMP. SINAPI",VLOOKUP(C65,'COMP SINAPI'!G:M,3,0),IF(A65="INS. ORSE",VLOOKUP(C65,'INS. ORSE'!A:D,3,0),IF(A65="COTAÇÃO",VLOOKUP(C65,COTAÇÃO!A:D,3,0),IF(A65="COMP. ORSE",VLOOKUP(C65,'COMP. ORSE'!A:D,3,0),IF(A65="COMP. SEINFRA",VLOOKUP(C65,'COMP. SEINFRA'!B:G,5,0))))))))) -> UNID | F65: 18 | G65: =IF(A65="CPU CODEVASF",VLOOKUP(C65,CPU!F:I,4,0),IF(A65="COTAÇÃO",VLOOKUP(C65,COTAÇÃO!A:D,4,0),IF(A65="INS. SEINFRA",VLOOKUP(C65,'INS. SEINFRA'!A:D,4,0),IF(A65="INS. SINAPI",VLOOKUP(C65,'INS SINAPI'!A:E,5,0),IF(A65="COMP. SINAPI",VLOOKUP(C65,'COMP SINAPI'!G:M,5,0),IF(A65="INS. ORSE",VLOOKUP(C65,'INS. ORSE'!A:D,4,0),IF(A65="COMP. ORSE",VLOOKUP(C65,'COMP. ORSE'!A:D,4,0),IF(A65="COMP. SEINFRA",VLOOKUP(C65,'COMP. SEINFRA'!B:G,6,0))))))))) -> 58.11 | H65: 71.76 | I65: 1291.68
A66: Comp. Sinapi | B66: 3.1.8 | C66: 101202 | D66: =IF(A66="Comp. Sinapi",VLOOKUP(C66,'COMP SINAPI'!G:M,2,0),IF(A66="Comp. Seinfra",VLOOKUP(C66,'COMP. SEINFRA'!B:G,2,0),IF(A66="COMP. ORSE",VLOOKUP(C66,'COMP. ORSE'!A:D,2,0),IF(A66="Ins. Seinfra",VLOOKUP(C66,'INS. SEINFRA'!$A:$D,2,0),IF(A66="Ins. Sinapi",VLOOKUP(C66,'INS SINAPI'!A:E,2,0),IF(A66="Ins. Orse",VLOOKUP(C66,'INS. ORSE'!A:D,2,0),IF(A66="CPU CODEVASF",VLOOKUP(C66,CPU!B:I,4,0),IF(A66="COTAÇÃO",VLOOKUP(C66,COTAÇÃO!A:D,2,0))))))))) -> CERCA COM MOURÕES DE MADEIRA ROLIÇA, DIÂMETRO 11 CM, ESPAÇAMENTO DE 2,5 M, ALTURA LIVRE DE 1,7 M, CRAVADOS 0,5 M, COM 5 FIOS DE ARAME FARPADO Nº 14 CLASSE 250 - FORNECIMENTO E INSTALAÇÃO. AF_05/2020 | E66: =IF(A66="CPU CODEVASF",VLOOKUP(C66,CPU!B:I,5,0),IF(A66="INS. SEINFRA",VLOOKUP(C66,'INS. SEINFRA'!A:D,3,0),IF(A66="INS. SINAPI",VLOOKUP(C66,'INS SINAPI'!A:E,3,0),IF(A66="COMP. SINAPI",VLOOKUP(C66,'COMP SINAPI'!G:M,3,0),IF(A66="INS. ORSE",VLOOKUP(C66,'INS. ORSE'!A:D,3,0),IF(A66="COTAÇÃO",VLOOKUP(C66,COTAÇÃO!A:D,3,0),IF(A66="COMP. ORSE",VLOOKUP(C66,'COMP. ORSE'!A:D,3,0),IF(A66="COMP. SEINFRA",VLOOKUP(C66,'COMP. SEINFRA'!B:G,5,0))))))))) -> M | F66: 29.4 | G66: =IF(A66="CPU CODEVASF",VLOOKUP(C66,CPU!F:I,4,0),IF(A66="COTAÇÃO",VLOOKUP(C66,COTAÇÃO!A:D,4,0),IF(A66="INS. SEINFRA",VLOOKUP(C66,'INS. SEINFRA'!A:D,4,0),IF(A66="INS. SINAPI",VLOOKUP(C66,'INS SINAPI'!A:E,5,0),IF(A66="COMP. SINAPI",VLOOKUP(C66,'COMP SINAPI'!G:M,5,0),IF(A66="INS. ORSE",VLOOKUP(C66,'INS. ORSE'!A:D,4,0),IF(A66="COMP. ORSE",VLOOKUP(C66,'COMP. ORSE'!A:D,4,0),IF(A66="COMP. SEINFRA",VLOOKUP(C66,'COMP. SEINFRA'!B:G,6,0))))))))) -> 42,81 | H66: 52.87 | I66: 1554.37
B67: 3.2 | D67: Materiais e Equipamentos | I67: =SUM(I68:I88) -> 2892.06
A68: COTAÇÃO | B68: 3.2.1 | C68: COT. 04 | D68: =IF(A68="Comp. Sinapi",VLOOKUP(C68,'COMP SINAPI'!G:M,2,0),IF(A68="Comp. Seinfra",VLOOKUP(C68,'COMP. SEINFRA'!B:G,2,0),IF(A68="COMP. ORSE",VLOOKUP(C68,'COMP. ORSE'!A:D,2,0),IF(A68="Ins. Seinfra",VLOOKUP(C68,'INS. SEINFRA'!$A:$D,2,0),IF(A68="Ins. Sinapi",VLOOKUP(C68,'INS SINAPI'!A:E,2,0),IF(A68="Ins. Orse",VLOOKUP(C68,'INS. ORSE'!A:D,2,0),IF(A68="CPU CODEVASF",VLOOKUP(C68,CPU!B:I,4,0),IF(A68="COTAÇÃO",VLOOKUP(C68,COTAÇÃO!A:D,2,0))))))))) -> BEBEDOURO INFANTIL 5 LITROS | E68: =IF(A68="CPU CODEVASF",VLOOKUP(C68,CPU!B:I,5,0),IF(A68="INS. SEINFRA",VLOOKUP(C68,'INS. SEINFRA'!A:D,3,0),IF(A68="INS. SINAPI",VLOOKUP(C68,'INS SINAPI'!A:E,3,0),IF(A68="COMP. SINAPI",VLOOKUP(C68,'COMP SINAPI'!G:M,3,0),IF(A68="INS. ORSE",VLOOKUP(C68,'INS. ORSE'!A:D,3,0),IF(A68="COTAÇÃO",VLOOKUP(C68,COTAÇÃO!A:D,3,0),IF(A68="COMP. ORSE",VLOOKUP(C68,'COMP. ORSE'!A:D,3,0),IF(A68="COMP. SEINFRA",VLOOKUP(C68,'COMP. SEINFRA'!B:G,5,0))))))))) -> UND | F68: 4 | G68: =IF(A68="CPU CODEVASF",VLOOKUP(C68,CPU!F:I,4,0),IF(A68="COTAÇÃO",VLOOKUP(C68,COTAÇÃO!A:D,4,0),IF(A68="INS. SEINFRA",VLOOKUP(C68,'INS. SEINFRA'!A:D,4,0),IF(A68="INS. SINAPI",VLOOKUP(C68,'INS SINAPI'!A:E,5,0),IF(A68="COMP. SINAPI",VLOOKUP(C68,'COMP SINAPI'!G:M,5,0),IF(A68="INS. ORSE",VLOOKUP(C68,'INS. ORSE'!A:D,4,0),IF(A68="COMP. ORSE",VLOOKUP(C68,'COMP. ORSE'!A:D,4,0),IF(A68="COMP. SEINFRA",VLOOKUP(C68,'COMP. SEINFRA'!B:G,6,0))))))))) -> 17.27 | H68: =TRUNC(G68*(1+$I$10),2) -> 19.23 | I68: =TRUNC(H68*F68,2) -> 76.92
A69: Ins. Sinapi | B69: 3.2.2 | C69: 38194 | D69: =IF(A69="Comp. Sinapi",VLOOKUP(C69,'COMP SINAPI'!G:M,2,0),IF(A69="Comp. Seinfra",VLOOKUP(C69,'COMP. SEINFRA'!B:G,2,0),IF(A69="COMP. ORSE",VLOOKUP(C69,'COMP. ORSE'!A:D,2,0),IF(A69="Ins. Seinfra",VLOOKUP(C69,'INS. SEINFRA'!$A:$D,2,0),IF(A69="Ins. Sinapi",VLOOKUP(C69,'INS SINAPI'!A:E,2,0),IF(A69="Ins. Orse",VLOOKUP(C69,'INS. ORSE'!A:D,2,0),IF(A69="CPU CODEVASF",VLOOKUP(C69,CPU!B:I,4,0),IF(A69="COTAÇÃO",VLOOKUP(C69,COTAÇÃO!A:D,2,0))))))))) -> LAMPADA LED 10 W BIVOLT BRANCA, FORMATO TRADICIONAL (BASE E27) | E69: =IF(A69="CPU CODEVASF",VLOOKUP(C69,CPU!B:I,5,0),IF(A69="INS. SEINFRA",VLOOKUP(C69,'INS. SEINFRA'!A:D,3,0),IF(A69="INS. SINAPI",VLOOKUP(C69,'INS SINAPI'!A:E,3,0),IF(A69="COMP. SINAPI",VLOOKUP(C69,'COMP SINAPI'!G:M,3,0),IF(A69="INS. ORSE",VLOOKUP(C69,'INS. ORSE'!A:D,3,0),IF(A69="COTAÇÃO",VLOOKUP(C69,COTAÇÃO!A:D,3,0),IF(A69="COMP. ORSE",VLOOKUP(C69,'COMP. ORSE'!A:D,3,0),IF(A69="COMP. SEINFRA",VLOOKUP(C69,'COMP. SEINFRA'!B:G,5,0))))))))) -> UN | F69: 1 | G69: =IF(A69="CPU CODEVASF",VLOOKUP(C69,CPU!F:I,4,0),IF(A69="COTAÇÃO",VLOOKUP(C69,COTAÇÃO!A:D,4,0),IF(A69="INS. SEINFRA",VLOOKUP(C69,'INS. SEINFRA'!A:D,4,0),IF(A69="INS. SINAPI",VLOOKUP(C69,'INS SINAPI'!A:E,5,0),IF(A69="COMP. SINAPI",VLOOKUP(C69,'COMP SINAPI'!G:M,5,0),IF(A69="INS. ORSE",VLOOKUP(C69,'INS. ORSE'!A:D,4,0),IF(A69="COMP. ORSE",VLOOKUP(C69,'COMP. ORSE'!A:D,4,0),IF(A69="COMP. SEINFRA",VLOOKUP(C69,'COMP. SEINFRA'!B:G,6,0))))))))) -> 9,00 | H69: 10.02 | I69: 10.02
A70: Ins. Sinapi | B70: 3.2.3 | C70: 2676 | D70: =IF(A70="Comp. Sinapi",VLOOKUP(C70,'COMP SINAPI'!G:M,2,0),IF(A70="Comp. Seinfra",VLOOKUP(C70,'COMP. SEINFRA'!B:G,2,0),IF(A70="COMP. ORSE",VLOOKUP(C70,'COMP. ORSE'!A:D,2,0),IF(A70="Ins. Seinfra",VLOOKUP(C70,'INS. SEINFRA'!$A:$D,2,0),IF(A70="Ins. Sinapi",VLOOKUP(C70,'INS SINAPI'!A:E,2,0),IF(A70="Ins. Orse",VLOOKUP(C70,'INS. ORSE'!A:D,2,0),IF(A70="CPU CODEVASF",VLOOKUP(C70,CPU!B:I,4,0),IF(A70="COTAÇÃO",VLOOKUP(C70,COTAÇÃO!A:D,2,0))))))))) -> ELETRODUTO DE PVC RIGIDO SOLDAVEL, CLASSE B, DE 20 MM | E70: =IF(A70="CPU CODEVASF",VLOOKUP(C70,CPU!B:I,5,0),IF(A70="INS. SEINFRA",VLOOKUP(C70,'INS. SEINFRA'!A:D,3,0),IF(A70="INS. SINAPI",VLOOKUP(C70,'INS SINAPI'!A:E,3,0),IF(A70="COMP. SINAPI",VLOOKUP(C70,'COMP SINAPI'!G:M,3,0),IF(A70="INS. ORSE",VLOOKUP(C70,'INS. ORSE'!A:D,3,0),IF(A70="COTAÇÃO",VLOOKUP(C70,COTAÇÃO!A:D,3,0),IF(A70="COMP. ORSE",VLOOKUP(C70,'COMP. ORSE'!A:D,3,0),IF(A70="COMP. SEINFRA",VLOOKUP(C70,'COMP. SEINFRA'!B:G,5,0))))))))) -> M | F70: =3*3 -> 9 | G70: =IF(A70="CPU CODEVASF",VLOOKUP(C70,CPU!F:I,4,0),IF(A70="COTAÇÃO",VLOOKUP(C70,COTAÇÃO!A:D,4,0),IF(A70="INS. SEINFRA",VLOOKUP(C70,'INS. SEINFRA'!A:D,4,0),IF(A70="INS. SINAPI",VLOOKUP(C70,'INS SINAPI'!A:E,5,0),IF(A70="COMP. SINAPI",VLOOKUP(C70,'COMP SINAPI'!G:M,5,0),IF(A70="INS. ORSE",VLOOKUP(C70,'INS. ORSE'!A:D,4,0),IF(A70="COMP. ORSE",VLOOKUP(C70,'COMP. ORSE'!A:D,4,0),IF(A70="COMP. SEINFRA",VLOOKUP(C70,'COMP. SEINFRA'!B:G,6,0))))))))) -> 2,50 | H70: 2.78 | I70: 25.02
A71: Ins. Sinapi | B71: 3.2.4 | C71: 20080 | D71: =IF(A71="Comp. Sinapi",VLOOKUP(C71,'COMP SINAPI'!G:M,2,0),IF(A71="Comp. Seinfra",VLOOKUP(C71,'COMP. SEINFRA'!B:G,2,0),IF(A71="COMP. ORSE",VLOOKUP(C71,'COMP. ORSE'!A:D,2,0),IF(A71="Ins. Seinfra",VLOOKUP(C71,'INS. SEINFRA'!$A:$D,2,0),IF(A71="Ins. Sinapi",VLOOKUP(C71,'INS SINAPI'!A:E,2,0),IF(A71="Ins. Orse",VLOOKUP(C71,'INS. ORSE'!A:D,2,0),IF(A71="CPU CODEVASF",VLOOKUP(C71,CPU!B:I,4,0),IF(A71="COTAÇÃO",VLOOKUP(C71,COTAÇÃO!A:D,2,0))))))))) -> ADESIVO PLASTICO PARA PVC, FRASCO COM 175 GR | E71: =IF(A71="CPU CODEVASF",VLOOKUP(C71,CPU!B:I,5,0),IF(A71="INS. SEINFRA",VLOOKUP(C71,'INS. SEINFRA'!A:D,3,0),IF(A71="INS. SINAPI",VLOOKUP(C71,'INS SINAPI'!A:E,3,0),IF(A71="COMP. SINAPI",VLOOKUP(C71,'COMP SINAPI'!G:M,3,0),IF(A71="INS. ORSE",VLOOKUP(C71,'INS. ORSE'!A:D,3,0),IF(A71="COTAÇÃO",VLOOKUP(C71,COTAÇÃO!A:D,3,0),IF(A71="COMP. ORSE",VLOOKUP(C71,'COMP. ORSE'!A:D,3,0),IF(A71="COMP. SEINFRA",VLOOKUP(C71,'COMP. SEINFRA'!B:G,5,0))))))))) -> UN | F71: 1 | G71: =IF(A71="CPU CODEVASF",VLOOKUP(C71,CPU!F:I,4,0),IF(A71="COTAÇÃO",VLOOKUP(C71,COTAÇÃO!A:D,4,0),IF(A71="INS. SEINFRA",VLOOKUP(C71,'INS. SEINFRA'!A:D,4,0),IF(A71="INS. SINAPI",VLOOKUP(C71,'INS SINAPI'!A:E,5,0),IF(A71="COMP. SINAPI",VLOOKUP(C71,'COMP SINAPI'!G:M,5,0),IF(A71="INS. ORSE",VLOOKUP(C71,'INS. ORSE'!A:D,4,0),IF(A71="COMP. ORSE",VLOOKUP(C71,'COMP. ORSE'!A:D,4,0),IF(A71="COMP. SEINFRA",VLOOKUP(C71,'COMP. SEINFRA'!B:G,6,0))))))))) -> 19,84 | H71: 22.1 | I71: 22.1
A72: Ins. Sinapi | B72: 3.2.5 | C72: 39330 | D72: =IF(A72="Comp. Sinapi",VLOOKUP(C72,'COMP SINAPI'!G:M,2,0),IF(A72="Comp. Seinfra",VLOOKUP(C72,'COMP. SEINFRA'!B:G,2,0),IF(A72="COMP. ORSE",VLOOKUP(C72,'COMP. ORSE'!A:D,2,0),IF(A72="Ins. Seinfra",VLOOKUP(C72,'INS. SEINFRA'!$A:$D,2,0),IF(A72="Ins. Sinapi",VLOOKUP(C72,'INS SINAPI'!A:E,2,0),IF(A72="Ins. Orse",VLOOKUP(C72,'INS. ORSE'!A:D,2,0),IF(A72="CPU CODEVASF",VLOOKUP(C72,CPU!B:I,4,0),IF(A72="COTAÇÃO",VLOOKUP(C72,COTAÇÃO!A:D,2,0))))))))) -> CONDULETE EM PVC, TIPO "C", SEM TAMPA, DE 1/2" | E72: =IF(A72="CPU CODEVASF",VLOOKUP(C72,CPU!B:I,5,0),IF(A72="INS. SEINFRA",VLOOKUP(C72,'INS. SEINFRA'!A:D,3,0),IF(A72="INS. SINAPI",VLOOKUP(C72,'INS SINAPI'!A:E,3,0),IF(A72="COMP. SINAPI",VLOOKUP(C72,'COMP SINAPI'!G:M,3,0),IF(A72="INS. ORSE",VLOOKUP(C72,'INS. ORSE'!A:D,3,0),IF(A72="COTAÇÃO",VLOOKUP(C72,COTAÇÃO!A:D,3,0),IF(A72="COMP. ORSE",VLOOKUP(C72,'COMP. ORSE'!A:D,3,0),IF(A72="COMP. SEINFRA",VLOOKUP(C72,'COMP. SEINFRA'!B:G,5,0))))))))) -> UN | F72: 1 | G72: =IF(A72="CPU CODEVASF",VLOOKUP(C72,CPU!F:I,4,0),IF(A72="COTAÇÃO",VLOOKUP(C72,COTAÇÃO!A:D,4,0),IF(A72="INS. SEINFRA",VLOOKUP(C72,'INS. SEINFRA'!A:D,4,0),IF(A72="INS. SINAPI",VLOOKUP(C72,'INS SINAPI'!A:E,5,0),IF(A72="COMP. SINAPI",VLOOKUP(C72,'COMP SINAPI'!G:M,5,0),IF(A72="INS. ORSE",VLOOKUP(C72,'INS. ORSE'!A:D,4,0),IF(A72="COMP. ORSE",VLOOKUP(C72,'COMP. ORSE'!A:D,4,0),IF(A72="COMP. SEINFRA",VLOOKUP(C72,'COMP. SEINFRA'!B:G,6,0))))))))) -> 15,28 | H72: 17.02 | I72: 17.02
A73: Ins. Sinapi | B73: 3.2.6 | C73: 38077 | D73: =IF(A73="Comp. Sinapi",VLOOKUP(C73,'COMP SINAPI'!G:M,2,0),IF(A73="Comp. Seinfra",VLOOKUP(C73,'COMP. SEINFRA'!B:G,2,0),IF(A73="COMP. ORSE",VLOOKUP(C73,'COMP. ORSE'!A:D,2,0),IF(A73="Ins. Seinfra",VLOOKUP(C73,'INS. SEINFRA'!$A:$D,2,0),IF(A73="Ins. Sinapi",VLOOKUP(C73,'INS SINAPI'!A:E,2,0),IF(A73="Ins. Orse",VLOOKUP(C73,'INS. ORSE'!A:D,2,0),IF(A73="CPU CODEVASF",VLOOKUP(C73,CPU!B:I,4,0),IF(A73="COTAÇÃO",VLOOKUP(C73,COTAÇÃO!A:D,2,0))))))))) -> INTERRUPTOR SIMPLES + TOMADA 2P+T 10A, 250V, CONJUNTO MONTADO PARA EMBUTIR 4" X 2" (PLACA + SUPORTE + MODULOS) | E73: =IF(A73="CPU CODEVASF",VLOOKUP(C73,CPU!B:I,5,0),IF(A73="INS. SEINFRA",VLOOKUP(C73,'INS. SEINFRA'!A:D,3,0),IF(A73="INS. SINAPI",VLOOKUP(C73,'INS SINAPI'!A:E,3,0),IF(A73="COMP. SINAPI",VLOOKUP(C73,'COMP SINAPI'!G:M,3,0),IF(A73="INS. ORSE",VLOOKUP(C73,'INS. ORSE'!A:D,3,0),IF(A73="COTAÇÃO",VLOOKUP(C73,COTAÇÃO!A:D,3,0),IF(A73="COMP. ORSE",VLOOKUP(C73,'COMP. ORSE'!A:D,3,0),IF(A73="COMP. SEINFRA",VLOOKUP(C73,'COMP. SEINFRA'!B:G,5,0))))))))) -> UN | F73: 1 | G73: =IF(A73="CPU CODEVASF",VLOOKUP(C73,CPU!F:I,4,0),IF(A73="COTAÇÃO",VLOOKUP(C73,COTAÇÃO!A:D,4,0),IF(A73="INS. SEINFRA",VLOOKUP(C73,'INS. SEINFRA'!A:D,4,0),IF(A73="INS. SINAPI",VLOOKUP(C73,'INS SINAPI'!A:E,5,0),IF(A73="COMP. SINAPI",VLOOKUP(C73,'COMP SINAPI'!G:M,5,0),IF(A73="INS. ORSE",VLOOKUP(C73,'INS. ORSE'!A:D,4,0),IF(A73="COMP. ORSE",VLOOKUP(C73,'COMP. ORSE'!A:D,4,0),IF(A73="COMP. SEINFRA",VLOOKUP(C73,'COMP. SEINFRA'!B:G,6,0))))))))) -> 15,44 | H73: 17.2 | I73: 17.2
A74: Ins. Sinapi | B74: 3.2.7 | C74: 3803 | D74: =IF(A74="Comp. Sinapi",VLOOKUP(C74,'COMP SINAPI'!G:M,2,0),IF(A74="Comp. Seinfra",VLOOKUP(C74,'COMP. SEINFRA'!B:G,2,0),IF(A74="COMP. ORSE",VLOOKUP(C74,'COMP. ORSE'!A:D,2,0),IF(A74="Ins. Seinfra",VLOOKUP(C74,'INS. SEINFRA'!$A:$D,2,0),IF(A74="Ins. Sinapi",VLOOKUP(C74,'INS SINAPI'!A:E,2,0),IF(A74="Ins. Orse",VLOOKUP(C74,'INS. ORSE'!A:D,2,0),IF(A74="CPU CODEVASF",VLOOKUP(C74,CPU!B:I,4,0),IF(A74="COTAÇÃO",VLOOKUP(C74,COTAÇÃO!A:D,2,0))))))))) -> LUMINARIA PLAFON REDONDO COM VIDRO FOSCO DIAMETRO *25* CM, PARA 1 LAMPADA, BASE E27, POTENCIA MAXIMA 40/60 W (NAO INCLUI LAMPADA) | E74: =IF(A74="CPU CODEVASF",VLOOKUP(C74,CPU!B:I,5,0),IF(A74="INS. SEINFRA",VLOOKUP(C74,'INS. SEINFRA'!A:D,3,0),IF(A74="INS. SINAPI",VLOOKUP(C74,'INS SINAPI'!A:E,3,0),IF(A74="COMP. SINAPI",VLOOKUP(C74,'COMP SINAPI'!G:M,3,0),IF(A74="INS. ORSE",VLOOKUP(C74,'INS. ORSE'!A:D,3,0),IF(A74="COTAÇÃO",VLOOKUP(C74,COTAÇÃO!A:D,3,0),IF(A74="COMP. ORSE",VLOOKUP(C74,'COMP. ORSE'!A:D,3,0),IF(A74="COMP. SEINFRA",VLOOKUP(C74,'COMP. SEINFRA'!B:G,5,0))))))))) -> UN | F74: 15 | G74: =IF(A74="CPU CODEVASF",VLOOKUP(C74,CPU!F:I,4,0),IF(A74="COTAÇÃO",VLOOKUP(C74,COTAÇÃO!A:D,4,0),IF(A74="INS. SEINFRA",VLOOKUP(C74,'INS. SEINFRA'!A:D,4,0),IF(A74="INS. SINAPI",VLOOKUP(C74,'INS SINAPI'!A:E,5,0),IF(A74="COMP. SINAPI",VLOOKUP(C74,'COMP SINAPI'!G:M,5,0),IF(A74="INS. ORSE",VLOOKUP(C74,'INS. ORSE'!A:D,4,0),IF(A74="COMP. ORSE",VLOOKUP(C74,'COMP. ORSE'!A:D,4,0),IF(A74="COMP. SEINFRA",VLOOKUP(C74,'COMP. SEINFRA'!B:G,6,0))))))))) -> 74,92 | H74: 83.46 | I74: 1251.9
A75: Ins. Sinapi | B75: 3.2.8 | C75: 13329 | D75: =IF(A75="Comp. Sinapi",VLOOKUP(C75,'COMP SINAPI'!G:M,2,0),IF(A75="Comp. Seinfra",VLOOKUP(C75,'COMP. SEINFRA'!B:G,2,0),IF(A75="COMP. ORSE",VLOOKUP(C75,'COMP. ORSE'!A:D,2,0),IF(A75="Ins. Seinfra",VLOOKUP(C75,'INS. SEINFRA'!$A:$D,2,0),IF(A75="Ins. Sinapi",VLOOKUP(C75,'INS SINAPI'!A:E,2,0),IF(A75="Ins. Orse",VLOOKUP(C75,'INS. ORSE'!A:D,2,0),IF(A75="CPU CODEVASF",VLOOKUP(C75,CPU!B:I,4,0),IF(A75="COTAÇÃO",VLOOKUP(C75,COTAÇÃO!A:D,2,0))))))))) -> SOQUETE DE PVC / TERMOPLASTICO BASE E27, COM RABICHO, PARA LAMPADAS | E75: =IF(A75="CPU CODEVASF",VLOOKUP(C75,CPU!B:I,5,0),IF(A75="INS. SEINFRA",VLOOKUP(C75,'INS. SEINFRA'!A:D,3,0),IF(A75="INS. SINAPI",VLOOKUP(C75,'INS SINAPI'!A:E,3,0),IF(A75="COMP. SINAPI",VLOOKUP(C75,'COMP SINAPI'!G:M,3,0),IF(A75="INS. ORSE",VLOOKUP(C75,'INS. ORSE'!A:D,3,0),IF(A75="COTAÇÃO",VLOOKUP(C75,COTAÇÃO!A:D,3,0),IF(A75="COMP. ORSE",VLOOKUP(C75,'COMP. ORSE'!A:D,3,0),IF(A75="COMP. SEINFRA",VLOOKUP(C75,'COMP. SEINFRA'!B:G,5,0))))))))) -> UN | F75: 1 | G75: =IF(A75="CPU CODEVASF",VLOOKUP(C75,CPU!F:I,4,0),IF(A75="COTAÇÃO",VLOOKUP(C75,COTAÇÃO!A:D,4,0),IF(A75="INS. SEINFRA",VLOOKUP(C75,'INS. SEINFRA'!A:D,4,0),IF(A75="INS. SINAPI",VLOOKUP(C75,'INS SINAPI'!A:E,5,0),IF(A75="COMP. SINAPI",VLOOKUP(C75,'COMP SINAPI'!G:M,5,0),IF(A75="INS. ORSE",VLOOKUP(C75,'INS. ORSE'!A:D,4,0),IF(A75="COMP. ORSE",VLOOKUP(C75,'COMP. ORSE'!A:D,4,0),IF(A75="COMP. SEINFRA",VLOOKUP(C75,'COMP. SEINFRA'!B:G,6,0))))))))) -> 3,90 | H75: 4.34 | I75: 4.34
A76: COTAÇÃO | B76: 3.2.9 | C76: COT. 05 | D76: =IF(A76="Comp. Sinapi",VLOOKUP(C76,'COMP SINAPI'!G:M,2,0),IF(A76="Comp. Seinfra",VLOOKUP(C76,'COMP. SEINFRA'!B:G,2,0),IF(A76="COMP. ORSE",VLOOKUP(C76,'COMP. ORSE'!A:D,2,0),IF(A76="Ins. Seinfra",VLOOKUP(C76,'INS. SEINFRA'!$A:$D,2,0),IF(A76="Ins. Sinapi",VLOOKUP(C76,'INS SINAPI'!A:E,2,0),IF(A76="Ins. Orse",VLOOKUP(C76,'INS. ORSE'!A:D,2,0),IF(A76="CPU CODEVASF",VLOOKUP(C76,CPU!B:I,4,0),IF(A76="COTAÇÃO",VLOOKUP(C76,COTAÇÃO!A:D,2,0))))))))) -> COMEDOURO TUBULAR INFANTIL (5KG) | E76: =IF(A76="CPU CODEVASF",VLOOKUP(C76,CPU!B:I,5,0),IF(A76="INS. SEINFRA",VLOOKUP(C76,'INS. SEINFRA'!A:D,3,0),IF(A76="INS. SINAPI",VLOOKUP(C76,'INS SINAPI'!A:E,3,0),IF(A76="COMP. SINAPI",VLOOKUP(C76,'COMP SINAPI'!G:M,3,0),IF(A76="INS. ORSE",VLOOKUP(C76,'INS. ORSE'!A:D,3,0),IF(A76="COTAÇÃO",VLOOKUP(C76,COTAÇÃO!A:D,3,0),IF(A76="COMP. ORSE",VLOOKUP(C76,'COMP. ORSE'!A:D,3,0),IF(A76="COMP. SEINFRA",VLOOKUP(C76,'COMP. SEINFRA'!B:G,5,0))))))))) -> UND | F76: 4 | G76: =IF(A76="CPU CODEVASF",VLOOKUP(C76,CPU!F:I,4,0),IF(A76="COTAÇÃO",VLOOKUP(C76,COTAÇÃO!A:D,4,0),IF(A76="INS. SEINFRA",VLOOKUP(C76,'INS. SEINFRA'!A:D,4,0),IF(A76="INS. SINAPI",VLOOKUP(C76,'INS SINAPI'!A:E,5,0),IF(A76="COMP. SINAPI",VLOOKUP(C76,'COMP SINAPI'!G:M,5,0),IF(A76="INS. ORSE",VLOOKUP(C76,'INS. ORSE'!A:D,4,0),IF(A76="COMP. ORSE",VLOOKUP(C76,'COMP. ORSE'!A:D,4,0),IF(A76="COMP. SEINFRA",VLOOKUP(C76,'COMP. SEINFRA'!B:G,6,0))))))))) -> 50.83 | H76: 56.62 | I76: 226.48
A77: Ins. Orse | B77: 3.2.10 | C77: 2945 | D77: =IF(A77="Comp. Sinapi",VLOOKUP(C77,'COMP SINAPI'!G:M,2,0),IF(A77="Comp. Seinfra",VLOOKUP(C77,'COMP. SEINFRA'!B:G,2,0),IF(A77="COMP. ORSE",VLOOKUP(C77,'COMP. ORSE'!A:D,2,0),IF(A77="Ins. Seinfra",VLOOKUP(C77,'INS. SEINFRA'!$A:$D,2,0),IF(A77="Ins. Sinapi",VLOOKUP(C77,'INS SINAPI'!A:E,2,0),IF(A77="Ins. Orse",VLOOKUP(C77,'INS. ORSE'!A:D,2,0),IF(A77="CPU CODEVASF",VLOOKUP(C77,CPU!B:I,4,0),IF(A77="COTAÇÃO",VLOOKUP(C77,COTAÇÃO!A:D,2,0))))))))) -> Dobradiça de ferro zincado, 3 1/2", linha popular | E77: =IF(A77="CPU CODEVASF",VLOOKUP(C77,CPU!B:I,5,0),IF(A77="INS. SEINFRA",VLOOKUP(C77,'INS. SEINFRA'!A:D,3,0),IF(A77="INS. SINAPI",VLOOKUP(C77,'INS SINAPI'!A:E,3,0),IF(A77="COMP. SINAPI",VLOOKUP(C77,'COMP SINAPI'!G:M,3,0),IF(A77="INS. ORSE",VLOOKUP(C77,'INS. ORSE'!A:D,3,0),IF(A77="COTAÇÃO",VLOOKUP(C77,COTAÇÃO!A:D,3,0),IF(A77="COMP. ORSE",VLOOKUP(C77,'COMP. ORSE'!A:D,3,0),IF(A77="COMP. SEINFRA",VLOOKUP(C77,'COMP. SEINFRA'!B:G,5,0))))))))) -> UND | F77: 8 | G77: =IF(A77="CPU CODEVASF",VLOOKUP(C77,CPU!F:I,4,0),IF(A77="COTAÇÃO",VLOOKUP(C77,COTAÇÃO!A:D,4,0),IF(A77="INS. SEINFRA",VLOOKUP(C77,'INS. SEINFRA'!A:D,4,0),IF(A77="INS. SINAPI",VLOOKUP(C77,'INS SINAPI'!A:E,5,0),IF(A77="COMP. SINAPI",VLOOKUP(C77,'COMP SINAPI'!G:M,5,0),IF(A77="INS. ORSE",VLOOKUP(C77,'INS. ORSE'!A:D,4,0),IF(A77="COMP. ORSE",VLOOKUP(C77,'COMP. ORSE'!A:D,4,0),IF(A77="COMP. SEINFRA",VLOOKUP(C77,'COMP. SEINFRA'!B:G,6,0))))))))) -> 3.13 | H77: 3.48 | I77: 27.84
A78: Ins. Orse | B78: 3.2.11 | C78: 4419 | D78: =IF(A78="Comp. Sinapi",VLOOKUP(C78,'COMP SINAPI'!G:M,2,0),IF(A78="Comp. Seinfra",VLOOKUP(C78,'COMP. SEINFRA'!B:G,2,0),IF(A78="COMP. ORSE",VLOOKUP(C78,'COMP. ORSE'!A:D,2,0),IF(A78="Ins. Seinfra",VLOOKUP(C78,'INS. SEINFRA'!$A:$D,2,0),IF(A78="Ins. Sinapi",VLOOKUP(C78,'INS SINAPI'!A:E,2,0),IF(A78="Ins. Orse",VLOOKUP(C78,'INS. ORSE'!A:D,2,0),IF(A78="CPU CODEVASF",VLOOKUP(C78,CPU!B:I,4,0),IF(A78="COTAÇÃO",VLOOKUP(C78,COTAÇÃO!A:D,2,0))))))))) -> Arruela lisa de 5/16" | E78: =IF(A78="CPU CODEVASF",VLOOKUP(C78,CPU!B:I,5,0),IF(A78="INS. SEINFRA",VLOOKUP(C78,'INS. SEINFRA'!A:D,3,0),IF(A78="INS. SINAPI",VLOOKUP(C78,'INS SINAPI'!A:E,3,0),IF(A78="COMP. SINAPI",VLOOKUP(C78,'COMP SINAPI'!G:M,3,0),IF(A78="INS. ORSE",VLOOKUP(C78,'INS. ORSE'!A:D,3,0),IF(A78="COTAÇÃO",VLOOKUP(C78,COTAÇÃO!A:D,3,0),IF(A78="COMP. ORSE",VLOOKUP(C78,'COMP. ORSE'!A:D,3,0),IF(A78="COMP. SEINFRA",VLOOKUP(C78,'COMP. SEINFRA'!B:G,5,0))))))))) -> UND | F78: 30 | G78: =IF(A78="CPU CODEVASF",VLOOKUP(C78,CPU!F:I,4,0),IF(A78="COTAÇÃO",VLOOKUP(C78,COTAÇÃO!A:D,4,0),IF(A78="INS. SEINFRA",VLOOKUP(C78,'INS. SEINFRA'!A:D,4,0),IF(A78="INS. SINAPI",VLOOKUP(C78,'INS SINAPI'!A:E,5,0),IF(A78="COMP. SINAPI",VLOOKUP(C78,'COMP SINAPI'!G:M,5,0),IF(A78="INS. ORSE",VLOOKUP(C78,'INS. ORSE'!A:D,4,0),IF(A78="COMP. ORSE",VLOOKUP(C78,'COMP. ORSE'!A:D,4,0),IF(A78="COMP. SEINFRA",VLOOKUP(C78,'COMP. SEINFRA'!B:G,6,0))))))))) -> 0.1 | H78: 0.11 | I78: 3.3
A79: Ins. Sinapi | B79: 3.2.12 | C79: 7313 | D79: =IF(A79="Comp. Sinapi",VLOOKUP(C79,'COMP SINAPI'!G:M,2,0),IF(A79="Comp. Seinfra",VLOOKUP(C79,'COMP. SEINFRA'!B:G,2,0),IF(A79="COMP. ORSE",VLOOKUP(C79,'COMP. ORSE'!A:D,2,0),IF(A79="Ins. Seinfra",VLOOKUP(C79,'INS. SEINFRA'!$A:$D,2,0),IF(A79="Ins. Sinapi",VLOOKUP(C79,'INS SINAPI'!A:E,2,0),IF(A79="Ins. Orse",VLOOKUP(C79,'INS. ORSE'!A:D,2,0),IF(A79="CPU CODEVASF",VLOOKUP(C79,CPU!B:I,4,0),IF(A79="COTAÇÃO",VLOOKUP(C79,COTAÇÃO!A:D,2,0))))))))) -> TINTA ASFALTICA IMPERMEABILIZANTE DILUIDA EM SOLVENTE, PARA MATERIAIS CIMENTICIOS, METAL E MADEIRA | E79: =IF(A79="CPU CODEVASF",VLOOKUP(C79,CPU!B:I,5,0),IF(A79="INS. SEINFRA",VLOOKUP(C79,'INS. SEINFRA'!A:D,3,0),IF(A79="INS. SINAPI",VLOOKUP(C79,'INS SINAPI'!A:E,3,0),IF(A79="COMP. SINAPI",VLOOKUP(C79,'COMP SINAPI'!G:M,3,0),IF(A79="INS. ORSE",VLOOKUP(C79,'INS. ORSE'!A:D,3,0),IF(A79="COTAÇÃO",VLOOKUP(C79,COTAÇÃO!A:D,3,0),IF(A79="COMP. ORSE",VLOOKUP(C79,'COMP. ORSE'!A:D,3,0),IF(A79="COMP. SEINFRA",VLOOKUP(C79,'COMP. SEINFRA'!B:G,5,0))))))))) -> L | F79: 3.6 | G79: =IF(A79="CPU CODEVASF",VLOOKUP(C79,CPU!F:I,4,0),IF(A79="COTAÇÃO",VLOOKUP(C79,COTAÇÃO!A:D,4,0),IF(A79="INS. SEINFRA",VLOOKUP(C79,'INS. SEINFRA'!A:D,4,0),IF(A79="INS. SINAPI",VLOOKUP(C79,'INS SINAPI'!A:E,5,0),IF(A79="COMP. SINAPI",VLOOKUP(C79,'COMP SINAPI'!G:M,5,0),IF(A79="INS. ORSE",VLOOKUP(C79,'INS. ORSE'!A:D,4,0),IF(A79="COMP. ORSE",VLOOKUP(C79,'COMP. ORSE'!A:D,4,0),IF(A79="COMP. SEINFRA",VLOOKUP(C79,'COMP. SEINFRA'!B:G,6,0))))))))) -> 22,09 | H79: 24.6 | I79: 88.56
A80: Ins. Sinapi | B80: 3.2.13 | C80: 4330 | D80: =IF(A80="Comp. Sinapi",VLOOKUP(C80,'COMP SINAPI'!G:M,2,0),IF(A80="Comp. Seinfra",VLOOKUP(C80,'COMP. SEINFRA'!B:G,2,0),IF(A80="COMP. ORSE",VLOOKUP(C80,'COMP. ORSE'!A:D,2,0),IF(A80="Ins. Seinfra",VLOOKUP(C80,'INS. SEINFRA'!$A:$D,2,0),IF(A80="Ins. Sinapi",VLOOKUP(C80,'INS SINAPI'!A:E,2,0),IF(A80="Ins. Orse",VLOOKUP(C80,'INS. ORSE'!A:D,2,0),IF(A80="CPU CODEVASF",VLOOKUP(C80,CPU!B:I,4,0),IF(A80="COTAÇÃO",VLOOKUP(C80,COTAÇÃO!A:D,2,0))))))))) -> PORCA ZINCADA, SEXTAVADA, DIAMETRO 5/16" | E80: =IF(A80="CPU CODEVASF",VLOOKUP(C80,CPU!B:I,5,0),IF(A80="INS. SEINFRA",VLOOKUP(C80,'INS. SEINFRA'!A:D,3,0),IF(A80="INS. SINAPI",VLOOKUP(C80,'INS SINAPI'!A:E,3,0),IF(A80="COMP. SINAPI",VLOOKUP(C80,'COMP SINAPI'!G:M,3,0),IF(A80="INS. ORSE",VLOOKUP(C80,'INS. ORSE'!A:D,3,0),IF(A80="COTAÇÃO",VLOOKUP(C80,COTAÇÃO!A:D,3,0),IF(A80="COMP. ORSE",VLOOKUP(C80,'COMP. ORSE'!A:D,3,0),IF(A80="COMP. SEINFRA",VLOOKUP(C80,'COMP. SEINFRA'!B:G,5,0))))))))) -> UN | F80: 30 | G80: =IF(A80="CPU CODEVASF",VLOOKUP(C80,CPU!F:I,4,0),IF(A80="COTAÇÃO",VLOOKUP(C80,COTAÇÃO!A:D,4,0),IF(A80="INS. SEINFRA",VLOOKUP(C80,'INS. SEINFRA'!A:D,4,0),IF(A80="INS. SINAPI",VLOOKUP(C80,'INS SINAPI'!A:E,5,0),IF(A80="COMP. SINAPI",VLOOKUP(C80,'COMP SINAPI'!G:M,5,0),IF(A80="INS. ORSE",VLOOKUP(C80,'INS. ORSE'!A:D,4,0),IF(A80="COMP. ORSE",VLOOKUP(C80,'COMP. ORSE'!A:D,4,0),IF(A80="COMP. SEINFRA",VLOOKUP(C80,'COMP. SEINFRA'!B:G,6,0))))))))) -> 0,20 | H80: 0.22 | I80: 6.6
A81: COTAÇÃO | B81: 3.2.14 | C81: COT. 06 | D81: =IF(A81="Comp. Sinapi",VLOOKUP(C81,'COMP SINAPI'!G:M,2,0),IF(A81="Comp. Seinfra",VLOOKUP(C81,'COMP. SEINFRA'!B:G,2,0),IF(A81="COMP. ORSE",VLOOKUP(C81,'COMP. ORSE'!A:D,2,0),IF(A81="Ins. Seinfra",VLOOKUP(C81,'INS. SEINFRA'!$A:$D,2,0),IF(A81="Ins. Sinapi",VLOOKUP(C81,'INS SINAPI'!A:E,2,0),IF(A81="Ins. Orse",VLOOKUP(C81,'INS. ORSE'!A:D,2,0),IF(A81="CPU CODEVASF",VLOOKUP(C81,CPU!B:I,4,0),IF(A81="COTAÇÃO",VLOOKUP(C81,COTAÇÃO!A:D,2,0))))))))) -> PINTOS DE 1 DIA - COBB PEITO DUPLO ( 30 PINTOS POR MÊS) | E81: =IF(A81="CPU CODEVASF",VLOOKUP(C81,CPU!B:I,5,0),IF(A81="INS. SEINFRA",VLOOKUP(C81,'INS. SEINFRA'!A:D,3,0),IF(A81="INS. SINAPI",VLOOKUP(C81,'INS SINAPI'!A:E,3,0),IF(A81="COMP. SINAPI",VLOOKUP(C81,'COMP SINAPI'!G:M,3,0),IF(A81="INS. ORSE",VLOOKUP(C81,'INS. ORSE'!A:D,3,0),IF(A81="COTAÇÃO",VLOOKUP(C81,COTAÇÃO!A:D,3,0),IF(A81="COMP. ORSE",VLOOKUP(C81,'COMP. ORSE'!A:D,3,0),IF(A81="COMP. SEINFRA",VLOOKUP(C81,'COMP. SEINFRA'!B:G,5,0))))))))) -> UND | F81: 120 | G81: =IF(A81="CPU CODEVASF",VLOOKUP(C81,CPU!F:I,4,0),IF(A81="COTAÇÃO",VLOOKUP(C81,COTAÇÃO!A:D,4,0),IF(A81="INS. SEINFRA",VLOOKUP(C81,'INS. SEINFRA'!A:D,4,0),IF(A81="INS. SINAPI",VLOOKUP(C81,'INS SINAPI'!A:E,5,0),IF(A81="COMP. SINAPI",VLOOKUP(C81,'COMP SINAPI'!G:M,5,0),IF(A81="INS. ORSE",VLOOKUP(C81,'INS. ORSE'!A:D,4,0),IF(A81="COMP. ORSE",VLOOKUP(C81,'COMP. ORSE'!A:D,4,0),IF(A81="COMP. SEINFRA",VLOOKUP(C81,'COMP. SEINFRA'!B:G,6,0))))))))) -> 2.7 | H81: 3 | I81: 360
A82: Ins. Sinapi | B82: 3.2.15 | C82: 20247 | D82: =IF(A82="Comp. Sinapi",VLOOKUP(C82,'COMP SINAPI'!G:M,2,0),IF(A82="Comp. Seinfra",VLOOKUP(C82,'COMP. SEINFRA'!B:G,2,0),IF(A82="COMP. ORSE",VLOOKUP(C82,'COMP. ORSE'!A:D,2,0),IF(A82="Ins. Seinfra",VLOOKUP(C82,'INS. SEINFRA'!$A:$D,2,0),IF(A82="Ins. Sinapi",VLOOKUP(C82,'INS SINAPI'!A:E,2,0),IF(A82="Ins. Orse",VLOOKUP(C82,'INS. ORSE'!A:D,2,0),IF(A82="CPU CODEVASF",VLOOKUP(C82,CPU!B:I,4,0),IF(A82="COTAÇÃO",VLOOKUP(C82,COTAÇÃO!A:D,2,0))))))))) -> PREGO DE ACO POLIDO COM CABECA 15 X 15 (1 1/4 X 13) | E82: =IF(A82="CPU CODEVASF",VLOOKUP(C82,CPU!B:I,5,0),IF(A82="INS. SEINFRA",VLOOKUP(C82,'INS. SEINFRA'!A:D,3,0),IF(A82="INS. SINAPI",VLOOKUP(C82,'INS SINAPI'!A:E,3,0),IF(A82="COMP. SINAPI",VLOOKUP(C82,'COMP SINAPI'!G:M,3,0),IF(A82="INS. ORSE",VLOOKUP(C82,'INS. ORSE'!A:D,3,0),IF(A82="COTAÇÃO",VLOOKUP(C82,COTAÇÃO!A:D,3,0),IF(A82="COMP. ORSE",VLOOKUP(C82,'COMP. ORSE'!A:D,3,0),IF(A82="COMP. SEINFRA",VLOOKUP(C82,'COMP. SEINFRA'!B:G,5,0))))))))) -> KG | F82: 1 | G82: =IF(A82="CPU CODEVASF",VLOOKUP(C82,CPU!F:I,4,0),IF(A82="COTAÇÃO",VLOOKUP(C82,COTAÇÃO!A:D,4,0),IF(A82="INS. SEINFRA",VLOOKUP(C82,'INS. SEINFRA'!A:D,4,0),IF(A82="INS. SINAPI",VLOOKUP(C82,'INS SINAPI'!A:E,5,0),IF(A82="COMP. SINAPI",VLOOKUP(C82,'COMP SINAPI'!G:M,5,0),IF(A82="INS. ORSE",VLOOKUP(C82,'INS. ORSE'!A:D,4,0),IF(A82="COMP. ORSE",VLOOKUP(C82,'COMP. ORSE'!A:D,4,0),IF(A82="COMP. SEINFRA",VLOOKUP(C82,'COMP. SEINFRA'!B:G,6,0))))))))) -> 20,27 | H82: 22.58 | I82: 22.58
A83: COTAÇÃO | B83: 3.2.16 | C83: COT. 07 | D83: =IF(A83="Comp. Sinapi",VLOOKUP(C83,'COMP SINAPI'!G:M,2,0),IF(A83="Comp. Seinfra",VLOOKUP(C83,'COMP. SEINFRA'!B:G,2,0),IF(A83="COMP. ORSE",VLOOKUP(C83,'COMP. ORSE'!A:D,2,0),IF(A83="Ins. Seinfra",VLOOKUP(C83,'INS. SEINFRA'!$A:$D,2,0),IF(A83="Ins. Sinapi",VLOOKUP(C83,'INS SINAPI'!A:E,2,0),IF(A83="Ins. Orse",VLOOKUP(C83,'INS. ORSE'!A:D,2,0),IF(A83="CPU CODEVASF",VLOOKUP(C83,CPU!B:I,4,0),IF(A83="COTAÇÃO",VLOOKUP(C83,COTAÇÃO!A:D,2,0))))))))) -> RAÇÃO (PRÉ INICIAL, INICIAL, CRESCIMENTO) - QUANTIDADE PARA 120 DIAS - AVES DE CORTE | E83: =IF(A83="CPU CODEVASF",VLOOKUP(C83,CPU!B:I,5,0),IF(A83="INS. SEINFRA",VLOOKUP(C83,'INS. SEINFRA'!A:D,3,0),IF(A83="INS. SINAPI",VLOOKUP(C83,'INS SINAPI'!A:E,3,0),IF(A83="COMP. SINAPI",VLOOKUP(C83,'COMP SINAPI'!G:M,3,0),IF(A83="INS. ORSE",VLOOKUP(C83,'INS. ORSE'!A:D,3,0),IF(A83="COTAÇÃO",VLOOKUP(C83,COTAÇÃO!A:D,3,0),IF(A83="COMP. ORSE",VLOOKUP(C83,'COMP. ORSE'!A:D,3,0),IF(A83="COMP. SEINFRA",VLOOKUP(C83,'COMP. SEINFRA'!B:G,5,0))))))))) -> UND | F83: 1 | G83: =IF(A83="CPU CODEVASF",VLOOKUP(C83,CPU!F:I,4,0),IF(A83="COTAÇÃO",VLOOKUP(C83,COTAÇÃO!A:D,4,0),IF(A83="INS. SEINFRA",VLOOKUP(C83,'INS. SEINFRA'!A:D,4,0),IF(A83="INS. SINAPI",VLOOKUP(C83,'INS SINAPI'!A:E,5,0),IF(A83="COMP. SINAPI",VLOOKUP(C83,'COMP SINAPI'!G:M,5,0),IF(A83="INS. ORSE",VLOOKUP(C83,'INS. ORSE'!A:D,4,0),IF(A83="COMP. ORSE",VLOOKUP(C83,'COMP. ORSE'!A:D,4,0),IF(A83="COMP. SEINFRA",VLOOKUP(C83,'COMP. SEINFRA'!B:G,6,0))))))))) -> 420 | H83: 467.88 | I83: 467.88
A84: Ins. Sinapi | B84: 3.2.17 | C84: 4408 | D84: =IF(A84="Comp. Sinapi",VLOOKUP(C84,'COMP SINAPI'!G:M,2,0),IF(A84="Comp. Seinfra",VLOOKUP(C84,'COMP. SEINFRA'!B:G,2,0),IF(A84="COMP. ORSE",VLOOKUP(C84,'COMP. ORSE'!A:D,2,0),IF(A84="Ins. Seinfra",VLOOKUP(C84,'INS. SEINFRA'!$A:$D,2,0),IF(A84="Ins. Sinapi",VLOOKUP(C84,'INS SINAPI'!A:E,2,0),IF(A84="Ins. Orse",VLOOKUP(C84,'INS. ORSE'!A:D,2,0),IF(A84="CPU CODEVASF",VLOOKUP(C84,CPU!B:I,4,0),IF(A84="COTAÇÃO",VLOOKUP(C84,COTAÇÃO!A:D,2,0))))))))) -> RIPA NAO APARELHADA, *1,5 X 5* CM, EM MACARANDUBA/MASSARANDUBA, ANGELIM OU EQUIVALENTE DA REGIAO - BRUTA | E84: =IF(A84="CPU CODEVASF",VLOOKUP(C84,CPU!B:I,5,0),IF(A84="INS. SEINFRA",VLOOKUP(C84,'INS. SEINFRA'!A:D,3,0),IF(A84="INS. SINAPI",VLOOKUP(C84,'INS SINAPI'!A:E,3,0),IF(A84="COMP. SINAPI",VLOOKUP(C84,'COMP SINAPI'!G:M,3,0),IF(A84="INS. ORSE",VLOOKUP(C84,'INS. ORSE'!A:D,3,0),IF(A84="COTAÇÃO",VLOOKUP(C84,COTAÇÃO!A:D,3,0),IF(A84="COMP. ORSE",VLOOKUP(C84,'COMP. ORSE'!A:D,3,0),IF(A84="COMP. SEINFRA",VLOOKUP(C84,'COMP. SEINFRA'!B:G,5,0))))))))) -> M | F84: =16*1.5 -> 24 | G84: =IF(A84="CPU CODEVASF",VLOOKUP(C84,CPU!F:I,4,0),IF(A84="COTAÇÃO",VLOOKUP(C84,COTAÇÃO!A:D,4,0),IF(A84="INS. SEINFRA",VLOOKUP(C84,'INS. SEINFRA'!A:D,4,0),IF(A84="INS. SINAPI",VLOOKUP(C84,'INS SINAPI'!A:E,5,0),IF(A84="COMP. SINAPI",VLOOKUP(C84,'COMP SINAPI'!G:M,5,0),IF(A84="INS. ORSE",VLOOKUP(C84,'INS. ORSE'!A:D,4,0),IF(A84="COMP. ORSE",VLOOKUP(C84,'COMP. ORSE'!A:D,4,0),IF(A84="COMP. SEINFRA",VLOOKUP(C84,'COMP. SEINFRA'!B:G,6,0))))))))) -> 2,95 | H84: 3.28 | I84: 78.72
A85: Ins. Orse | B85: 3.2.18 | C85: 1943 | D85: =IF(A85="Comp. Sinapi",VLOOKUP(C85,'COMP SINAPI'!G:M,2,0),IF(A85="Comp. Seinfra",VLOOKUP(C85,'COMP. SEINFRA'!B:G,2,0),IF(A85="COMP. ORSE",VLOOKUP(C85,'COMP. ORSE'!A:D,2,0),IF(A85="Ins. Seinfra",VLOOKUP(C85,'INS. SEINFRA'!$A:$D,2,0),IF(A85="Ins. Sinapi",VLOOKUP(C85,'INS SINAPI'!A:E,2,0),IF(A85="Ins. Orse",VLOOKUP(C85,'INS. ORSE'!A:D,2,0),IF(A85="CPU CODEVASF",VLOOKUP(C85,CPU!B:I,4,0),IF(A85="COTAÇÃO",VLOOKUP(C85,COTAÇÃO!A:D,2,0))))))))) -> Registro PVC esfera c/borboleta d = 3/4" | E85: =IF(A85="CPU CODEVASF",VLOOKUP(C85,CPU!B:I,5,0),IF(A85="INS. SEINFRA",VLOOKUP(C85,'INS. SEINFRA'!A:D,3,0),IF(A85="INS. SINAPI",VLOOKUP(C85,'INS SINAPI'!A:E,3,0),IF(A85="COMP. SINAPI",VLOOKUP(C85,'COMP SINAPI'!G:M,3,0),IF(A85="INS. ORSE",VLOOKUP(C85,'INS. ORSE'!A:D,3,0),IF(A85="COTAÇÃO",VLOOKUP(C85,COTAÇÃO!A:D,3,0),IF(A85="COMP. ORSE",VLOOKUP(C85,'COMP. ORSE'!A:D,3,0),IF(A85="COMP. SEINFRA",VLOOKUP(C85,'COMP. SEINFRA'!B:G,5,0))))))))) -> UND | F85: 2 | G85: =IF(A85="CPU CODEVASF",VLOOKUP(C85,CPU!F:I,4,0),IF(A85="COTAÇÃO",VLOOKUP(C85,COTAÇÃO!A:D,4,0),IF(A85="INS. SEINFRA",VLOOKUP(C85,'INS. SEINFRA'!A:D,4,0),IF(A85="INS. SINAPI",VLOOKUP(C85,'INS SINAPI'!A:E,5,0),IF(A85="COMP. SINAPI",VLOOKUP(C85,'COMP SINAPI'!G:M,5,0),IF(A85="INS. ORSE",VLOOKUP(C85,'INS. ORSE'!A:D,4,0),IF(A85="COMP. ORSE",VLOOKUP(C85,'COMP. ORSE'!A:D,4,0),IF(A85="COMP. SEINFRA",VLOOKUP(C85,'COMP. SEINFRA'!B:G,6,0))))))))) -> 10 | H85: 11.14 | I85: 22.28
A86: Ins. Seinfra | B86: 3.2.19 | C86: I1972 | D86: =IF(A86="Comp. Sinapi",VLOOKUP(C86,'COMP SINAPI'!G:M,2,0),IF(A86="Comp. Seinfra",VLOOKUP(C86,'COMP. SEINFRA'!B:G,2,0),IF(A86="COMP. ORSE",VLOOKUP(C86,'COMP. ORSE'!A:D,2,0),IF(A86="Ins. Seinfra",VLOOKUP(C86,'INS. SEINFRA'!$A:$D,2,0),IF(A86="Ins. Sinapi",VLOOKUP(C86,'INS SINAPI'!A:E,2,0),IF(A86="Ins. Orse",VLOOKUP(C86,'INS. ORSE'!A:D,2,0),IF(A86="CPU CODEVASF",VLOOKUP(C86,CPU!B:I,4,0),IF(A86="COTAÇÃO",VLOOKUP(C86,COTAÇÃO!A:D,2,0))))))))) -> TE PVC SOLDAVEL 25MM | E86: =IF(A86="CPU CODEVASF",VLOOKUP(C86,CPU!B:I,5,0),IF(A86="INS. SEINFRA",VLOOKUP(C86,'INS. SEINFRA'!A:D,3,0),IF(A86="INS. SINAPI",VLOOKUP(C86,'INS SINAPI'!A:E,3,0),IF(A86="COMP. SINAPI",VLOOKUP(C86,'COMP SINAPI'!G:M,3,0),IF(A86="INS. ORSE",VLOOKUP(C86,'INS. ORSE'!A:D,3,0),IF(A86="COTAÇÃO",VLOOKUP(C86,COTAÇÃO!A:D,3,0),IF(A86="COMP. ORSE",VLOOKUP(C86,'COMP. ORSE'!A:D,3,0),IF(A86="COMP. SEINFRA",VLOOKUP(C86,'COMP. SEINFRA'!B:G,5,0))))))))) -> UN | F86: 4 | G86: =IF(A86="CPU CODEVASF",VLOOKUP(C86,CPU!F:I,4,0),IF(A86="COTAÇÃO",VLOOKUP(C86,COTAÇÃO!A:D,4,0),IF(A86="INS. SEINFRA",VLOOKUP(C86,'INS. SEINFRA'!A:D,4,0),IF(A86="INS. SINAPI",VLOOKUP(C86,'INS SINAPI'!A:E,5,0),IF(A86="COMP. SINAPI",VLOOKUP(C86,'COMP SINAPI'!G:M,5,0),IF(A86="INS. ORSE",VLOOKUP(C86,'INS. ORSE'!A:D,4,0),IF(A86="COMP. ORSE",VLOOKUP(C86,'COMP. ORSE'!A:D,4,0),IF(A86="COMP. SEINFRA",VLOOKUP(C86,'COMP. SEINFRA'!B:G,6,0))))))))) -> 1.31 | H86: 1.45 | I86: 5.8
A87: Ins. Sinapi | B87: 3.2.20 | C87: 3529 | D87: =IF(A87="Comp. Sinapi",VLOOKUP(C87,'COMP SINAPI'!G:M,2,0),IF(A87="Comp. Seinfra",VLOOKUP(C87,'COMP. SEINFRA'!B:G,2,0),IF(A87="COMP. ORSE",VLOOKUP(C87,'COMP. ORSE'!A:D,2,0),IF(A87="Ins. Seinfra",VLOOKUP(C87,'INS. SEINFRA'!$A:$D,2,0),IF(A87="Ins. Sinapi",VLOOKUP(C87,'INS SINAPI'!A:E,2,0),IF(A87="Ins. Orse",VLOOKUP(C87,'INS. ORSE'!A:D,2,0),IF(A87="CPU CODEVASF",VLOOKUP(C87,CPU!B:I,4,0),IF(A87="COTAÇÃO",VLOOKUP(C87,COTAÇÃO!A:D,2,0))))))))) -> JOELHO PVC, SOLDAVEL, 90 GRAUS, 25 MM, COR MARROM, PARA AGUA FRIA PREDIAL | E87: =IF(A87="CPU CODEVASF",VLOOKUP(C87,CPU!B:I,5,0),IF(A87="INS. SEINFRA",VLOOKUP(C87,'INS. SEINFRA'!A:D,3,0),IF(A87="INS. SINAPI",VLOOKUP(C87,'INS SINAPI'!A:E,3,0),IF(A87="COMP. SINAPI",VLOOKUP(C87,'COMP SINAPI'!G:M,3,0),IF(A87="INS. ORSE",VLOOKUP(C87,'INS. ORSE'!A:D,3,0),IF(A87="COTAÇÃO",VLOOKUP(C87,COTAÇÃO!A:D,3,0),IF(A87="COMP. ORSE",VLOOKUP(C87,'COMP. ORSE'!A:D,3,0),IF(A87="COMP. SEINFRA",VLOOKUP(C87,'COMP. SEINFRA'!B:G,5,0))))))))) -> UN | F87: 4 | G87: =IF(A87="CPU CODEVASF",VLOOKUP(C87,CPU!F:I,4,0),IF(A87="COTAÇÃO",VLOOKUP(C87,COTAÇÃO!A:D,4,0),IF(A87="INS. SEINFRA",VLOOKUP(C87,'INS. SEINFRA'!A:D,4,0),IF(A87="INS. SINAPI",VLOOKUP(C87,'INS SINAPI'!A:E,5,0),IF(A87="COMP. SINAPI",VLOOKUP(C87,'COMP SINAPI'!G:M,5,0),IF(A87="INS. ORSE",VLOOKUP(C87,'INS. ORSE'!A:D,4,0),IF(A87="COMP. ORSE",VLOOKUP(C87,'COMP. ORSE'!A:D,4,0),IF(A87="COMP. SEINFRA",VLOOKUP(C87,'COMP. SEINFRA'!B:G,6,0))))))))) -> 0,81 | H87: 0.9 | I87: 3.6
A88: Ins. Sinapi | B88: 3.2.21 | C88: 9868 | D88: =IF(A88="Comp. Sinapi",VLOOKUP(C88,'COMP SINAPI'!G:M,2,0),IF(A88="Comp. Seinfra",VLOOKUP(C88,'COMP. SEINFRA'!B:G,2,0),IF(A88="COMP. ORSE",VLOOKUP(C88,'COMP. ORSE'!A:D,2,0),IF(A88="Ins. Seinfra",VLOOKUP(C88,'INS. SEINFRA'!$A:$D,2,0),IF(A88="Ins. Sinapi",VLOOKUP(C88,'INS SINAPI'!A:E,2,0),IF(A88="Ins. Orse",VLOOKUP(C88,'INS. ORSE'!A:D,2,0),IF(A88="CPU CODEVASF",VLOOKUP(C88,CPU!B:I,4,0),IF(A88="COTAÇÃO",VLOOKUP(C88,COTAÇÃO!A:D,2,0))))))))) -> TUBO PVC, SOLDAVEL, DE 25 MM, AGUA FRIA (NBR-5648) | E88: =IF(A88="CPU CODEVASF",VLOOKUP(C88,CPU!B:I,5,0),IF(A88="INS. SEINFRA",VLOOKUP(C88,'INS. SEINFRA'!A:D,3,0),IF(A88="INS. SINAPI",VLOOKUP(C88,'INS SINAPI'!A:E,3,0),IF(A88="COMP. SINAPI",VLOOKUP(C88,'COMP SINAPI'!G:M,3,0),IF(A88="INS. ORSE",VLOOKUP(C88,'INS. ORSE'!A:D,3,0),IF(A88="COTAÇÃO",VLOOKUP(C88,COTAÇÃO!A:D,3,0),IF(A88="COMP. ORSE",VLOOKUP(C88,'COMP. ORSE'!A:D,3,0),IF(A88="COMP. SEINFRA",VLOOKUP(C88,'COMP. SEINFRA'!B:G,5,0))))))))) -> M | F88: =5*6 -> 30 | G88: =IF(A88="CPU CODEVASF",VLOOKUP(C88,CPU!F:I,4,0),IF(A88="COTAÇÃO",VLOOKUP(C88,COTAÇÃO!A:D,4,0),IF(A88="INS. SEINFRA",VLOOKUP(C88,'INS. SEINFRA'!A:D,4,0),IF(A88="INS. SINAPI",VLOOKUP(C88,'INS SINAPI'!A:E,5,0),IF(A88="COMP. SINAPI",VLOOKUP(C88,'COMP SINAPI'!G:M,5,0),IF(A88="INS. ORSE",VLOOKUP(C88,'INS. ORSE'!A:D,4,0),IF(A88="COMP. ORSE",VLOOKUP(C88,'COMP. ORSE'!A:D,4,0),IF(A88="COMP. SEINFRA",VLOOKUP(C88,'COMP. SEINFRA'!B:G,6,0))))))))) -> 4,61 | H88: 5.13 | I88: 153.9
A89: MÓDULO 3 - AVIÁRIO DE POSTURA
B90: 4.1 | D90: Serviços | I90: =SUM(I91:I98) -> 7212.99 | J90: =G78-H82 -> -22.48
A91: Comp. Sinapi | B91: 4.1.1 | C91: 98524 | D91: =IF(A91="Comp. Sinapi",VLOOKUP(C91,'COMP SINAPI'!G:M,2,0),IF(A91="Comp. Seinfra",VLOOKUP(C91,'COMP. SEINFRA'!B:G,2,0),IF(A91="COMP. ORSE",VLOOKUP(C91,'COMP. ORSE'!A:D,2,0),IF(A91="Ins. Seinfra",VLOOKUP(C91,'INS. SEINFRA'!$A:$D,2,0),IF(A91="Ins. Sinapi",VLOOKUP(C91,'INS SINAPI'!A:E,2,0),IF(A91="Ins. Orse",VLOOKUP(C91,'INS. ORSE'!A:D,2,0),IF(A91="CPU CODEVASF",VLOOKUP(C91,CPU!B:I,4,0),IF(A91="COTAÇÃO",VLOOKUP(C91,COTAÇÃO!A:D,2,0))))))))) -> LIMPEZA MANUAL DE VEGETAÇÃO EM TERRENO COM ENXADA.AF_05/2018 | E91: =IF(A91="CPU CODEVASF",VLOOKUP(C91,CPU!B:I,5,0),IF(A91="INS. SEINFRA",VLOOKUP(C91,'INS. SEINFRA'!A:D,3,0),IF(A91="INS. SINAPI",VLOOKUP(C91,'INS SINAPI'!A:E,3,0),IF(A91="COMP. SINAPI",VLOOKUP(C91,'COMP SINAPI'!G:M,3,0),IF(A91="INS. ORSE",VLOOKUP(C91,'INS. ORSE'!A:D,3,0),IF(A91="COTAÇÃO",VLOOKUP(C91,COTAÇÃO!A:D,3,0),IF(A91="COMP. ORSE",VLOOKUP(C91,'COMP. ORSE'!A:D,3,0),IF(A91="COMP. SEINFRA",VLOOKUP(C91,'COMP. SEINFRA'!B:G,5,0))))))))) -> M2 | F91: 121 | G91: =IF(A91="CPU CODEVASF",VLOOKUP(C91,CPU!F:I,4,0),IF(A91="COTAÇÃO",VLOOKUP(C91,COTAÇÃO!A:D,4,0),IF(A91="INS. SEINFRA",VLOOKUP(C91,'INS. SEINFRA'!A:D,4,0),IF(A91="INS. SINAPI",VLOOKUP(C91,'INS SINAPI'!A:E,5,0),IF(A91="COMP. SINAPI",VLOOKUP(C91,'COMP SINAPI'!G:M,5,0),IF(A91="INS. ORSE",VLOOKUP(C91,'INS. ORSE'!A:D,4,0),IF(A91="COMP. ORSE",VLOOKUP(C91,'COMP. ORSE'!A:D,4,0),IF(A91="COMP. SEINFRA",VLOOKUP(C91,'COMP. SEINFRA'!B:G,6,0))))))))) -> 3,11 | H91: =TRUNC(G91*(1+$F$10),2) -> 3.84 | I91: =TRUNC(H91*F91,2) -> 464.64
A92: Comp. Seinfra | B92: 4.1.2 | C92: C2784 | D92: =IF(A92="Comp. Sinapi",VLOOKUP(C92,'COMP SINAPI'!G:M,2,0),IF(A92="Comp. Seinfra",VLOOKUP(C92,'COMP. SEINFRA'!B:G,2,0),IF(A92="COMP. ORSE",VLOOKUP(C92,'COMP. ORSE'!A:D,2,0),IF(A92="Ins. Seinfra",VLOOKUP(C92,'INS. SEINFRA'!$A:$D,2,0),IF(A92="Ins. Sinapi",VLOOKUP(C92,'INS SINAPI'!A:E,2,0),IF(A92="Ins. Orse",VLOOKUP(C92,'INS. ORSE'!A:D,2,0),IF(A92="CPU CODEVASF",VLOOKUP(C92,CPU!B:I,4,0),IF(A92="COTAÇÃO",VLOOKUP(C92,COTAÇÃO!A:D,2,0))))))))) -> ESCAVAÇÃO MANUAL SOLO DE 1A.CAT. PROF. ATÉ 1.50m | E92: =IF(A92="CPU CODEVASF",VLOOKUP(C92,CPU!B:I,5,0),IF(A92="INS. SEINFRA",VLOOKUP(C92,'INS. SEINFRA'!A:D,3,0),IF(A92="INS. SINAPI",VLOOKUP(C92,'INS SINAPI'!A:E,3,0),IF(A92="COMP. SINAPI",VLOOKUP(C92,'COMP SINAPI'!G:M,3,0),IF(A92="INS. ORSE",VLOOKUP(C92,'INS. ORSE'!A:D,3,0),IF(A92="COTAÇÃO",VLOOKUP(C92,COTAÇÃO!A:D,3,0),IF(A92="COMP. ORSE",VLOOKUP(C92,'COMP. ORSE'!A:D,3,0),IF(A92="COMP. SEINFRA",VLOOKUP(C92,'COMP. SEINFRA'!B:G,5,0))))))))) -> M3 | F92: 0.98 | G92: =IF(A92="CPU CODEVASF",VLOOKUP(C92,CPU!F:I,4,0),IF(A92="COTAÇÃO",VLOOKUP(C92,COTAÇÃO!A:D,4,0),IF(A92="INS. SEINFRA",VLOOKUP(C92,'INS. SEINFRA'!A:D,4,0),IF(A92="INS. SINAPI",VLOOKUP(C92,'INS SINAPI'!A:E,5,0),IF(A92="COMP. SINAPI",VLOOKUP(C92,'COMP SINAPI'!G:M,5,0),IF(A92="INS. ORSE",VLOOKUP(C92,'INS. ORSE'!A:D,4,0),IF(A92="COMP. ORSE",VLOOKUP(C92,'COMP. ORSE'!A:D,4,0),IF(A92="COMP. SEINFRA",VLOOKUP(C92,'COMP. SEINFRA'!B:G,6,0))))))))) -> 53.69 | H92: 66.3 | I92: 64.97
A93: Comp. Sinapi | B93: 4.1.3 | C93: 103328 | D93: =IF(A93="Comp. Sinapi",VLOOKUP(C93,'COMP SINAPI'!G:M,2,0),IF(A93="Comp. Seinfra",VLOOKUP(C93,'COMP. SEINFRA'!B:G,2,0),IF(A93="COMP. ORSE",VLOOKUP(C93,'COMP. ORSE'!A:D,2,0),IF(A93="Ins. Seinfra",VLOOKUP(C93,'INS. SEINFRA'!$A:$D,2,0),IF(A93="Ins. Sinapi",VLOOKUP(C93,'INS SINAPI'!A:E,2,0),IF(A93="Ins. Orse",VLOOKUP(C93,'INS. ORSE'!A:D,2,0),IF(A93="CPU CODEVASF",VLOOKUP(C93,CPU!B:I,4,0),IF(A93="COTAÇÃO",VLOOKUP(C93,COTAÇÃO!A:D,2,0))))))))) -> ALVENARIA DE VEDAÇÃO DE BLOCOS CERÂMICOS FURADOS NA HORIZONTAL DE 9X19X19 CM (ESPESSURA 9 CM) E ARGAMASSA DE ASSENTAMENTO COM PREPARO EM BETONEIRA. AF_12/2021 | E93: =IF(A93="CPU CODEVASF",VLOOKUP(C93,CPU!B:I,5,0),IF(A93="INS. SEINFRA",VLOOKUP(C93,'INS. SEINFRA'!A:D,3,0),IF(A93="INS. SINAPI",VLOOKUP(C93,'INS SINAPI'!A:E,3,0),IF(A93="COMP. SINAPI",VLOOKUP(C93,'COMP SINAPI'!G:M,3,0),IF(A93="INS. ORSE",VLOOKUP(C93,'INS. ORSE'!A:D,3,0),IF(A93="COTAÇÃO",VLOOKUP(C93,COTAÇÃO!A:D,3,0),IF(A93="COMP. ORSE",VLOOKUP(C93,'COMP. ORSE'!A:D,3,0),IF(A93="COMP. SEINFRA",VLOOKUP(C93,'COMP. SEINFRA'!B:G,5,0))))))))) -> M2 | F93: 3.28 | G93: =IF(A93="CPU CODEVASF",VLOOKUP(C93,CPU!F:I,4,0),IF(A93="COTAÇÃO",VLOOKUP(C93,COTAÇÃO!A:D,4,0),IF(A93="INS. SEINFRA",VLOOKUP(C93,'INS. SEINFRA'!A:D,4,0),IF(A93="INS. SINAPI",VLOOKUP(C93,'INS SINAPI'!A:E,5,0),IF(A93="COMP. SINAPI",VLOOKUP(C93,'COMP SINAPI'!G:M,5,0),IF(A93="INS. ORSE",VLOOKUP(C93,'INS. ORSE'!A:D,4,0),IF(A93="COMP. ORSE",VLOOKUP(C93,'COMP. ORSE'!A:D,4,0),IF(A93="COMP. SEINFRA",VLOOKUP(C93,'COMP. SEINFRA'!B:G,6,0))))))))) -> 80,98 | H93: 100.01 | I93: 328.03
A94: Comp. Sinapi | B94: 4.1.4 | C94: 103328 | D94: =IF(A94="Comp. Sinapi",VLOOKUP(C94,'COMP SINAPI'!G:M,2,0),IF(A94="Comp. Seinfra",VLOOKUP(C94,'COMP. SEINFRA'!B:G,2,0),IF(A94="COMP. ORSE",VLOOKUP(C94,'COMP. ORSE'!A:D,2,0),IF(A94="Ins. Seinfra",VLOOKUP(C94,'INS. SEINFRA'!$A:$D,2,0),IF(A94="Ins. Sinapi",VLOOKUP(C94,'INS SINAPI'!A:E,2,0),IF(A94="Ins. Orse",VLOOKUP(C94,'INS. ORSE'!A:D,2,0),IF(A94="CPU CODEVASF",VLOOKUP(C94,CPU!B:I,4,0),IF(A94="COTAÇÃO",VLOOKUP(C94,COTAÇÃO!A:D,2,0))))))))) -> ALVENARIA DE VEDAÇÃO DE BLOCOS CERÂMICOS FURADOS NA HORIZONTAL DE 9X19X19 CM (ESPESSURA 9 CM) E ARGAMASSA DE ASSENTAMENTO COM PREPARO EM BETONEIRA. AF_12/2021 | E94: =IF(A94="CPU CODEVASF",VLOOKUP(C94,CPU!B:I,5,0),IF(A94="INS. SEINFRA",VLOOKUP(C94,'INS. SEINFRA'!A:D,3,0),IF(A94="INS. SINAPI",VLOOKUP(C94,'INS SINAPI'!A:E,3,0),IF(A94="COMP. SINAPI",VLOOKUP(C94,'COMP SINAPI'!G:M,3,0),IF(A94="INS. ORSE",VLOOKUP(C94,'INS. ORSE'!A:D,3,0),IF(A94="COTAÇÃO",VLOOKUP(C94,COTAÇÃO!A:D,3,0),IF(A94="COMP. ORSE",VLOOKUP(C94,'COMP. ORSE'!A:D,3,0),IF(A94="COMP. SEINFRA",VLOOKUP(C94,'COMP. SEINFRA'!B:G,5,0))))))))) -> M2 | F94: 9.84 | G94: =IF(A94="CPU CODEVASF",VLOOKUP(C94,CPU!F:I,4,0),IF(A94="COTAÇÃO",VLOOKUP(C94,COTAÇÃO!A:D,4,0),IF(A94="INS. SEINFRA",VLOOKUP(C94,'INS. SEINFRA'!A:D,4,0),IF(A94="INS. SINAPI",VLOOKUP(C94,'INS SINAPI'!A:E,5,0),IF(A94="COMP. SINAPI",VLOOKUP(C94,'COMP SINAPI'!G:M,5,0),IF(A94="INS. ORSE",VLOOKUP(C94,'INS. ORSE'!A:D,4,0),IF(A94="COMP. ORSE",VLOOKUP(C94,'COMP. ORSE'!A:D,4,0),IF(A94="COMP. SEINFRA",VLOOKUP(C94,'COMP. SEINFRA'!B:G,6,0))))))))) -> 80,98 | H94: 100.01 | I94: 984.09
A95: Comp. Sinapi | B95: 4.1.5 | C95: 92543 | D95: =IF(A95="Comp. Sinapi",VLOOKUP(C95,'COMP SINAPI'!G:M,2,0),IF(A95="Comp. Seinfra",VLOOKUP(C95,'COMP. SEINFRA'!B:G,2,0),IF(A95="COMP. ORSE",VLOOKUP(C95,'COMP. ORSE'!A:D,2,0),IF(A95="Ins. Seinfra",VLOOKUP(C95,'INS. SEINFRA'!$A:$D,2,0),IF(A95="Ins. Sinapi",VLOOKUP(C95,'INS SINAPI'!A:E,2,0),IF(A95="Ins. Orse",VLOOKUP(C95,'INS. ORSE'!A:D,2,0),IF(A95="CPU CODEVASF",VLOOKUP(C95,CPU!B:I,4,0),IF(A95="COTAÇÃO",VLOOKUP(C95,COTAÇÃO!A:D,2,0))))))))) -> TRAMA DE MADEIRA COMPOSTA POR TERÇAS PARA TELHADOS DE ATÉ 2 ÁGUAS PARA TELHA ONDULADA DE FIBROCIMENTO, METÁLICA, PLÁSTICA OU TERMOACÚSTICA, INCLUSO TRANSPORTE VERTICAL. AF_07/2019 | E95: =IF(A95="CPU CODEVASF",VLOOKUP(C95,CPU!B:I,5,0),IF(A95="INS. SEINFRA",VLOOKUP(C95,'INS. SEINFRA'!A:D,3,0),IF(A95="INS. SINAPI",VLOOKUP(C95,'INS SINAPI'!A:E,3,0),IF(A95="COMP. SINAPI",VLOOKUP(C95,'COMP SINAPI'!G:M,3,0),IF(A95="INS. ORSE",VLOOKUP(C95,'INS. ORSE'!A:D,3,0),IF(A95="COTAÇÃO",VLOOKUP(C95,COTAÇÃO!A:D,3,0),IF(A95="COMP. ORSE",VLOOKUP(C95,'COMP. ORSE'!A:D,3,0),IF(A95="COMP. SEINFRA",VLOOKUP(C95,'COMP. SEINFRA'!B:G,5,0))))))))) -> M2 | F95: 29.26 | G95: =IF(A95="CPU CODEVASF",VLOOKUP(C95,CPU!F:I,4,0),IF(A95="COTAÇÃO",VLOOKUP(C95,COTAÇÃO!A:D,4,0),IF(A95="INS. SEINFRA",VLOOKUP(C95,'INS. SEINFRA'!A:D,4,0),IF(A95="INS. SINAPI",VLOOKUP(C95,'INS SINAPI'!A:E,5,0),IF(A95="COMP. SINAPI",VLOOKUP(C95,'COMP SINAPI'!G:M,5,0),IF(A95="INS. ORSE",VLOOKUP(C95,'INS. ORSE'!A:D,4,0),IF(A95="COMP. ORSE",VLOOKUP(C95,'COMP. ORSE'!A:D,4,0),IF(A95="COMP. SEINFRA",VLOOKUP(C95,'COMP. SEINFRA'!B:G,6,0))))))))) -> 26,17 | H95: 32.31 | I95: 945.39
A96: Comp. Orse | B96: 4.1.6 | C96: 235 | D96: =IF(A96="Comp. Sinapi",VLOOKUP(C96,'COMP SINAPI'!G:M,2,0),IF(A96="Comp. Seinfra",VLOOKUP(C96,'COMP. SEINFRA'!B:G,2,0),IF(A96="COMP. ORSE",VLOOKUP(C96,'COMP. ORSE'!A:D,2,0),IF(A96="Ins. Seinfra",VLOOKUP(C96,'INS. SEINFRA'!$A:$D,2,0),IF(A96="Ins. Sinapi",VLOOKUP(C96,'INS SINAPI'!A:E,2,0),IF(A96="Ins. Orse",VLOOKUP(C96,'INS. ORSE'!A:D,2,0),IF(A96="CPU CODEVASF",VLOOKUP(C96,CPU!B:I,4,0),IF(A96="COTAÇÃO",VLOOKUP(C96,COTAÇÃO!A:D,2,0))))))))) -> Telhamento com telha de fibrocimento ondulada esp = 6mm, fixada com parafuso. Rev 02 | E96: =IF(A96="CPU CODEVASF",VLOOKUP(C96,CPU!B:I,5,0),IF(A96="INS. SEINFRA",VLOOKUP(C96,'INS. SEINFRA'!A:D,3,0),IF(A96="INS. SINAPI",VLOOKUP(C96,'INS SINAPI'!A:E,3,0),IF(A96="COMP. SINAPI",VLOOKUP(C96,'COMP SINAPI'!G:M,3,0),IF(A96="INS. ORSE",VLOOKUP(C96,'INS. ORSE'!A:D,3,0),IF(A96="COTAÇÃO",VLOOKUP(C96,COTAÇÃO!A:D,3,0),IF(A96="COMP. ORSE",VLOOKUP(C96,'COMP. ORSE'!A:D,3,0),IF(A96="COMP. SEINFRA",VLOOKUP(C96,'COMP. SEINFRA'!B:G,5,0))))))))) -> M2 | F96: 29.26 | G96: =IF(A96="CPU CODEVASF",VLOOKUP(C96,CPU!F:I,4,0),IF(A96="COTAÇÃO",VLOOKUP(C96,COTAÇÃO!A:D,4,0),IF(A96="INS. SEINFRA",VLOOKUP(C96,'INS. SEINFRA'!A:D,4,0),IF(A96="INS. SINAPI",VLOOKUP(C96,'INS SINAPI'!A:E,5,0),IF(A96="COMP. SINAPI",VLOOKUP(C96,'COMP SINAPI'!G:M,5,0),IF(A96="INS. ORSE",VLOOKUP(C96,'INS. ORSE'!A:D,4,0),IF(A96="COMP. ORSE",VLOOKUP(C96,'COMP. ORSE'!A:D,4,0),IF(A96="COMP. SEINFRA",VLOOKUP(C96,'COMP. SEINFRA'!B:G,6,0))))))))) -> 50.46 | H96: 62.31 | I96: 1823.19
A97: Comp. Sinapi | B97: 4.1.7 | C97: 101230 | D97: =IF(A97="Comp. Sinapi",VLOOKUP(C97,'COMP SINAPI'!G:M,2,0),IF(A97="Comp. Seinfra",VLOOKUP(C97,'COMP. SEINFRA'!B:G,2,0),IF(A97="COMP. ORSE",VLOOKUP(C97,'COMP. ORSE'!A:D,2,0),IF(A97="Ins. Seinfra",VLOOKUP(C97,'INS. SEINFRA'!$A:$D,2,0),IF(A97="Ins. Sinapi",VLOOKUP(C97,'INS SINAPI'!A:E,2,0),IF(A97="Ins. Orse",VLOOKUP(C97,'INS. ORSE'!A:D,2,0),IF(A97="CPU CODEVASF",VLOOKUP(C97,CPU!B:I,4,0),IF(A97="COTAÇÃO",VLOOKUP(C97,COTAÇÃO!A:D,2,0))))))))) -> ESCAVAÇÃO VERTICAL PARA INFRAESTRUTURA, COM CARGA, DESCARGA E TRANSPORTE DE SOLO DE 1ª CATEGORIA, COM ESCAVADEIRA HIDRÁULICA (CAÇAMBA: 0,8 M³ / 111 HP), FROTA DE 3 CAMINHÕES BASCULANTES DE 14 M³, DMT ATÉ 1 KM E VELOCIDADE MÉDIA14 KM/H. AF_05/2020 | E97: =IF(A97="CPU CODEVASF",VLOOKUP(C97,CPU!B:I,5,0),IF(A97="INS. SEINFRA",VLOOKUP(C97,'INS. SEINFRA'!A:D,3,0),IF(A97="INS. SINAPI",VLOOKUP(C97,'INS SINAPI'!A:E,3,0),IF(A97="COMP. SINAPI",VLOOKUP(C97,'COMP SINAPI'!G:M,3,0),IF(A97="INS. ORSE",VLOOKUP(C97,'INS. ORSE'!A:D,3,0),IF(A97="COTAÇÃO",VLOOKUP(C97,COTAÇÃO!A:D,3,0),IF(A97="COMP. ORSE",VLOOKUP(C97,'COMP. ORSE'!A:D,3,0),IF(A97="COMP. SEINFRA",VLOOKUP(C97,'COMP. SEINFRA'!B:G,5,0))))))))) -> M3 | F97: 19.8 | G97: =IF(A97="CPU CODEVASF",VLOOKUP(C97,CPU!F:I,4,0),IF(A97="COTAÇÃO",VLOOKUP(C97,COTAÇÃO!A:D,4,0),IF(A97="INS. SEINFRA",VLOOKUP(C97,'INS. SEINFRA'!A:D,4,0),IF(A97="INS. SINAPI",VLOOKUP(C97,'INS SINAPI'!A:E,5,0),IF(A97="COMP. SINAPI",VLOOKUP(C97,'COMP SINAPI'!G:M,5,0),IF(A97="INS. ORSE",VLOOKUP(C97,'INS. ORSE'!A:D,4,0),IF(A97="COMP. ORSE",VLOOKUP(C97,'COMP. ORSE'!A:D,4,0),IF(A97="COMP. SEINFRA",VLOOKUP(C97,'COMP. SEINFRA'!B:G,6,0))))))))) -> 11,31 | H97: 13.96 | I97: 276.4
A98: Comp. Sinapi | B98: 4.1.8 | C98: 101202 | D98: =IF(A98="Comp. Sinapi",VLOOKUP(C98,'COMP SINAPI'!G:M,2,0),IF(A98="Comp. Seinfra",VLOOKUP(C98,'COMP. SEINFRA'!B:G,2,0),IF(A98="COMP. ORSE",VLOOKUP(C98,'COMP. ORSE'!A:D,2,0),IF(A98="Ins. Seinfra",VLOOKUP(C98,'INS. SEINFRA'!$A:$D,2,0),IF(A98="Ins. Sinapi",VLOOKUP(C98,'INS SINAPI'!A:E,2,0),IF(A98="Ins. Orse",VLOOKUP(C98,'INS. ORSE'!A:D,2,0),IF(A98="CPU CODEVASF",VLOOKUP(C98,CPU!B:I,4,0),IF(A98="COTAÇÃO",VLOOKUP(C98,COTAÇÃO!A:D,2,0))))))))) -> CERCA COM MOURÕES DE MADEIRA ROLIÇA, DIÂMETRO 11 CM, ESPAÇAMENTO DE 2,5 M, ALTURA LIVRE DE 1,7 M, CRAVADOS 0,5 M, COM 5 FIOS DE ARAME FARPADO Nº 14 CLASSE 250 - FORNECIMENTO E INSTALAÇÃO. AF_05/2020 | E98: =IF(A98="CPU CODEVASF",VLOOKUP(C98,CPU!B:I,5,0),IF(A98="INS. SEINFRA",VLOOKUP(C98,'INS. SEINFRA'!A:D,3,0),IF(A98="INS. SINAPI",VLOOKUP(C98,'INS SINAPI'!A:E,3,0),IF(A98="COMP. SINAPI",VLOOKUP(C98,'COMP SINAPI'!G:M,3,0),IF(A98="INS. ORSE",VLOOKUP(C98,'INS. ORSE'!A:D,3,0),IF(A98="COTAÇÃO",VLOOKUP(C98,COTAÇÃO!A:D,3,0),IF(A98="COMP. ORSE",VLOOKUP(C98,'COMP. ORSE'!A:D,3,0),IF(A98="COMP. SEINFRA",VLOOKUP(C98,'COMP. SEINFRA'!B:G,5,0))))))))) -> M | F98: 44 | G98: =IF(A98="CPU CODEVASF",VLOOKUP(C98,CPU!F:I,4,0),IF(A98="COTAÇÃO",VLOOKUP(C98,COTAÇÃO!A:D,4,0),IF(A98="INS. SEINFRA",VLOOKUP(C98,'INS. SEINFRA'!A:D,4,0),IF(A98="INS. SINAPI",VLOOKUP(C98,'INS SINAPI'!A:E,5,0),IF(A98="COMP. SINAPI",VLOOKUP(C98,'COMP SINAPI'!G:M,5,0),IF(A98="INS. ORSE",VLOOKUP(C98,'INS. ORSE'!A:D,4,0),IF(A98="COMP. ORSE",VLOOKUP(C98,'COMP. ORSE'!A:D,4,0),IF(A98="COMP. SEINFRA",VLOOKUP(C98,'COMP. SEINFRA'!B:G,6,0))))))))) -> 42,81 | H98: 52.87 | I98: 2326.28
B99: 4.2 | D99: Materiais e Equipamentos | I99: =SUM(I100:I123) -> 3997.87
A100: COTAÇÃO | B100: 4.2.1 | C100: COT. 04 | D100: =IF(A100="Comp. Sinapi",VLOOKUP(C100,'COMP SINAPI'!G:M,2,0),IF(A100="Comp. Seinfra",VLOOKUP(C100,'COMP. SEINFRA'!B:G,2,0),IF(A100="COMP. ORSE",VLOOKUP(C100,'COMP. ORSE'!A:D,2,0),IF(A100="Ins. Seinfra",VLOOKUP(C100,'INS. SEINFRA'!$A:$D,2,0),IF(A100="Ins. Sinapi",VLOOKUP(C100,'INS SINAPI'!A:E,2,0),IF(A100="Ins. Orse",VLOOKUP(C100,'INS. ORSE'!A:D,2,0),IF(A100="CPU CODEVASF",VLOOKUP(C100,CPU!B:I,4,0),IF(A100="COTAÇÃO",VLOOKUP(C100,COTAÇÃO!A:D,2,0))))))))) -> BEBEDOURO INFANTIL 5 LITROS | E100: =IF(A100="CPU CODEVASF",VLOOKUP(C100,CPU!B:I,5,0),IF(A100="INS. SEINFRA",VLOOKUP(C100,'INS. SEINFRA'!A:D,3,0),IF(A100="INS. SINAPI",VLOOKUP(C100,'INS SINAPI'!A:E,3,0),IF(A100="COMP. SINAPI",VLOOKUP(C100,'COMP SINAPI'!G:M,3,0),IF(A100="INS. ORSE",VLOOKUP(C100,'INS. ORSE'!A:D,3,0),IF(A100="COTAÇÃO",VLOOKUP(C100,COTAÇÃO!A:D,3,0),IF(A100="COMP. ORSE",VLOOKUP(C100,'COMP. ORSE'!A:D,3,0),IF(A100="COMP. SEINFRA",VLOOKUP(C100,'COMP. SEINFRA'!B:G,5,0))))))))) -> UND | F100: 2 | G100: =IF(A100="CPU CODEVASF",VLOOKUP(C100,CPU!F:I,4,0),IF(A100="COTAÇÃO",VLOOKUP(C100,COTAÇÃO!A:D,4,0),IF(A100="INS. SEINFRA",VLOOKUP(C100,'INS. SEINFRA'!A:D,4,0),IF(A100="INS. SINAPI",VLOOKUP(C100,'INS SINAPI'!A:E,5,0),IF(A100="COMP. SINAPI",VLOOKUP(C100,'COMP SINAPI'!G:M,5,0),IF(A100="INS. ORSE",VLOOKUP(C100,'INS. ORSE'!A:D,4,0),IF(A100="COMP. ORSE",VLOOKUP(C100,'COMP. ORSE'!A:D,4,0),IF(A100="COMP. SEINFRA",VLOOKUP(C100,'COMP. SEINFRA'!B:G,6,0))))))))) -> 17.27 | H100: =TRUNC(G100*(1+$I$10),2) -> 19.23 | I100: =TRUNC(H100*F100,2) -> 38.46
A101: COTAÇÃO | B101: 4.2.2 | C101: COT. 08 | D101: =IF(A101="Comp. Sinapi",VLOOKUP(C101,'COMP SINAPI'!G:M,2,0),IF(A101="Comp. Seinfra",VLOOKUP(C101,'COMP. SEINFRA'!B:G,2,0),IF(A101="COMP. ORSE",VLOOKUP(C101,'COMP. ORSE'!A:D,2,0),IF(A101="Ins. Seinfra",VLOOKUP(C101,'INS. SEINFRA'!$A:$D,2,0),IF(A101="Ins. Sinapi",VLOOKUP(C101,'INS SINAPI'!A:E,2,0),IF(A101="Ins. Orse",VLOOKUP(C101,'INS. ORSE'!A:D,2,0),IF(A101="CPU CODEVASF",VLOOKUP(C101,CPU!B:I,4,0),IF(A101="COTAÇÃO",VLOOKUP(C101,COTAÇÃO!A:D,2,0))))))))) -> BEBEDOURO AUTOMÁTICO PENDULAR | E101: =IF(A101="CPU CODEVASF",VLOOKUP(C101,CPU!B:I,5,0),IF(A101="INS. SEINFRA",VLOOKUP(C101,'INS. SEINFRA'!A:D,3,0),IF(A101="INS. SINAPI",VLOOKUP(C101,'INS SINAPI'!A:E,3,0),IF(A101="COMP. SINAPI",VLOOKUP(C101,'COMP SINAPI'!G:M,3,0),IF(A101="INS. ORSE",VLOOKUP(C101,'INS. ORSE'!A:D,3,0),IF(A101="COTAÇÃO",VLOOKUP(C101,COTAÇÃO!A:D,3,0),IF(A101="COMP. ORSE",VLOOKUP(C101,'COMP. ORSE'!A:D,3,0),IF(A101="COMP. SEINFRA",VLOOKUP(C101,'COMP. SEINFRA'!B:G,5,0))))))))) -> UND | F101: 1 | G101: =IF(A101="CPU CODEVASF",VLOOKUP(C101,CPU!F:I,4,0),IF(A101="COTAÇÃO",VLOOKUP(C101,COTAÇÃO!A:D,4,0),IF(A101="INS. SEINFRA",VLOOKUP(C101,'INS. SEINFRA'!A:D,4,0),IF(A101="INS. SINAPI",VLOOKUP(C101,'INS SINAPI'!A:E,5,0),IF(A101="COMP. SINAPI",VLOOKUP(C101,'COMP SINAPI'!G:M,5,0),IF(A101="INS. ORSE",VLOOKUP(C101,'INS. ORSE'!A:D,4,0),IF(A101="COMP. ORSE",VLOOKUP(C101,'COMP. ORSE'!A:D,4,0),IF(A101="COMP. SEINFRA",VLOOKUP(C101,'COMP. SEINFRA'!B:G,6,0))))))))) -> 38.31 | H101: 42.67 | I101: 42.67
A102: Ins. Sinapi | B102: 4.2.3 | C102: 20209 | D102: =IF(A102="Comp. Sinapi",VLOOKUP(C102,'COMP SINAPI'!G:M,2,0),IF(A102="Comp. Seinfra",VLOOKUP(C102,'COMP. SEINFRA'!B:G,2,0),IF(A102="COMP. ORSE",VLOOKUP(C102,'COMP. ORSE'!A:D,2,0),IF(A102="Ins. Seinfra",VLOOKUP(C102,'INS. SEINFRA'!$A:$D,2,0),IF(A102="Ins. Sinapi",VLOOKUP(C102,'INS SINAPI'!A:E,2,0),IF(A102="Ins. Orse",VLOOKUP(C102,'INS. ORSE'!A:D,2,0),IF(A102="CPU CODEVASF",VLOOKUP(C102,CPU!B:I,4,0),IF(A102="COTAÇÃO",VLOOKUP(C102,COTAÇÃO!A:D,2,0))))))))) -> CAIBRO APARELHADO *7,5 X 7,5* CM, EM MACARANDUBA/MASSARANDUBA, ANGELIM OU EQUIVALENTE DA REGIAO | E102: =IF(A102="CPU CODEVASF",VLOOKUP(C102,CPU!B:I,5,0),IF(A102="INS. SEINFRA",VLOOKUP(C102,'INS. SEINFRA'!A:D,3,0),IF(A102="INS. SINAPI",VLOOKUP(C102,'INS SINAPI'!A:E,3,0),IF(A102="COMP. SINAPI",VLOOKUP(C102,'COMP SINAPI'!G:M,3,0),IF(A102="INS. ORSE",VLOOKUP(C102,'INS. ORSE'!A:D,3,0),IF(A102="COTAÇÃO",VLOOKUP(C102,COTAÇÃO!A:D,3,0),IF(A102="COMP. ORSE",VLOOKUP(C102,'COMP. ORSE'!A:D,3,0),IF(A102="COMP. SEINFRA",VLOOKUP(C102,'COMP. SEINFRA'!B:G,5,0))))))))) -> M | F102: =3*1.5+3*2.5 -> 12 | G102: =IF(A102="CPU CODEVASF",VLOOKUP(C102,CPU!F:I,4,0),IF(A102="COTAÇÃO",VLOOKUP(C102,COTAÇÃO!A:D,4,0),IF(A102="INS. SEINFRA",VLOOKUP(C102,'INS. SEINFRA'!A:D,4,0),IF(A102="INS. SINAPI",VLOOKUP(C102,'INS SINAPI'!A:E,5,0),IF(A102="COMP. SINAPI",VLOOKUP(C102,'COMP SINAPI'!G:M,5,0),IF(A102="INS. ORSE",VLOOKUP(C102,'INS. ORSE'!A:D,4,0),IF(A102="COMP. ORSE",VLOOKUP(C102,'COMP. ORSE'!A:D,4,0),IF(A102="COMP. SEINFRA",VLOOKUP(C102,'COMP. SEINFRA'!B:G,6,0))))))))) -> 31,63 | H102: 35.23 | I102: 422.76
A103: COTAÇÃO | B103: 4.2.4 | C103: COT. 05 | D103: =IF(A103="Comp. Sinapi",VLOOKUP(C103,'COMP SINAPI'!G:M,2,0),IF(A103="Comp. Seinfra",VLOOKUP(C103,'COMP. SEINFRA'!B:G,2,0),IF(A103="COMP. ORSE",VLOOKUP(C103,'COMP. ORSE'!A:D,2,0),IF(A103="Ins. Seinfra",VLOOKUP(C103,'INS. SEINFRA'!$A:$D,2,0),IF(A103="Ins. Sinapi",VLOOKUP(C103,'INS SINAPI'!A:E,2,0),IF(A103="Ins. Orse",VLOOKUP(C103,'INS. ORSE'!A:D,2,0),IF(A103="CPU CODEVASF",VLOOKUP(C103,CPU!B:I,4,0),IF(A103="COTAÇÃO",VLOOKUP(C103,COTAÇÃO!A:D,2,0))))))))) -> COMEDOURO TUBULAR INFANTIL (5KG) | E103: =IF(A103="CPU CODEVASF",VLOOKUP(C103,CPU!B:I,5,0),IF(A103="INS. SEINFRA",VLOOKUP(C103,'INS. SEINFRA'!A:D,3,0),IF(A103="INS. SINAPI",VLOOKUP(C103,'INS SINAPI'!A:E,3,0),IF(A103="COMP. SINAPI",VLOOKUP(C103,'COMP SINAPI'!G:M,3,0),IF(A103="INS. ORSE",VLOOKUP(C103,'INS. ORSE'!A:D,3,0),IF(A103="COTAÇÃO",VLOOKUP(C103,COTAÇÃO!A:D,3,0),IF(A103="COMP. ORSE",VLOOKUP(C103,'COMP. ORSE'!A:D,3,0),IF(A103="COMP. SEINFRA",VLOOKUP(C103,'COMP. SEINFRA'!B:G,5,0))))))))) -> UND | F103: 2 | G103: =IF(A103="CPU CODEVASF",VLOOKUP(C103,CPU!F:I,4,0),IF(A103="COTAÇÃO",VLOOKUP(C103,COTAÇÃO!A:D,4,0),IF(A103="INS. SEINFRA",VLOOKUP(C103,'INS. SEINFRA'!A:D,4,0),IF(A103="INS. SINAPI",VLOOKUP(C103,'INS SINAPI'!A:E,5,0),IF(A103="COMP. SINAPI",VLOOKUP(C103,'COMP SINAPI'!G:M,5,0),IF(A103="INS. ORSE",VLOOKUP(C103,'INS. ORSE'!A:D,4,0),IF(A103="COMP. ORSE",VLOOKUP(C103,'COMP. ORSE'!A:D,4,0),IF(A103="COMP. SEINFRA",VLOOKUP(C103,'COMP. SEINFRA'!B:G,6,0))))))))) -> 50.83 | H103: 56.62 | I103: 113.24
A104: Ins. Sinapi | B104: 4.2.5 | C104: 38194 | D104: =IF(A104="Comp. Sinapi",VLOOKUP(C104,'COMP SINAPI'!G:M,2,0),IF(A104="Comp. Seinfra",VLOOKUP(C104,'COMP. SEINFRA'!B:G,2,0),IF(A104="COMP. ORSE",VLOOKUP(C104,'COMP. ORSE'!A:D,2,0),IF(A104="Ins. Seinfra",VLOOKUP(C104,'INS. SEINFRA'!$A:$D,2,0),IF(A104="Ins. Sinapi",VLOOKUP(C104,'INS SINAPI'!A:E,2,0),IF(A104="Ins. Orse",VLOOKUP(C104,'INS. ORSE'!A:D,2,0),IF(A104="CPU CODEVASF",VLOOKUP(C104,CPU!B:I,4,0),IF(A104="COTAÇÃO",VLOOKUP(C104,COTAÇÃO!A:D,2,0))))))))) -> LAMPADA LED 10 W BIVOLT BRANCA, FORMATO TRADICIONAL (BASE E27) | E104: =IF(A104="CPU CODEVASF",VLOOKUP(C104,CPU!B:I,5,0),IF(A104="INS. SEINFRA",VLOOKUP(C104,'INS. SEINFRA'!A:D,3,0),IF(A104="INS. SINAPI",VLOOKUP(C104,'INS SINAPI'!A:E,3,0),IF(A104="COMP. SINAPI",VLOOKUP(C104,'COMP SINAPI'!G:M,3,0),IF(A104="INS. ORSE",VLOOKUP(C104,'INS. ORSE'!A:D,3,0),IF(A104="COTAÇÃO",VLOOKUP(C104,COTAÇÃO!A:D,3,0),IF(A104="COMP. ORSE",VLOOKUP(C104,'COMP. ORSE'!A:D,3,0),IF(A104="COMP. SEINFRA",VLOOKUP(C104,'COMP. SEINFRA'!B:G,5,0))))))))) -> UN | F104: 2 | G104: =IF(A104="CPU CODEVASF",VLOOKUP(C104,CPU!F:I,4,0),IF(A104="COTAÇÃO",VLOOKUP(C104,COTAÇÃO!A:D,4,0),IF(A104="INS. SEINFRA",VLOOKUP(C104,'INS. SEINFRA'!A:D,4,0),IF(A104="INS. SINAPI",VLOOKUP(C104,'INS SINAPI'!A:E,5,0),IF(A104="COMP. SINAPI",VLOOKUP(C104,'COMP SINAPI'!G:M,5,0),IF(A104="INS. ORSE",VLOOKUP(C104,'INS. ORSE'!A:D,4,0),IF(A104="COMP. ORSE",VLOOKUP(C104,'COMP. ORSE'!A:D,4,0),IF(A104="COMP. SEINFRA",VLOOKUP(C104,'COMP. SEINFRA'!B:G,6,0))))))))) -> 9,00 | H104: 10.02 | I104: 20.04
A105: Ins. Sinapi | B105: 4.2.6 | C105: 2676 | D105: =IF(A105="Comp. Sinapi",VLOOKUP(C105,'COMP SINAPI'!G:M,2,0),IF(A105="Comp. Seinfra",VLOOKUP(C105,'COMP. SEINFRA'!B:G,2,0),IF(A105="COMP. ORSE",VLOOKUP(C105,'COMP. ORSE'!A:D,2,0),IF(A105="Ins. Seinfra",VLOOKUP(C105,'INS. SEINFRA'!$A:$D,2,0),IF(A105="Ins. Sinapi",VLOOKUP(C105,'INS SINAPI'!A:E,2,0),IF(A105="Ins. Orse",VLOOKUP(C105,'INS. ORSE'!A:D,2,0),IF(A105="CPU CODEVASF",VLOOKUP(C105,CPU!B:I,4,0),IF(A105="COTAÇÃO",VLOOKUP(C105,COTAÇÃO!A:D,2,0))))))))) -> ELETRODUTO DE PVC RIGIDO SOLDAVEL, CLASSE B, DE 20 MM | E105: =IF(A105="CPU CODEVASF",VLOOKUP(C105,CPU!B:I,5,0),IF(A105="INS. SEINFRA",VLOOKUP(C105,'INS. SEINFRA'!A:D,3,0),IF(A105="INS. SINAPI",VLOOKUP(C105,'INS SINAPI'!A:E,3,0),IF(A105="COMP. SINAPI",VLOOKUP(C105,'COMP SINAPI'!G:M,3,0),IF(A105="INS. ORSE",VLOOKUP(C105,'INS. ORSE'!A:D,3,0),IF(A105="COTAÇÃO",VLOOKUP(C105,COTAÇÃO!A:D,3,0),IF(A105="COMP. ORSE",VLOOKUP(C105,'COMP. ORSE'!A:D,3,0),IF(A105="COMP. SEINFRA",VLOOKUP(C105,'COMP. SEINFRA'!B:G,5,0))))))))) -> M | F105: =3*3 -> 9 | G105: =IF(A105="CPU CODEVASF",VLOOKUP(C105,CPU!F:I,4,0),IF(A105="COTAÇÃO",VLOOKUP(C105,COTAÇÃO!A:D,4,0),IF(A105="INS. SEINFRA",VLOOKUP(C105,'INS. SEINFRA'!A:D,4,0),IF(A105="INS. SINAPI",VLOOKUP(C105,'INS SINAPI'!A:E,5,0),IF(A105="COMP. SINAPI",VLOOKUP(C105,'COMP SINAPI'!G:M,5,0),IF(A105="INS. ORSE",VLOOKUP(C105,'INS. ORSE'!A:D,4,0),IF(A105="COMP. ORSE",VLOOKUP(C105,'COMP. ORSE'!A:D,4,0),IF(A105="COMP. SEINFRA",VLOOKUP(C105,'COMP. SEINFRA'!B:G,6,0))))))))) -> 2,50 | H105: 2.78 | I105: 25.02
A106: Ins. Sinapi | B106: 4.2.7 | C106: 20080 | D106: =IF(A106="Comp. Sinapi",VLOOKUP(C106,'COMP SINAPI'!G:M,2,0),IF(A106="Comp. Seinfra",VLOOKUP(C106,'COMP. SEINFRA'!B:G,2,0),IF(A106="COMP. ORSE",VLOOKUP(C106,'COMP. ORSE'!A:D,2,0),IF(A106="Ins. Seinfra",VLOOKUP(C106,'INS. SEINFRA'!$A:$D,2,0),IF(A106="Ins. Sinapi",VLOOKUP(C106,'INS SINAPI'!A:E,2,0),IF(A106="Ins. Orse",VLOOKUP(C106,'INS. ORSE'!A:D,2,0),IF(A106="CPU CODEVASF",VLOOKUP(C106,CPU!B:I,4,0),IF(A106="COTAÇÃO",VLOOKUP(C106,COTAÇÃO!A:D,2,0))))))))) -> ADESIVO PLASTICO PARA PVC, FRASCO COM 175 GR | E106: =IF(A106="CPU CODEVASF",VLOOKUP(C106,CPU!B:I,5,0),IF(A106="INS. SEINFRA",VLOOKUP(C106,'INS. SEINFRA'!A:D,3,0),IF(A106="INS. SINAPI",VLOOKUP(C106,'INS SINAPI'!A:E,3,0),IF(A106="COMP. SINAPI",VLOOKUP(C106,'COMP SINAPI'!G:M,3,0),IF(A106="INS. ORSE",VLOOKUP(C106,'INS. ORSE'!A:D,3,0),IF(A106="COTAÇÃO",VLOOKUP(C106,COTAÇÃO!A:D,3,0),IF(A106="COMP. ORSE",VLOOKUP(C106,'COMP. ORSE'!A:D,3,0),IF(A106="COMP. SEINFRA",VLOOKUP(C106,'COMP. SEINFRA'!B:G,5,0))))))))) -> UN | F106: 1 | G106: =IF(A106="CPU CODEVASF",VLOOKUP(C106,CPU!F:I,4,0),IF(A106="COTAÇÃO",VLOOKUP(C106,COTAÇÃO!A:D,4,0),IF(A106="INS. SEINFRA",VLOOKUP(C106,'INS. SEINFRA'!A:D,4,0),IF(A106="INS. SINAPI",VLOOKUP(C106,'INS SINAPI'!A:E,5,0),IF(A106="COMP. SINAPI",VLOOKUP(C106,'COMP SINAPI'!G:M,5,0),IF(A106="INS. ORSE",VLOOKUP(C106,'INS. ORSE'!A:D,4,0),IF(A106="COMP. ORSE",VLOOKUP(C106,'COMP. ORSE'!A:D,4,0),IF(A106="COMP. SEINFRA",VLOOKUP(C106,'COMP. SEINFRA'!B:G,6,0))))))))) -> 19,84 | H106: 22.1 | I106: 22.1
A107: Ins. Sinapi | B107: 4.2.8 | C107: 39330 | D107: =IF(A107="Comp. Sinapi",VLOOKUP(C107,'COMP SINAPI'!G:M,2,0),IF(A107="Comp. Seinfra",VLOOKUP(C107,'COMP. SEINFRA'!B:G,2,0),IF(A107="COMP. ORSE",VLOOKUP(C107,'COMP. ORSE'!A:D,2,0),IF(A107="Ins. Seinfra",VLOOKUP(C107,'INS. SEINFRA'!$A:$D,2,0),IF(A107="Ins. Sinapi",VLOOKUP(C107,'INS SINAPI'!A:E,2,0),IF(A107="Ins. Orse",VLOOKUP(C107,'INS. ORSE'!A:D,2,0),IF(A107="CPU CODEVASF",VLOOKUP(C107,CPU!B:I,4,0),IF(A107="COTAÇÃO",VLOOKUP(C107,COTAÇÃO!A:D,2,0))))))))) -> CONDULETE EM PVC, TIPO "C", SEM TAMPA, DE 1/2" | E107: =IF(A107="CPU CODEVASF",VLOOKUP(C107,CPU!B:I,5,0),IF(A107="INS. SEINFRA",VLOOKUP(C107,'INS. SEINFRA'!A:D,3,0),IF(A107="INS. SINAPI",VLOOKUP(C107,'INS SINAPI'!A:E,3,0),IF(A107="COMP. SINAPI",VLOOKUP(C107,'COMP SINAPI'!G:M,3,0),IF(A107="INS. ORSE",VLOOKUP(C107,'INS. ORSE'!A:D,3,0),IF(A107="COTAÇÃO",VLOOKUP(C107,COTAÇÃO!A:D,3,0),IF(A107="COMP. ORSE",VLOOKUP(C107,'COMP. ORSE'!A:D,3,0),IF(A107="COMP. SEINFRA",VLOOKUP(C107,'COMP. SEINFRA'!B:G,5,0))))))))) -> UN | F107: 1 | G107: =IF(A107="CPU CODEVASF",VLOOKUP(C107,CPU!F:I,4,0),IF(A107="COTAÇÃO",VLOOKUP(C107,COTAÇÃO!A:D,4,0),IF(A107="INS. SEINFRA",VLOOKUP(C107,'INS. SEINFRA'!A:D,4,0),IF(A107="INS. SINAPI",VLOOKUP(C107,'INS SINAPI'!A:E,5,0),IF(A107="COMP. SINAPI",VLOOKUP(C107,'COMP SINAPI'!G:M,5,0),IF(A107="INS. ORSE",VLOOKUP(C107,'INS. ORSE'!A:D,4,0),IF(A107="COMP. ORSE",VLOOKUP(C107,'COMP. ORSE'!A:D,4,0),IF(A107="COMP. SEINFRA",VLOOKUP(C107,'COMP. SEINFRA'!B:G,6,0))))))))) -> 15,28 | H107: 17.02 | I107: 17.02
A108: Ins. Sinapi | B108: 4.2.9 | C108: 38077 | D108: =IF(A108="Comp. Sinapi",VLOOKUP(C108,'COMP SINAPI'!G:M,2,0),IF(A108="Comp. Seinfra",VLOOKUP(C108,'COMP. SEINFRA'!B:G,2,0),IF(A108="COMP. ORSE",VLOOKUP(C108,'COMP. ORSE'!A:D,2,0),IF(A108="Ins. Seinfra",VLOOKUP(C108,'INS. SEINFRA'!$A:$D,2,0),IF(A108="Ins. Sinapi",VLOOKUP(C108,'INS SINAPI'!A:E,2,0),IF(A108="Ins. Orse",VLOOKUP(C108,'INS. ORSE'!A:D,2,0),IF(A108="CPU CODEVASF",VLOOKUP(C108,CPU!B:I,4,0),IF(A108="COTAÇÃO",VLOOKUP(C108,COTAÇÃO!A:D,2,0))))))))) -> INTERRUPTOR SIMPLES + TOMADA 2P+T 10A, 250V, CONJUNTO MONTADO PARA EMBUTIR 4" X 2" (PLACA + SUPORTE + MODULOS) | E108: =IF(A108="CPU CODEVASF",VLOOKUP(C108,CPU!B:I,5,0),IF(A108="INS. SEINFRA",VLOOKUP(C108,'INS. SEINFRA'!A:D,3,0),IF(A108="INS. SINAPI",VLOOKUP(C108,'INS SINAPI'!A:E,3,0),IF(A108="COMP. SINAPI",VLOOKUP(C108,'COMP SINAPI'!G:M,3,0),IF(A108="INS. ORSE",VLOOKUP(C108,'INS. ORSE'!A:D,3,0),IF(A108="COTAÇÃO",VLOOKUP(C108,COTAÇÃO!A:D,3,0),IF(A108="COMP. ORSE",VLOOKUP(C108,'COMP. ORSE'!A:D,3,0),IF(A108="COMP. SEINFRA",VLOOKUP(C108,'COMP. SEINFRA'!B:G,5,0))))))))) -> UN | F108: 1 | G108: =IF(A108="CPU CODEVASF",VLOOKUP(C108,CPU!F:I,4,0),IF(A108="COTAÇÃO",VLOOKUP(C108,COTAÇÃO!A:D,4,0),IF(A108="INS. SEINFRA",VLOOKUP(C108,'INS. SEINFRA'!A:D,4,0),IF(A108="INS. SINAPI",VLOOKUP(C108,'INS SINAPI'!A:E,5,0),IF(A108="COMP. SINAPI",VLOOKUP(C108,'COMP SINAPI'!G:M,5,0),IF(A108="INS. ORSE",VLOOKUP(C108,'INS. ORSE'!A:D,4,0),IF(A108="COMP. ORSE",VLOOKUP(C108,'COMP. ORSE'!A:D,4,0),IF(A108="COMP. SEINFRA",VLOOKUP(C108,'COMP. SEINFRA'!B:G,6,0))))))))) -> 15,44 | H108: 17.2 | I108: 17.2
A109: Ins. Orse | B109: 4.2.10 | C109: 3803 | D109: =IF(A109="Comp. Sinapi",VLOOKUP(C109,'COMP SINAPI'!G:M,2,0),IF(A109="Comp. Seinfra",VLOOKUP(C109,'COMP. SEINFRA'!B:G,2,0),IF(A109="COMP. ORSE",VLOOKUP(C109,'COMP. ORSE'!A:D,2,0),IF(A109="Ins. Seinfra",VLOOKUP(C109,'INS. SEINFRA'!$A:$D,2,0),IF(A109="Ins. Sinapi",VLOOKUP(C109,'INS SINAPI'!A:E,2,0),IF(A109="Ins. Orse",VLOOKUP(C109,'INS. ORSE'!A:D,2,0),IF(A109="CPU CODEVASF",VLOOKUP(C109,CPU!B:I,4,0),IF(A109="COTAÇÃO",VLOOKUP(C109,COTAÇÃO!A:D,2,0))))))))) -> Cabo de cobre PP Cordplast 2 x 1,5 mm2, 450/750v | E109: =IF(A109="CPU CODEVASF",VLOOKUP(C109,CPU!B:I,5,0),IF(A109="INS. SEINFRA",VLOOKUP(C109,'INS. SEINFRA'!A:D,3,0),IF(A109="INS. SINAPI",VLOOKUP(C109,'INS SINAPI'!A:E,3,0),IF(A109="COMP. SINAPI",VLOOKUP(C109,'COMP SINAPI'!G:M,3,0),IF(A109="INS. ORSE",VLOOKUP(C109,'INS. ORSE'!A:D,3,0),IF(A109="COTAÇÃO",VLOOKUP(C109,COTAÇÃO!A:D,3,0),IF(A109="COMP. ORSE",VLOOKUP(C109,'COMP. ORSE'!A:D,3,0),IF(A109="COMP. SEINFRA",VLOOKUP(C109,'COMP. SEINFRA'!B:G,5,0))))))))) -> M | F109: 15 | G109: =IF(A109="CPU CODEVASF",VLOOKUP(C109,CPU!F:I,4,0),IF(A109="COTAÇÃO",VLOOKUP(C109,COTAÇÃO!A:D,4,0),IF(A109="INS. SEINFRA",VLOOKUP(C109,'INS. SEINFRA'!A:D,4,0),IF(A109="INS. SINAPI",VLOOKUP(C109,'INS SINAPI'!A:E,5,0),IF(A109="COMP. SINAPI",VLOOKUP(C109,'COMP SINAPI'!G:M,5,0),IF(A109="INS. ORSE",VLOOKUP(C109,'INS. ORSE'!A:D,4,0),IF(A109="COMP. ORSE",VLOOKUP(C109,'COMP. ORSE'!A:D,4,0),IF(A109="COMP. SEINFRA",VLOOKUP(C109,'COMP. SEINFRA'!B:G,6,0))))))))) -> 3.37 | H109: 3.75 | I109: 56.25
A110: Ins. Sinapi | B110: 4.2.11 | C110: 13329 | D110: =IF(A110="Comp. Sinapi",VLOOKUP(C110,'COMP SINAPI'!G:M,2,0),IF(A110="Comp. Seinfra",VLOOKUP(C110,'COMP. SEINFRA'!B:G,2,0),IF(A110="COMP. ORSE",VLOOKUP(C110,'COMP. ORSE'!A:D,2,0),IF(A110="Ins. Seinfra",VLOOKUP(C110,'INS. SEINFRA'!$A:$D,2,0),IF(A110="Ins. Sinapi",VLOOKUP(C110,'INS SINAPI'!A:E,2,0),IF(A110="Ins. Orse",VLOOKUP(C110,'INS. ORSE'!A:D,2,0),IF(A110="CPU CODEVASF",VLOOKUP(C110,CPU!B:I,4,0),IF(A110="COTAÇÃO",VLOOKUP(C110,COTAÇÃO!A:D,2,0))))))))) -> SOQUETE DE PVC / TERMOPLASTICO BASE E27, COM RABICHO, PARA LAMPADAS | E110: =IF(A110="CPU CODEVASF",VLOOKUP(C110,CPU!B:I,5,0),IF(A110="INS. SEINFRA",VLOOKUP(C110,'INS. SEINFRA'!A:D,3,0),IF(A110="INS. SINAPI",VLOOKUP(C110,'INS SINAPI'!A:E,3,0),IF(A110="COMP. SINAPI",VLOOKUP(C110,'COMP SINAPI'!G:M,3,0),IF(A110="INS. ORSE",VLOOKUP(C110,'INS. ORSE'!A:D,3,0),IF(A110="COTAÇÃO",VLOOKUP(C110,COTAÇÃO!A:D,3,0),IF(A110="COMP. ORSE",VLOOKUP(C110,'COMP. ORSE'!A:D,3,0),IF(A110="COMP. SEINFRA",VLOOKUP(C110,'COMP. SEINFRA'!B:G,5,0))))))))) -> UN | F110: 1 | G110: =IF(A110="CPU CODEVASF",VLOOKUP(C110,CPU!F:I,4,0),IF(A110="COTAÇÃO",VLOOKUP(C110,COTAÇÃO!A:D,4,0),IF(A110="INS. SEINFRA",VLOOKUP(C110,'INS. SEINFRA'!A:D,4,0),IF(A110="INS. SINAPI",VLOOKUP(C110,'INS SINAPI'!A:E,5,0),IF(A110="COMP. SINAPI",VLOOKUP(C110,'COMP SINAPI'!G:M,5,0),IF(A110="INS. ORSE",VLOOKUP(C110,'INS. ORSE'!A:D,4,0),IF(A110="COMP. ORSE",VLOOKUP(C110,'COMP. ORSE'!A:D,4,0),IF(A110="COMP. SEINFRA",VLOOKUP(C110,'COMP. SEINFRA'!B:G,6,0))))))))) -> 3,90 | H110: 4.34 | I110: 4.34
A111: COTAÇÃO | B111: 4.2.12 | C111: COT. 09 | D111: =IF(A111="Comp. Sinapi",VLOOKUP(C111,'COMP SINAPI'!G:M,2,0),IF(A111="Comp. Seinfra",VLOOKUP(C111,'COMP. SEINFRA'!B:G,2,0),IF(A111="COMP. ORSE",VLOOKUP(C111,'COMP. ORSE'!A:D,2,0),IF(A111="Ins. Seinfra",VLOOKUP(C111,'INS. SEINFRA'!$A:$D,2,0),IF(A111="Ins. Sinapi",VLOOKUP(C111,'INS SINAPI'!A:E,2,0),IF(A111="Ins. Orse",VLOOKUP(C111,'INS. ORSE'!A:D,2,0),IF(A111="CPU CODEVASF",VLOOKUP(C111,CPU!B:I,4,0),IF(A111="COTAÇÃO",VLOOKUP(C111,COTAÇÃO!A:D,2,0))))))))) -> COMEDOURO TUBULAR ADULTO - CAPACIDADE 20KG | E111: =IF(A111="CPU CODEVASF",VLOOKUP(C111,CPU!B:I,5,0),IF(A111="INS. SEINFRA",VLOOKUP(C111,'INS. SEINFRA'!A:D,3,0),IF(A111="INS. SINAPI",VLOOKUP(C111,'INS SINAPI'!A:E,3,0),IF(A111="COMP. SINAPI",VLOOKUP(C111,'COMP SINAPI'!G:M,3,0),IF(A111="INS. ORSE",VLOOKUP(C111,'INS. ORSE'!A:D,3,0),IF(A111="COTAÇÃO",VLOOKUP(C111,COTAÇÃO!A:D,3,0),IF(A111="COMP. ORSE",VLOOKUP(C111,'COMP. ORSE'!A:D,3,0),IF(A111="COMP. SEINFRA",VLOOKUP(C111,'COMP. SEINFRA'!B:G,5,0))))))))) -> UND | F111: 1 | G111: =IF(A111="CPU CODEVASF",VLOOKUP(C111,CPU!F:I,4,0),IF(A111="COTAÇÃO",VLOOKUP(C111,COTAÇÃO!A:D,4,0),IF(A111="INS. SEINFRA",VLOOKUP(C111,'INS. SEINFRA'!A:D,4,0),IF(A111="INS. SINAPI",VLOOKUP(C111,'INS SINAPI'!A:E,5,0),IF(A111="COMP. SINAPI",VLOOKUP(C111,'COMP SINAPI'!G:M,5,0),IF(A111="INS. ORSE",VLOOKUP(C111,'INS. ORSE'!A:D,4,0),IF(A111="COMP. ORSE",VLOOKUP(C111,'COMP. ORSE'!A:D,4,0),IF(A111="COMP. SEINFRA",VLOOKUP(C111,'COMP. SEINFRA'!B:G,6,0))))))))) -> 82.97 | H111: 92.42 | I111: 92.42
A112: Ins. Orse | B112: 4.2.13 | C112: 2945 | D112: =IF(A112="Comp. Sinapi",VLOOKUP(C112,'COMP SINAPI'!G:M,2,0),IF(A112="Comp. Seinfra",VLOOKUP(C112,'COMP. SEINFRA'!B:G,2,0),IF(A112="COMP. ORSE",VLOOKUP(C112,'COMP. ORSE'!A:D,2,0),IF(A112="Ins. Seinfra",VLOOKUP(C112,'INS. SEINFRA'!$A:$D,2,0),IF(A112="Ins. Sinapi",VLOOKUP(C112,'INS SINAPI'!A:E,2,0),IF(A112="Ins. Orse",VLOOKUP(C112,'INS. ORSE'!A:D,2,0),IF(A112="CPU CODEVASF",VLOOKUP(C112,CPU!B:I,4,0),IF(A112="COTAÇÃO",VLOOKUP(C112,COTAÇÃO!A:D,2,0))))))))) -> Dobradiça de ferro zincado, 3 1/2", linha popular | E112: =IF(A112="CPU CODEVASF",VLOOKUP(C112,CPU!B:I,5,0),IF(A112="INS. SEINFRA",VLOOKUP(C112,'INS. SEINFRA'!A:D,3,0),IF(A112="INS. SINAPI",VLOOKUP(C112,'INS SINAPI'!A:E,3,0),IF(A112="COMP. SINAPI",VLOOKUP(C112,'COMP SINAPI'!G:M,3,0),IF(A112="INS. ORSE",VLOOKUP(C112,'INS. ORSE'!A:D,3,0),IF(A112="COTAÇÃO",VLOOKUP(C112,COTAÇÃO!A:D,3,0),IF(A112="COMP. ORSE",VLOOKUP(C112,'COMP. ORSE'!A:D,3,0),IF(A112="COMP. SEINFRA",VLOOKUP(C112,'COMP. SEINFRA'!B:G,5,0))))))))) -> UND | F112: 10 | G112: =IF(A112="CPU CODEVASF",VLOOKUP(C112,CPU!F:I,4,0),IF(A112="COTAÇÃO",VLOOKUP(C112,COTAÇÃO!A:D,4,0),IF(A112="INS. SEINFRA",VLOOKUP(C112,'INS. SEINFRA'!A:D,4,0),IF(A112="INS. SINAPI",VLOOKUP(C112,'INS SINAPI'!A:E,5,0),IF(A112="COMP. SINAPI",VLOOKUP(C112,'COMP SINAPI'!G:M,5,0),IF(A112="INS. ORSE",VLOOKUP(C112,'INS. ORSE'!A:D,4,0),IF(A112="COMP. ORSE",VLOOKUP(C112,'COMP. ORSE'!A:D,4,0),IF(A112="COMP. SEINFRA",VLOOKUP(C112,'COMP. SEINFRA'!B:G,6,0))))))))) -> 3.13 | H112: 3.48 | I112: 34.8
A113: Ins. Sinapi | B113: 4.2.14 | C113: 39027 | D113: =IF(A113="Comp. Sinapi",VLOOKUP(C113,'COMP SINAPI'!G:M,2,0),IF(A113="Comp. Seinfra",VLOOKUP(C113,'COMP. SEINFRA'!B:G,2,0),IF(A113="COMP. ORSE",VLOOKUP(C113,'COMP. ORSE'!A:D,2,0),IF(A113="Ins. Seinfra",VLOOKUP(C113,'INS. SEINFRA'!$A:$D,2,0),IF(A113="Ins. Sinapi",VLOOKUP(C113,'INS SINAPI'!A:E,2,0),IF(A113="Ins. Orse",VLOOKUP(C113,'INS. ORSE'!A:D,2,0),IF(A113="CPU CODEVASF",VLOOKUP(C113,CPU!B:I,4,0),IF(A113="COTAÇÃO",VLOOKUP(C113,COTAÇÃO!A:D,2,0))))))))) -> PREGO DE ACO POLIDO COM CABECA 19 X 36 (3 1/4 X 9) | E113: =IF(A113="CPU CODEVASF",VLOOKUP(C113,CPU!B:I,5,0),IF(A113="INS. SEINFRA",VLOOKUP(C113,'INS. SEINFRA'!A:D,3,0),IF(A113="INS. SINAPI",VLOOKUP(C113,'INS SINAPI'!A:E,3,0),IF(A113="COMP. SINAPI",VLOOKUP(C113,'COMP SINAPI'!G:M,3,0),IF(A113="INS. ORSE",VLOOKUP(C113,'INS. ORSE'!A:D,3,0),IF(A113="COTAÇÃO",VLOOKUP(C113,COTAÇÃO!A:D,3,0),IF(A113="COMP. ORSE",VLOOKUP(C113,'COMP. ORSE'!A:D,3,0),IF(A113="COMP. SEINFRA",VLOOKUP(C113,'COMP. SEINFRA'!B:G,5,0))))))))) -> KG | F113: 1 | G113: =IF(A113="CPU CODEVASF",VLOOKUP(C113,CPU!F:I,4,0),IF(A113="COTAÇÃO",VLOOKUP(C113,COTAÇÃO!A:D,4,0),IF(A113="INS. SEINFRA",VLOOKUP(C113,'INS. SEINFRA'!A:D,4,0),IF(A113="INS. SINAPI",VLOOKUP(C113,'INS SINAPI'!A:E,5,0),IF(A113="COMP. SINAPI",VLOOKUP(C113,'COMP SINAPI'!G:M,5,0),IF(A113="INS. ORSE",VLOOKUP(C113,'INS. ORSE'!A:D,4,0),IF(A113="COMP. ORSE",VLOOKUP(C113,'COMP. ORSE'!A:D,4,0),IF(A113="COMP. SEINFRA",VLOOKUP(C113,'COMP. SEINFRA'!B:G,6,0))))))))) -> 18,29 | H113: 20.37 | I113: 20.37
A114: Ins. Sinapi | B114: 4.2.15 | C114: 20247 | D114: =IF(A114="Comp. Sinapi",VLOOKUP(C114,'COMP SINAPI'!G:M,2,0),IF(A114="Comp. Seinfra",VLOOKUP(C114,'COMP. SEINFRA'!B:G,2,0),IF(A114="COMP. ORSE",VLOOKUP(C114,'COMP. ORSE'!A:D,2,0),IF(A114="Ins. Seinfra",VLOOKUP(C114,'INS. SEINFRA'!$A:$D,2,0),IF(A114="Ins. Sinapi",VLOOKUP(C114,'INS SINAPI'!A:E,2,0),IF(A114="Ins. Orse",VLOOKUP(C114,'INS. ORSE'!A:D,2,0),IF(A114="CPU CODEVASF",VLOOKUP(C114,CPU!B:I,4,0),IF(A114="COTAÇÃO",VLOOKUP(C114,COTAÇÃO!A:D,2,0))))))))) -> PREGO DE ACO POLIDO COM CABECA 15 X 15 (1 1/4 X 13) | E114: =IF(A114="CPU CODEVASF",VLOOKUP(C114,CPU!B:I,5,0),IF(A114="INS. SEINFRA",VLOOKUP(C114,'INS. SEINFRA'!A:D,3,0),IF(A114="INS. SINAPI",VLOOKUP(C114,'INS SINAPI'!A:E,3,0),IF(A114="COMP. SINAPI",VLOOKUP(C114,'COMP SINAPI'!G:M,3,0),IF(A114="INS. ORSE",VLOOKUP(C114,'INS. ORSE'!A:D,3,0),IF(A114="COTAÇÃO",VLOOKUP(C114,COTAÇÃO!A:D,3,0),IF(A114="COMP. ORSE",VLOOKUP(C114,'COMP. ORSE'!A:D,3,0),IF(A114="COMP. SEINFRA",VLOOKUP(C114,'COMP. SEINFRA'!B:G,5,0))))))))) -> KG | F114: 1 | G114: =IF(A114="CPU CODEVASF",VLOOKUP(C114,CPU!F:I,4,0),IF(A114="COTAÇÃO",VLOOKUP(C114,COTAÇÃO!A:D,4,0),IF(A114="INS. SEINFRA",VLOOKUP(C114,'INS. SEINFRA'!A:D,4,0),IF(A114="INS. SINAPI",VLOOKUP(C114,'INS SINAPI'!A:E,5,0),IF(A114="COMP. SINAPI",VLOOKUP(C114,'COMP SINAPI'!G:M,5,0),IF(A114="INS. ORSE",VLOOKUP(C114,'INS. ORSE'!A:D,4,0),IF(A114="COMP. ORSE",VLOOKUP(C114,'COMP. ORSE'!A:D,4,0),IF(A114="COMP. SEINFRA",VLOOKUP(C114,'COMP. SEINFRA'!B:G,6,0))))))))) -> 20,27 | H114: 22.58 | I114: 22.58
A115: Ins. Sinapi | B115: 4.2.16 | C115: 4330 | D115: =IF(A115="Comp. Sinapi",VLOOKUP(C115,'COMP SINAPI'!G:M,2,0),IF(A115="Comp. Seinfra",VLOOKUP(C115,'COMP. SEINFRA'!B:G,2,0),IF(A115="COMP. ORSE",VLOOKUP(C115,'COMP. ORSE'!A:D,2,0),IF(A115="Ins. Seinfra",VLOOKUP(C115,'INS. SEINFRA'!$A:$D,2,0),IF(A115="Ins. Sinapi",VLOOKUP(C115,'INS SINAPI'!A:E,2,0),IF(A115="Ins. Orse",VLOOKUP(C115,'INS. ORSE'!A:D,2,0),IF(A115="CPU CODEVASF",VLOOKUP(C115,CPU!B:I,4,0),IF(A115="COTAÇÃO",VLOOKUP(C115,COTAÇÃO!A:D,2,0))))))))) -> PORCA ZINCADA, SEXTAVADA, DIAMETRO 5/16" | E115: =IF(A115="CPU CODEVASF",VLOOKUP(C115,CPU!B:I,5,0),IF(A115="INS. SEINFRA",VLOOKUP(C115,'INS. SEINFRA'!A:D,3,0),IF(A115="INS. SINAPI",VLOOKUP(C115,'INS SINAPI'!A:E,3,0),IF(A115="COMP. SINAPI",VLOOKUP(C115,'COMP SINAPI'!G:M,3,0),IF(A115="INS. ORSE",VLOOKUP(C115,'INS. ORSE'!A:D,3,0),IF(A115="COTAÇÃO",VLOOKUP(C115,COTAÇÃO!A:D,3,0),IF(A115="COMP. ORSE",VLOOKUP(C115,'COMP. ORSE'!A:D,3,0),IF(A115="COMP. SEINFRA",VLOOKUP(C115,'COMP. SEINFRA'!B:G,5,0))))))))) -> UN | F115: 30 | G115: =IF(A115="CPU CODEVASF",VLOOKUP(C115,CPU!F:I,4,0),IF(A115="COTAÇÃO",VLOOKUP(C115,COTAÇÃO!A:D,4,0),IF(A115="INS. SEINFRA",VLOOKUP(C115,'INS. SEINFRA'!A:D,4,0),IF(A115="INS. SINAPI",VLOOKUP(C115,'INS SINAPI'!A:E,5,0),IF(A115="COMP. SINAPI",VLOOKUP(C115,'COMP SINAPI'!G:M,5,0),IF(A115="INS. ORSE",VLOOKUP(C115,'INS. ORSE'!A:D,4,0),IF(A115="COMP. ORSE",VLOOKUP(C115,'COMP. ORSE'!A:D,4,0),IF(A115="COMP. SEINFRA",VLOOKUP(C115,'COMP. SEINFRA'!B:G,6,0))))))))) -> 0,20 | H115: 0.22 | I115: 6.6
A116: COTAÇÃO | B116: 4.2.17 | C116: COT. 10 | D116: =IF(A116="Comp. Sinapi",VLOOKUP(C116,'COMP SINAPI'!G:M,2,0),IF(A116="Comp. Seinfra",VLOOKUP(C116,'COMP. SEINFRA'!B:G,2,0),IF(A116="COMP. ORSE",VLOOKUP(C116,'COMP. ORSE'!A:D,2,0),IF(A116="Ins. Seinfra",VLOOKUP(C116,'INS. SEINFRA'!$A:$D,2,0),IF(A116="Ins. Sinapi",VLOOKUP(C116,'INS SINAPI'!A:E,2,0),IF(A116="Ins. Orse",VLOOKUP(C116,'INS. ORSE'!A:D,2,0),IF(A116="CPU CODEVASF",VLOOKUP(C116,CPU!B:I,4,0),IF(A116="COTAÇÃO",VLOOKUP(C116,COTAÇÃO!A:D,2,0))))))))) -> PINTINHOS P/ POSTURA DE OVOS - ISA BROWN | E116: =IF(A116="CPU CODEVASF",VLOOKUP(C116,CPU!B:I,5,0),IF(A116="INS. SEINFRA",VLOOKUP(C116,'INS. SEINFRA'!A:D,3,0),IF(A116="INS. SINAPI",VLOOKUP(C116,'INS SINAPI'!A:E,3,0),IF(A116="COMP. SINAPI",VLOOKUP(C116,'COMP SINAPI'!G:M,3,0),IF(A116="INS. ORSE",VLOOKUP(C116,'INS. ORSE'!A:D,3,0),IF(A116="COTAÇÃO",VLOOKUP(C116,COTAÇÃO!A:D,3,0),IF(A116="COMP. ORSE",VLOOKUP(C116,'COMP. ORSE'!A:D,3,0),IF(A116="COMP. SEINFRA",VLOOKUP(C116,'COMP. SEINFRA'!B:G,5,0))))))))) -> UND | F116: 25 | G116: =IF(A116="CPU CODEVASF",VLOOKUP(C116,CPU!F:I,4,0),IF(A116="COTAÇÃO",VLOOKUP(C116,COTAÇÃO!A:D,4,0),IF(A116="INS. SEINFRA",VLOOKUP(C116,'INS. SEINFRA'!A:D,4,0),IF(A116="INS. SINAPI",VLOOKUP(C116,'INS SINAPI'!A:E,5,0),IF(A116="COMP. SINAPI",VLOOKUP(C116,'COMP SINAPI'!G:M,5,0),IF(A116="INS. ORSE",VLOOKUP(C116,'INS. ORSE'!A:D,4,0),IF(A116="COMP. ORSE",VLOOKUP(C116,'COMP. ORSE'!A:D,4,0),IF(A116="COMP. SEINFRA",VLOOKUP(C116,'COMP. SEINFRA'!B:G,6,0))))))))) -> 8 | H116: 8.91 | I116: 222.75
A117: COTAÇÃO | B117: 4.2.18 | C117: COT. 11 | D117: =IF(A117="Comp. Sinapi",VLOOKUP(C117,'COMP SINAPI'!G:M,2,0),IF(A117="Comp. Seinfra",VLOOKUP(C117,'COMP. SEINFRA'!B:G,2,0),IF(A117="COMP. ORSE",VLOOKUP(C117,'COMP. ORSE'!A:D,2,0),IF(A117="Ins. Seinfra",VLOOKUP(C117,'INS. SEINFRA'!$A:$D,2,0),IF(A117="Ins. Sinapi",VLOOKUP(C117,'INS SINAPI'!A:E,2,0),IF(A117="Ins. Orse",VLOOKUP(C117,'INS. ORSE'!A:D,2,0),IF(A117="CPU CODEVASF",VLOOKUP(C117,CPU!B:I,4,0),IF(A117="COTAÇÃO",VLOOKUP(C117,COTAÇÃO!A:D,2,0))))))))) -> RAÇÃO P/ 6 MESES ( PRÉ INICIAL, INICIAL, CRESCIMENTO, DESENVOLVIMENTO, PRÉ-POSTURA, POSTURA 1) - AVES DE POSTURA | E117: =IF(A117="CPU CODEVASF",VLOOKUP(C117,CPU!B:I,5,0),IF(A117="INS. SEINFRA",VLOOKUP(C117,'INS. SEINFRA'!A:D,3,0),IF(A117="INS. SINAPI",VLOOKUP(C117,'INS SINAPI'!A:E,3,0),IF(A117="COMP. SINAPI",VLOOKUP(C117,'COMP SINAPI'!G:M,3,0),IF(A117="INS. ORSE",VLOOKUP(C117,'INS. ORSE'!A:D,3,0),IF(A117="COTAÇÃO",VLOOKUP(C117,COTAÇÃO!A:D,3,0),IF(A117="COMP. ORSE",VLOOKUP(C117,'COMP. ORSE'!A:D,3,0),IF(A117="COMP. SEINFRA",VLOOKUP(C117,'COMP. SEINFRA'!B:G,5,0))))))))) -> UND | F117: 1 | G117: =IF(A117="CPU CODEVASF",VLOOKUP(C117,CPU!F:I,4,0),IF(A117="COTAÇÃO",VLOOKUP(C117,COTAÇÃO!A:D,4,0),IF(A117="INS. SEINFRA",VLOOKUP(C117,'INS. SEINFRA'!A:D,4,0),IF(A117="INS. SINAPI",VLOOKUP(C117,'INS SINAPI'!A:E,5,0),IF(A117="COMP. SINAPI",VLOOKUP(C117,'COMP SINAPI'!G:M,5,0),IF(A117="INS. ORSE",VLOOKUP(C117,'INS. ORSE'!A:D,4,0),IF(A117="COMP. ORSE",VLOOKUP(C117,'COMP. ORSE'!A:D,4,0),IF(A117="COMP. SEINFRA",VLOOKUP(C117,'COMP. SEINFRA'!B:G,6,0))))))))) -> 1491.6 | H117: 1661.64 | I117: 1661.64
A118: Ins. Sinapi | B118: 4.2.19 | C118: 4408 | D118: =IF(A118="Comp. Sinapi",VLOOKUP(C118,'COMP SINAPI'!G:M,2,0),IF(A118="Comp. Seinfra",VLOOKUP(C118,'COMP. SEINFRA'!B:G,2,0),IF(A118="COMP. ORSE",VLOOKUP(C118,'COMP. ORSE'!A:D,2,0),IF(A118="Ins. Seinfra",VLOOKUP(C118,'INS. SEINFRA'!$A:$D,2,0),IF(A118="Ins. Sinapi",VLOOKUP(C118,'INS SINAPI'!A:E,2,0),IF(A118="Ins. Orse",VLOOKUP(C118,'INS. ORSE'!A:D,2,0),IF(A118="CPU CODEVASF",VLOOKUP(C118,CPU!B:I,4,0),IF(A118="COTAÇÃO",VLOOKUP(C118,COTAÇÃO!A:D,2,0))))))))) -> RIPA NAO APARELHADA, *1,5 X 5* CM, EM MACARANDUBA/MASSARANDUBA, ANGELIM OU EQUIVALENTE DA REGIAO - BRUTA | E118: =IF(A118="CPU CODEVASF",VLOOKUP(C118,CPU!B:I,5,0),IF(A118="INS. SEINFRA",VLOOKUP(C118,'INS. SEINFRA'!A:D,3,0),IF(A118="INS. SINAPI",VLOOKUP(C118,'INS SINAPI'!A:E,3,0),IF(A118="COMP. SINAPI",VLOOKUP(C118,'COMP SINAPI'!G:M,3,0),IF(A118="INS. ORSE",VLOOKUP(C118,'INS. ORSE'!A:D,3,0),IF(A118="COTAÇÃO",VLOOKUP(C118,COTAÇÃO!A:D,3,0),IF(A118="COMP. ORSE",VLOOKUP(C118,'COMP. ORSE'!A:D,3,0),IF(A118="COMP. SEINFRA",VLOOKUP(C118,'COMP. SEINFRA'!B:G,5,0))))))))) -> M | F118: =30*2.5+20*2.5 -> 125 | G118: =IF(A118="CPU CODEVASF",VLOOKUP(C118,CPU!F:I,4,0),IF(A118="COTAÇÃO",VLOOKUP(C118,COTAÇÃO!A:D,4,0),IF(A118="INS. SEINFRA",VLOOKUP(C118,'INS. SEINFRA'!A:D,4,0),IF(A118="INS. SINAPI",VLOOKUP(C118,'INS SINAPI'!A:E,5,0),IF(A118="COMP. SINAPI",VLOOKUP(C118,'COMP SINAPI'!G:M,5,0),IF(A118="INS. ORSE",VLOOKUP(C118,'INS. ORSE'!A:D,4,0),IF(A118="COMP. ORSE",VLOOKUP(C118,'COMP. ORSE'!A:D,4,0),IF(A118="COMP. SEINFRA",VLOOKUP(C118,'COMP. SEINFRA'!B:G,6,0))))))))) -> 2,95 | H118: 3.28 | I118: 410
A119: Ins. Orse | B119: 4.2.20 | C119: 1943 | D119: =IF(A119="Comp. Sinapi",VLOOKUP(C119,'COMP SINAPI'!G:M,2,0),IF(A119="Comp. Seinfra",VLOOKUP(C119,'COMP. SEINFRA'!B:G,2,0),IF(A119="COMP. ORSE",VLOOKUP(C119,'COMP. ORSE'!A:D,2,0),IF(A119="Ins. Seinfra",VLOOKUP(C119,'INS. SEINFRA'!$A:$D,2,0),IF(A119="Ins. Sinapi",VLOOKUP(C119,'INS SINAPI'!A:E,2,0),IF(A119="Ins. Orse",VLOOKUP(C119,'INS. ORSE'!A:D,2,0),IF(A119="CPU CODEVASF",VLOOKUP(C119,CPU!B:I,4,0),IF(A119="COTAÇÃO",VLOOKUP(C119,COTAÇÃO!A:D,2,0))))))))) -> Registro PVC esfera c/borboleta d = 3/4" | E119: =IF(A119="CPU CODEVASF",VLOOKUP(C119,CPU!B:I,5,0),IF(A119="INS. SEINFRA",VLOOKUP(C119,'INS. SEINFRA'!A:D,3,0),IF(A119="INS. SINAPI",VLOOKUP(C119,'INS SINAPI'!A:E,3,0),IF(A119="COMP. SINAPI",VLOOKUP(C119,'COMP SINAPI'!G:M,3,0),IF(A119="INS. ORSE",VLOOKUP(C119,'INS. ORSE'!A:D,3,0),IF(A119="COTAÇÃO",VLOOKUP(C119,COTAÇÃO!A:D,3,0),IF(A119="COMP. ORSE",VLOOKUP(C119,'COMP. ORSE'!A:D,3,0),IF(A119="COMP. SEINFRA",VLOOKUP(C119,'COMP. SEINFRA'!B:G,5,0))))))))) -> UND | F119: 2 | G119: =IF(A119="CPU CODEVASF",VLOOKUP(C119,CPU!F:I,4,0),IF(A119="COTAÇÃO",VLOOKUP(C119,COTAÇÃO!A:D,4,0),IF(A119="INS. SEINFRA",VLOOKUP(C119,'INS. SEINFRA'!A:D,4,0),IF(A119="INS. SINAPI",VLOOKUP(C119,'INS SINAPI'!A:E,5,0),IF(A119="COMP. SINAPI",VLOOKUP(C119,'COMP SINAPI'!G:M,5,0),IF(A119="INS. ORSE",VLOOKUP(C119,'INS. ORSE'!A:D,4,0),IF(A119="COMP. ORSE",VLOOKUP(C119,'COMP. ORSE'!A:D,4,0),IF(A119="COMP. SEINFRA",VLOOKUP(C119,'COMP. SEINFRA'!B:G,6,0))))))))) -> 10 | H119: 11.14 | I119: 22.28
A120: Ins. Seinfra | B120: 4.2.21 | C120: I1972 | D120: =IF(A120="Comp. Sinapi",VLOOKUP(C120,'COMP SINAPI'!G:M,2,0),IF(A120="Comp. Seinfra",VLOOKUP(C120,'COMP. SEINFRA'!B:G,2,0),IF(A120="COMP. ORSE",VLOOKUP(C120,'COMP. ORSE'!A:D,2,0),IF(A120="Ins. Seinfra",VLOOKUP(C120,'INS. SEINFRA'!$A:$D,2,0),IF(A120="Ins. Sinapi",VLOOKUP(C120,'INS SINAPI'!A:E,2,0),IF(A120="Ins. Orse",VLOOKUP(C120,'INS. ORSE'!A:D,2,0),IF(A120="CPU CODEVASF",VLOOKUP(C120,CPU!B:I,4,0),IF(A120="COTAÇÃO",VLOOKUP(C120,COTAÇÃO!A:D,2,0))))))))) -> TE PVC SOLDAVEL 25MM | E120: =IF(A120="CPU CODEVASF",VLOOKUP(C120,CPU!B:I,5,0),IF(A120="INS. SEINFRA",VLOOKUP(C120,'INS. SEINFRA'!A:D,3,0),IF(A120="INS. SINAPI",VLOOKUP(C120,'INS SINAPI'!A:E,3,0),IF(A120="COMP. SINAPI",VLOOKUP(C120,'COMP SINAPI'!G:M,3,0),IF(A120="INS. ORSE",VLOOKUP(C120,'INS. ORSE'!A:D,3,0),IF(A120="COTAÇÃO",VLOOKUP(C120,COTAÇÃO!A:D,3,0),IF(A120="COMP. ORSE",VLOOKUP(C120,'COMP. ORSE'!A:D,3,0),IF(A120="COMP. SEINFRA",VLOOKUP(C120,'COMP. SEINFRA'!B:G,5,0))))))))) -> UN | F120: 2 | G120: =IF(A120="CPU CODEVASF",VLOOKUP(C120,CPU!F:I,4,0),IF(A120="COTAÇÃO",VLOOKUP(C120,COTAÇÃO!A:D,4,0),IF(A120="INS. SEINFRA",VLOOKUP(C120,'INS. SEINFRA'!A:D,4,0),IF(A120="INS. SINAPI",VLOOKUP(C120,'INS SINAPI'!A:E,5,0),IF(A120="COMP. SINAPI",VLOOKUP(C120,'COMP SINAPI'!G:M,5,0),IF(A120="INS. ORSE",VLOOKUP(C120,'INS. ORSE'!A:D,4,0),IF(A120="COMP. ORSE",VLOOKUP(C120,'COMP. ORSE'!A:D,4,0),IF(A120="COMP. SEINFRA",VLOOKUP(C120,'COMP. SEINFRA'!B:G,6,0))))))))) -> 1.31 | H120: 1.45 | I120: 2.9
A121: Ins. Sinapi | B121: 4.2.22 | C121: 3529 | D121: =IF(A121="Comp. Sinapi",VLOOKUP(C121,'COMP SINAPI'!G:M,2,0),IF(A121="Comp. Seinfra",VLOOKUP(C121,'COMP. SEINFRA'!B:G,2,0),IF(A121="COMP. ORSE",VLOOKUP(C121,'COMP. ORSE'!A:D,2,0),IF(A121="Ins. Seinfra",VLOOKUP(C121,'INS. SEINFRA'!$A:$D,2,0),IF(A121="Ins. Sinapi",VLOOKUP(C121,'INS SINAPI'!A:E,2,0),IF(A121="Ins. Orse",VLOOKUP(C121,'INS. ORSE'!A:D,2,0),IF(A121="CPU CODEVASF",VLOOKUP(C121,CPU!B:I,4,0),IF(A121="COTAÇÃO",VLOOKUP(C121,COTAÇÃO!A:D,2,0))))))))) -> JOELHO PVC, SOLDAVEL, 90 GRAUS, 25 MM, COR MARROM, PARA AGUA FRIA PREDIAL | E121: =IF(A121="CPU CODEVASF",VLOOKUP(C121,CPU!B:I,5,0),IF(A121="INS. SEINFRA",VLOOKUP(C121,'INS. SEINFRA'!A:D,3,0),IF(A121="INS. SINAPI",VLOOKUP(C121,'INS SINAPI'!A:E,3,0),IF(A121="COMP. SINAPI",VLOOKUP(C121,'COMP SINAPI'!G:M,3,0),IF(A121="INS. ORSE",VLOOKUP(C121,'INS. ORSE'!A:D,3,0),IF(A121="COTAÇÃO",VLOOKUP(C121,COTAÇÃO!A:D,3,0),IF(A121="COMP. ORSE",VLOOKUP(C121,'COMP. ORSE'!A:D,3,0),IF(A121="COMP. SEINFRA",VLOOKUP(C121,'COMP. SEINFRA'!B:G,5,0))))))))) -> UN | F121: 4 | G121: =IF(A121="CPU CODEVASF",VLOOKUP(C121,CPU!F:I,4,0),IF(A121="COTAÇÃO",VLOOKUP(C121,COTAÇÃO!A:D,4,0),IF(A121="INS. SEINFRA",VLOOKUP(C121,'INS. SEINFRA'!A:D,4,0),IF(A121="INS. SINAPI",VLOOKUP(C121,'INS SINAPI'!A:E,5,0),IF(A121="COMP. SINAPI",VLOOKUP(C121,'COMP SINAPI'!G:M,5,0),IF(A121="INS. ORSE",VLOOKUP(C121,'INS. ORSE'!A:D,4,0),IF(A121="COMP. ORSE",VLOOKUP(C121,'COMP. ORSE'!A:D,4,0),IF(A121="COMP. SEINFRA",VLOOKUP(C121,'COMP. SEINFRA'!B:G,6,0))))))))) -> 0,81 | H121: 0.9 | I121: 3.6
A122: Ins. Sinapi | B122: 4.2.23 | C122: 9868 | D122: =IF(A122="Comp. Sinapi",VLOOKUP(C122,'COMP SINAPI'!G:M,2,0),IF(A122="Comp. Seinfra",VLOOKUP(C122,'COMP. SEINFRA'!B:G,2,0),IF(A122="COMP. ORSE",VLOOKUP(C122,'COMP. ORSE'!A:D,2,0),IF(A122="Ins. Seinfra",VLOOKUP(C122,'INS. SEINFRA'!$A:$D,2,0),IF(A122="Ins. Sinapi",VLOOKUP(C122,'INS SINAPI'!A:E,2,0),IF(A122="Ins. Orse",VLOOKUP(C122,'INS. ORSE'!A:D,2,0),IF(A122="CPU CODEVASF",VLOOKUP(C122,CPU!B:I,4,0),IF(A122="COTAÇÃO",VLOOKUP(C122,COTAÇÃO!A:D,2,0))))))))) -> TUBO PVC, SOLDAVEL, DE 25 MM, AGUA FRIA (NBR-5648) | E122: =IF(A122="CPU CODEVASF",VLOOKUP(C122,CPU!B:I,5,0),IF(A122="INS. SEINFRA",VLOOKUP(C122,'INS. SEINFRA'!A:D,3,0),IF(A122="INS. SINAPI",VLOOKUP(C122,'INS SINAPI'!A:E,3,0),IF(A122="COMP. SINAPI",VLOOKUP(C122,'COMP SINAPI'!G:M,3,0),IF(A122="INS. ORSE",VLOOKUP(C122,'INS. ORSE'!A:D,3,0),IF(A122="COTAÇÃO",VLOOKUP(C122,COTAÇÃO!A:D,3,0),IF(A122="COMP. ORSE",VLOOKUP(C122,'COMP. ORSE'!A:D,3,0),IF(A122="COMP. SEINFRA",VLOOKUP(C122,'COMP. SEINFRA'!B:G,5,0))))))))) -> M | F122: =6*6 -> 36 | G122: =IF(A122="CPU CODEVASF",VLOOKUP(C122,CPU!F:I,4,0),IF(A122="COTAÇÃO",VLOOKUP(C122,COTAÇÃO!A:D,4,0),IF(A122="INS. SEINFRA",VLOOKUP(C122,'INS. SEINFRA'!A:D,4,0),IF(A122="INS. SINAPI",VLOOKUP(C122,'INS SINAPI'!A:E,5,0),IF(A122="COMP. SINAPI",VLOOKUP(C122,'COMP SINAPI'!G:M,5,0),IF(A122="INS. ORSE",VLOOKUP(C122,'INS. ORSE'!A:D,4,0),IF(A122="COMP. ORSE",VLOOKUP(C122,'COMP. ORSE'!A:D,4,0),IF(A122="COMP. SEINFRA",VLOOKUP(C122,'COMP. SEINFRA'!B:G,6,0))))))))) -> 4,61 | H122: 5.13 | I122: 184.68
A123: Ins. Sinapi | B123: 4.2.24 | C123: 6189 | D123: =IF(A123="Comp. Sinapi",VLOOKUP(C123,'COMP SINAPI'!G:M,2,0),IF(A123="Comp. Seinfra",VLOOKUP(C123,'COMP. SEINFRA'!B:G,2,0),IF(A123="COMP. ORSE",VLOOKUP(C123,'COMP. ORSE'!A:D,2,0),IF(A123="Ins. Seinfra",VLOOKUP(C123,'INS. SEINFRA'!$A:$D,2,0),IF(A123="Ins. Sinapi",VLOOKUP(C123,'INS SINAPI'!A:E,2,0),IF(A123="Ins. Orse",VLOOKUP(C123,'INS. ORSE'!A:D,2,0),IF(A123="CPU CODEVASF",VLOOKUP(C123,CPU!B:I,4,0),IF(A123="COTAÇÃO",VLOOKUP(C123,COTAÇÃO!A:D,2,0))))))))) -> TABUA NAO APARELHADA *2,5 X 30* CM, EM MACARANDUBA/MASSARANDUBA, ANGELIM OU EQUIVALENTE DA REGIAO - BRUTA | E123: =IF(A123="CPU CODEVASF",VLOOKUP(C123,CPU!B:I,5,0),IF(A123="INS. SEINFRA",VLOOKUP(C123,'INS. SEINFRA'!A:D,3,0),IF(A123="INS. SINAPI",VLOOKUP(C123,'INS SINAPI'!A:E,3,0),IF(A123="COMP. SINAPI",VLOOKUP(C123,'COMP SINAPI'!G:M,3,0),IF(A123="INS. ORSE",VLOOKUP(C123,'INS. ORSE'!A:D,3,0),IF(A123="COTAÇÃO",VLOOKUP(C123,COTAÇÃO!A:D,3,0),IF(A123="COMP. ORSE",VLOOKUP(C123,'COMP. ORSE'!A:D,3,0),IF(A123="COMP. SEINFRA",VLOOKUP(C123,'COMP. SEINFRA'!B:G,5,0))))))))) -> M | F123: =5*3 -> 15 | G123: =IF(A123="CPU CODEVASF",VLOOKUP(C123,CPU!F:I,4,0),IF(A123="COTAÇÃO",VLOOKUP(C123,COTAÇÃO!A:D,4,0),IF(A123="INS. SEINFRA",VLOOKUP(C123,'INS. SEINFRA'!A:D,4,0),IF(A123="INS. SINAPI",VLOOKUP(C123,'INS SINAPI'!A:E,5,0),IF(A123="COMP. SINAPI",VLOOKUP(C123,'COMP SINAPI'!G:M,5,0),IF(A123="INS. ORSE",VLOOKUP(C123,'INS. ORSE'!A:D,4,0),IF(A123="COMP. ORSE",VLOOKUP(C123,'COMP. ORSE'!A:D,4,0),IF(A123="COMP. SEINFRA",VLOOKUP(C123,'COMP. SEINFRA'!B:G,6,0))))))))) -> 31,97 | H123: 35.61 | I123: 534.15
A124: MÓDULO 4 - POMAR DE FRUTAS - (MUDAS E IRRIGAÇÃO)
B125: 5.1 | D125: Serviços | I125: =SUM(I126:I128) -> 5469.63 | J125: =G113-H117 -> -1643.35
A126: Comp. Sinapi | B126: 5.1.1 | C126: 98524 | D126: =IF(A126="Comp. Sinapi",VLOOKUP(C126,'COMP SINAPI'!G:M,2,0),IF(A126="Comp. Seinfra",VLOOKUP(C126,'COMP. SEINFRA'!B:G,2,0),IF(A126="COMP. ORSE",VLOOKUP(C126,'COMP. ORSE'!A:D,2,0),IF(A126="Ins. Seinfra",VLOOKUP(C126,'INS. SEINFRA'!$A:$D,2,0),IF(A126="Ins. Sinapi",VLOOKUP(C126,'INS SINAPI'!A:E,2,0),IF(A126="Ins. Orse",VLOOKUP(C126,'INS. ORSE'!A:D,2,0),IF(A126="CPU CODEVASF",VLOOKUP(C126,CPU!B:I,4,0),IF(A126="COTAÇÃO",VLOOKUP(C126,COTAÇÃO!A:D,2,0))))))))) -> LIMPEZA MANUAL DE VEGETAÇÃO EM TERRENO COM ENXADA.AF_05/2018 | E126: =IF(A126="CPU CODEVASF",VLOOKUP(C126,CPU!B:I,5,0),IF(A126="INS. SEINFRA",VLOOKUP(C126,'INS. SEINFRA'!A:D,3,0),IF(A126="INS. SINAPI",VLOOKUP(C126,'INS SINAPI'!A:E,3,0),IF(A126="COMP. SINAPI",VLOOKUP(C126,'COMP SINAPI'!G:M,3,0),IF(A126="INS. ORSE",VLOOKUP(C126,'INS. ORSE'!A:D,3,0),IF(A126="COTAÇÃO",VLOOKUP(C126,COTAÇÃO!A:D,3,0),IF(A126="COMP. ORSE",VLOOKUP(C126,'COMP. ORSE'!A:D,3,0),IF(A126="COMP. SEINFRA",VLOOKUP(C126,'COMP. SEINFRA'!B:G,5,0))))))))) -> M2 | F126: 1000 | G126: =IF(A126="CPU CODEVASF",VLOOKUP(C126,CPU!F:I,4,0),IF(A126="COTAÇÃO",VLOOKUP(C126,COTAÇÃO!A:D,4,0),IF(A126="INS. SEINFRA",VLOOKUP(C126,'INS. SEINFRA'!A:D,4,0),IF(A126="INS. SINAPI",VLOOKUP(C126,'INS SINAPI'!A:E,5,0),IF(A126="COMP. SINAPI",VLOOKUP(C126,'COMP SINAPI'!G:M,5,0),IF(A126="INS. ORSE",VLOOKUP(C126,'INS. ORSE'!A:D,4,0),IF(A126="COMP. ORSE",VLOOKUP(C126,'COMP. ORSE'!A:D,4,0),IF(A126="COMP. SEINFRA",VLOOKUP(C126,'COMP. SEINFRA'!B:G,6,0))))))))) -> 3,11 | H126: =TRUNC(G126*(1+$F$10),2) -> 3.84 | I126: =TRUNC(H126*F126,2) -> 3840
A127: CPU CODEVASF | B127: 5.1.2 | C127: CPU-11 | D127: =IF(A127="Comp. Sinapi",VLOOKUP(C127,'COMP SINAPI'!G:M,2,0),IF(A127="Comp. Seinfra",VLOOKUP(C127,'COMP. SEINFRA'!B:G,2,0),IF(A127="COMP. ORSE",VLOOKUP(C127,'COMP. ORSE'!A:D,2,0),IF(A127="Ins. Seinfra",VLOOKUP(C127,'INS. SEINFRA'!$A:$D,2,0),IF(A127="Ins. Sinapi",VLOOKUP(C127,'INS SINAPI'!A:E,2,0),IF(A127="Ins. Orse",VLOOKUP(C127,'INS. ORSE'!A:D,2,0),IF(A127="CPU CODEVASF",VLOOKUP(C127,CPU!B:I,4,0),IF(A127="COTAÇÃO",VLOOKUP(C127,COTAÇÃO!A:D,2,0))))))))) -> PLANTIO DE MUDAS DE PLANTAS COM H=1,50M, SEM FORNECIMENTO | E127: =IF(A127="CPU CODEVASF",VLOOKUP(C127,CPU!B:I,5,0),IF(A127="INS. SEINFRA",VLOOKUP(C127,'INS. SEINFRA'!A:D,3,0),IF(A127="INS. SINAPI",VLOOKUP(C127,'INS SINAPI'!A:E,3,0),IF(A127="COMP. SINAPI",VLOOKUP(C127,'COMP SINAPI'!G:M,3,0),IF(A127="INS. ORSE",VLOOKUP(C127,'INS. ORSE'!A:D,3,0),IF(A127="COTAÇÃO",VLOOKUP(C127,COTAÇÃO!A:D,3,0),IF(A127="COMP. ORSE",VLOOKUP(C127,'COMP. ORSE'!A:D,3,0),IF(A127="COMP. SEINFRA",VLOOKUP(C127,'COMP. SEINFRA'!B:G,5,0))))))))) -> UNID | F127: 63 | G127: =IF(A127="CPU CODEVASF",VLOOKUP(C127,CPU!F:I,4,0),IF(A127="COTAÇÃO",VLOOKUP(C127,COTAÇÃO!A:D,4,0),IF(A127="INS. SEINFRA",VLOOKUP(C127,'INS. SEINFRA'!A:D,4,0),IF(A127="INS. SINAPI",VLOOKUP(C127,'INS SINAPI'!A:E,5,0),IF(A127="COMP. SINAPI",VLOOKUP(C127,'COMP SINAPI'!G:M,5,0),IF(A127="INS. ORSE",VLOOKUP(C127,'INS. ORSE'!A:D,4,0),IF(A127="COMP. ORSE",VLOOKUP(C127,'COMP. ORSE'!A:D,4,0),IF(A127="COMP. SEINFRA",VLOOKUP(C127,'COMP. SEINFRA'!B:G,6,0))))))))) -> 7.39 | H127: 9.12 | I127: 574.56
A128: Comp. Sinapi | B128: 5.1.3 | C128: 102111 | D128: =IF(A128="Comp. Sinapi",VLOOKUP(C128,'COMP SINAPI'!G:M,2,0),IF(A128="Comp. Seinfra",VLOOKUP(C128,'COMP. SEINFRA'!B:G,2,0),IF(A128="COMP. ORSE",VLOOKUP(C128,'COMP. ORSE'!A:D,2,0),IF(A128="Ins. Seinfra",VLOOKUP(C128,'INS. SEINFRA'!$A:$D,2,0),IF(A128="Ins. Sinapi",VLOOKUP(C128,'INS SINAPI'!A:E,2,0),IF(A128="Ins. Orse",VLOOKUP(C128,'INS. ORSE'!A:D,2,0),IF(A128="CPU CODEVASF",VLOOKUP(C128,CPU!B:I,4,0),IF(A128="COTAÇÃO",VLOOKUP(C128,COTAÇÃO!A:D,2,0))))))))) -> BOMBA CENTRÍFUGA, MONOFÁSICA, 0,5 CV OU 0,49 HP, HM 6 A 20 M, Q 1,2 A 8,3 M3/H - FORNECIMENTO E INSTALAÇÃO. AF_12/2020 | E128: =IF(A128="CPU CODEVASF",VLOOKUP(C128,CPU!B:I,5,0),IF(A128="INS. SEINFRA",VLOOKUP(C128,'INS. SEINFRA'!A:D,3,0),IF(A128="INS. SINAPI",VLOOKUP(C128,'INS SINAPI'!A:E,3,0),IF(A128="COMP. SINAPI",VLOOKUP(C128,'COMP SINAPI'!G:M,3,0),IF(A128="INS. ORSE",VLOOKUP(C128,'INS. ORSE'!A:D,3,0),IF(A128="COTAÇÃO",VLOOKUP(C128,COTAÇÃO!A:D,3,0),IF(A128="COMP. ORSE",VLOOKUP(C128,'COMP. ORSE'!A:D,3,0),IF(A128="COMP. SEINFRA",VLOOKUP(C128,'COMP. SEINFRA'!B:G,5,0))))))))) -> UN | F128: 1 | G128: =IF(A128="CPU CODEVASF",VLOOKUP(C128,CPU!F:I,4,0),IF(A128="COTAÇÃO",VLOOKUP(C128,COTAÇÃO!A:D,4,0),IF(A128="INS. SEINFRA",VLOOKUP(C128,'INS. SEINFRA'!A:D,4,0),IF(A128="INS. SINAPI",VLOOKUP(C128,'INS SINAPI'!A:E,5,0),IF(A128="COMP. SINAPI",VLOOKUP(C128,'COMP SINAPI'!G:M,5,0),IF(A128="INS. ORSE",VLOOKUP(C128,'INS. ORSE'!A:D,4,0),IF(A128="COMP. ORSE",VLOOKUP(C128,'COMP. ORSE'!A:D,4,0),IF(A128="COMP. SEINFRA",VLOOKUP(C128,'COMP. SEINFRA'!B:G,6,0))))))))) -> 854,31 | H128: 1055.07 | I128: 1055.07
B129: 5.2 | D129: Materiais e Equipamentos | I129: =SUM(I130:I140) -> 856.88
A130: COTAÇÃO | B130: 5.2.1 | C130: COT. 12 | D130: =IF(A130="Comp. Sinapi",VLOOKUP(C130,'COMP SINAPI'!G:M,2,0),IF(A130="Comp. Seinfra",VLOOKUP(C130,'COMP. SEINFRA'!B:G,2,0),IF(A130="COMP. ORSE",VLOOKUP(C130,'COMP. ORSE'!A:D,2,0),IF(A130="Ins. Seinfra",VLOOKUP(C130,'INS. SEINFRA'!$A:$D,2,0),IF(A130="Ins. Sinapi",VLOOKUP(C130,'INS SINAPI'!A:E,2,0),IF(A130="Ins. Orse",VLOOKUP(C130,'INS. ORSE'!A:D,2,0),IF(A130="CPU CODEVASF",VLOOKUP(C130,CPU!B:I,4,0),IF(A130="COTAÇÃO",VLOOKUP(C130,COTAÇÃO!A:D,2,0))))))))) -> MUDA FRUTÍFERA ACEROLA JUMBO ENXERTADA - 01 LINHA DE 21 METROS - (2 METROS ENTRE PLANTAS) | E130: =IF(A130="CPU CODEVASF",VLOOKUP(C130,CPU!B:I,5,0),IF(A130="INS. SEINFRA",VLOOKUP(C130,'INS. SEINFRA'!A:D,3,0),IF(A130="INS. SINAPI",VLOOKUP(C130,'INS SINAPI'!A:E,3,0),IF(A130="COMP. SINAPI",VLOOKUP(C130,'COMP SINAPI'!G:M,3,0),IF(A130="INS. ORSE",VLOOKUP(C130,'INS. ORSE'!A:D,3,0),IF(A130="COTAÇÃO",VLOOKUP(C130,COTAÇÃO!A:D,3,0),IF(A130="COMP. ORSE",VLOOKUP(C130,'COMP. ORSE'!A:D,3,0),IF(A130="COMP. SEINFRA",VLOOKUP(C130,'COMP. SEINFRA'!B:G,5,0))))))))) -> UND | F130: 10 | G130: =IF(A130="CPU CODEVASF",VLOOKUP(C130,CPU!F:I,4,0),IF(A130="COTAÇÃO",VLOOKUP(C130,COTAÇÃO!A:D,4,0),IF(A130="INS. SEINFRA",VLOOKUP(C130,'INS. SEINFRA'!A:D,4,0),IF(A130="INS. SINAPI",VLOOKUP(C130,'INS SINAPI'!A:E,5,0),IF(A130="COMP. SINAPI",VLOOKUP(C130,'COMP SINAPI'!G:M,5,0),IF(A130="INS. ORSE",VLOOKUP(C130,'INS. ORSE'!A:D,4,0),IF(A130="COMP. ORSE",VLOOKUP(C130,'COMP. ORSE'!A:D,4,0),IF(A130="COMP. SEINFRA",VLOOKUP(C130,'COMP. SEINFRA'!B:G,6,0))))))))) -> 4 | H130: =TRUNC(G130*(1+$I$10),2) -> 4.45 | I130: =TRUNC(H130*F130,2) -> 44.5
A131: COTAÇÃO | B131: 5.2.2 | C131: COT. 13 | D131: =IF(A131="Comp. Sinapi",VLOOKUP(C131,'COMP SINAPI'!G:M,2,0),IF(A131="Comp. Seinfra",VLOOKUP(C131,'COMP. SEINFRA'!B:G,2,0),IF(A131="COMP. ORSE",VLOOKUP(C131,'COMP. ORSE'!A:D,2,0),IF(A131="Ins. Seinfra",VLOOKUP(C131,'INS. SEINFRA'!$A:$D,2,0),IF(A131="Ins. Sinapi",VLOOKUP(C131,'INS SINAPI'!A:E,2,0),IF(A131="Ins. Orse",VLOOKUP(C131,'INS. ORSE'!A:D,2,0),IF(A131="CPU CODEVASF",VLOOKUP(C131,CPU!B:I,4,0),IF(A131="COTAÇÃO",VLOOKUP(C131,COTAÇÃO!A:D,2,0))))))))) -> MUDA DE PINHA ENXERTADA - 01 LINHA DE 21 METROS - (2 METROS ENTRE PLANTAS) | E131: =IF(A131="CPU CODEVASF",VLOOKUP(C131,CPU!B:I,5,0),IF(A131="INS. SEINFRA",VLOOKUP(C131,'INS. SEINFRA'!A:D,3,0),IF(A131="INS. SINAPI",VLOOKUP(C131,'INS SINAPI'!A:E,3,0),IF(A131="COMP. SINAPI",VLOOKUP(C131,'COMP SINAPI'!G:M,3,0),IF(A131="INS. ORSE",VLOOKUP(C131,'INS. ORSE'!A:D,3,0),IF(A131="COTAÇÃO",VLOOKUP(C131,COTAÇÃO!A:D,3,0),IF(A131="COMP. ORSE",VLOOKUP(C131,'COMP. ORSE'!A:D,3,0),IF(A131="COMP. SEINFRA",VLOOKUP(C131,'COMP. SEINFRA'!B:G,5,0))))))))) -> UND | F131: 10 | G131: =IF(A131="CPU CODEVASF",VLOOKUP(C131,CPU!F:I,4,0),IF(A131="COTAÇÃO",VLOOKUP(C131,COTAÇÃO!A:D,4,0),IF(A131="INS. SEINFRA",VLOOKUP(C131,'INS. SEINFRA'!A:D,4,0),IF(A131="INS. SINAPI",VLOOKUP(C131,'INS SINAPI'!A:E,5,0),IF(A131="COMP. SINAPI",VLOOKUP(C131,'COMP SINAPI'!G:M,5,0),IF(A131="INS. ORSE",VLOOKUP(C131,'INS. ORSE'!A:D,4,0),IF(A131="COMP. ORSE",VLOOKUP(C131,'COMP. ORSE'!A:D,4,0),IF(A131="COMP. SEINFRA",VLOOKUP(C131,'COMP. SEINFRA'!B:G,6,0))))))))) -> 10 | H131: 11.14 | I131: 111.4
A132: COTAÇÃO | B132: 5.2.3 | C132: COT. 14 | D132: =IF(A132="Comp. Sinapi",VLOOKUP(C132,'COMP SINAPI'!G:M,2,0),IF(A132="Comp. Seinfra",VLOOKUP(C132,'COMP. SEINFRA'!B:G,2,0),IF(A132="COMP. ORSE",VLOOKUP(C132,'COMP. ORSE'!A:D,2,0),IF(A132="Ins. Seinfra",VLOOKUP(C132,'INS. SEINFRA'!$A:$D,2,0),IF(A132="Ins. Sinapi",VLOOKUP(C132,'INS SINAPI'!A:E,2,0),IF(A132="Ins. Orse",VLOOKUP(C132,'INS. ORSE'!A:D,2,0),IF(A132="CPU CODEVASF",VLOOKUP(C132,CPU!B:I,4,0),IF(A132="COTAÇÃO",VLOOKUP(C132,COTAÇÃO!A:D,2,0))))))))) -> MUDA FRUTÍFERA LIMÃO TAHITI ENXERTADA - 01 LINHA DE 20 METROS - (3 METROS ENTRE PLANTAS) | E132: =IF(A132="CPU CODEVASF",VLOOKUP(C132,CPU!B:I,5,0),IF(A132="INS. SEINFRA",VLOOKUP(C132,'INS. SEINFRA'!A:D,3,0),IF(A132="INS. SINAPI",VLOOKUP(C132,'INS SINAPI'!A:E,3,0),IF(A132="COMP. SINAPI",VLOOKUP(C132,'COMP SINAPI'!G:M,3,0),IF(A132="INS. ORSE",VLOOKUP(C132,'INS. ORSE'!A:D,3,0),IF(A132="COTAÇÃO",VLOOKUP(C132,COTAÇÃO!A:D,3,0),IF(A132="COMP. ORSE",VLOOKUP(C132,'COMP. ORSE'!A:D,3,0),IF(A132="COMP. SEINFRA",VLOOKUP(C132,'COMP. SEINFRA'!B:G,5,0))))))))) -> UND | F132: 6 | G132: =IF(A132="CPU CODEVASF",VLOOKUP(C132,CPU!F:I,4,0),IF(A132="COTAÇÃO",VLOOKUP(C132,COTAÇÃO!A:D,4,0),IF(A132="INS. SEINFRA",VLOOKUP(C132,'INS. SEINFRA'!A:D,4,0),IF(A132="INS. SINAPI",VLOOKUP(C132,'INS SINAPI'!A:E,5,0),IF(A132="COMP. SINAPI",VLOOKUP(C132,'COMP SINAPI'!G:M,5,0),IF(A132="INS. ORSE",VLOOKUP(C132,'INS. ORSE'!A:D,4,0),IF(A132="COMP. ORSE",VLOOKUP(C132,'COMP. ORSE'!A:D,4,0),IF(A132="COMP. SEINFRA",VLOOKUP(C132,'COMP. SEINFRA'!B:G,6,0))))))))) -> 25 | H132: 27.85 | I132: 167.1
A133: COTAÇÃO | B133: 5.2.4 | C133: COT. 15 | D133: =IF(A133="Comp. Sinapi",VLOOKUP(C133,'COMP SINAPI'!G:M,2,0),IF(A133="Comp. Seinfra",VLOOKUP(C133,'COMP. SEINFRA'!B:G,2,0),IF(A133="COMP. ORSE",VLOOKUP(C133,'COMP. ORSE'!A:D,2,0),IF(A133="Ins. Seinfra",VLOOKUP(C133,'INS. SEINFRA'!$A:$D,2,0),IF(A133="Ins. Sinapi",VLOOKUP(C133,'INS SINAPI'!A:E,2,0),IF(A133="Ins. Orse",VLOOKUP(C133,'INS. ORSE'!A:D,2,0),IF(A133="CPU CODEVASF",VLOOKUP(C133,CPU!B:I,4,0),IF(A133="COTAÇÃO",VLOOKUP(C133,COTAÇÃO!A:D,2,0))))))))) -> MUDA FRUTÍFERA MAMÃO PAPAIA - 01 LINHA DE 11 METROS - (2 METROS ENTRE PLANTAS) | E133: =IF(A133="CPU CODEVASF",VLOOKUP(C133,CPU!B:I,5,0),IF(A133="INS. SEINFRA",VLOOKUP(C133,'INS. SEINFRA'!A:D,3,0),IF(A133="INS. SINAPI",VLOOKUP(C133,'INS SINAPI'!A:E,3,0),IF(A133="COMP. SINAPI",VLOOKUP(C133,'COMP SINAPI'!G:M,3,0),IF(A133="INS. ORSE",VLOOKUP(C133,'INS. ORSE'!A:D,3,0),IF(A133="COTAÇÃO",VLOOKUP(C133,COTAÇÃO!A:D,3,0),IF(A133="COMP. ORSE",VLOOKUP(C133,'COMP. ORSE'!A:D,3,0),IF(A133="COMP. SEINFRA",VLOOKUP(C133,'COMP. SEINFRA'!B:G,5,0))))))))) -> UND | F133: 5 | G133: =IF(A133="CPU CODEVASF",VLOOKUP(C133,CPU!F:I,4,0),IF(A133="COTAÇÃO",VLOOKUP(C133,COTAÇÃO!A:D,4,0),IF(A133="INS. SEINFRA",VLOOKUP(C133,'INS. SEINFRA'!A:D,4,0),IF(A133="INS. SINAPI",VLOOKUP(C133,'INS SINAPI'!A:E,5,0),IF(A133="COMP. SINAPI",VLOOKUP(C133,'COMP SINAPI'!G:M,5,0),IF(A133="INS. ORSE",VLOOKUP(C133,'INS. ORSE'!A:D,4,0),IF(A133="COMP. ORSE",VLOOKUP(C133,'COMP. ORSE'!A:D,4,0),IF(A133="COMP. SEINFRA",VLOOKUP(C133,'COMP. SEINFRA'!B:G,6,0))))))))) -> 2 | H133: 2.22 | I133: 11.1
A134: COTAÇÃO | B134: 5.2.5 | C134: COT. 16 | D134: =IF(A134="Comp. Sinapi",VLOOKUP(C134,'COMP SINAPI'!G:M,2,0),IF(A134="Comp. Seinfra",VLOOKUP(C134,'COMP. SEINFRA'!B:G,2,0),IF(A134="COMP. ORSE",VLOOKUP(C134,'COMP. ORSE'!A:D,2,0),IF(A134="Ins. Seinfra",VLOOKUP(C134,'INS. SEINFRA'!$A:$D,2,0),IF(A134="Ins. Sinapi",VLOOKUP(C134,'INS SINAPI'!A:E,2,0),IF(A134="Ins. Orse",VLOOKUP(C134,'INS. ORSE'!A:D,2,0),IF(A134="CPU CODEVASF",VLOOKUP(C134,CPU!B:I,4,0),IF(A134="COTAÇÃO",VLOOKUP(C134,COTAÇÃO!A:D,2,0))))))))) -> MUDA FRUTÍFERA CAJÚ ANÃO ENXERTADA - 01 LINHA DE 26 METROS - (4 METROS ENTRE PLANTAS) | E134: =IF(A134="CPU CODEVASF",VLOOKUP(C134,CPU!B:I,5,0),IF(A134="INS. SEINFRA",VLOOKUP(C134,'INS. SEINFRA'!A:D,3,0),IF(A134="INS. SINAPI",VLOOKUP(C134,'INS SINAPI'!A:E,3,0),IF(A134="COMP. SINAPI",VLOOKUP(C134,'COMP SINAPI'!G:M,3,0),IF(A134="INS. ORSE",VLOOKUP(C134,'INS. ORSE'!A:D,3,0),IF(A134="COTAÇÃO",VLOOKUP(C134,COTAÇÃO!A:D,3,0),IF(A134="COMP. ORSE",VLOOKUP(C134,'COMP. ORSE'!A:D,3,0),IF(A134="COMP. SEINFRA",VLOOKUP(C134,'COMP. SEINFRA'!B:G,5,0))))))))) -> UND | F134: 4 | G134: =IF(A134="CPU CODEVASF",VLOOKUP(C134,CPU!F:I,4,0),IF(A134="COTAÇÃO",VLOOKUP(C134,COTAÇÃO!A:D,4,0),IF(A134="INS. SEINFRA",VLOOKUP(C134,'INS. SEINFRA'!A:D,4,0),IF(A134="INS. SINAPI",VLOOKUP(C134,'INS SINAPI'!A:E,5,0),IF(A134="COMP. SINAPI",VLOOKUP(C134,'COMP SINAPI'!G:M,5,0),IF(A134="INS. ORSE",VLOOKUP(C134,'INS. ORSE'!A:D,4,0),IF(A134="COMP. ORSE",VLOOKUP(C134,'COMP. ORSE'!A:D,4,0),IF(A134="COMP. SEINFRA",VLOOKUP(C134,'COMP. SEINFRA'!B:G,6,0))))))))) -> 10 | H134: 11.14 | I134: 44.56
A135: COTAÇÃO | B135: 5.2.6 | C135: COT. 17 | D135: =IF(A135="Comp. Sinapi",VLOOKUP(C135,'COMP SINAPI'!G:M,2,0),IF(A135="Comp. Seinfra",VLOOKUP(C135,'COMP. SEINFRA'!B:G,2,0),IF(A135="COMP. ORSE",VLOOKUP(C135,'COMP. ORSE'!A:D,2,0),IF(A135="Ins. Seinfra",VLOOKUP(C135,'INS. SEINFRA'!$A:$D,2,0),IF(A135="Ins. Sinapi",VLOOKUP(C135,'INS SINAPI'!A:E,2,0),IF(A135="Ins. Orse",VLOOKUP(C135,'INS. ORSE'!A:D,2,0),IF(A135="CPU CODEVASF",VLOOKUP(C135,CPU!B:I,4,0),IF(A135="COTAÇÃO",VLOOKUP(C135,COTAÇÃO!A:D,2,0))))))))) -> MUDA FRUTÍFERA GOIABA PALUMA ENXERTADA - 01 LINHAS DE 21 METROS - (2 METROS ENTRE PLANTAS) | E135: =IF(A135="CPU CODEVASF",VLOOKUP(C135,CPU!B:I,5,0),IF(A135="INS. SEINFRA",VLOOKUP(C135,'INS. SEINFRA'!A:D,3,0),IF(A135="INS. SINAPI",VLOOKUP(C135,'INS SINAPI'!A:E,3,0),IF(A135="COMP. SINAPI",VLOOKUP(C135,'COMP SINAPI'!G:M,3,0),IF(A135="INS. ORSE",VLOOKUP(C135,'INS. ORSE'!A:D,3,0),IF(A135="COTAÇÃO",VLOOKUP(C135,COTAÇÃO!A:D,3,0),IF(A135="COMP. ORSE",VLOOKUP(C135,'COMP. ORSE'!A:D,3,0),IF(A135="COMP. SEINFRA",VLOOKUP(C135,'COMP. SEINFRA'!B:G,5,0))))))))) -> UND | F135: 10 | G135: =IF(A135="CPU CODEVASF",VLOOKUP(C135,CPU!F:I,4,0),IF(A135="COTAÇÃO",VLOOKUP(C135,COTAÇÃO!A:D,4,0),IF(A135="INS. SEINFRA",VLOOKUP(C135,'INS. SEINFRA'!A:D,4,0),IF(A135="INS. SINAPI",VLOOKUP(C135,'INS SINAPI'!A:E,5,0),IF(A135="COMP. SINAPI",VLOOKUP(C135,'COMP SINAPI'!G:M,5,0),IF(A135="INS. ORSE",VLOOKUP(C135,'INS. ORSE'!A:D,4,0),IF(A135="COMP. ORSE",VLOOKUP(C135,'COMP. ORSE'!A:D,4,0),IF(A135="COMP. SEINFRA",VLOOKUP(C135,'COMP. SEINFRA'!B:G,6,0))))))))) -> 4 | H135: 4.45 | I135: 44.5
A136: COTAÇÃO | B136: 5.2.7 | C136: COT. 18 | D136: =IF(A136="Comp. Sinapi",VLOOKUP(C136,'COMP SINAPI'!G:M,2,0),IF(A136="Comp. Seinfra",VLOOKUP(C136,'COMP. SEINFRA'!B:G,2,0),IF(A136="COMP. ORSE",VLOOKUP(C136,'COMP. ORSE'!A:D,2,0),IF(A136="Ins. Seinfra",VLOOKUP(C136,'INS. SEINFRA'!$A:$D,2,0),IF(A136="Ins. Sinapi",VLOOKUP(C136,'INS SINAPI'!A:E,2,0),IF(A136="Ins. Orse",VLOOKUP(C136,'INS. ORSE'!A:D,2,0),IF(A136="CPU CODEVASF",VLOOKUP(C136,CPU!B:I,4,0),IF(A136="COTAÇÃO",VLOOKUP(C136,COTAÇÃO!A:D,2,0))))))))) -> MUDA DE MARACUJÁ - 01 LINHAS DE 21 METROS - (2,5 METROS ENTRE PLANTAS) | E136: =IF(A136="CPU CODEVASF",VLOOKUP(C136,CPU!B:I,5,0),IF(A136="INS. SEINFRA",VLOOKUP(C136,'INS. SEINFRA'!A:D,3,0),IF(A136="INS. SINAPI",VLOOKUP(C136,'INS SINAPI'!A:E,3,0),IF(A136="COMP. SINAPI",VLOOKUP(C136,'COMP SINAPI'!G:M,3,0),IF(A136="INS. ORSE",VLOOKUP(C136,'INS. ORSE'!A:D,3,0),IF(A136="COTAÇÃO",VLOOKUP(C136,COTAÇÃO!A:D,3,0),IF(A136="COMP. ORSE",VLOOKUP(C136,'COMP. ORSE'!A:D,3,0),IF(A136="COMP. SEINFRA",VLOOKUP(C136,'COMP. SEINFRA'!B:G,5,0))))))))) -> UND | F136: 10 | G136: =IF(A136="CPU CODEVASF",VLOOKUP(C136,CPU!F:I,4,0),IF(A136="COTAÇÃO",VLOOKUP(C136,COTAÇÃO!A:D,4,0),IF(A136="INS. SEINFRA",VLOOKUP(C136,'INS. SEINFRA'!A:D,4,0),IF(A136="INS. SINAPI",VLOOKUP(C136,'INS SINAPI'!A:E,5,0),IF(A136="COMP. SINAPI",VLOOKUP(C136,'COMP SINAPI'!G:M,5,0),IF(A136="INS. ORSE",VLOOKUP(C136,'INS. ORSE'!A:D,4,0),IF(A136="COMP. ORSE",VLOOKUP(C136,'COMP. ORSE'!A:D,4,0),IF(A136="COMP. SEINFRA",VLOOKUP(C136,'COMP. SEINFRA'!B:G,6,0))))))))) -> 1.2 | H136: 1.33 | I136: 13.3
A137: COTAÇÃO | B137: 5.2.8 | C137: COT. 19 | D137: =IF(A137="Comp. Sinapi",VLOOKUP(C137,'COMP SINAPI'!G:M,2,0),IF(A137="Comp. Seinfra",VLOOKUP(C137,'COMP. SEINFRA'!B:G,2,0),IF(A137="COMP. ORSE",VLOOKUP(C137,'COMP. ORSE'!A:D,2,0),IF(A137="Ins. Seinfra",VLOOKUP(C137,'INS. SEINFRA'!$A:$D,2,0),IF(A137="Ins. Sinapi",VLOOKUP(C137,'INS SINAPI'!A:E,2,0),IF(A137="Ins. Orse",VLOOKUP(C137,'INS. ORSE'!A:D,2,0),IF(A137="CPU CODEVASF",VLOOKUP(C137,CPU!B:I,4,0),IF(A137="COTAÇÃO",VLOOKUP(C137,COTAÇÃO!A:D,2,0))))))))) -> MUDA FRUTÍFERA UMBÚ CAJÁ - 01 LINHA DE 20 METROS - 5 METROS ENTRE PLANTAS - ESTRATÉGICO | E137: =IF(A137="CPU CODEVASF",VLOOKUP(C137,CPU!B:I,5,0),IF(A137="INS. SEINFRA",VLOOKUP(C137,'INS. SEINFRA'!A:D,3,0),IF(A137="INS. SINAPI",VLOOKUP(C137,'INS SINAPI'!A:E,3,0),IF(A137="COMP. SINAPI",VLOOKUP(C137,'COMP SINAPI'!G:M,3,0),IF(A137="INS. ORSE",VLOOKUP(C137,'INS. ORSE'!A:D,3,0),IF(A137="COTAÇÃO",VLOOKUP(C137,COTAÇÃO!A:D,3,0),IF(A137="COMP. ORSE",VLOOKUP(C137,'COMP. ORSE'!A:D,3,0),IF(A137="COMP. SEINFRA",VLOOKUP(C137,'COMP. SEINFRA'!B:G,5,0))))))))) -> UND | F137: 4 | G137: =IF(A137="CPU CODEVASF",VLOOKUP(C137,CPU!F:I,4,0),IF(A137="COTAÇÃO",VLOOKUP(C137,COTAÇÃO!A:D,4,0),IF(A137="INS. SEINFRA",VLOOKUP(C137,'INS. SEINFRA'!A:D,4,0),IF(A137="INS. SINAPI",VLOOKUP(C137,'INS SINAPI'!A:E,5,0),IF(A137="COMP. SINAPI",VLOOKUP(C137,'COMP SINAPI'!G:M,5,0),IF(A137="INS. ORSE",VLOOKUP(C137,'INS. ORSE'!A:D,4,0),IF(A137="COMP. ORSE",VLOOKUP(C137,'COMP. ORSE'!A:D,4,0),IF(A137="COMP. SEINFRA",VLOOKUP(C137,'COMP. SEINFRA'!B:G,6,0))))))))) -> 5 | H137: 5.57 | I137: 22.28
A138: COTAÇÃO | B138: 5.2.9 | C138: COT. 20 | D138: =IF(A138="Comp. Sinapi",VLOOKUP(C138,'COMP SINAPI'!G:M,2,0),IF(A138="Comp. Seinfra",VLOOKUP(C138,'COMP. SEINFRA'!B:G,2,0),IF(A138="COMP. ORSE",VLOOKUP(C138,'COMP. ORSE'!A:D,2,0),IF(A138="Ins. Seinfra",VLOOKUP(C138,'INS. SEINFRA'!$A:$D,2,0),IF(A138="Ins. Sinapi",VLOOKUP(C138,'INS SINAPI'!A:E,2,0),IF(A138="Ins. Orse",VLOOKUP(C138,'INS. ORSE'!A:D,2,0),IF(A138="CPU CODEVASF",VLOOKUP(C138,CPU!B:I,4,0),IF(A138="COTAÇÃO",VLOOKUP(C138,COTAÇÃO!A:D,2,0))))))))) -> MUDA FRUTÍFERA UMBÚ COMUM - 01 LINHAS DE 20 METROS - 5 METROS ENTRE PLANTAS - ESTRATÉGICO | E138: =IF(A138="CPU CODEVASF",VLOOKUP(C138,CPU!B:I,5,0),IF(A138="INS. SEINFRA",VLOOKUP(C138,'INS. SEINFRA'!A:D,3,0),IF(A138="INS. SINAPI",VLOOKUP(C138,'INS SINAPI'!A:E,3,0),IF(A138="COMP. SINAPI",VLOOKUP(C138,'COMP SINAPI'!G:M,3,0),IF(A138="INS. ORSE",VLOOKUP(C138,'INS. ORSE'!A:D,3,0),IF(A138="COTAÇÃO",VLOOKUP(C138,COTAÇÃO!A:D,3,0),IF(A138="COMP. ORSE",VLOOKUP(C138,'COMP. ORSE'!A:D,3,0),IF(A138="COMP. SEINFRA",VLOOKUP(C138,'COMP. SEINFRA'!B:G,5,0))))))))) -> UND | F138: 4 | G138: =IF(A138="CPU CODEVASF",VLOOKUP(C138,CPU!F:I,4,0),IF(A138="COTAÇÃO",VLOOKUP(C138,COTAÇÃO!A:D,4,0),IF(A138="INS. SEINFRA",VLOOKUP(C138,'INS. SEINFRA'!A:D,4,0),IF(A138="INS. SINAPI",VLOOKUP(C138,'INS SINAPI'!A:E,5,0),IF(A138="COMP. SINAPI",VLOOKUP(C138,'COMP SINAPI'!G:M,5,0),IF(A138="INS. ORSE",VLOOKUP(C138,'INS. ORSE'!A:D,4,0),IF(A138="COMP. ORSE",VLOOKUP(C138,'COMP. ORSE'!A:D,4,0),IF(A138="COMP. SEINFRA",VLOOKUP(C138,'COMP. SEINFRA'!B:G,6,0))))))))) -> 40 | H138: 44.56 | I138: 178.24
A139: COTAÇÃO | B139: 5.2.10 | C139: COT. 21 | D139: =IF(A139="Comp. Sinapi",VLOOKUP(C139,'COMP SINAPI'!G:M,2,0),IF(A139="Comp. Seinfra",VLOOKUP(C139,'COMP. SEINFRA'!B:G,2,0),IF(A139="COMP. ORSE",VLOOKUP(C139,'COMP. ORSE'!A:D,2,0),IF(A139="Ins. Seinfra",VLOOKUP(C139,'INS. SEINFRA'!$A:$D,2,0),IF(A139="Ins. Sinapi",VLOOKUP(C139,'INS SINAPI'!A:E,2,0),IF(A139="Ins. Orse",VLOOKUP(C139,'INS. ORSE'!A:D,2,0),IF(A139="CPU CODEVASF",VLOOKUP(C139,CPU!B:I,4,0),IF(A139="COTAÇÃO",VLOOKUP(C139,COTAÇÃO!A:D,2,0))))))))) -> MANGUEIRA DE GOTEJAMENTO P/ IRRIGAÇÃO 16MM, PN 20 | E139: =IF(A139="CPU CODEVASF",VLOOKUP(C139,CPU!B:I,5,0),IF(A139="INS. SEINFRA",VLOOKUP(C139,'INS. SEINFRA'!A:D,3,0),IF(A139="INS. SINAPI",VLOOKUP(C139,'INS SINAPI'!A:E,3,0),IF(A139="COMP. SINAPI",VLOOKUP(C139,'COMP SINAPI'!G:M,3,0),IF(A139="INS. ORSE",VLOOKUP(C139,'INS. ORSE'!A:D,3,0),IF(A139="COTAÇÃO",VLOOKUP(C139,COTAÇÃO!A:D,3,0),IF(A139="COMP. ORSE",VLOOKUP(C139,'COMP. ORSE'!A:D,3,0),IF(A139="COMP. SEINFRA",VLOOKUP(C139,'COMP. SEINFRA'!B:G,5,0))))))))) -> M | F139: 200 | G139: =IF(A139="CPU CODEVASF",VLOOKUP(C139,CPU!F:I,4,0),IF(A139="COTAÇÃO",VLOOKUP(C139,COTAÇÃO!A:D,4,0),IF(A139="INS. SEINFRA",VLOOKUP(C139,'INS. SEINFRA'!A:D,4,0),IF(A139="INS. SINAPI",VLOOKUP(C139,'INS SINAPI'!A:E,5,0),IF(A139="COMP. SINAPI",VLOOKUP(C139,'COMP SINAPI'!G:M,5,0),IF(A139="INS. ORSE",VLOOKUP(C139,'INS. ORSE'!A:D,4,0),IF(A139="COMP. ORSE",VLOOKUP(C139,'COMP. ORSE'!A:D,4,0),IF(A139="COMP. SEINFRA",VLOOKUP(C139,'COMP. SEINFRA'!B:G,6,0))))))))) -> 0.83 | H139: 0.92 | I139: 184
A140: COTAÇÃO | B140: 5.2.11 | C140: COT. 22 | D140: =IF(A140="Comp. Sinapi",VLOOKUP(C140,'COMP SINAPI'!G:M,2,0),IF(A140="Comp. Seinfra",VLOOKUP(C140,'COMP. SEINFRA'!B:G,2,0),IF(A140="COMP. ORSE",VLOOKUP(C140,'COMP. ORSE'!A:D,2,0),IF(A140="Ins. Seinfra",VLOOKUP(C140,'INS. SEINFRA'!$A:$D,2,0),IF(A140="Ins. Sinapi",VLOOKUP(C140,'INS SINAPI'!A:E,2,0),IF(A140="Ins. Orse",VLOOKUP(C140,'INS. ORSE'!A:D,2,0),IF(A140="CPU CODEVASF",VLOOKUP(C140,CPU!B:I,4,0),IF(A140="COTAÇÃO",VLOOKUP(C140,COTAÇÃO!A:D,2,0))))))))) -> REGISTRO EM PLÁSTICO PARA MANGUEIRA DE GOTEJAMENTO DE 1/2" COM CHULA | E140: =IF(A140="CPU CODEVASF",VLOOKUP(C140,CPU!B:I,5,0),IF(A140="INS. SEINFRA",VLOOKUP(C140,'INS. SEINFRA'!A:D,3,0),IF(A140="INS. SINAPI",VLOOKUP(C140,'INS SINAPI'!A:E,3,0),IF(A140="COMP. SINAPI",VLOOKUP(C140,'COMP SINAPI'!G:M,3,0),IF(A140="INS. ORSE",VLOOKUP(C140,'INS. ORSE'!A:D,3,0),IF(A140="COTAÇÃO",VLOOKUP(C140,COTAÇÃO!A:D,3,0),IF(A140="COMP. ORSE",VLOOKUP(C140,'COMP. ORSE'!A:D,3,0),IF(A140="COMP. SEINFRA",VLOOKUP(C140,'COMP. SEINFRA'!B:G,5,0))))))))) -> UND | F140: 10 | G140: =IF(A140="CPU CODEVASF",VLOOKUP(C140,CPU!F:I,4,0),IF(A140="COTAÇÃO",VLOOKUP(C140,COTAÇÃO!A:D,4,0),IF(A140="INS. SEINFRA",VLOOKUP(C140,'INS. SEINFRA'!A:D,4,0),IF(A140="INS. SINAPI",VLOOKUP(C140,'INS SINAPI'!A:E,5,0),IF(A140="COMP. SINAPI",VLOOKUP(C140,'COMP SINAPI'!G:M,5,0),IF(A140="INS. ORSE",VLOOKUP(C140,'INS. ORSE'!A:D,4,0),IF(A140="COMP. ORSE",VLOOKUP(C140,'COMP. ORSE'!A:D,4,0),IF(A140="COMP. SEINFRA",VLOOKUP(C140,'COMP. SEINFRA'!B:G,6,0))))))))) -> 3.23 | H140: 3.59 | I140: 35.9
A141: MÓDULO 5 - HORTALIÇAS - (16 CANTEIROS DE 5,00m x 1,00m)
B142: 6.1 | D142: Serviços | I142: =SUM(I143) -> 422.5 | J142: =G130-H134 -> -7.14
A143: Comp. Sinapi | B143: 6.1.1 | C143: 98519 | D143: =IF(A143="Comp. Sinapi",VLOOKUP(C143,'COMP SINAPI'!G:M,2,0),IF(A143="Comp. Seinfra",VLOOKUP(C143,'COMP. SEINFRA'!B:G,2,0),IF(A143="COMP. ORSE",VLOOKUP(C143,'COMP. ORSE'!A:D,2,0),IF(A143="Ins. Seinfra",VLOOKUP(C143,'INS. SEINFRA'!$A:$D,2,0),IF(A143="Ins. Sinapi",VLOOKUP(C143,'INS SINAPI'!A:E,2,0),IF(A143="Ins. Orse",VLOOKUP(C143,'INS. ORSE'!A:D,2,0))))))) -> REVOLVIMENTO E LIMPEZA MANUAL DE SOLO. AF_05/2018 | E143: =IF(A143="CPU CODEVASF",VLOOKUP(C143,CPU!B:I,5,0),IF(A143="INS. SEINFRA",VLOOKUP(C143,'INS. SEINFRA'!A:D,3,0),IF(A143="INS. SINAPI",VLOOKUP(C143,'INS SINAPI'!A:E,3,0),IF(A143="COMP. SINAPI",VLOOKUP(C143,'COMP SINAPI'!G:M,3,0),IF(A143="INS. ORSE",VLOOKUP(C143,'INS. ORSE'!A:D,3,0),IF(A143="COTAÇÃO",VLOOKUP(C143,COTAÇÃO!A:D,3,0),IF(A143="COMP. ORSE",VLOOKUP(C143,'COMP. ORSE'!A:D,3,0),IF(A143="COMP. SEINFRA",VLOOKUP(C143,'COMP. SEINFRA'!B:G,5,0))))))))) -> M2 | F143: 169 | G143: =IF(A143="CPU CODEVASF",VLOOKUP(C143,CPU!F:I,4,0),IF(A143="COTAÇÃO",VLOOKUP(C143,COTAÇÃO!A:D,4,0),IF(A143="INS. SEINFRA",VLOOKUP(C143,'INS. SEINFRA'!A:D,4,0),IF(A143="INS. SINAPI",VLOOKUP(C143,'INS SINAPI'!A:E,5,0),IF(A143="COMP. SINAPI",VLOOKUP(C143,'COMP SINAPI'!G:M,5,0),IF(A143="INS. ORSE",VLOOKUP(C143,'INS. ORSE'!A:D,4,0),IF(A143="COMP. ORSE",VLOOKUP(C143,'COMP. ORSE'!A:D,4,0),IF(A143="COMP. SEINFRA",VLOOKUP(C143,'COMP. SEINFRA'!B:G,6,0))))))))) -> 2,03 | H143: =TRUNC(G143*(1+$F$10),2) -> 2.5 | I143: =TRUNC(H143*F143,2) -> 422.5
B144: 6.2 | D144: Materiais e Equipamentos | I144: =SUM(I145:I155) -> 1509.59
A145: COTAÇÃO | B145: 6.2.1 | C145: COT. 23 | D145: =IF(A145="Comp. Sinapi",VLOOKUP(C145,'COMP SINAPI'!G:M,2,0),IF(A145="Comp. Seinfra",VLOOKUP(C145,'COMP. SEINFRA'!B:G,2,0),IF(A145="COMP. ORSE",VLOOKUP(C145,'COMP. ORSE'!A:D,2,0),IF(A145="Ins. Seinfra",VLOOKUP(C145,'INS. SEINFRA'!$A:$D,2,0),IF(A145="Ins. Sinapi",VLOOKUP(C145,'INS SINAPI'!A:E,2,0),IF(A145="Ins. Orse",VLOOKUP(C145,'INS. ORSE'!A:D,2,0),IF(A145="CPU CODEVASF",VLOOKUP(C145,CPU!B:I,4,0),IF(A145="COTAÇÃO",VLOOKUP(C145,COTAÇÃO!A:D,2,0))))))))) -> SEMENTE DE ALFACE CRESPA GRAND RÁPIDA (PACOTE COM 50G) | E145: =IF(A145="CPU CODEVASF",VLOOKUP(C145,CPU!B:I,5,0),IF(A145="INS. SEINFRA",VLOOKUP(C145,'INS. SEINFRA'!A:D,3,0),IF(A145="INS. SINAPI",VLOOKUP(C145,'INS SINAPI'!A:E,3,0),IF(A145="COMP. SINAPI",VLOOKUP(C145,'COMP SINAPI'!G:M,3,0),IF(A145="INS. ORSE",VLOOKUP(C145,'INS. ORSE'!A:D,3,0),IF(A145="COTAÇÃO",VLOOKUP(C145,COTAÇÃO!A:D,3,0),IF(A145="COMP. ORSE",VLOOKUP(C145,'COMP. ORSE'!A:D,3,0),IF(A145="COMP. SEINFRA",VLOOKUP(C145,'COMP. SEINFRA'!B:G,5,0))))))))) -> UND | F145: 1 | G145: =IF(A145="CPU CODEVASF",VLOOKUP(C145,CPU!F:I,4,0),IF(A145="COTAÇÃO",VLOOKUP(C145,COTAÇÃO!A:D,4,0),IF(A145="INS. SEINFRA",VLOOKUP(C145,'INS. SEINFRA'!A:D,4,0),IF(A145="INS. SINAPI",VLOOKUP(C145,'INS SINAPI'!A:E,5,0),IF(A145="COMP. SINAPI",VLOOKUP(C145,'COMP SINAPI'!G:M,5,0),IF(A145="INS. ORSE",VLOOKUP(C145,'INS. ORSE'!A:D,4,0),IF(A145="COMP. ORSE",VLOOKUP(C145,'COMP. ORSE'!A:D,4,0),IF(A145="COMP. SEINFRA",VLOOKUP(C145,'COMP. SEINFRA'!B:G,6,0))))))))) -> 47.5 | H145: =TRUNC(G145*(1+$I$10),2) -> 52.91 | I145: 52.91
A146: COTAÇÃO | B146: 6.2.2 | C146: COT. 24 | D146: =IF(A146="Comp. Sinapi",VLOOKUP(C146,'COMP SINAPI'!G:M,2,0),IF(A146="Comp. Seinfra",VLOOKUP(C146,'COMP. SEINFRA'!B:G,2,0),IF(A146="COMP. ORSE",VLOOKUP(C146,'COMP. ORSE'!A:D,2,0),IF(A146="Ins. Seinfra",VLOOKUP(C146,'INS. SEINFRA'!$A:$D,2,0),IF(A146="Ins. Sinapi",VLOOKUP(C146,'INS SINAPI'!A:E,2,0),IF(A146="Ins. Orse",VLOOKUP(C146,'INS. ORSE'!A:D,2,0),IF(A146="CPU CODEVASF",VLOOKUP(C146,CPU!B:I,4,0),IF(A146="COTAÇÃO",VLOOKUP(C146,COTAÇÃO!A:D,2,0))))))))) -> SEMENTE DE TOMATE CEREJA (PACOTE COM 50G) | E146: =IF(A146="CPU CODEVASF",VLOOKUP(C146,CPU!B:I,5,0),IF(A146="INS. SEINFRA",VLOOKUP(C146,'INS. SEINFRA'!A:D,3,0),IF(A146="INS. SINAPI",VLOOKUP(C146,'INS SINAPI'!A:E,3,0),IF(A146="COMP. SINAPI",VLOOKUP(C146,'COMP SINAPI'!G:M,3,0),IF(A146="INS. ORSE",VLOOKUP(C146,'INS. ORSE'!A:D,3,0),IF(A146="COTAÇÃO",VLOOKUP(C146,COTAÇÃO!A:D,3,0),IF(A146="COMP. ORSE",VLOOKUP(C146,'COMP. ORSE'!A:D,3,0),IF(A146="COMP. SEINFRA",VLOOKUP(C146,'COMP. SEINFRA'!B:G,5,0))))))))) -> UND | F146: 1 | G146: =IF(A146="CPU CODEVASF",VLOOKUP(C146,CPU!F:I,4,0),IF(A146="COTAÇÃO",VLOOKUP(C146,COTAÇÃO!A:D,4,0),IF(A146="INS. SEINFRA",VLOOKUP(C146,'INS. SEINFRA'!A:D,4,0),IF(A146="INS. SINAPI",VLOOKUP(C146,'INS SINAPI'!A:E,5,0),IF(A146="COMP. SINAPI",VLOOKUP(C146,'COMP SINAPI'!G:M,5,0),IF(A146="INS. ORSE",VLOOKUP(C146,'INS. ORSE'!A:D,4,0),IF(A146="COMP. ORSE",VLOOKUP(C146,'COMP. ORSE'!A:D,4,0),IF(A146="COMP. SEINFRA",VLOOKUP(C146,'COMP. SEINFRA'!B:G,6,0))))))))) -> 121.44 | H146: 135.28 | I146: 135.28
A147: COTAÇÃO | B147: 6.2.3 | C147: COT. 25 | D147: =IF(A147="Comp. Sinapi",VLOOKUP(C147,'COMP SINAPI'!G:M,2,0),IF(A147="Comp. Seinfra",VLOOKUP(C147,'COMP. SEINFRA'!B:G,2,0),IF(A147="COMP. ORSE",VLOOKUP(C147,'COMP. ORSE'!A:D,2,0),IF(A147="Ins. Seinfra",VLOOKUP(C147,'INS. SEINFRA'!$A:$D,2,0),IF(A147="Ins. Sinapi",VLOOKUP(C147,'INS SINAPI'!A:E,2,0),IF(A147="Ins. Orse",VLOOKUP(C147,'INS. ORSE'!A:D,2,0),IF(A147="CPU CODEVASF",VLOOKUP(C147,CPU!B:I,4,0),IF(A147="COTAÇÃO",VLOOKUP(C147,COTAÇÃO!A:D,2,0))))))))) -> SEMENTE DE CEBOLINHA (PACOTE COM 50G) | E147: =IF(A147="CPU CODEVASF",VLOOKUP(C147,CPU!B:I,5,0),IF(A147="INS. SEINFRA",VLOOKUP(C147,'INS. SEINFRA'!A:D,3,0),IF(A147="INS. SINAPI",VLOOKUP(C147,'INS SINAPI'!A:E,3,0),IF(A147="COMP. SINAPI",VLOOKUP(C147,'COMP SINAPI'!G:M,3,0),IF(A147="INS. ORSE",VLOOKUP(C147,'INS. ORSE'!A:D,3,0),IF(A147="COTAÇÃO",VLOOKUP(C147,COTAÇÃO!A:D,3,0),IF(A147="COMP. ORSE",VLOOKUP(C147,'COMP. ORSE'!A:D,3,0),IF(A147="COMP. SEINFRA",VLOOKUP(C147,'COMP. SEINFRA'!B:G,5,0))))))))) -> UND | F147: 1 | G147: =IF(A147="CPU CODEVASF",VLOOKUP(C147,CPU!F:I,4,0),IF(A147="COTAÇÃO",VLOOKUP(C147,COTAÇÃO!A:D,4,0),IF(A147="INS. SEINFRA",VLOOKUP(C147,'INS. SEINFRA'!A:D,4,0),IF(A147="INS. SINAPI",VLOOKUP(C147,'INS SINAPI'!A:E,5,0),IF(A147="COMP. SINAPI",VLOOKUP(C147,'COMP SINAPI'!G:M,5,0),IF(A147="INS. ORSE",VLOOKUP(C147,'INS. ORSE'!A:D,4,0),IF(A147="COMP. ORSE",VLOOKUP(C147,'COMP. ORSE'!A:D,4,0),IF(A147="COMP. SEINFRA",VLOOKUP(C147,'COMP. SEINFRA'!B:G,6,0))))))))) -> 70 | H147: 77.98 | I147: 77.98
A148: COTAÇÃO | B148: 6.2.4 | C148: COT. 26 | D148: =IF(A148="Comp. Sinapi",VLOOKUP(C148,'COMP SINAPI'!G:M,2,0),IF(A148="Comp. Seinfra",VLOOKUP(C148,'COMP. SEINFRA'!B:G,2,0),IF(A148="COMP. ORSE",VLOOKUP(C148,'COMP. ORSE'!A:D,2,0),IF(A148="Ins. Seinfra",VLOOKUP(C148,'INS. SEINFRA'!$A:$D,2,0),IF(A148="Ins. Sinapi",VLOOKUP(C148,'INS SINAPI'!A:E,2,0),IF(A148="Ins. Orse",VLOOKUP(C148,'INS. ORSE'!A:D,2,0),IF(A148="CPU CODEVASF",VLOOKUP(C148,CPU!B:I,4,0),IF(A148="COTAÇÃO",VLOOKUP(C148,COTAÇÃO!A:D,2,0))))))))) -> SEMENTE DE COENTRO VERDÃO COMUM | E148: =IF(A148="CPU CODEVASF",VLOOKUP(C148,CPU!B:I,5,0),IF(A148="INS. SEINFRA",VLOOKUP(C148,'INS. SEINFRA'!A:D,3,0),IF(A148="INS. SINAPI",VLOOKUP(C148,'INS SINAPI'!A:E,3,0),IF(A148="COMP. SINAPI",VLOOKUP(C148,'COMP SINAPI'!G:M,3,0),IF(A148="INS. ORSE",VLOOKUP(C148,'INS. ORSE'!A:D,3,0),IF(A148="COTAÇÃO",VLOOKUP(C148,COTAÇÃO!A:D,3,0),IF(A148="COMP. ORSE",VLOOKUP(C148,'COMP. ORSE'!A:D,3,0),IF(A148="COMP. SEINFRA",VLOOKUP(C148,'COMP. SEINFRA'!B:G,5,0))))))))) -> KG | F148: 2 | G148: =IF(A148="CPU CODEVASF",VLOOKUP(C148,CPU!F:I,4,0),IF(A148="COTAÇÃO",VLOOKUP(C148,COTAÇÃO!A:D,4,0),IF(A148="INS. SEINFRA",VLOOKUP(C148,'INS. SEINFRA'!A:D,4,0),IF(A148="INS. SINAPI",VLOOKUP(C148,'INS SINAPI'!A:E,5,0),IF(A148="COMP. SINAPI",VLOOKUP(C148,'COMP SINAPI'!G:M,5,0),IF(A148="INS. ORSE",VLOOKUP(C148,'INS. ORSE'!A:D,4,0),IF(A148="COMP. ORSE",VLOOKUP(C148,'COMP. ORSE'!A:D,4,0),IF(A148="COMP. SEINFRA",VLOOKUP(C148,'COMP. SEINFRA'!B:G,6,0))))))))) -> 38 | H148: 42.33 | I148: 84.66
A149: COTAÇÃO | B149: 6.2.5 | C149: COT. 27 | D149: =IF(A149="Comp. Sinapi",VLOOKUP(C149,'COMP SINAPI'!G:M,2,0),IF(A149="Comp. Seinfra",VLOOKUP(C149,'COMP. SEINFRA'!B:G,2,0),IF(A149="COMP. ORSE",VLOOKUP(C149,'COMP. ORSE'!A:D,2,0),IF(A149="Ins. Seinfra",VLOOKUP(C149,'INS. SEINFRA'!$A:$D,2,0),IF(A149="Ins. Sinapi",VLOOKUP(C149,'INS SINAPI'!A:E,2,0),IF(A149="Ins. Orse",VLOOKUP(C149,'INS. ORSE'!A:D,2,0),IF(A149="CPU CODEVASF",VLOOKUP(C149,CPU!B:I,4,0),IF(A149="COTAÇÃO",VLOOKUP(C149,COTAÇÃO!A:D,2,0))))))))) -> SEMENTE DE COUVE MANTEIGA (PACOTE COM 50G) | E149: =IF(A149="CPU CODEVASF",VLOOKUP(C149,CPU!B:I,5,0),IF(A149="INS. SEINFRA",VLOOKUP(C149,'INS. SEINFRA'!A:D,3,0),IF(A149="INS. SINAPI",VLOOKUP(C149,'INS SINAPI'!A:E,3,0),IF(A149="COMP. SINAPI",VLOOKUP(C149,'COMP SINAPI'!G:M,3,0),IF(A149="INS. ORSE",VLOOKUP(C149,'INS. ORSE'!A:D,3,0),IF(A149="COTAÇÃO",VLOOKUP(C149,COTAÇÃO!A:D,3,0),IF(A149="COMP. ORSE",VLOOKUP(C149,'COMP. ORSE'!A:D,3,0),IF(A149="COMP. SEINFRA",VLOOKUP(C149,'COMP. SEINFRA'!B:G,5,0))))))))) -> UND | F149: 1 | G149: =IF(A149="CPU CODEVASF",VLOOKUP(C149,CPU!F:I,4,0),IF(A149="COTAÇÃO",VLOOKUP(C149,COTAÇÃO!A:D,4,0),IF(A149="INS. SEINFRA",VLOOKUP(C149,'INS. SEINFRA'!A:D,4,0),IF(A149="INS. SINAPI",VLOOKUP(C149,'INS SINAPI'!A:E,5,0),IF(A149="COMP. SINAPI",VLOOKUP(C149,'COMP SINAPI'!G:M,5,0),IF(A149="INS. ORSE",VLOOKUP(C149,'INS. ORSE'!A:D,4,0),IF(A149="COMP. ORSE",VLOOKUP(C149,'COMP. ORSE'!A:D,4,0),IF(A149="COMP. SEINFRA",VLOOKUP(C149,'COMP. SEINFRA'!B:G,6,0))))))))) -> 26.5 | H149: 29.52 | I149: 29.52
A150: COTAÇÃO | B150: 6.2.6 | C150: COT. 28 | D150: =IF(A150="Comp. Sinapi",VLOOKUP(C150,'COMP SINAPI'!G:M,2,0),IF(A150="Comp. Seinfra",VLOOKUP(C150,'COMP. SEINFRA'!B:G,2,0),IF(A150="COMP. ORSE",VLOOKUP(C150,'COMP. ORSE'!A:D,2,0),IF(A150="Ins. Seinfra",VLOOKUP(C150,'INS. SEINFRA'!$A:$D,2,0),IF(A150="Ins. Sinapi",VLOOKUP(C150,'INS SINAPI'!A:E,2,0),IF(A150="Ins. Orse",VLOOKUP(C150,'INS. ORSE'!A:D,2,0),IF(A150="CPU CODEVASF",VLOOKUP(C150,CPU!B:I,4,0),IF(A150="COTAÇÃO",VLOOKUP(C150,COTAÇÃO!A:D,2,0))))))))) -> SEMENTE DE PIMENTÃO VERDE (PACOTE COM 50G) | E150: =IF(A150="CPU CODEVASF",VLOOKUP(C150,CPU!B:I,5,0),IF(A150="INS. SEINFRA",VLOOKUP(C150,'INS. SEINFRA'!A:D,3,0),IF(A150="INS. SINAPI",VLOOKUP(C150,'INS SINAPI'!A:E,3,0),IF(A150="COMP. SINAPI",VLOOKUP(C150,'COMP SINAPI'!G:M,3,0),IF(A150="INS. ORSE",VLOOKUP(C150,'INS. ORSE'!A:D,3,0),IF(A150="COTAÇÃO",VLOOKUP(C150,COTAÇÃO!A:D,3,0),IF(A150="COMP. ORSE",VLOOKUP(C150,'COMP. ORSE'!A:D,3,0),IF(A150="COMP. SEINFRA",VLOOKUP(C150,'COMP. SEINFRA'!B:G,5,0))))))))) -> UND | F150: 1 | G150: =IF(A150="CPU CODEVASF",VLOOKUP(C150,CPU!F:I,4,0),IF(A150="COTAÇÃO",VLOOKUP(C150,COTAÇÃO!A:D,4,0),IF(A150="INS. SEINFRA",VLOOKUP(C150,'INS. SEINFRA'!A:D,4,0),IF(A150="INS. SINAPI",VLOOKUP(C150,'INS SINAPI'!A:E,5,0),IF(A150="COMP. SINAPI",VLOOKUP(C150,'COMP SINAPI'!G:M,5,0),IF(A150="INS. ORSE",VLOOKUP(C150,'INS. ORSE'!A:D,4,0),IF(A150="COMP. ORSE",VLOOKUP(C150,'COMP. ORSE'!A:D,4,0),IF(A150="COMP. SEINFRA",VLOOKUP(C150,'COMP. SEINFRA'!B:G,6,0))))))))) -> 62.5 | H150: 69.62 | I150: 69.62
A151: COTAÇÃO | B151: 6.2.7 | C151: COT. 29 | D151: =IF(A151="Comp. Sinapi",VLOOKUP(C151,'COMP SINAPI'!G:M,2,0),IF(A151="Comp. Seinfra",VLOOKUP(C151,'COMP. SEINFRA'!B:G,2,0),IF(A151="COMP. ORSE",VLOOKUP(C151,'COMP. ORSE'!A:D,2,0),IF(A151="Ins. Seinfra",VLOOKUP(C151,'INS. SEINFRA'!$A:$D,2,0),IF(A151="Ins. Sinapi",VLOOKUP(C151,'INS SINAPI'!A:E,2,0),IF(A151="Ins. Orse",VLOOKUP(C151,'INS. ORSE'!A:D,2,0),IF(A151="CPU CODEVASF",VLOOKUP(C151,CPU!B:I,4,0),IF(A151="COTAÇÃO",VLOOKUP(C151,COTAÇÃO!A:D,2,0))))))))) -> SEMENTE DE CENOURA (PACOTE COM 50G) | E151: =IF(A151="CPU CODEVASF",VLOOKUP(C151,CPU!B:I,5,0),IF(A151="INS. SEINFRA",VLOOKUP(C151,'INS. SEINFRA'!A:D,3,0),IF(A151="INS. SINAPI",VLOOKUP(C151,'INS SINAPI'!A:E,3,0),IF(A151="COMP. SINAPI",VLOOKUP(C151,'COMP SINAPI'!G:M,3,0),IF(A151="INS. ORSE",VLOOKUP(C151,'INS. ORSE'!A:D,3,0),IF(A151="COTAÇÃO",VLOOKUP(C151,COTAÇÃO!A:D,3,0),IF(A151="COMP. ORSE",VLOOKUP(C151,'COMP. ORSE'!A:D,3,0),IF(A151="COMP. SEINFRA",VLOOKUP(C151,'COMP. SEINFRA'!B:G,5,0))))))))) -> UND | F151: 1 | G151: =IF(A151="CPU CODEVASF",VLOOKUP(C151,CPU!F:I,4,0),IF(A151="COTAÇÃO",VLOOKUP(C151,COTAÇÃO!A:D,4,0),IF(A151="INS. SEINFRA",VLOOKUP(C151,'INS. SEINFRA'!A:D,4,0),IF(A151="INS. SINAPI",VLOOKUP(C151,'INS SINAPI'!A:E,5,0),IF(A151="COMP. SINAPI",VLOOKUP(C151,'COMP SINAPI'!G:M,5,0),IF(A151="INS. ORSE",VLOOKUP(C151,'INS. ORSE'!A:D,4,0),IF(A151="COMP. ORSE",VLOOKUP(C151,'COMP. ORSE'!A:D,4,0),IF(A151="COMP. SEINFRA",VLOOKUP(C151,'COMP. SEINFRA'!B:G,6,0))))))))) -> 24.5 | H151: 27.29 | I151: 27.29
A152: COTAÇÃO | B152: 6.2.8 | C152: COT. 30 | D152: =IF(A152="Comp. Sinapi",VLOOKUP(C152,'COMP SINAPI'!G:M,2,0),IF(A152="Comp. Seinfra",VLOOKUP(C152,'COMP. SEINFRA'!B:G,2,0),IF(A152="COMP. ORSE",VLOOKUP(C152,'COMP. ORSE'!A:D,2,0),IF(A152="Ins. Seinfra",VLOOKUP(C152,'INS. SEINFRA'!$A:$D,2,0),IF(A152="Ins. Sinapi",VLOOKUP(C152,'INS SINAPI'!A:E,2,0),IF(A152="Ins. Orse",VLOOKUP(C152,'INS. ORSE'!A:D,2,0),IF(A152="CPU CODEVASF",VLOOKUP(C152,CPU!B:I,4,0),IF(A152="COTAÇÃO",VLOOKUP(C152,COTAÇÃO!A:D,2,0))))))))) -> SEMENTE DE BETERRABA (PACOTE COM 50G) | E152: =IF(A152="CPU CODEVASF",VLOOKUP(C152,CPU!B:I,5,0),IF(A152="INS. SEINFRA",VLOOKUP(C152,'INS. SEINFRA'!A:D,3,0),IF(A152="INS. SINAPI",VLOOKUP(C152,'INS SINAPI'!A:E,3,0),IF(A152="COMP. SINAPI",VLOOKUP(C152,'COMP SINAPI'!G:M,3,0),IF(A152="INS. ORSE",VLOOKUP(C152,'INS. ORSE'!A:D,3,0),IF(A152="COTAÇÃO",VLOOKUP(C152,COTAÇÃO!A:D,3,0),IF(A152="COMP. ORSE",VLOOKUP(C152,'COMP. ORSE'!A:D,3,0),IF(A152="COMP. SEINFRA",VLOOKUP(C152,'COMP. SEINFRA'!B:G,5,0))))))))) -> UND | F152: 1 | G152: =IF(A152="CPU CODEVASF",VLOOKUP(C152,CPU!F:I,4,0),IF(A152="COTAÇÃO",VLOOKUP(C152,COTAÇÃO!A:D,4,0),IF(A152="INS. SEINFRA",VLOOKUP(C152,'INS. SEINFRA'!A:D,4,0),IF(A152="INS. SINAPI",VLOOKUP(C152,'INS SINAPI'!A:E,5,0),IF(A152="COMP. SINAPI",VLOOKUP(C152,'COMP SINAPI'!G:M,5,0),IF(A152="INS. ORSE",VLOOKUP(C152,'INS. ORSE'!A:D,4,0),IF(A152="COMP. ORSE",VLOOKUP(C152,'COMP. ORSE'!A:D,4,0),IF(A152="COMP. SEINFRA",VLOOKUP(C152,'COMP. SEINFRA'!B:G,6,0))))))))) -> 25 | H152: 27.85 | I152: 27.85
A153: Ins. Orse | B153: 6.2.9 | C153: 140 | D153: =IF(A153="Comp. Sinapi",VLOOKUP(C153,'COMP SINAPI'!G:M,2,0),IF(A153="Comp. Seinfra",VLOOKUP(C153,'COMP. SEINFRA'!B:G,2,0),IF(A153="COMP. ORSE",VLOOKUP(C153,'COMP. ORSE'!A:D,2,0),IF(A153="Ins. Seinfra",VLOOKUP(C153,'INS. SEINFRA'!$A:$D,2,0),IF(A153="Ins. Sinapi",VLOOKUP(C153,'INS SINAPI'!A:E,2,0),IF(A153="Ins. Orse",VLOOKUP(C153,'INS. ORSE'!A:D,2,0),IF(A153="CPU CODEVASF",VLOOKUP(C153,CPU!B:I,4,0),IF(A153="COTAÇÃO",VLOOKUP(C153,COTAÇÃO!A:D,2,0))))))))) -> Adubo orgânico bovino, cacau ou similar | E153: =IF(A153="CPU CODEVASF",VLOOKUP(C153,CPU!B:I,5,0),IF(A153="INS. SEINFRA",VLOOKUP(C153,'INS. SEINFRA'!A:D,3,0),IF(A153="INS. SINAPI",VLOOKUP(C153,'INS SINAPI'!A:E,3,0),IF(A153="COMP. SINAPI",VLOOKUP(C153,'COMP SINAPI'!G:M,3,0),IF(A153="INS. ORSE",VLOOKUP(C153,'INS. ORSE'!A:D,3,0),IF(A153="COTAÇÃO",VLOOKUP(C153,COTAÇÃO!A:D,3,0),IF(A153="COMP. ORSE",VLOOKUP(C153,'COMP. ORSE'!A:D,3,0),IF(A153="COMP. SEINFRA",VLOOKUP(C153,'COMP. SEINFRA'!B:G,5,0))))))))) -> M³ | F153: ='[1]Memória de Cálculo'!$L$108 -> 22.8 | G153: =IF(A153="CPU CODEVASF",VLOOKUP(C153,CPU!F:I,4,0),IF(A153="COTAÇÃO",VLOOKUP(C153,COTAÇÃO!A:D,4,0),IF(A153="INS. SEINFRA",VLOOKUP(C153,'INS. SEINFRA'!A:D,4,0),IF(A153="INS. SINAPI",VLOOKUP(C153,'INS SINAPI'!A:E,5,0),IF(A153="COMP. SINAPI",VLOOKUP(C153,'COMP SINAPI'!G:M,5,0),IF(A153="INS. ORSE",VLOOKUP(C153,'INS. ORSE'!A:D,4,0),IF(A153="COMP. ORSE",VLOOKUP(C153,'COMP. ORSE'!A:D,4,0),IF(A153="COMP. SEINFRA",VLOOKUP(C153,'COMP. SEINFRA'!B:G,6,0))))))))) -> 22.67 | H153: 25.25 | I153: 575.7
A154: COTAÇÃO | B154: 6.2.10 | C154: COT. 21 | D154: =IF(A154="Comp. Sinapi",VLOOKUP(C154,'COMP SINAPI'!G:M,2,0),IF(A154="Comp. Seinfra",VLOOKUP(C154,'COMP. SEINFRA'!B:G,2,0),IF(A154="COMP. ORSE",VLOOKUP(C154,'COMP. ORSE'!A:D,2,0),IF(A154="Ins. Seinfra",VLOOKUP(C154,'INS. SEINFRA'!$A:$D,2,0),IF(A154="Ins. Sinapi",VLOOKUP(C154,'INS SINAPI'!A:E,2,0),IF(A154="Ins. Orse",VLOOKUP(C154,'INS. ORSE'!A:D,2,0),IF(A154="CPU CODEVASF",VLOOKUP(C154,CPU!B:I,4,0),IF(A154="COTAÇÃO",VLOOKUP(C154,COTAÇÃO!A:D,2,0))))))))) -> MANGUEIRA DE GOTEJAMENTO P/ IRRIGAÇÃO 16MM, PN 20 | E154: =IF(A154="CPU CODEVASF",VLOOKUP(C154,CPU!B:I,5,0),IF(A154="INS. SEINFRA",VLOOKUP(C154,'INS. SEINFRA'!A:D,3,0),IF(A154="INS. SINAPI",VLOOKUP(C154,'INS SINAPI'!A:E,3,0),IF(A154="COMP. SINAPI",VLOOKUP(C154,'COMP SINAPI'!G:M,3,0),IF(A154="INS. ORSE",VLOOKUP(C154,'INS. ORSE'!A:D,3,0),IF(A154="COTAÇÃO",VLOOKUP(C154,COTAÇÃO!A:D,3,0),IF(A154="COMP. ORSE",VLOOKUP(C154,'COMP. ORSE'!A:D,3,0),IF(A154="COMP. SEINFRA",VLOOKUP(C154,'COMP. SEINFRA'!B:G,5,0))))))))) -> M | F154: 349 | G154: =IF(A154="CPU CODEVASF",VLOOKUP(C154,CPU!F:I,4,0),IF(A154="COTAÇÃO",VLOOKUP(C154,COTAÇÃO!A:D,4,0),IF(A154="INS. SEINFRA",VLOOKUP(C154,'INS. SEINFRA'!A:D,4,0),IF(A154="INS. SINAPI",VLOOKUP(C154,'INS SINAPI'!A:E,5,0),IF(A154="COMP. SINAPI",VLOOKUP(C154,'COMP SINAPI'!G:M,5,0),IF(A154="INS. ORSE",VLOOKUP(C154,'INS. ORSE'!A:D,4,0),IF(A154="COMP. ORSE",VLOOKUP(C154,'COMP. ORSE'!A:D,4,0),IF(A154="COMP. SEINFRA",VLOOKUP(C154,'COMP. SEINFRA'!B:G,6,0))))))))) -> 0.83 | H154: 0.92 | I154: 321.08
A155: COTAÇÃO | B155: 6.2.11 | C155: COT. 22 | D155: =IF(A155="Comp. Sinapi",VLOOKUP(C155,'COMP SINAPI'!G:M,2,0),IF(A155="Comp. Seinfra",VLOOKUP(C155,'COMP. SEINFRA'!B:G,2,0),IF(A155="COMP. ORSE",VLOOKUP(C155,'COMP. ORSE'!A:D,2,0),IF(A155="Ins. Seinfra",VLOOKUP(C155,'INS. SEINFRA'!$A:$D,2,0),IF(A155="Ins. Sinapi",VLOOKUP(C155,'INS SINAPI'!A:E,2,0),IF(A155="Ins. Orse",VLOOKUP(C155,'INS. ORSE'!A:D,2,0),IF(A155="CPU CODEVASF",VLOOKUP(C155,CPU!B:I,4,0),IF(A155="COTAÇÃO",VLOOKUP(C155,COTAÇÃO!A:D,2,0))))))))) -> REGISTRO EM PLÁSTICO PARA MANGUEIRA DE GOTEJAMENTO DE 1/2" COM CHULA | E155: =IF(A155="CPU CODEVASF",VLOOKUP(C155,CPU!B:I,5,0),IF(A155="INS. SEINFRA",VLOOKUP(C155,'INS. SEINFRA'!A:D,3,0),IF(A155="INS. SINAPI",VLOOKUP(C155,'INS SINAPI'!A:E,3,0),IF(A155="COMP. SINAPI",VLOOKUP(C155,'COMP SINAPI'!G:M,3,0),IF(A155="INS. ORSE",VLOOKUP(C155,'INS. ORSE'!A:D,3,0),IF(A155="COTAÇÃO",VLOOKUP(C155,COTAÇÃO!A:D,3,0),IF(A155="COMP. ORSE",VLOOKUP(C155,'COMP. ORSE'!A:D,3,0),IF(A155="COMP. SEINFRA",VLOOKUP(C155,'COMP. SEINFRA'!B:G,5,0))))))))) -> UND | F155: 30 | G155: =IF(A155="CPU CODEVASF",VLOOKUP(C155,CPU!F:I,4,0),IF(A155="COTAÇÃO",VLOOKUP(C155,COTAÇÃO!A:D,4,0),IF(A155="INS. SEINFRA",VLOOKUP(C155,'INS. SEINFRA'!A:D,4,0),IF(A155="INS. SINAPI",VLOOKUP(C155,'INS SINAPI'!A:E,5,0),IF(A155="COMP. SINAPI",VLOOKUP(C155,'COMP SINAPI'!G:M,5,0),IF(A155="INS. ORSE",VLOOKUP(C155,'INS. ORSE'!A:D,4,0),IF(A155="COMP. ORSE",VLOOKUP(C155,'COMP. ORSE'!A:D,4,0),IF(A155="COMP. SEINFRA",VLOOKUP(C155,'COMP. SEINFRA'!B:G,6,0))))))))) -> 3.23 | H155: 3.59 | I155: 107.7
A156: MÓDULO 6 - CARBOIDRATOS - PLANTIO ESCALONADO
B157: 7.1 | D157: Serviços | I157: =SUM(I158) -> 621 | J157: =G145-H149 -> 17.98
A158: Comp. Seinfra | B158: 7.1.1 | C158: C2235 | D158: =IF(A158="Comp. Sinapi",VLOOKUP(C158,'COMP SINAPI'!G:M,2,0),IF(A158="Comp. Seinfra",VLOOKUP(C158,'COMP. SEINFRA'!B:G,2,0),IF(A158="COMP. ORSE",VLOOKUP(C158,'COMP. ORSE'!A:D,2,0),IF(A158="Ins. Seinfra",VLOOKUP(C158,'INS. SEINFRA'!$A:$D,2,0),IF(A158="Ins. Sinapi",VLOOKUP(C158,'INS SINAPI'!A:E,2,0),IF(A158="Ins. Orse",VLOOKUP(C158,'INS. ORSE'!A:D,2,0))))))) -> REVOLVIMENTO MECÂNICO DE TERRA PROFUNDIDADE 20-30cm | E158: =IF(A158="CPU CODEVASF",VLOOKUP(C158,CPU!B:I,5,0),IF(A158="INS. SEINFRA",VLOOKUP(C158,'INS. SEINFRA'!A:D,3,0),IF(A158="INS. SINAPI",VLOOKUP(C158,'INS SINAPI'!A:E,3,0),IF(A158="COMP. SINAPI",VLOOKUP(C158,'COMP SINAPI'!G:M,3,0),IF(A158="INS. ORSE",VLOOKUP(C158,'INS. ORSE'!A:D,3,0),IF(A158="COTAÇÃO",VLOOKUP(C158,COTAÇÃO!A:D,3,0),IF(A158="COMP. ORSE",VLOOKUP(C158,'COMP. ORSE'!A:D,3,0),IF(A158="COMP. SEINFRA",VLOOKUP(C158,'COMP. SEINFRA'!B:G,5,0))))))))) -> M2 | F158: 900 | G158: =IF(A158="CPU CODEVASF",VLOOKUP(C158,CPU!F:I,4,0),IF(A158="COTAÇÃO",VLOOKUP(C158,COTAÇÃO!A:D,4,0),IF(A158="INS. SEINFRA",VLOOKUP(C158,'INS. SEINFRA'!A:D,4,0),IF(A158="INS. SINAPI",VLOOKUP(C158,'INS SINAPI'!A:E,5,0),IF(A158="COMP. SINAPI",VLOOKUP(C158,'COMP SINAPI'!G:M,5,0),IF(A158="INS. ORSE",VLOOKUP(C158,'INS. ORSE'!A:D,4,0),IF(A158="COMP. ORSE",VLOOKUP(C158,'COMP. ORSE'!A:D,4,0),IF(A158="COMP. SEINFRA",VLOOKUP(C158,'COMP. SEINFRA'!B:G,6,0))))))))) -> 0.56 | H158: =TRUNC(G158*(1+$F$10),2) -> 0.69 | I158: =TRUNC(H158*F158,2) -> 621
B159: 7.2 | D159: Materiais e Equipamentos | I159: =SUM(I160:I168) -> 1546.6
A160: COTAÇÃO | B160: 7.2.1 | C160: COT. 21 | D160: =IF(A160="Comp. Sinapi",VLOOKUP(C160,'COMP SINAPI'!G:M,2,0),IF(A160="Comp. Seinfra",VLOOKUP(C160,'COMP. SEINFRA'!B:G,2,0),IF(A160="COMP. ORSE",VLOOKUP(C160,'COMP. ORSE'!A:D,2,0),IF(A160="Ins. Seinfra",VLOOKUP(C160,'INS. SEINFRA'!$A:$D,2,0),IF(A160="Ins. Sinapi",VLOOKUP(C160,'INS SINAPI'!A:E,2,0),IF(A160="Ins. Orse",VLOOKUP(C160,'INS. ORSE'!A:D,2,0),IF(A160="CPU CODEVASF",VLOOKUP(C160,CPU!B:I,4,0),IF(A160="COTAÇÃO",VLOOKUP(C160,COTAÇÃO!A:D,2,0))))))))) -> MANGUEIRA DE GOTEJAMENTO P/ IRRIGAÇÃO 16MM, PN 20 | E160: =IF(A160="CPU CODEVASF",VLOOKUP(C160,CPU!B:I,5,0),IF(A160="INS. SEINFRA",VLOOKUP(C160,'INS. SEINFRA'!A:D,3,0),IF(A160="INS. SINAPI",VLOOKUP(C160,'INS SINAPI'!A:E,3,0),IF(A160="COMP. SINAPI",VLOOKUP(C160,'COMP SINAPI'!G:M,3,0),IF(A160="INS. ORSE",VLOOKUP(C160,'INS. ORSE'!A:D,3,0),IF(A160="COTAÇÃO",VLOOKUP(C160,COTAÇÃO!A:D,3,0),IF(A160="COMP. ORSE",VLOOKUP(C160,'COMP. ORSE'!A:D,3,0),IF(A160="COMP. SEINFRA",VLOOKUP(C160,'COMP. SEINFRA'!B:G,5,0))))))))) -> M | F160: 420 | G160: =IF(A160="CPU CODEVASF",VLOOKUP(C160,CPU!F:I,4,0),IF(A160="COTAÇÃO",VLOOKUP(C160,COTAÇÃO!A:D,4,0),IF(A160="INS. SEINFRA",VLOOKUP(C160,'INS. SEINFRA'!A:D,4,0),IF(A160="INS. SINAPI",VLOOKUP(C160,'INS SINAPI'!A:E,5,0),IF(A160="COMP. SINAPI",VLOOKUP(C160,'COMP SINAPI'!G:M,5,0),IF(A160="INS. ORSE",VLOOKUP(C160,'INS. ORSE'!A:D,4,0),IF(A160="COMP. ORSE",VLOOKUP(C160,'COMP. ORSE'!A:D,4,0),IF(A160="COMP. SEINFRA",VLOOKUP(C160,'COMP. SEINFRA'!B:G,6,0))))))))) -> 0.83 | H160: =TRUNC(G160*(1+$I$10),2) -> 0.92 | I160: =TRUNC(H160*F160,2) -> 386.4
A161: COTAÇÃO | B161: 7.2.2 | C161: COT. 31 | D161: =IF(A161="Comp. Sinapi",VLOOKUP(C161,'COMP SINAPI'!G:M,2,0),IF(A161="Comp. Seinfra",VLOOKUP(C161,'COMP. SEINFRA'!B:G,2,0),IF(A161="COMP. ORSE",VLOOKUP(C161,'COMP. ORSE'!A:D,2,0),IF(A161="Ins. Seinfra",VLOOKUP(C161,'INS. SEINFRA'!$A:$D,2,0),IF(A161="Ins. Sinapi",VLOOKUP(C161,'INS SINAPI'!A:E,2,0),IF(A161="Ins. Orse",VLOOKUP(C161,'INS. ORSE'!A:D,2,0),IF(A161="CPU CODEVASF",VLOOKUP(C161,CPU!B:I,4,0),IF(A161="COTAÇÃO",VLOOKUP(C161,COTAÇÃO!A:D,2,0))))))))) -> SEMENTE - MILHO HÍBRIDO - AG 1051 | E161: =IF(A161="CPU CODEVASF",VLOOKUP(C161,CPU!B:I,5,0),IF(A161="INS. SEINFRA",VLOOKUP(C161,'INS. SEINFRA'!A:D,3,0),IF(A161="INS. SINAPI",VLOOKUP(C161,'INS SINAPI'!A:E,3,0),IF(A161="COMP. SINAPI",VLOOKUP(C161,'COMP SINAPI'!G:M,3,0),IF(A161="INS. ORSE",VLOOKUP(C161,'INS. ORSE'!A:D,3,0),IF(A161="COTAÇÃO",VLOOKUP(C161,COTAÇÃO!A:D,3,0),IF(A161="COMP. ORSE",VLOOKUP(C161,'COMP. ORSE'!A:D,3,0),IF(A161="COMP. SEINFRA",VLOOKUP(C161,'COMP. SEINFRA'!B:G,5,0))))))))) -> KG | F161: 5 | G161: =IF(A161="CPU CODEVASF",VLOOKUP(C161,CPU!F:I,4,0),IF(A161="COTAÇÃO",VLOOKUP(C161,COTAÇÃO!A:D,4,0),IF(A161="INS. SEINFRA",VLOOKUP(C161,'INS. SEINFRA'!A:D,4,0),IF(A161="INS. SINAPI",VLOOKUP(C161,'INS SINAPI'!A:E,5,0),IF(A161="COMP. SINAPI",VLOOKUP(C161,'COMP SINAPI'!G:M,5,0),IF(A161="INS. ORSE",VLOOKUP(C161,'INS. ORSE'!A:D,4,0),IF(A161="COMP. ORSE",VLOOKUP(C161,'COMP. ORSE'!A:D,4,0),IF(A161="COMP. SEINFRA",VLOOKUP(C161,'COMP. SEINFRA'!B:G,6,0))))))))) -> 47 | H161: 52.35 | I161: 261.75
A162: COTAÇÃO | B162: 7.2.3 | C162: COT. 32 | D162: =IF(A162="Comp. Sinapi",VLOOKUP(C162,'COMP SINAPI'!G:M,2,0),IF(A162="Comp. Seinfra",VLOOKUP(C162,'COMP. SEINFRA'!B:G,2,0),IF(A162="COMP. ORSE",VLOOKUP(C162,'COMP. ORSE'!A:D,2,0),IF(A162="Ins. Seinfra",VLOOKUP(C162,'INS. SEINFRA'!$A:$D,2,0),IF(A162="Ins. Sinapi",VLOOKUP(C162,'INS SINAPI'!A:E,2,0),IF(A162="Ins. Orse",VLOOKUP(C162,'INS. ORSE'!A:D,2,0),IF(A162="CPU CODEVASF",VLOOKUP(C162,CPU!B:I,4,0),IF(A162="COTAÇÃO",VLOOKUP(C162,COTAÇÃO!A:D,2,0))))))))) -> SEMENTE - FEIJÃO CANAPÚ | E162: =IF(A162="CPU CODEVASF",VLOOKUP(C162,CPU!B:I,5,0),IF(A162="INS. SEINFRA",VLOOKUP(C162,'INS. SEINFRA'!A:D,3,0),IF(A162="INS. SINAPI",VLOOKUP(C162,'INS SINAPI'!A:E,3,0),IF(A162="COMP. SINAPI",VLOOKUP(C162,'COMP SINAPI'!G:M,3,0),IF(A162="INS. ORSE",VLOOKUP(C162,'INS. ORSE'!A:D,3,0),IF(A162="COTAÇÃO",VLOOKUP(C162,COTAÇÃO!A:D,3,0),IF(A162="COMP. ORSE",VLOOKUP(C162,'COMP. ORSE'!A:D,3,0),IF(A162="COMP. SEINFRA",VLOOKUP(C162,'COMP. SEINFRA'!B:G,5,0))))))))) -> KG | F162: 1 | G162: =IF(A162="CPU CODEVASF",VLOOKUP(C162,CPU!F:I,4,0),IF(A162="COTAÇÃO",VLOOKUP(C162,COTAÇÃO!A:D,4,0),IF(A162="INS. SEINFRA",VLOOKUP(C162,'INS. SEINFRA'!A:D,4,0),IF(A162="INS. SINAPI",VLOOKUP(C162,'INS SINAPI'!A:E,5,0),IF(A162="COMP. SINAPI",VLOOKUP(C162,'COMP SINAPI'!G:M,5,0),IF(A162="INS. ORSE",VLOOKUP(C162,'INS. ORSE'!A:D,4,0),IF(A162="COMP. ORSE",VLOOKUP(C162,'COMP. ORSE'!A:D,4,0),IF(A162="COMP. SEINFRA",VLOOKUP(C162,'COMP. SEINFRA'!B:G,6,0))))))))) -> 10 | H162: 11.14 | I162: 11.14
A163: Ins. Sinapi | B163: 7.2.4 | C163: 38383 | D163: =IF(A163="Comp. Sinapi",VLOOKUP(C163,'COMP SINAPI'!G:M,2,0),IF(A163="Comp. Seinfra",VLOOKUP(C163,'COMP. SEINFRA'!B:G,2,0),IF(A163="COMP. ORSE",VLOOKUP(C163,'COMP. ORSE'!A:D,2,0),IF(A163="Ins. Seinfra",VLOOKUP(C163,'INS. SEINFRA'!$A:$D,2,0),IF(A163="Ins. Sinapi",VLOOKUP(C163,'INS SINAPI'!A:E,2,0),IF(A163="Ins. Orse",VLOOKUP(C163,'INS. ORSE'!A:D,2,0),IF(A163="CPU CODEVASF",VLOOKUP(C163,CPU!B:I,4,0),IF(A163="COTAÇÃO",VLOOKUP(C163,COTAÇÃO!A:D,2,0))))))))) -> LIXA D'AGUA EM FOLHA, GRAO 100 | E163: =IF(A163="CPU CODEVASF",VLOOKUP(C163,CPU!B:I,5,0),IF(A163="INS. SEINFRA",VLOOKUP(C163,'INS. SEINFRA'!A:D,3,0),IF(A163="INS. SINAPI",VLOOKUP(C163,'INS SINAPI'!A:E,3,0),IF(A163="COMP. SINAPI",VLOOKUP(C163,'COMP SINAPI'!G:M,3,0),IF(A163="INS. ORSE",VLOOKUP(C163,'INS. ORSE'!A:D,3,0),IF(A163="COTAÇÃO",VLOOKUP(C163,COTAÇÃO!A:D,3,0),IF(A163="COMP. ORSE",VLOOKUP(C163,'COMP. ORSE'!A:D,3,0),IF(A163="COMP. SEINFRA",VLOOKUP(C163,'COMP. SEINFRA'!B:G,5,0))))))))) -> UN | F163: 1 | G163: =IF(A163="CPU CODEVASF",VLOOKUP(C163,CPU!F:I,4,0),IF(A163="COTAÇÃO",VLOOKUP(C163,COTAÇÃO!A:D,4,0),IF(A163="INS. SEINFRA",VLOOKUP(C163,'INS. SEINFRA'!A:D,4,0),IF(A163="INS. SINAPI",VLOOKUP(C163,'INS SINAPI'!A:E,5,0),IF(A163="COMP. SINAPI",VLOOKUP(C163,'COMP SINAPI'!G:M,5,0),IF(A163="INS. ORSE",VLOOKUP(C163,'INS. ORSE'!A:D,4,0),IF(A163="COMP. ORSE",VLOOKUP(C163,'COMP. ORSE'!A:D,4,0),IF(A163="COMP. SEINFRA",VLOOKUP(C163,'COMP. SEINFRA'!B:G,6,0))))))))) -> 2,33 | H163: 2.59 | I163: 2.59
A164: Ins. Sinapi | B164: 7.2.5 | C164: 20080 | D164: =IF(A164="Comp. Sinapi",VLOOKUP(C164,'COMP SINAPI'!G:M,2,0),IF(A164="Comp. Seinfra",VLOOKUP(C164,'COMP. SEINFRA'!B:G,2,0),IF(A164="COMP. ORSE",VLOOKUP(C164,'COMP. ORSE'!A:D,2,0),IF(A164="Ins. Seinfra",VLOOKUP(C164,'INS. SEINFRA'!$A:$D,2,0),IF(A164="Ins. Sinapi",VLOOKUP(C164,'INS SINAPI'!A:E,2,0),IF(A164="Ins. Orse",VLOOKUP(C164,'INS. ORSE'!A:D,2,0),IF(A164="CPU CODEVASF",VLOOKUP(C164,CPU!B:I,4,0),IF(A164="COTAÇÃO",VLOOKUP(C164,COTAÇÃO!A:D,2,0))))))))) -> ADESIVO PLASTICO PARA PVC, FRASCO COM 175 GR | E164: =IF(A164="CPU CODEVASF",VLOOKUP(C164,CPU!B:I,5,0),IF(A164="INS. SEINFRA",VLOOKUP(C164,'INS. SEINFRA'!A:D,3,0),IF(A164="INS. SINAPI",VLOOKUP(C164,'INS SINAPI'!A:E,3,0),IF(A164="COMP. SINAPI",VLOOKUP(C164,'COMP SINAPI'!G:M,3,0),IF(A164="INS. ORSE",VLOOKUP(C164,'INS. ORSE'!A:D,3,0),IF(A164="COTAÇÃO",VLOOKUP(C164,COTAÇÃO!A:D,3,0),IF(A164="COMP. ORSE",VLOOKUP(C164,'COMP. ORSE'!A:D,3,0),IF(A164="COMP. SEINFRA",VLOOKUP(C164,'COMP. SEINFRA'!B:G,5,0))))))))) -> UN | F164: 1 | G164: =IF(A164="CPU CODEVASF",VLOOKUP(C164,CPU!F:I,4,0),IF(A164="COTAÇÃO",VLOOKUP(C164,COTAÇÃO!A:D,4,0),IF(A164="INS. SEINFRA",VLOOKUP(C164,'INS. SEINFRA'!A:D,4,0),IF(A164="INS. SINAPI",VLOOKUP(C164,'INS SINAPI'!A:E,5,0),IF(A164="COMP. SINAPI",VLOOKUP(C164,'COMP SINAPI'!G:M,5,0),IF(A164="INS. ORSE",VLOOKUP(C164,'INS. ORSE'!A:D,4,0),IF(A164="COMP. ORSE",VLOOKUP(C164,'COMP. ORSE'!A:D,4,0),IF(A164="COMP. SEINFRA",VLOOKUP(C164,'COMP. SEINFRA'!B:G,6,0))))))))) -> 19,84 | H164: 22.1 | I164: 22.1
A165: Ins. Seinfra | B165: 7.2.6 | C165: I10185 | D165: =IF(A165="Comp. Sinapi",VLOOKUP(C165,'COMP SINAPI'!G:M,2,0),IF(A165="Comp. Seinfra",VLOOKUP(C165,'COMP. SEINFRA'!B:G,2,0),IF(A165="COMP. ORSE",VLOOKUP(C165,'COMP. ORSE'!A:D,2,0),IF(A165="Ins. Seinfra",VLOOKUP(C165,'INS. SEINFRA'!$A:$D,2,0),IF(A165="Ins. Sinapi",VLOOKUP(C165,'INS SINAPI'!A:E,2,0),IF(A165="Ins. Orse",VLOOKUP(C165,'INS. ORSE'!A:D,2,0),IF(A165="CPU CODEVASF",VLOOKUP(C165,CPU!B:I,4,0),IF(A165="COTAÇÃO",VLOOKUP(C165,COTAÇÃO!A:D,2,0))))))))) -> TUBO PVC IRRIGA PN 60 DN32 X 6MT | E165: =IF(A165="CPU CODEVASF",VLOOKUP(C165,CPU!B:I,5,0),IF(A165="INS. SEINFRA",VLOOKUP(C165,'INS. SEINFRA'!A:D,3,0),IF(A165="INS. SINAPI",VLOOKUP(C165,'INS SINAPI'!A:E,3,0),IF(A165="COMP. SINAPI",VLOOKUP(C165,'COMP SINAPI'!G:M,3,0),IF(A165="INS. ORSE",VLOOKUP(C165,'INS. ORSE'!A:D,3,0),IF(A165="COTAÇÃO",VLOOKUP(C165,COTAÇÃO!A:D,3,0),IF(A165="COMP. ORSE",VLOOKUP(C165,'COMP. ORSE'!A:D,3,0),IF(A165="COMP. SEINFRA",VLOOKUP(C165,'COMP. SEINFRA'!B:G,5,0))))))))) -> UN | F165: 21 | G165: =IF(A165="CPU CODEVASF",VLOOKUP(C165,CPU!F:I,4,0),IF(A165="COTAÇÃO",VLOOKUP(C165,COTAÇÃO!A:D,4,0),IF(A165="INS. SEINFRA",VLOOKUP(C165,'INS. SEINFRA'!A:D,4,0),IF(A165="INS. SINAPI",VLOOKUP(C165,'INS SINAPI'!A:E,5,0),IF(A165="COMP. SINAPI",VLOOKUP(C165,'COMP SINAPI'!G:M,5,0),IF(A165="INS. ORSE",VLOOKUP(C165,'INS. ORSE'!A:D,4,0),IF(A165="COMP. ORSE",VLOOKUP(C165,'COMP. ORSE'!A:D,4,0),IF(A165="COMP. SEINFRA",VLOOKUP(C165,'COMP. SEINFRA'!B:G,6,0))))))))) -> 16 | H165: 17.82 | I165: 374.22
A166: Ins. Orse | B166: 7.2.7 | C166: 9516 | D166: =IF(A166="Comp. Sinapi",VLOOKUP(C166,'COMP SINAPI'!G:M,2,0),IF(A166="Comp. Seinfra",VLOOKUP(C166,'COMP. SEINFRA'!B:G,2,0),IF(A166="COMP. ORSE",VLOOKUP(C166,'COMP. ORSE'!A:D,2,0),IF(A166="Ins. Seinfra",VLOOKUP(C166,'INS. SEINFRA'!$A:$D,2,0),IF(A166="Ins. Sinapi",VLOOKUP(C166,'INS SINAPI'!A:E,2,0),IF(A166="Ins. Orse",VLOOKUP(C166,'INS. ORSE'!A:D,2,0),IF(A166="CPU CODEVASF",VLOOKUP(C166,CPU!B:I,4,0),IF(A166="COTAÇÃO",VLOOKUP(C166,COTAÇÃO!A:D,2,0))))))))) -> Curva 90º pvc PTA/BSA soldavel d= 35mm, linha Irriga-LF, Tigre ou similar | E166: =IF(A166="CPU CODEVASF",VLOOKUP(C166,CPU!B:I,5,0),IF(A166="INS. SEINFRA",VLOOKUP(C166,'INS. SEINFRA'!A:D,3,0),IF(A166="INS. SINAPI",VLOOKUP(C166,'INS SINAPI'!A:E,3,0),IF(A166="COMP. SINAPI",VLOOKUP(C166,'COMP SINAPI'!G:M,3,0),IF(A166="INS. ORSE",VLOOKUP(C166,'INS. ORSE'!A:D,3,0),IF(A166="COTAÇÃO",VLOOKUP(C166,COTAÇÃO!A:D,3,0),IF(A166="COMP. ORSE",VLOOKUP(C166,'COMP. ORSE'!A:D,3,0),IF(A166="COMP. SEINFRA",VLOOKUP(C166,'COMP. SEINFRA'!B:G,5,0))))))))) -> UND | F166: 5 | G166: =IF(A166="CPU CODEVASF",VLOOKUP(C166,CPU!F:I,4,0),IF(A166="COTAÇÃO",VLOOKUP(C166,COTAÇÃO!A:D,4,0),IF(A166="INS. SEINFRA",VLOOKUP(C166,'INS. SEINFRA'!A:D,4,0),IF(A166="INS. SINAPI",VLOOKUP(C166,'INS SINAPI'!A:E,5,0),IF(A166="COMP. SINAPI",VLOOKUP(C166,'COMP SINAPI'!G:M,5,0),IF(A166="INS. ORSE",VLOOKUP(C166,'INS. ORSE'!A:D,4,0),IF(A166="COMP. ORSE",VLOOKUP(C166,'COMP. ORSE'!A:D,4,0),IF(A166="COMP. SEINFRA",VLOOKUP(C166,'COMP. SEINFRA'!B:G,6,0))))))))) -> 10.76 | H166: 11.98 | I166: 59.9
A167: Ins. Orse | B167: 7.2.8 | C167: 8013 | D167: =IF(A167="Comp. Sinapi",VLOOKUP(C167,'COMP SINAPI'!G:M,2,0),IF(A167="Comp. Seinfra",VLOOKUP(C167,'COMP. SEINFRA'!B:G,2,0),IF(A167="COMP. ORSE",VLOOKUP(C167,'COMP. ORSE'!A:D,2,0),IF(A167="Ins. Seinfra",VLOOKUP(C167,'INS. SEINFRA'!$A:$D,2,0),IF(A167="Ins. Sinapi",VLOOKUP(C167,'INS SINAPI'!A:E,2,0),IF(A167="Ins. Orse",VLOOKUP(C167,'INS. ORSE'!A:D,2,0),IF(A167="CPU CODEVASF",VLOOKUP(C167,CPU!B:I,4,0),IF(A167="COTAÇÃO",VLOOKUP(C167,COTAÇÃO!A:D,2,0))))))))) -> Registro esfera VS soldável para irrigação Ø 35mm | E167: =IF(A167="CPU CODEVASF",VLOOKUP(C167,CPU!B:I,5,0),IF(A167="INS. SEINFRA",VLOOKUP(C167,'INS. SEINFRA'!A:D,3,0),IF(A167="INS. SINAPI",VLOOKUP(C167,'INS SINAPI'!A:E,3,0),IF(A167="COMP. SINAPI",VLOOKUP(C167,'COMP SINAPI'!G:M,3,0),IF(A167="INS. ORSE",VLOOKUP(C167,'INS. ORSE'!A:D,3,0),IF(A167="COTAÇÃO",VLOOKUP(C167,COTAÇÃO!A:D,3,0),IF(A167="COMP. ORSE",VLOOKUP(C167,'COMP. ORSE'!A:D,3,0),IF(A167="COMP. SEINFRA",VLOOKUP(C167,'COMP. SEINFRA'!B:G,5,0))))))))) -> PÇ | F167: 6 | G167: =IF(A167="CPU CODEVASF",VLOOKUP(C167,CPU!F:I,4,0),IF(A167="COTAÇÃO",VLOOKUP(C167,COTAÇÃO!A:D,4,0),IF(A167="INS. SEINFRA",VLOOKUP(C167,'INS. SEINFRA'!A:D,4,0),IF(A167="INS. SINAPI",VLOOKUP(C167,'INS SINAPI'!A:E,5,0),IF(A167="COMP. SINAPI",VLOOKUP(C167,'COMP SINAPI'!G:M,5,0),IF(A167="INS. ORSE",VLOOKUP(C167,'INS. ORSE'!A:D,4,0),IF(A167="COMP. ORSE",VLOOKUP(C167,'COMP. ORSE'!A:D,4,0),IF(A167="COMP. SEINFRA",VLOOKUP(C167,'COMP. SEINFRA'!B:G,6,0))))))))) -> 37.26 | H167: 41.5 | I167: 249
A168: COTAÇÃO | B168: 7.2.9 | C168: COT. 22 | D168: =IF(A168="Comp. Sinapi",VLOOKUP(C168,'COMP SINAPI'!G:M,2,0),IF(A168="Comp. Seinfra",VLOOKUP(C168,'COMP. SEINFRA'!B:G,2,0),IF(A168="COMP. ORSE",VLOOKUP(C168,'COMP. ORSE'!A:D,2,0),IF(A168="Ins. Seinfra",VLOOKUP(C168,'INS. SEINFRA'!$A:$D,2,0),IF(A168="Ins. Sinapi",VLOOKUP(C168,'INS SINAPI'!A:E,2,0),IF(A168="Ins. Orse",VLOOKUP(C168,'INS. ORSE'!A:D,2,0),IF(A168="CPU CODEVASF",VLOOKUP(C168,CPU!B:I,4,0),IF(A168="COTAÇÃO",VLOOKUP(C168,COTAÇÃO!A:D,2,0))))))))) -> REGISTRO EM PLÁSTICO PARA MANGUEIRA DE GOTEJAMENTO DE 1/2" COM CHULA | E168: =IF(A168="CPU CODEVASF",VLOOKUP(C168,CPU!B:I,5,0),IF(A168="INS. SEINFRA",VLOOKUP(C168,'INS. SEINFRA'!A:D,3,0),IF(A168="INS. SINAPI",VLOOKUP(C168,'INS SINAPI'!A:E,3,0),IF(A168="COMP. SINAPI",VLOOKUP(C168,'COMP SINAPI'!G:M,3,0),IF(A168="INS. ORSE",VLOOKUP(C168,'INS. ORSE'!A:D,3,0),IF(A168="COTAÇÃO",VLOOKUP(C168,COTAÇÃO!A:D,3,0),IF(A168="COMP. ORSE",VLOOKUP(C168,'COMP. ORSE'!A:D,3,0),IF(A168="COMP. SEINFRA",VLOOKUP(C168,'COMP. SEINFRA'!B:G,5,0))))))))) -> UND | F168: 50 | G168: =IF(A168="CPU CODEVASF",VLOOKUP(C168,CPU!F:I,4,0),IF(A168="COTAÇÃO",VLOOKUP(C168,COTAÇÃO!A:D,4,0),IF(A168="INS. SEINFRA",VLOOKUP(C168,'INS. SEINFRA'!A:D,4,0),IF(A168="INS. SINAPI",VLOOKUP(C168,'INS SINAPI'!A:E,5,0),IF(A168="COMP. SINAPI",VLOOKUP(C168,'COMP SINAPI'!G:M,5,0),IF(A168="INS. ORSE",VLOOKUP(C168,'INS. ORSE'!A:D,4,0),IF(A168="COMP. ORSE",VLOOKUP(C168,'COMP. ORSE'!A:D,4,0),IF(A168="COMP. SEINFRA",VLOOKUP(C168,'COMP. SEINFRA'!B:G,6,0))))))))) -> 3.23 | H168: 3.59 | I168: 179.5
A169: MÓDULO 7 - COMPOSTAGEM
B170: 8.1 | D170: Serviços | I170: =SUM(I171) -> 115.2
A171: Comp. Sinapi | B171: 8.1.1 | C171: 98524 | D171: =IF(A171="Comp. Sinapi",VLOOKUP(C171,'COMP SINAPI'!G:M,2,0),IF(A171="Comp. Seinfra",VLOOKUP(C171,'COMP. SEINFRA'!B:G,2,0),IF(A171="COMP. ORSE",VLOOKUP(C171,'COMP. ORSE'!A:D,2,0),IF(A171="Ins. Seinfra",VLOOKUP(C171,'INS. SEINFRA'!$A:$D,2,0),IF(A171="Ins. Sinapi",VLOOKUP(C171,'INS SINAPI'!A:E,2,0),IF(A171="Ins. Orse",VLOOKUP(C171,'INS. ORSE'!A:D,2,0),IF(A171="CPU CODEVASF",VLOOKUP(C171,CPU!B:I,4,0),IF(A171="COTAÇÃO",VLOOKUP(C171,COTAÇÃO!A:D,2,0))))))))) -> LIMPEZA MANUAL DE VEGETAÇÃO EM TERRENO COM ENXADA.AF_05/2018 | E171: =IF(A171="CPU CODEVASF",VLOOKUP(C171,CPU!B:I,5,0),IF(A171="INS. SEINFRA",VLOOKUP(C171,'INS. SEINFRA'!A:D,3,0),IF(A171="INS. SINAPI",VLOOKUP(C171,'INS SINAPI'!A:E,3,0),IF(A171="COMP. SINAPI",VLOOKUP(C171,'COMP SINAPI'!G:M,3,0),IF(A171="INS. ORSE",VLOOKUP(C171,'INS. ORSE'!A:D,3,0),IF(A171="COTAÇÃO",VLOOKUP(C171,COTAÇÃO!A:D,3,0),IF(A171="COMP. ORSE",VLOOKUP(C171,'COMP. ORSE'!A:D,3,0),IF(A171="COMP. SEINFRA",VLOOKUP(C171,'COMP. SEINFRA'!B:G,5,0))))))))) -> M2 | F171: 30 | G171: =IF(A171="CPU CODEVASF",VLOOKUP(C171,CPU!F:I,4,0),IF(A171="COTAÇÃO",VLOOKUP(C171,COTAÇÃO!A:D,4,0),IF(A171="INS. SEINFRA",VLOOKUP(C171,'INS. SEINFRA'!A:D,4,0),IF(A171="INS. SINAPI",VLOOKUP(C171,'INS SINAPI'!A:E,5,0),IF(A171="COMP. SINAPI",VLOOKUP(C171,'COMP SINAPI'!G:M,5,0),IF(A171="INS. ORSE",VLOOKUP(C171,'INS. ORSE'!A:D,4,0),IF(A171="COMP. ORSE",VLOOKUP(C171,'COMP. ORSE'!A:D,4,0),IF(A171="COMP. SEINFRA",VLOOKUP(C171,'COMP. SEINFRA'!B:G,6,0))))))))) -> 3,11 | H171: =TRUNC(G171*(1+$F$10),2) -> 3.84 | I171: =TRUNC(H171*F171,2) -> 115.2
B172: 8.2 | D172: Materiais e Equipamentos | I172: =SUM(I173:I178) -> 717
A173: Ins. Sinapi | B173: 8.2.1 | C173: 4115 | D173: =IF(A173="Comp. Sinapi",VLOOKUP(C173,'COMP SINAPI'!G:M,2,0),IF(A173="Comp. Seinfra",VLOOKUP(C173,'COMP. SEINFRA'!B:G,2,0),IF(A173="COMP. ORSE",VLOOKUP(C173,'COMP. ORSE'!A:D,2,0),IF(A173="Ins. Seinfra",VLOOKUP(C173,'INS. SEINFRA'!$A:$D,2,0),IF(A173="Ins. Sinapi",VLOOKUP(C173,'INS SINAPI'!A:E,2,0),IF(A173="Ins. Orse",VLOOKUP(C173,'INS. ORSE'!A:D,2,0),IF(A173="CPU CODEVASF",VLOOKUP(C173,CPU!B:I,4,0),IF(A173="COTAÇÃO",VLOOKUP(C173,COTAÇÃO!A:D,2,0))))))))) -> MADEIRA ROLICA TRATADA, D = 12 A 15 CM, H = 3,00 M, EM EUCALIPTO OU EQUIVALENTE DA REGIAO | E173: =IF(A173="CPU CODEVASF",VLOOKUP(C173,CPU!B:I,5,0),IF(A173="INS. SEINFRA",VLOOKUP(C173,'INS. SEINFRA'!A:D,3,0),IF(A173="INS. SINAPI",VLOOKUP(C173,'INS SINAPI'!A:E,3,0),IF(A173="COMP. SINAPI",VLOOKUP(C173,'COMP SINAPI'!G:M,3,0),IF(A173="INS. ORSE",VLOOKUP(C173,'INS. ORSE'!A:D,3,0),IF(A173="COTAÇÃO",VLOOKUP(C173,COTAÇÃO!A:D,3,0),IF(A173="COMP. ORSE",VLOOKUP(C173,'COMP. ORSE'!A:D,3,0),IF(A173="COMP. SEINFRA",VLOOKUP(C173,'COMP. SEINFRA'!B:G,5,0))))))))) -> M | F173: 12 | G173: =IF(A173="CPU CODEVASF",VLOOKUP(C173,CPU!F:I,4,0),IF(A173="COTAÇÃO",VLOOKUP(C173,COTAÇÃO!A:D,4,0),IF(A173="INS. SEINFRA",VLOOKUP(C173,'INS. SEINFRA'!A:D,4,0),IF(A173="INS. SINAPI",VLOOKUP(C173,'INS SINAPI'!A:E,5,0),IF(A173="COMP. SINAPI",VLOOKUP(C173,'COMP SINAPI'!G:M,5,0),IF(A173="INS. ORSE",VLOOKUP(C173,'INS. ORSE'!A:D,4,0),IF(A173="COMP. ORSE",VLOOKUP(C173,'COMP. ORSE'!A:D,4,0),IF(A173="COMP. SEINFRA",VLOOKUP(C173,'COMP. SEINFRA'!B:G,6,0))))))))) -> 29,92 | H173: =TRUNC(G173*(1+$I$10),2) -> 33.33 | I173: 399.96
A174: Ins. Sinapi | B174: 8.2.2 | C174: 346 | D174: =IF(A174="Comp. Sinapi",VLOOKUP(C174,'COMP SINAPI'!G:M,2,0),IF(A174="Comp. Seinfra",VLOOKUP(C174,'COMP. SEINFRA'!B:G,2,0),IF(A174="COMP. ORSE",VLOOKUP(C174,'COMP. ORSE'!A:D,2,0),IF(A174="Ins. Seinfra",VLOOKUP(C174,'INS. SEINFRA'!$A:$D,2,0),IF(A174="Ins. Sinapi",VLOOKUP(C174,'INS SINAPI'!A:E,2,0),IF(A174="Ins. Orse",VLOOKUP(C174,'INS. ORSE'!A:D,2,0),IF(A174="CPU CODEVASF",VLOOKUP(C174,CPU!B:I,4,0),IF(A174="COTAÇÃO",VLOOKUP(C174,COTAÇÃO!A:D,2,0))))))))) -> ARAME DE ACO OVALADO 15 X 17 ( 45,7 KG, 700 KGF), ROLO 1000 M | E174: =IF(A174="CPU CODEVASF",VLOOKUP(C174,CPU!B:I,5,0),IF(A174="INS. SEINFRA",VLOOKUP(C174,'INS. SEINFRA'!A:D,3,0),IF(A174="INS. SINAPI",VLOOKUP(C174,'INS SINAPI'!A:E,3,0),IF(A174="COMP. SINAPI",VLOOKUP(C174,'COMP SINAPI'!G:M,3,0),IF(A174="INS. ORSE",VLOOKUP(C174,'INS. ORSE'!A:D,3,0),IF(A174="COTAÇÃO",VLOOKUP(C174,COTAÇÃO!A:D,3,0),IF(A174="COMP. ORSE",VLOOKUP(C174,'COMP. ORSE'!A:D,3,0),IF(A174="COMP. SEINFRA",VLOOKUP(C174,'COMP. SEINFRA'!B:G,5,0))))))))) -> KG | F174: 2 | G174: =IF(A174="CPU CODEVASF",VLOOKUP(C174,CPU!F:I,4,0),IF(A174="COTAÇÃO",VLOOKUP(C174,COTAÇÃO!A:D,4,0),IF(A174="INS. SEINFRA",VLOOKUP(C174,'INS. SEINFRA'!A:D,4,0),IF(A174="INS. SINAPI",VLOOKUP(C174,'INS SINAPI'!A:E,5,0),IF(A174="COMP. SINAPI",VLOOKUP(C174,'COMP SINAPI'!G:M,5,0),IF(A174="INS. ORSE",VLOOKUP(C174,'INS. ORSE'!A:D,4,0),IF(A174="COMP. ORSE",VLOOKUP(C174,'COMP. ORSE'!A:D,4,0),IF(A174="COMP. SEINFRA",VLOOKUP(C174,'COMP. SEINFRA'!B:G,6,0))))))))) -> 29,38 | H174: 32.72 | I174: 65.44
A175: COTAÇÃO | B175: 8.2.3 | C175: COT. 33 | D175: =IF(A175="Comp. Sinapi",VLOOKUP(C175,'COMP SINAPI'!G:M,2,0),IF(A175="Comp. Seinfra",VLOOKUP(C175,'COMP. SEINFRA'!B:G,2,0),IF(A175="COMP. ORSE",VLOOKUP(C175,'COMP. ORSE'!A:D,2,0),IF(A175="Ins. Seinfra",VLOOKUP(C175,'INS. SEINFRA'!$A:$D,2,0),IF(A175="Ins. Sinapi",VLOOKUP(C175,'INS SINAPI'!A:E,2,0),IF(A175="Ins. Orse",VLOOKUP(C175,'INS. ORSE'!A:D,2,0),IF(A175="CPU CODEVASF",VLOOKUP(C175,CPU!B:I,4,0),IF(A175="COTAÇÃO",VLOOKUP(C175,COTAÇÃO!A:D,2,0))))))))) -> SOMBRITE 50 % | E175: =IF(A175="CPU CODEVASF",VLOOKUP(C175,CPU!B:I,5,0),IF(A175="INS. SEINFRA",VLOOKUP(C175,'INS. SEINFRA'!A:D,3,0),IF(A175="INS. SINAPI",VLOOKUP(C175,'INS SINAPI'!A:E,3,0),IF(A175="COMP. SINAPI",VLOOKUP(C175,'COMP SINAPI'!G:M,3,0),IF(A175="INS. ORSE",VLOOKUP(C175,'INS. ORSE'!A:D,3,0),IF(A175="COTAÇÃO",VLOOKUP(C175,COTAÇÃO!A:D,3,0),IF(A175="COMP. ORSE",VLOOKUP(C175,'COMP. ORSE'!A:D,3,0),IF(A175="COMP. SEINFRA",VLOOKUP(C175,'COMP. SEINFRA'!B:G,5,0))))))))) -> M² | F175: 20 | G175: =IF(A175="CPU CODEVASF",VLOOKUP(C175,CPU!F:I,4,0),IF(A175="COTAÇÃO",VLOOKUP(C175,COTAÇÃO!A:D,4,0),IF(A175="INS. SEINFRA",VLOOKUP(C175,'INS. SEINFRA'!A:D,4,0),IF(A175="INS. SINAPI",VLOOKUP(C175,'INS SINAPI'!A:E,5,0),IF(A175="COMP. SINAPI",VLOOKUP(C175,'COMP SINAPI'!G:M,5,0),IF(A175="INS. ORSE",VLOOKUP(C175,'INS. ORSE'!A:D,4,0),IF(A175="COMP. ORSE",VLOOKUP(C175,'COMP. ORSE'!A:D,4,0),IF(A175="COMP. SEINFRA",VLOOKUP(C175,'COMP. SEINFRA'!B:G,6,0))))))))) -> 9.04 | H175: 10.07 | I175: 201.4
A176: COTAÇÃO | B176: 8.2.4 | C176: COT. 22 | D176: =IF(A176="Comp. Sinapi",VLOOKUP(C176,'COMP SINAPI'!G:M,2,0),IF(A176="Comp. Seinfra",VLOOKUP(C176,'COMP. SEINFRA'!B:G,2,0),IF(A176="COMP. ORSE",VLOOKUP(C176,'COMP. ORSE'!A:D,2,0),IF(A176="Ins. Seinfra",VLOOKUP(C176,'INS. SEINFRA'!$A:$D,2,0),IF(A176="Ins. Sinapi",VLOOKUP(C176,'INS SINAPI'!A:E,2,0),IF(A176="Ins. Orse",VLOOKUP(C176,'INS. ORSE'!A:D,2,0),IF(A176="CPU CODEVASF",VLOOKUP(C176,CPU!B:I,4,0),IF(A176="COTAÇÃO",VLOOKUP(C176,COTAÇÃO!A:D,2,0))))))))) -> REGISTRO EM PLÁSTICO PARA MANGUEIRA DE GOTEJAMENTO DE 1/2" COM CHULA | E176: =IF(A176="CPU CODEVASF",VLOOKUP(C176,CPU!B:I,5,0),IF(A176="INS. SEINFRA",VLOOKUP(C176,'INS. SEINFRA'!A:D,3,0),IF(A176="INS. SINAPI",VLOOKUP(C176,'INS SINAPI'!A:E,3,0),IF(A176="COMP. SINAPI",VLOOKUP(C176,'COMP SINAPI'!G:M,3,0),IF(A176="INS. ORSE",VLOOKUP(C176,'INS. ORSE'!A:D,3,0),IF(A176="COTAÇÃO",VLOOKUP(C176,COTAÇÃO!A:D,3,0),IF(A176="COMP. ORSE",VLOOKUP(C176,'COMP. ORSE'!A:D,3,0),IF(A176="COMP. SEINFRA",VLOOKUP(C176,'COMP. SEINFRA'!B:G,5,0))))))))) -> UND | F176: 4 | G176: =IF(A176="CPU CODEVASF",VLOOKUP(C176,CPU!F:I,4,0),IF(A176="COTAÇÃO",VLOOKUP(C176,COTAÇÃO!A:D,4,0),IF(A176="INS. SEINFRA",VLOOKUP(C176,'INS. SEINFRA'!A:D,4,0),IF(A176="INS. SINAPI",VLOOKUP(C176,'INS SINAPI'!A:E,5,0),IF(A176="COMP. SINAPI",VLOOKUP(C176,'COMP SINAPI'!G:M,5,0),IF(A176="INS. ORSE",VLOOKUP(C176,'INS. ORSE'!A:D,4,0),IF(A176="COMP. ORSE",VLOOKUP(C176,'COMP. ORSE'!A:D,4,0),IF(A176="COMP. SEINFRA",VLOOKUP(C176,'COMP. SEINFRA'!B:G,6,0))))))))) -> 3.23 | H176: 3.59 | I176: 14.36
A177: COTAÇÃO | B177: 8.2.5 | C177: COT. 21 | D177: =IF(A177="Comp. Sinapi",VLOOKUP(C177,'COMP SINAPI'!G:M,2,0),IF(A177="Comp. Seinfra",VLOOKUP(C177,'COMP. SEINFRA'!B:G,2,0),IF(A177="COMP. ORSE",VLOOKUP(C177,'COMP. ORSE'!A:D,2,0),IF(A177="Ins. Seinfra",VLOOKUP(C177,'INS. SEINFRA'!$A:$D,2,0),IF(A177="Ins. Sinapi",VLOOKUP(C177,'INS SINAPI'!A:E,2,0),IF(A177="Ins. Orse",VLOOKUP(C177,'INS. ORSE'!A:D,2,0),IF(A177="CPU CODEVASF",VLOOKUP(C177,CPU!B:I,4,0),IF(A177="COTAÇÃO",VLOOKUP(C177,COTAÇÃO!A:D,2,0))))))))) -> MANGUEIRA DE GOTEJAMENTO P/ IRRIGAÇÃO 16MM, PN 20 | E177: =IF(A177="CPU CODEVASF",VLOOKUP(C177,CPU!B:I,5,0),IF(A177="INS. SEINFRA",VLOOKUP(C177,'INS. SEINFRA'!A:D,3,0),IF(A177="INS. SINAPI",VLOOKUP(C177,'INS SINAPI'!A:E,3,0),IF(A177="COMP. SINAPI",VLOOKUP(C177,'COMP SINAPI'!G:M,3,0),IF(A177="INS. ORSE",VLOOKUP(C177,'INS. ORSE'!A:D,3,0),IF(A177="COTAÇÃO",VLOOKUP(C177,COTAÇÃO!A:D,3,0),IF(A177="COMP. ORSE",VLOOKUP(C177,'COMP. ORSE'!A:D,3,0),IF(A177="COMP. SEINFRA",VLOOKUP(C177,'COMP. SEINFRA'!B:G,5,0))))))))) -> M | F177: 24 | G177: =IF(A177="CPU CODEVASF",VLOOKUP(C177,CPU!F:I,4,0),IF(A177="COTAÇÃO",VLOOKUP(C177,COTAÇÃO!A:D,4,0),IF(A177="INS. SEINFRA",VLOOKUP(C177,'INS. SEINFRA'!A:D,4,0),IF(A177="INS. SINAPI",VLOOKUP(C177,'INS SINAPI'!A:E,5,0),IF(A177="COMP. SINAPI",VLOOKUP(C177,'COMP SINAPI'!G:M,5,0),IF(A177="INS. ORSE",VLOOKUP(C177,'INS. ORSE'!A:D,4,0),IF(A177="COMP. ORSE",VLOOKUP(C177,'COMP. ORSE'!A:D,4,0),IF(A177="COMP. SEINFRA",VLOOKUP(C177,'COMP. SEINFRA'!B:G,6,0))))))))) -> 0.83 | H177: 0.92 | I177: 22.08
A178: COTAÇÃO | B178: 8.2.6 | C178: COT. 34 | D178: =IF(A178="Comp. Sinapi",VLOOKUP(C178,'COMP SINAPI'!G:M,2,0),IF(A178="Comp. Seinfra",VLOOKUP(C178,'COMP. SEINFRA'!B:G,2,0),IF(A178="COMP. ORSE",VLOOKUP(C178,'COMP. ORSE'!A:D,2,0),IF(A178="Ins. Seinfra",VLOOKUP(C178,'INS. SEINFRA'!$A:$D,2,0),IF(A178="Ins. Sinapi",VLOOKUP(C178,'INS SINAPI'!A:E,2,0),IF(A178="Ins. Orse",VLOOKUP(C178,'INS. ORSE'!A:D,2,0),IF(A178="CPU CODEVASF",VLOOKUP(C178,CPU!B:I,4,0),IF(A178="COTAÇÃO",VLOOKUP(C178,COTAÇÃO!A:D,2,0))))))))) -> MICRO ASPERSOR, TIPO BAILARINA + HASTE + MICROTUBO - (ÁREA DE AÇÃO - 2M X 2M) - VAZÃO ATÉ 120 L/H | E178: =IF(A178="CPU CODEVASF",VLOOKUP(C178,CPU!B:I,5,0),IF(A178="INS. SEINFRA",VLOOKUP(C178,'INS. SEINFRA'!A:D,3,0),IF(A178="INS. SINAPI",VLOOKUP(C178,'INS SINAPI'!A:E,3,0),IF(A178="COMP. SINAPI",VLOOKUP(C178,'COMP SINAPI'!G:M,3,0),IF(A178="INS. ORSE",VLOOKUP(C178,'INS. ORSE'!A:D,3,0),IF(A178="COTAÇÃO",VLOOKUP(C178,COTAÇÃO!A:D,3,0),IF(A178="COMP. ORSE",VLOOKUP(C178,'COMP. ORSE'!A:D,3,0),IF(A178="COMP. SEINFRA",VLOOKUP(C178,'COMP. SEINFRA'!B:G,5,0))))))))) -> UND | F178: 4 | G178: =IF(A178="CPU CODEVASF",VLOOKUP(C178,CPU!F:I,4,0),IF(A178="COTAÇÃO",VLOOKUP(C178,COTAÇÃO!A:D,4,0),IF(A178="INS. SEINFRA",VLOOKUP(C178,'INS. SEINFRA'!A:D,4,0),IF(A178="INS. SINAPI",VLOOKUP(C178,'INS SINAPI'!A:E,5,0),IF(A178="COMP. SINAPI",VLOOKUP(C178,'COMP SINAPI'!G:M,5,0),IF(A178="INS. ORSE",VLOOKUP(C178,'INS. ORSE'!A:D,4,0),IF(A178="COMP. ORSE",VLOOKUP(C178,'COMP. ORSE'!A:D,4,0),IF(A178="COMP. SEINFRA",VLOOKUP(C178,'COMP. SEINFRA'!B:G,6,0))))))))) -> 3.09 | H178: 3.44 | I178: 13.76
A179: MÓDULO 8 - BASE DE SUPORTE PARA CAIXA D'ÁGUA 1000 LITROS (2,00m x 2,00m) - ÁGUA PARA OS ANIMAIS
B180: 9.1 | D180: Serviços | I180: =SUM(I181) -> 2255.4
A181: CPU CODEVASF | B181: 9.1.1 | C181: CPU-12 | D181: =IF(A181="Comp. Sinapi",VLOOKUP(C181,'COMP SINAPI'!G:M,2,0),IF(A181="Comp. Seinfra",VLOOKUP(C181,'COMP. SEINFRA'!B:G,2,0),IF(A181="COMP. ORSE",VLOOKUP(C181,'COMP. ORSE'!A:D,2,0),IF(A181="Ins. Seinfra",VLOOKUP(C181,'INS. SEINFRA'!$A:$D,2,0),IF(A181="Ins. Sinapi",VLOOKUP(C181,'INS SINAPI'!A:E,2,0),IF(A181="Ins. Orse",VLOOKUP(C181,'INS. ORSE'!A:D,2,0),IF(A181="CPU CODEVASF",VLOOKUP(C181,CPU!B:I,4,0),IF(A181="COTAÇÃO",VLOOKUP(C181,COTAÇÃO!A:D,2,0))))))))) -> ESTRUTURA DE MADEIRA PARA SUPORTE DE CAIXA D'ÁGUA ELEVADA DE 1000 LITROS | E181: =IF(A181="CPU CODEVASF",VLOOKUP(C181,CPU!B:I,5,0),IF(A181="INS. SEINFRA",VLOOKUP(C181,'INS. SEINFRA'!A:D,3,0),IF(A181="INS. SINAPI",VLOOKUP(C181,'INS SINAPI'!A:E,3,0),IF(A181="COMP. SINAPI",VLOOKUP(C181,'COMP SINAPI'!G:M,3,0),IF(A181="INS. ORSE",VLOOKUP(C181,'INS. ORSE'!A:D,3,0),IF(A181="COTAÇÃO",VLOOKUP(C181,COTAÇÃO!A:D,3,0),IF(A181="COMP. ORSE",VLOOKUP(C181,'COMP. ORSE'!A:D,3,0),IF(A181="COMP. SEINFRA",VLOOKUP(C181,'COMP. SEINFRA'!B:G,5,0))))))))) -> UNID | F181: 1 | G181: =IF(A181="CPU CODEVASF",VLOOKUP(C181,CPU!F:I,4,0),IF(A181="COTAÇÃO",VLOOKUP(C181,COTAÇÃO!A:D,4,0),IF(A181="INS. SEINFRA",VLOOKUP(C181,'INS. SEINFRA'!A:D,4,0),IF(A181="INS. SINAPI",VLOOKUP(C181,'INS SINAPI'!A:E,5,0),IF(A181="COMP. SINAPI",VLOOKUP(C181,'COMP SINAPI'!G:M,5,0),IF(A181="INS. ORSE",VLOOKUP(C181,'INS. ORSE'!A:D,4,0),IF(A181="COMP. ORSE",VLOOKUP(C181,'COMP. ORSE'!A:D,4,0),IF(A181="COMP. SEINFRA",VLOOKUP(C181,'COMP. SEINFRA'!B:G,6,0))))))))) -> 1826.24 | H181: =TRUNC(G181*(1+$F$10),2) -> 2255.4 | I181: =TRUNC(H181*F181,2) -> 2255.4
B182: 9.2 | D182: Materiais e Equipamentos | I182: =SUM(I183:I190) -> 738.93
A183: Ins. Sinapi | B183: 9.2.1 | C183: 34636 | D183: =IF(A183="Comp. Sinapi",VLOOKUP(C183,'COMP SINAPI'!G:M,2,0),IF(A183="Comp. Seinfra",VLOOKUP(C183,'COMP. SEINFRA'!B:G,2,0),IF(A183="COMP. ORSE",VLOOKUP(C183,'COMP. ORSE'!A:D,2,0),IF(A183="Ins. Seinfra",VLOOKUP(C183,'INS. SEINFRA'!$A:$D,2,0),IF(A183="Ins. Sinapi",VLOOKUP(C183,'INS SINAPI'!A:E,2,0),IF(A183="Ins. Orse",VLOOKUP(C183,'INS. ORSE'!A:D,2,0),IF(A183="CPU CODEVASF",VLOOKUP(C183,CPU!B:I,4,0),IF(A183="COTAÇÃO",VLOOKUP(C183,COTAÇÃO!A:D,2,0))))))))) -> CAIXA D'AGUA / RESERVATORIO EM POLIETILENO, 1000 LITROS, COM TAMPA | E183: =IF(A183="CPU CODEVASF",VLOOKUP(C183,CPU!B:I,5,0),IF(A183="INS. SEINFRA",VLOOKUP(C183,'INS. SEINFRA'!A:D,3,0),IF(A183="INS. SINAPI",VLOOKUP(C183,'INS SINAPI'!A:E,3,0),IF(A183="COMP. SINAPI",VLOOKUP(C183,'COMP SINAPI'!G:M,3,0),IF(A183="INS. ORSE",VLOOKUP(C183,'INS. ORSE'!A:D,3,0),IF(A183="COTAÇÃO",VLOOKUP(C183,COTAÇÃO!A:D,3,0),IF(A183="COMP. ORSE",VLOOKUP(C183,'COMP. ORSE'!A:D,3,0),IF(A183="COMP. SEINFRA",VLOOKUP(C183,'COMP. SEINFRA'!B:G,5,0))))))))) -> UN | F183: 1 | G183: =IF(A183="CPU CODEVASF",VLOOKUP(C183,CPU!F:I,4,0),IF(A183="COTAÇÃO",VLOOKUP(C183,COTAÇÃO!A:D,4,0),IF(A183="INS. SEINFRA",VLOOKUP(C183,'INS. SEINFRA'!A:D,4,0),IF(A183="INS. SINAPI",VLOOKUP(C183,'INS SINAPI'!A:E,5,0),IF(A183="COMP. SINAPI",VLOOKUP(C183,'COMP SINAPI'!G:M,5,0),IF(A183="INS. ORSE",VLOOKUP(C183,'INS. ORSE'!A:D,4,0),IF(A183="COMP. ORSE",VLOOKUP(C183,'COMP. ORSE'!A:D,4,0),IF(A183="COMP. SEINFRA",VLOOKUP(C183,'COMP. SEINFRA'!B:G,6,0))))))))) -> 440,00 | H183: =TRUNC(G183*(1+$I$10),2) -> 490.16 | I183: =TRUNC(H183*F183,2) -> 490.16 | FN183: 8.2.5 | FV183: 8.2.5 | GD183: 8.2.5 | GL183: 8.2.5 | GT183: 8.2.5 | HB183: 8.2.5 | HJ183: 8.2.5 | HR183: 8.2.5 | HZ183: 8.2.5 | IH183: 8.2.5 | IP183: 8.2.5 | IX183: 8.2.5 | JF183: 8.2.5 | JN183: 8.2.5 | JV183: 8.2.5 | KD183: 8.2.5 | KL183: 8.2.5 | KT183: 8.2.5 | LB183: 8.2.5 | LJ183: 8.2.5 | LR183: 8.2.5 | LZ183: 8.2.5 | MH183: 8.2.5 | MP183: 8.2.5 | MX183: 8.2.5 | NF183: 8.2.5 | NN183: 8.2.5 | NV183: 8.2.5 | OD183: 8.2.5 | OL183: 8.2.5 | OT183: 8.2.5 | PB183: 8.2.5 | PJ183: 8.2.5 | PR183: 8.2.5 | PZ183: 8.2.5 | QH183: 8.2.5 | QP183: 8.2.5 | QX183: 8.2.5 | RF183: 8.2.5 | RN183: 8.2.5 | RV183: 8.2.5 | SD183: 8.2.5 | SL183: 8.2.5 | ST183: 8.2.5 | TB183: 8.2.5 | TJ183: 8.2.5 | TR183: 8.2.5 | TZ183: 8.2.5 | UH183: 8.2.5 | UP183: 8.2.5 | UX183: 8.2.5 | VF183: 8.2.5 | VN183: 8.2.5 | VV183: 8.2.5 | WD183: 8.2.5 | WL183: 8.2.5 | WT183: 8.2.5 | XB183: 8.2.5 | XJ183: 8.2.5 | XR183: 8.2.5 | XZ183: 8.2.5 | YH183: 8.2.5 | YP183: 8.2.5 | YX183: 8.2.5 | ZF183: 8.2.5 | ZN183: 8.2.5 | ZV183: 8.2.5 | AAD183: 8.2.5 | AAL183: 8.2.5 | AAT183: 8.2.5 | ABB183: 8.2.5 | ABJ183: 8.2.5 | ABR183: 8.2.5 | ABZ183: 8.2.5 | ACH183: 8.2.5 | ACP183: 8.2.5 | ACX183: 8.2.5 | ADF183: 8.2.5 | ADN183: 8.2.5 | ADV183: 8.2.5 | AED183: 8.2.5 | AEL183: 8.2.5 | AET183: 8.2.5 | AFB183: 8.2.5 | AFJ183: 8.2.5 | AFR183: 8.2.5 | AFZ183: 8.2.5 | AGH183: 8.2.5 | AGP183: 8.2.5 | AGX183: 8.2.5 | AHF183: 8.2.5 | AHN183: 8.2.5 | AHV183: 8.2.5 | AID183: 8.2.5 | AIL183: 8.2.5 | AIT183: 8.2.5 | AJB183: 8.2.5 | AJJ183: 8.2.5 | AJR183: 8.2.5 | AJZ183: 8.2.5 | AKH183: 8.2.5 | AKP183: 8.2.5 | AKX183: 8.2.5 | ALF183: 8.2.5 | ALN183: 8.2.5 | ALV183: 8.2.5 | AMD183: 8.2.5 | AML183: 8.2.5 | AMT183: 8.2.5 | ANB183: 8.2.5 | ANJ183: 8.2.5 | ANR183: 8.2.5 | ANZ183: 8.2.5 | AOH183: 8.2.5 | AOP183: 8.2.5 | AOX183: 8.2.5 | APF183: 8.2.5 | APN183: 8.2.5 | APV183: 8.2.5 | AQD183: 8.2.5 | AQL183: 8.2.5 | AQT183: 8.2.5 | ARB183: 8.2.5 | ARJ183: 8.2.5 | ARR183: 8.2.5 | ARZ183: 8.2.5 | ASH183: 8.2.5 | ASP183: 8.2.5 | ASX183: 8.2.5 | ATF183: 8.2.5 | ATN183: 8.2.5 | ATV183: 8.2.5 | AUD183: 8.2.5 | AUL183: 8.2.5 | AUT183: 8.2.5 | AVB183: 8.2.5 | AVJ183: 8.2.5 | AVR183: 8.2.5 | AVZ183: 8.2.5 | AWH183: 8.2.5 | AWP183: 8.2.5 | AWX183: 8.2.5 | AXF183: 8.2.5 | AXN183: 8.2.5 | AXV183: 8.2.5 | AYD183: 8.2.5 | AYL183: 8.2.5 | AYT183: 8.2.5 | AZB183: 8.2.5 | AZJ183: 8.2.5 | AZR183: 8.2.5 | AZZ183: 8.2.5 | BAH183: 8.2.5 | BAP183: 8.2.5 | BAX183: 8.2.5 | BBF183: 8.2.5 | BBN183: 8.2.5 | BBV183: 8.2.5 | BCD183: 8.2.5 | BCL183: 8.2.5 | BCT183: 8.2.5 | BDB183: 8.2.5 | BDJ183: 8.2.5 | BDR183: 8.2.5 | BDZ183: 8.2.5 | BEH183: 8.2.5 | BEP183: 8.2.5 | BEX183: 8.2.5 | BFF183: 8.2.5 | BFN183: 8.2.5 | BFV183: 8.2.5 | BGD183: 8.2.5 | BGL183: 8.2.5 | BGT183: 8.2.5 | BHB183: 8.2.5 | BHJ183: 8.2.5 | BHR183: 8.2.5 | BHZ183: 8.2.5 | BIH183: 8.2.5 | BIP183: 8.2.5 | BIX183: 8.2.5 | BJF183: 8.2.5 | BJN183: 8.2.5 | BJV183: 8.2.5 | BKD183: 8.2.5 | BKL183: 8.2.5 | BKT183: 8.2.5 | BLB183: 8.2.5 | BLJ183: 8.2.5 | BLR183: 8.2.5 | BLZ183: 8.2.5 | BMH183: 8.2.5 | BMP183: 8.2.5 | BMX183: 8.2.5 | BNF183: 8.2.5 | BNN183: 8.2.5 | BNV183: 8.2.5 | BOD183: 8.2.5 | BOL183: 8.2.5 | BOT183: 8.2.5 | BPB183: 8.2.5 | BPJ183: 8.2.5 | BPR183: 8.2.5 | BPZ183: 8.2.5 | BQH183: 8.2.5 | BQP183: 8.2.5 | BQX183: 8.2.5 | BRF183: 8.2.5 | BRN183: 8.2.5 | BRV183: 8.2.5 | BSD183: 8.2.5 | BSL183: 8.2.5 | BST183: 8.2.5 | BTB183: 8.2.5 | BTJ183: 8.2.5 | BTR183: 8.2.5 | BTZ183: 8.2.5 | BUH183: 8.2.5 | BUP183: 8.2.5 | BUX183: 8.2.5 | BVF183: 8.2.5 | BVN183: 8.2.5 | BVV183: 8.2.5 | BWD183: 8.2.5 | BWL183: 8.2.5 | BWT183: 8.2.5 | BXB183: 8.2.5 | BXJ183: 8.2.5 | BXR183: 8.2.5 | BXZ183: 8.2.5 | BYH183: 8.2.5 | BYP183: 8.2.5 | BYX183: 8.2.5 | BZF183: 8.2.5 | BZN183: 8.2.5 | BZV183: 8.2.5 | CAD183: 8.2.5 | CAL183: 8.2.5 | CAT183: 8.2.5 | CBB183: 8.2.5 | CBJ183: 8.2.5 | CBR183: 8.2.5 | CBZ183: 8.2.5 | CCH183: 8.2.5 | CCP183: 8.2.5 | CCX183: 8.2.5 | CDF183: 8.2.5 | CDN183: 8.2.5 | CDV183: 8.2.5 | CED183: 8.2.5 | CEL183: 8.2.5 | CET183: 8.2.5 | CFB183: 8.2.5 | CFJ183: 8.2.5 | CFR183: 8.2.5 | CFZ183: 8.2.5 | CGH183: 8.2.5 | CGP183: 8.2.5 | CGX183: 8.2.5 | CHF183: 8.2.5 | CHN183: 8.2.5 | CHV183: 8.2.5 | CID183: 8.2.5 | CIL183: 8.2.5 | CIT183: 8.2.5 | CJB183: 8.2.5 | CJJ183: 8.2.5 | CJR183: 8.2.5 | CJZ183: 8.2.5 | CKH183: 8.2.5 | CKP183: 8.2.5 | CKX183: 8.2.5 | CLF183: 8.2.5 | CLN183: 8.2.5 | CLV183: 8.2.5 | CMD183: 8.2.5 | CML183: 8.2.5 | CMT183: 8.2.5 | CNB183: 8.2.5 | CNJ183: 8.2.5 | CNR183: 8.2.5 | CNZ183: 8.2.5 | COH183: 8.2.5 | COP183: 8.2.5 | COX183: 8.2.5 | CPF183: 8.2.5 | CPN183: 8.2.5 | CPV183: 8.2.5 | CQD183: 8.2.5 | CQL183: 8.2.5 | CQT183: 8.2.5 | CRB183: 8.2.5 | CRJ183: 8.2.5 | CRR183: 8.2.5 | CRZ183: 8.2.5 | CSH183: 8.2.5 | CSP183: 8.2.5 | CSX183: 8.2.5 | CTF183: 8.2.5 | CTN183: 8.2.5 | CTV183: 8.2.5 | CUD183: 8.2.5 | CUL183: 8.2.5 | CUT183: 8.2.5 | CVB183: 8.2.5 | CVJ183: 8.2.5 | CVR183: 8.2.5 | CVZ183: 8.2.5 | CWH183: 8.2.5 | CWP183: 8.2.5 | CWX183: 8.2.5 | CXF183: 8.2.5 | CXN183: 8.2.5 | CXV183: 8.2.5 | CYD183: 8.2.5 | CYL183: 8.2.5 | CYT183: 8.2.5 | CZB183: 8.2.5 | CZJ183: 8.2.5 | CZR183: 8.2.5 | CZZ183: 8.2.5 | DAH183: 8.2.5 | DAP183: 8.2.5 | DAX183: 8.2.5 | DBF183: 8.2.5 | DBN183: 8.2.5 | DBV183: 8.2.5 | DCD183: 8.2.5 | DCL183: 8.2.5 | DCT183: 8.2.5 | DDB183: 8.2.5 | DDJ183: 8.2.5 | DDR183: 8.2.5 | DDZ183: 8.2.5 | DEH183: 8.2.5 | DEP183: 8.2.5 | DEX183: 8.2.5 | DFF183: 8.2.5 | DFN183: 8.2.5 | DFV183: 8.2.5 | DGD183: 8.2.5 | DGL183: 8.2.5 | DGT183: 8.2.5 | DHB183: 8.2.5 | DHJ183: 8.2.5 | DHR183: 8.2.5 | DHZ183: 8.2.5 | DIH183: 8.2.5 | DIP183: 8.2.5 | DIX183: 8.2.5 | DJF183: 8.2.5 | DJN183: 8.2.5 | DJV183: 8.2.5 | DKD183: 8.2.5 | DKL183: 8.2.5 | DKT183: 8.2.5 | DLB183: 8.2.5 | DLJ183: 8.2.5 | DLR183: 8.2.5 | DLZ183: 8.2.5 | DMH183: 8.2.5 | DMP183: 8.2.5 | DMX183: 8.2.5 | DNF183: 8.2.5 | DNN183: 8.2.5 | DNV183: 8.2.5 | DOD183: 8.2.5 | DOL183: 8.2.5 | DOT183: 8.2.5 | DPB183: 8.2.5 | DPJ183: 8.2.5 | DPR183: 8.2.5 | DPZ183: 8.2.5 | DQH183: 8.2.5 | DQP183: 8.2.5 | DQX183: 8.2.5 | DRF183: 8.2.5 | DRN183: 8.2.5 | DRV183: 8.2.5 | DSD183: 8.2.5 | DSL183: 8.2.5 | DST183: 8.2.5 | DTB183: 8.2.5 | DTJ183: 8.2.5 | DTR183: 8.2.5 | DTZ183: 8.2.5 | DUH183: 8.2.5 | DUP183: 8.2.5 | DUX183: 8.2.5 | DVF183: 8.2.5 | DVN183: 8.2.5 | DVV183: 8.2.5 | DWD183: 8.2.5 | DWL183: 8.2.5 | DWT183: 8.2.5 | DXB183: 8.2.5 | DXJ183: 8.2.5 | DXR183: 8.2.5 | DXZ183: 8.2.5 | DYH183: 8.2.5 | DYP183: 8.2.5 | DYX183: 8.2.5 | DZF183: 8.2.5 | DZN183: 8.2.5 | DZV183: 8.2.5 | EAD183: 8.2.5 | EAL183: 8.2.5 | EAT183: 8.2.5 | EBB183: 8.2.5 | EBJ183: 8.2.5 | EBR183: 8.2.5 | EBZ183: 8.2.5 | ECH183: 8.2.5 | ECP183: 8.2.5 | ECX183: 8.2.5 | EDF183: 8.2.5 | EDN183: 8.2.5 | EDV183: 8.2.5 | EED183: 8.2.5 | EEL183: 8.2.5 | EET183: 8.2.5 | EFB183: 8.2.5 | EFJ183: 8.2.5 | EFR183: 8.2.5 | EFZ183: 8.2.5 | EGH183: 8.2.5 | EGP183: 8.2.5 | EGX183: 8.2.5 | EHF183: 8.2.5 | EHN183: 8.2.5 | EHV183: 8.2.5 | EID183: 8.2.5 | EIL183: 8.2.5 | EIT183: 8.2.5 | EJB183: 8.2.5 | EJJ183: 8.2.5 | EJR183: 8.2.5 | EJZ183: 8.2.5 | EKH183: 8.2.5 | EKP183: 8.2.5 | EKX183: 8.2.5 | ELF183: 8.2.5 | ELN183: 8.2.5 | ELV183: 8.2.5 | EMD183: 8.2.5 | EML183: 8.2.5 | EMT183: 8.2.5 | ENB183: 8.2.5 | ENJ183: 8.2.5 | ENR183: 8.2.5 | ENZ183: 8.2.5 | EOH183: 8.2.5 | EOP183: 8.2.5 | EOX183: 8.2.5 | EPF183: 8.2.5 | EPN183: 8.2.5 | EPV183: 8.2.5 | EQD183: 8.2.5 | EQL183: 8.2.5 | EQT183: 8.2.5 | ERB183: 8.2.5 | ERJ183: 8.2.5 | ERR183: 8.2.5 | ERZ183: 8.2.5 | ESH183: 8.2.5 | ESP183: 8.2.5 | ESX183: 8.2.5 | ETF183: 8.2.5 | ETN183: 8.2.5 | ETV183: 8.2.5 | EUD183: 8.2.5 | EUL183: 8.2.5 | EUT183: 8.2.5 | EVB183: 8.2.5 | EVJ183: 8.2.5 | EVR183: 8.2.5 | EVZ183: 8.2.5 | EWH183: 8.2.5 | EWP183: 8.2.5 | EWX183: 8.2.5 | EXF183: 8.2.5 | EXN183: 8.2.5 | EXV183: 8.2.5 | EYD183: 8.2.5 | EYL183: 8.2.5 | EYT183: 8.2.5 | EZB183: 8.2.5 | EZJ183: 8.2.5 | EZR183: 8.2.5 | EZZ183: 8.2.5 | FAH183: 8.2.5 | FAP183: 8.2.5 | FAX183: 8.2.5 | FBF183: 8.2.5 | FBN183: 8.2.5 | FBV183: 8.2.5 | FCD183: 8.2.5 | FCL183: 8.2.5 | FCT183: 8.2.5 | FDB183: 8.2.5 | FDJ183: 8.2.5 | FDR183: 8.2.5 | FDZ183: 8.2.5 | FEH183: 8.2.5 | FEP183: 8.2.5 | FEX183: 8.2.5 | FFF183: 8.2.5 | FFN183: 8.2.5 | FFV183: 8.2.5 | FGD183: 8.2.5 | FGL183: 8.2.5 | FGT183: 8.2.5 | FHB183: 8.2.5 | FHJ183: 8.2.5 | FHR183: 8.2.5 | FHZ183: 8.2.5 | FIH183: 8.2.5 | FIP183: 8.2.5 | FIX183: 8.2.5 | FJF183: 8.2.5 | FJN183: 8.2.5 | FJV183: 8.2.5 | FKD183: 8.2.5 | FKL183: 8.2.5 | FKT183: 8.2.5 | FLB183: 8.2.5 | FLJ183: 8.2.5 | FLR183: 8.2.5 | FLZ183: 8.2.5 | FMH183: 8.2.5 | FMP183: 8.2.5 | FMX183: 8.2.5 | FNF183: 8.2.5 | FNN183: 8.2.5 | FNV183: 8.2.5 | FOD183: 8.2.5 | FOL183: 8.2.5 | FOT183: 8.2.5 | FPB183: 8.2.5 | FPJ183: 8.2.5 | FPR183: 8.2.5 | FPZ183: 8.2.5 | FQH183: 8.2.5 | FQP183: 8.2.5 | FQX183: 8.2.5 | FRF183: 8.2.5 | FRN183: 8.2.5 | FRV183: 8.2.5 | FSD183: 8.2.5 | FSL183: 8.2.5 | FST183: 8.2.5 | FTB183: 8.2.5 | FTJ183: 8.2.5 | FTR183: 8.2.5 | FTZ183: 8.2.5 | FUH183: 8.2.5 | FUP183: 8.2.5 | FUX183: 8.2.5 | FVF183: 8.2.5 | FVN183: 8.2.5 | FVV183: 8.2.5 | FWD183: 8.2.5 | FWL183: 8.2.5 | FWT183: 8.2.5 | FXB183: 8.2.5 | FXJ183: 8.2.5 | FXR183: 8.2.5 | FXZ183: 8.2.5 | FYH183: 8.2.5 | FYP183: 8.2.5 | FYX183: 8.2.5 | FZF183: 8.2.5 | FZN183: 8.2.5 | FZV183: 8.2.5 | GAD183: 8.2.5 | GAL183: 8.2.5 | GAT183: 8.2.5 | GBB183: 8.2.5 | GBJ183: 8.2.5 | GBR183: 8.2.5 | GBZ183: 8.2.5 | GCH183: 8.2.5 | GCP183: 8.2.5 | GCX183: 8.2.5 | GDF183: 8.2.5 | GDN183: 8.2.5 | GDV183: 8.2.5 | GED183: 8.2.5 | GEL183: 8.2.5 | GET183: 8.2.5 | GFB183: 8.2.5 | GFJ183: 8.2.5 | GFR183: 8.2.5 | GFZ183: 8.2.5 | GGH183: 8.2.5 | GGP183: 8.2.5 | GGX183: 8.2.5 | GHF183: 8.2.5 | GHN183: 8.2.5 | GHV183: 8.2.5 | GID183: 8.2.5 | GIL183: 8.2.5 | GIT183: 8.2.5 | GJB183: 8.2.5 | GJJ183: 8.2.5 | GJR183: 8.2.5 | GJZ183: 8.2.5 | GKH183: 8.2.5 | GKP183: 8.2.5 | GKX183: 8.2.5 | GLF183: 8.2.5 | GLN183: 8.2.5 | GLV183: 8.2.5 | GMD183: 8.2.5 | GML183: 8.2.5 | GMT183: 8.2.5 | GNB183: 8.2.5 | GNJ183: 8.2.5 | GNR183: 8.2.5 | GNZ183: 8.2.5 | GOH183: 8.2.5 | GOP183: 8.2.5 | GOX183: 8.2.5 | GPF183: 8.2.5 | GPN183: 8.2.5 | GPV183: 8.2.5 | GQD183: 8.2.5 | GQL183: 8.2.5 | GQT183: 8.2.5 | GRB183: 8.2.5 | GRJ183: 8.2.5 | GRR183: 8.2.5 | GRZ183: 8.2.5 | GSH183: 8.2.5 | GSP183: 8.2.5 | GSX183: 8.2.5 | GTF183: 8.2.5 | GTN183: 8.2.5 | GTV183: 8.2.5 | GUD183: 8.2.5 | GUL183: 8.2.5 | GUT183: 8.2.5 | GVB183: 8.2.5 | GVJ183: 8.2.5 | GVR183: 8.2.5 | GVZ183: 8.2.5 | GWH183: 8.2.5 | GWP183: 8.2.5 | GWX183: 8.2.5 | GXF183: 8.2.5 | GXN183: 8.2.5 | GXV183: 8.2.5 | GYD183: 8.2.5 | GYL183: 8.2.5 | GYT183: 8.2.5 | GZB183: 8.2.5 | GZJ183: 8.2.5 | GZR183: 8.2.5 | GZZ183: 8.2.5 | HAH183: 8.2.5 | HAP183: 8.2.5 | HAX183: 8.2.5 | HBF183: 8.2.5 | HBN183: 8.2.5 | HBV183: 8.2.5 | HCD183: 8.2.5 | HCL183: 8.2.5 | HCT183: 8.2.5 | HDB183: 8.2.5 | HDJ183: 8.2.5 | HDR183: 8.2.5 | HDZ183: 8.2.5 | HEH183: 8.2.5 | HEP183: 8.2.5 | HEX183: 8.2.5 | HFF183: 8.2.5 | HFN183: 8.2.5 | HFV183: 8.2.5 | HGD183: 8.2.5 | HGL183: 8.2.5 | HGT183: 8.2.5 | HHB183: 8.2.5 | HHJ183: 8.2.5 | HHR183: 8.2.5 | HHZ183: 8.2.5 | HIH183: 8.2.5 | HIP183: 8.2.5 | HIX183: 8.2.5 | HJF183: 8.2.5 | HJN183: 8.2.5 | HJV183: 8.2.5 | HKD183: 8.2.5 | HKL183: 8.2.5 | HKT183: 8.2.5 | HLB183: 8.2.5 | HLJ183: 8.2.5 | HLR183: 8.2.5 | HLZ183: 8.2.5 | HMH183: 8.2.5 | HMP183: 8.2.5 | HMX183: 8.2.5 | HNF183: 8.2.5 | HNN183: 8.2.5 | HNV183: 8.2.5 | HOD183: 8.2.5 | HOL183: 8.2.5 | HOT183: 8.2.5 | HPB183: 8.2.5 | HPJ183: 8.2.5 | HPR183: 8.2.5 | HPZ183: 8.2.5 | HQH183: 8.2.5 | HQP183: 8.2.5 | HQX183: 8.2.5 | HRF183: 8.2.5 | HRN183: 8.2.5 | HRV183: 8.2.5 | HSD183: 8.2.5 | HSL183: 8.2.5 | HST183: 8.2.5 | HTB183: 8.2.5 | HTJ183: 8.2.5 | HTR183: 8.2.5 | HTZ183: 8.2.5 | HUH183: 8.2.5 | HUP183: 8.2.5 | HUX183: 8.2.5 | HVF183: 8.2.5 | HVN183: 8.2.5 | HVV183: 8.2.5 | HWD183: 8.2.5 | HWL183: 8.2.5 | HWT183: 8.2.5 | HXB183: 8.2.5 | HXJ183: 8.2.5 | HXR183: 8.2.5 | HXZ183: 8.2.5 | HYH183: 8.2.5 | HYP183: 8.2.5 | HYX183: 8.2.5 | HZF183: 8.2.5 | HZN183: 8.2.5 | HZV183: 8.2.5 | IAD183: 8.2.5 | IAL183: 8.2.5 | IAT183: 8.2.5 | IBB183: 8.2.5 | IBJ183: 8.2.5 | IBR183: 8.2.5 | IBZ183: 8.2.5 | ICH183: 8.2.5 | ICP183: 8.2.5 | ICX183: 8.2.5 | IDF183: 8.2.5 | IDN183: 8.2.5 | IDV183: 8.2.5 | IED183: 8.2.5 | IEL183: 8.2.5 | IET183: 8.2.5 | IFB183: 8.2.5 | IFJ183: 8.2.5 | IFR183: 8.2.5 | IFZ183: 8.2.5 | IGH183: 8.2.5 | IGP183: 8.2.5 | IGX183: 8.2.5 | IHF183: 8.2.5 | IHN183: 8.2.5 | IHV183: 8.2.5 | IID183: 8.2.5 | IIL183: 8.2.5 | IIT183: 8.2.5 | IJB183: 8.2.5 | IJJ183: 8.2.5 | IJR183: 8.2.5 | IJZ183: 8.2.5 | IKH183: 8.2.5 | IKP183: 8.2.5 | IKX183: 8.2.5 | ILF183: 8.2.5 | ILN183: 8.2.5 | ILV183: 8.2.5 | IMD183: 8.2.5 | IML183: 8.2.5 | IMT183: 8.2.5 | INB183: 8.2.5 | INJ183: 8.2.5 | INR183: 8.2.5 | INZ183: 8.2.5 | IOH183: 8.2.5 | IOP183: 8.2.5 | IOX183: 8.2.5 | IPF183: 8.2.5 | IPN183: 8.2.5 | IPV183: 8.2.5 | IQD183: 8.2.5 | IQL183: 8.2.5 | IQT183: 8.2.5 | IRB183: 8.2.5 | IRJ183: 8.2.5 | IRR183: 8.2.5 | IRZ183: 8.2.5 | ISH183: 8.2.5 | ISP183: 8.2.5 | ISX183: 8.2.5 | ITF183: 8.2.5 | ITN183: 8.2.5 | ITV183: 8.2.5 | IUD183: 8.2.5 | IUL183: 8.2.5 | IUT183: 8.2.5 | IVB183: 8.2.5 | IVJ183: 8.2.5 | IVR183: 8.2.5 | IVZ183: 8.2.5 | IWH183: 8.2.5 | IWP183: 8.2.5 | IWX183: 8.2.5 | IXF183: 8.2.5 | IXN183: 8.2.5 | IXV183: 8.2.5 | IYD183: 8.2.5 | IYL183: 8.2.5 | IYT183: 8.2.5 | IZB183: 8.2.5 | IZJ183: 8.2.5 | IZR183: 8.2.5 | IZZ183: 8.2.5 | JAH183: 8.2.5 | JAP183: 8.2.5 | JAX183: 8.2.5 | JBF183: 8.2.5 | JBN183: 8.2.5 | JBV183: 8.2.5 | JCD183: 8.2.5 | JCL183: 8.2.5 | JCT183: 8.2.5 | JDB183: 8.2.5 | JDJ183: 8.2.5 | JDR183: 8.2.5 | JDZ183: 8.2.5 | JEH183: 8.2.5 | JEP183: 8.2.5 | JEX183: 8.2.5 | JFF183: 8.2.5 | JFN183: 8.2.5 | JFV183: 8.2.5 | JGD183: 8.2.5 | JGL183: 8.2.5 | JGT183: 8.2.5 | JHB183: 8.2.5 | JHJ183: 8.2.5 | JHR183: 8.2.5 | JHZ183: 8.2.5 | JIH183: 8.2.5 | JIP183: 8.2.5 | JIX183: 8.2.5 | JJF183: 8.2.5 | JJN183: 8.2.5 | JJV183: 8.2.5 | JKD183: 8.2.5 | JKL183: 8.2.5 | JKT183: 8.2.5 | JLB183: 8.2.5 | JLJ183: 8.2.5 | JLR183: 8.2.5 | JLZ183: 8.2.5 | JMH183: 8.2.5 | JMP183: 8.2.5 | JMX183: 8.2.5 | JNF183: 8.2.5 | JNN183: 8.2.5 | JNV183: 8.2.5 | JOD183: 8.2.5 | JOL183: 8.2.5 | JOT183: 8.2.5 | JPB183: 8.2.5 | JPJ183: 8.2.5 | JPR183: 8.2.5 | JPZ183: 8.2.5 | JQH183: 8.2.5 | JQP183: 8.2.5 | JQX183: 8.2.5 | JRF183: 8.2.5 | JRN183: 8.2.5 | JRV183: 8.2.5 | JSD183: 8.2.5 | JSL183: 8.2.5 | JST183: 8.2.5 | JTB183: 8.2.5 | JTJ183: 8.2.5 | JTR183: 8.2.5 | JTZ183: 8.2.5 | JUH183: 8.2.5 | JUP183: 8.2.5 | JUX183: 8.2.5 | JVF183: 8.2.5 | JVN183: 8.2.5 | JVV183: 8.2.5 | JWD183: 8.2.5 | JWL183: 8.2.5 | JWT183: 8.2.5 | JXB183: 8.2.5 | JXJ183: 8.2.5 | JXR183: 8.2.5 | JXZ183: 8.2.5 | JYH183: 8.2.5 | JYP183: 8.2.5 | JYX183: 8.2.5 | JZF183: 8.2.5 | JZN183: 8.2.5 | JZV183: 8.2.5 | KAD183: 8.2.5 | KAL183: 8.2.5 | KAT183: 8.2.5 | KBB183: 8.2.5 | KBJ183: 8.2.5 | KBR183: 8.2.5 | KBZ183: 8.2.5 | KCH183: 8.2.5 | KCP183: 8.2.5 | KCX183: 8.2.5 | KDF183: 8.2.5 | KDN183: 8.2.5 | KDV183: 8.2.5 | KED183: 8.2.5 | KEL183: 8.2.5 | KET183: 8.2.5 | KFB183: 8.2.5 | KFJ183: 8.2.5 | KFR183: 8.2.5 | KFZ183: 8.2.5 | KGH183: 8.2.5 | KGP183: 8.2.5 | KGX183: 8.2.5 | KHF183: 8.2.5 | KHN183: 8.2.5 | KHV183: 8.2.5 | KID183: 8.2.5 | KIL183: 8.2.5 | KIT183: 8.2.5 | KJB183: 8.2.5 | KJJ183: 8.2.5 | KJR183: 8.2.5 | KJZ183: 8.2.5 | KKH183: 8.2.5 | KKP183: 8.2.5 | KKX183: 8.2.5 | KLF183: 8.2.5 | KLN183: 8.2.5 | KLV183: 8.2.5 | KMD183: 8.2.5 | KML183: 8.2.5 | KMT183: 8.2.5 | KNB183: 8.2.5 | KNJ183: 8.2.5 | KNR183: 8.2.5 | KNZ183: 8.2.5 | KOH183: 8.2.5 | KOP183: 8.2.5 | KOX183: 8.2.5 | KPF183: 8.2.5 | KPN183: 8.2.5 | KPV183: 8.2.5 | KQD183: 8.2.5 | KQL183: 8.2.5 | KQT183: 8.2.5 | KRB183: 8.2.5 | KRJ183: 8.2.5 | KRR183: 8.2.5 | KRZ183: 8.2.5 | KSH183: 8.2.5 | KSP183: 8.2.5 | KSX183: 8.2.5 | KTF183: 8.2.5 | KTN183: 8.2.5 | KTV183: 8.2.5 | KUD183: 8.2.5 | KUL183: 8.2.5 | KUT183: 8.2.5 | KVB183: 8.2.5 | KVJ183: 8.2.5 | KVR183: 8.2.5 | KVZ183: 8.2.5 | KWH183: 8.2.5 | KWP183: 8.2.5 | KWX183: 8.2.5 | KXF183: 8.2.5 | KXN183: 8.2.5 | KXV183: 8.2.5 | KYD183: 8.2.5 | KYL183: 8.2.5 | KYT183: 8.2.5 | KZB183: 8.2.5 | KZJ183: 8.2.5 | KZR183: 8.2.5 | KZZ183: 8.2.5 | LAH183: 8.2.5 | LAP183: 8.2.5 | LAX183: 8.2.5 | LBF183: 8.2.5 | LBN183: 8.2.5 | LBV183: 8.2.5 | LCD183: 8.2.5 | LCL183: 8.2.5 | LCT183: 8.2.5 | LDB183: 8.2.5 | LDJ183: 8.2.5 | LDR183: 8.2.5 | LDZ183: 8.2.5 | LEH183: 8.2.5 | LEP183: 8.2.5 | LEX183: 8.2.5 | LFF183: 8.2.5 | LFN183: 8.2.5 | LFV183: 8.2.5 | LGD183: 8.2.5 | LGL183: 8.2.5 | LGT183: 8.2.5 | LHB183: 8.2.5 | LHJ183: 8.2.5 | LHR183: 8.2.5 | LHZ183: 8.2.5 | LIH183: 8.2.5 | LIP183: 8.2.5 | LIX183: 8.2.5 | LJF183: 8.2.5 | LJN183: 8.2.5 | LJV183: 8.2.5 | LKD183: 8.2.5 | LKL183: 8.2.5 | LKT183: 8.2.5 | LLB183: 8.2.5 | LLJ183: 8.2.5 | LLR183: 8.2.5 | LLZ183: 8.2.5 | LMH183: 8.2.5 | LMP183: 8.2.5 | LMX183: 8.2.5 | LNF183: 8.2.5 | LNN183: 8.2.5 | LNV183: 8.2.5 | LOD183: 8.2.5 | LOL183: 8.2.5 | LOT183: 8.2.5 | LPB183: 8.2.5 | LPJ183: 8.2.5 | LPR183: 8.2.5 | LPZ183: 8.2.5 | LQH183: 8.2.5 | LQP183: 8.2.5 | LQX183: 8.2.5 | LRF183: 8.2.5 | LRN183: 8.2.5 | LRV183: 8.2.5 | LSD183: 8.2.5 | LSL183: 8.2.5 | LST183: 8.2.5 | LTB183: 8.2.5 | LTJ183: 8.2.5 | LTR183: 8.2.5 | LTZ183: 8.2.5 | LUH183: 8.2.5 | LUP183: 8.2.5 | LUX183: 8.2.5 | LVF183: 8.2.5 | LVN183: 8.2.5 | LVV183: 8.2.5 | LWD183: 8.2.5 | LWL183: 8.2.5 | LWT183: 8.2.5 | LXB183: 8.2.5 | LXJ183: 8.2.5 | LXR183: 8.2.5 | LXZ183: 8.2.5 | LYH183: 8.2.5 | LYP183: 8.2.5 | LYX183: 8.2.5 | LZF183: 8.2.5 | LZN183: 8.2.5 | LZV183: 8.2.5 | MAD183: 8.2.5 | MAL183: 8.2.5 | MAT183: 8.2.5 | MBB183: 8.2.5 | MBJ183: 8.2.5 | MBR183: 8.2.5 | MBZ183: 8.2.5 | MCH183: 8.2.5 | MCP183: 8.2.5 | MCX183: 8.2.5 | MDF183: 8.2.5 | MDN183: 8.2.5 | MDV183: 8.2.5 | MED183: 8.2.5 | MEL183: 8.2.5 | MET183: 8.2.5 | MFB183: 8.2.5 | MFJ183: 8.2.5 | MFR183: 8.2.5 | MFZ183: 8.2.5 | MGH183: 8.2.5 | MGP183: 8.2.5 | MGX183: 8.2.5 | MHF183: 8.2.5 | MHN183: 8.2.5 | MHV183: 8.2.5 | MID183: 8.2.5 | MIL183: 8.2.5 | MIT183: 8.2.5 | MJB183: 8.2.5 | MJJ183: 8.2.5 | MJR183: 8.2.5 | MJZ183: 8.2.5 | MKH183: 8.2.5 | MKP183: 8.2.5 | MKX183: 8.2.5 | MLF183: 8.2.5 | MLN183: 8.2.5 | MLV183: 8.2.5 | MMD183: 8.2.5 | MML183: 8.2.5 | MMT183: 8.2.5 | MNB183: 8.2.5 | MNJ183: 8.2.5 | MNR183: 8.2.5 | MNZ183: 8.2.5 | MOH183: 8.2.5 | MOP183: 8.2.5 | MOX183: 8.2.5 | MPF183: 8.2.5 | MPN183: 8.2.5 | MPV183: 8.2.5 | MQD183: 8.2.5 | MQL183: 8.2.5 | MQT183: 8.2.5 | MRB183: 8.2.5 | MRJ183: 8.2.5 | MRR183: 8.2.5 | MRZ183: 8.2.5 | MSH183: 8.2.5 | MSP183: 8.2.5 | MSX183: 8.2.5 | MTF183: 8.2.5 | MTN183: 8.2.5 | MTV183: 8.2.5 | MUD183: 8.2.5 | MUL183: 8.2.5 | MUT183: 8.2.5 | MVB183: 8.2.5 | MVJ183: 8.2.5 | MVR183: 8.2.5 | MVZ183: 8.2.5 | MWH183: 8.2.5 | MWP183: 8.2.5 | MWX183: 8.2.5 | MXF183: 8.2.5 | MXN183: 8.2.5 | MXV183: 8.2.5 | MYD183: 8.2.5 | MYL183: 8.2.5 | MYT183: 8.2.5 | MZB183: 8.2.5 | MZJ183: 8.2.5 | MZR183: 8.2.5 | MZZ183: 8.2.5 | NAH183: 8.2.5 | NAP183: 8.2.5 | NAX183: 8.2.5 | NBF183: 8.2.5 | NBN183: 8.2.5 | NBV183: 8.2.5 | NCD183: 8.2.5 | NCL183: 8.2.5 | NCT183: 8.2.5 | NDB183: 8.2.5 | NDJ183: 8.2.5 | NDR183: 8.2.5 | NDZ183: 8.2.5 | NEH183: 8.2.5 | NEP183: 8.2.5 | NEX183: 8.2.5 | NFF183: 8.2.5 | NFN183: 8.2.5 | NFV183: 8.2.5 | NGD183: 8.2.5 | NGL183: 8.2.5 | NGT183: 8.2.5 | NHB183: 8.2.5 | NHJ183: 8.2.5 | NHR183: 8.2.5 | NHZ183: 8.2.5 | NIH183: 8.2.5 | NIP183: 8.2.5 | NIX183: 8.2.5 | NJF183: 8.2.5 | NJN183: 8.2.5 | NJV183: 8.2.5 | NKD183: 8.2.5 | NKL183: 8.2.5 | NKT183: 8.2.5 | NLB183: 8.2.5 | NLJ183: 8.2.5 | NLR183: 8.2.5 | NLZ183: 8.2.5 | NMH183: 8.2.5 | NMP183: 8.2.5 | NMX183: 8.2.5 | NNF183: 8.2.5 | NNN183: 8.2.5 | NNV183: 8.2.5 | NOD183: 8.2.5 | NOL183: 8.2.5 | NOT183: 8.2.5 | NPB183: 8.2.5 | NPJ183: 8.2.5 | NPR183: 8.2.5 | NPZ183: 8.2.5 | NQH183: 8.2.5 | NQP183: 8.2.5 | NQX183: 8.2.5 | NRF183: 8.2.5 | NRN183: 8.2.5 | NRV183: 8.2.5 | NSD183: 8.2.5 | NSL183: 8.2.5 | NST183: 8.2.5 | NTB183: 8.2.5 | NTJ183: 8.2.5 | NTR183: 8.2.5 | NTZ183: 8.2.5 | NUH183: 8.2.5 | NUP183: 8.2.5 | NUX183: 8.2.5 | NVF183: 8.2.5 | NVN183: 8.2.5 | NVV183: 8.2.5 | NWD183: 8.2.5 | NWL183: 8.2.5 | NWT183: 8.2.5 | NXB183: 8.2.5 | NXJ183: 8.2.5 | NXR183: 8.2.5 | NXZ183: 8.2.5 | NYH183: 8.2.5 | NYP183: 8.2.5 | NYX183: 8.2.5 | NZF183: 8.2.5 | NZN183: 8.2.5 | NZV183: 8.2.5 | OAD183: 8.2.5 | OAL183: 8.2.5 | OAT183: 8.2.5 | OBB183: 8.2.5 | OBJ183: 8.2.5 | OBR183: 8.2.5 | OBZ183: 8.2.5 | OCH183: 8.2.5 | OCP183: 8.2.5 | OCX183: 8.2.5 | ODF183: 8.2.5 | ODN183: 8.2.5 | ODV183: 8.2.5 | OED183: 8.2.5 | OEL183: 8.2.5 | OET183: 8.2.5 | OFB183: 8.2.5 | OFJ183: 8.2.5 | OFR183: 8.2.5 | OFZ183: 8.2.5 | OGH183: 8.2.5 | OGP183: 8.2.5 | OGX183: 8.2.5 | OHF183: 8.2.5 | OHN183: 8.2.5 | OHV183: 8.2.5 | OID183: 8.2.5 | OIL183: 8.2.5 | OIT183: 8.2.5 | OJB183: 8.2.5 | OJJ183: 8.2.5 | OJR183: 8.2.5 | OJZ183: 8.2.5 | OKH183: 8.2.5 | OKP183: 8.2.5 | OKX183: 8.2.5 | OLF183: 8.2.5 | OLN183: 8.2.5 | OLV183: 8.2.5 | OMD183: 8.2.5 | OML183: 8.2.5 | OMT183: 8.2.5 | ONB183: 8.2.5 | ONJ183: 8.2.5 | ONR183: 8.2.5 | ONZ183: 8.2.5 | OOH183: 8.2.5 | OOP183: 8.2.5 | OOX183: 8.2.5 | OPF183: 8.2.5 | OPN183: 8.2.5 | OPV183: 8.2.5 | OQD183: 8.2.5 | OQL183: 8.2.5 | OQT183: 8.2.5 | ORB183: 8.2.5 | ORJ183: 8.2.5 | ORR183: 8.2.5 | ORZ183: 8.2.5 | OSH183: 8.2.5 | OSP183: 8.2.5 | OSX183: 8.2.5 | OTF183: 8.2.5 | OTN183: 8.2.5 | OTV183: 8.2.5 | OUD183: 8.2.5 | OUL183: 8.2.5 | OUT183: 8.2.5 | OVB183: 8.2.5 | OVJ183: 8.2.5 | OVR183: 8.2.5 | OVZ183: 8.2.5 | OWH183: 8.2.5 | OWP183: 8.2.5 | OWX183: 8.2.5 | OXF183: 8.2.5 | OXN183: 8.2.5 | OXV183: 8.2.5 | OYD183: 8.2.5 | OYL183: 8.2.5 | OYT183: 8.2.5 | OZB183: 8.2.5 | OZJ183: 8.2.5 | OZR183: 8.2.5 | OZZ183: 8.2.5 | PAH183: 8.2.5 | PAP183: 8.2.5 | PAX183: 8.2.5 | PBF183: 8.2.5 | PBN183: 8.2.5 | PBV183: 8.2.5 | PCD183: 8.2.5 | PCL183: 8.2.5 | PCT183: 8.2.5 | PDB183: 8.2.5 | PDJ183: 8.2.5 | PDR183: 8.2.5 | PDZ183: 8.2.5 | PEH183: 8.2.5 | PEP183: 8.2.5 | PEX183: 8.2.5 | PFF183: 8.2.5 | PFN183: 8.2.5 | PFV183: 8.2.5 | PGD183: 8.2.5 | PGL183: 8.2.5 | PGT183: 8.2.5 | PHB183: 8.2.5 | PHJ183: 8.2.5 | PHR183: 8.2.5 | PHZ183: 8.2.5 | PIH183: 8.2.5 | PIP183: 8.2.5 | PIX183: 8.2.5 | PJF183: 8.2.5 | PJN183: 8.2.5 | PJV183: 8.2.5 | PKD183: 8.2.5 | PKL183: 8.2.5 | PKT183: 8.2.5 | PLB183: 8.2.5 | PLJ183: 8.2.5 | PLR183: 8.2.5 | PLZ183: 8.2.5 | PMH183: 8.2.5 | PMP183: 8.2.5 | PMX183: 8.2.5 | PNF183: 8.2.5 | PNN183: 8.2.5 | PNV183: 8.2.5 | POD183: 8.2.5 | POL183: 8.2.5 | POT183: 8.2.5 | PPB183: 8.2.5 | PPJ183: 8.2.5 | PPR183: 8.2.5 | PPZ183: 8.2.5 | PQH183: 8.2.5 | PQP183: 8.2.5 | PQX183: 8.2.5 | PRF183: 8.2.5 | PRN183: 8.2.5 | PRV183: 8.2.5 | PSD183: 8.2.5 | PSL183: 8.2.5 | PST183: 8.2.5 | PTB183: 8.2.5 | PTJ183: 8.2.5 | PTR183: 8.2.5 | PTZ183: 8.2.5 | PUH183: 8.2.5 | PUP183: 8.2.5 | PUX183: 8.2.5 | PVF183: 8.2.5 | PVN183: 8.2.5 | PVV183: 8.2.5 | PWD183: 8.2.5 | PWL183: 8.2.5 | PWT183: 8.2.5 | PXB183: 8.2.5 | PXJ183: 8.2.5 | PXR183: 8.2.5 | PXZ183: 8.2.5 | PYH183: 8.2.5 | PYP183: 8.2.5 | PYX183: 8.2.5 | PZF183: 8.2.5 | PZN183: 8.2.5 | PZV183: 8.2.5 | QAD183: 8.2.5 | QAL183: 8.2.5 | QAT183: 8.2.5 | QBB183: 8.2.5 | QBJ183: 8.2.5 | QBR183: 8.2.5 | QBZ183: 8.2.5 | QCH183: 8.2.5 | QCP183: 8.2.5 | QCX183: 8.2.5 | QDF183: 8.2.5 | QDN183: 8.2.5 | QDV183: 8.2.5 | QED183: 8.2.5 | QEL183: 8.2.5 | QET183: 8.2.5 | QFB183: 8.2.5 | QFJ183: 8.2.5 | QFR183: 8.2.5 | QFZ183: 8.2.5 | QGH183: 8.2.5 | QGP183: 8.2.5 | QGX183: 8.2.5 | QHF183: 8.2.5 | QHN183: 8.2.5 | QHV183: 8.2.5 | QID183: 8.2.5 | QIL183: 8.2.5 | QIT183: 8.2.5 | QJB183: 8.2.5 | QJJ183: 8.2.5 | QJR183: 8.2.5 | QJZ183: 8.2.5 | QKH183: 8.2.5 | QKP183: 8.2.5 | QKX183: 8.2.5 | QLF183: 8.2.5 | QLN183: 8.2.5 | QLV183: 8.2.5 | QMD183: 8.2.5 | QML183: 8.2.5 | QMT183: 8.2.5 | QNB183: 8.2.5 | QNJ183: 8.2.5 | QNR183: 8.2.5 | QNZ183: 8.2.5 | QOH183: 8.2.5 | QOP183: 8.2.5 | QOX183: 8.2.5 | QPF183: 8.2.5 | QPN183: 8.2.5 | QPV183: 8.2.5 | QQD183: 8.2.5 | QQL183: 8.2.5 | QQT183: 8.2.5 | QRB183: 8.2.5 | QRJ183: 8.2.5 | QRR183: 8.2.5 | QRZ183: 8.2.5 | QSH183: 8.2.5 | QSP183: 8.2.5 | QSX183: 8.2.5 | QTF183: 8.2.5 | QTN183: 8.2.5 | QTV183: 8.2.5 | QUD183: 8.2.5 | QUL183: 8.2.5 | QUT183: 8.2.5 | QVB183: 8.2.5 | QVJ183: 8.2.5 | QVR183: 8.2.5 | QVZ183: 8.2.5 | QWH183: 8.2.5 | QWP183: 8.2.5 | QWX183: 8.2.5 | QXF183: 8.2.5 | QXN183: 8.2.5 | QXV183: 8.2.5 | QYD183: 8.2.5 | QYL183: 8.2.5 | QYT183: 8.2.5 | QZB183: 8.2.5 | QZJ183: 8.2.5 | QZR183: 8.2.5 | QZZ183: 8.2.5 | RAH183: 8.2.5 | RAP183: 8.2.5 | RAX183: 8.2.5 | RBF183: 8.2.5 | RBN183: 8.2.5 | RBV183: 8.2.5 | RCD183: 8.2.5 | RCL183: 8.2.5 | RCT183: 8.2.5 | RDB183: 8.2.5 | RDJ183: 8.2.5 | RDR183: 8.2.5 | RDZ183: 8.2.5 | REH183: 8.2.5 | REP183: 8.2.5 | REX183: 8.2.5 | RFF183: 8.2.5 | RFN183: 8.2.5 | RFV183: 8.2.5 | RGD183: 8.2.5 | RGL183: 8.2.5 | RGT183: 8.2.5 | RHB183: 8.2.5 | RHJ183: 8.2.5 | RHR183: 8.2.5 | RHZ183: 8.2.5 | RIH183: 8.2.5 | RIP183: 8.2.5 | RIX183: 8.2.5 | RJF183: 8.2.5 | RJN183: 8.2.5 | RJV183: 8.2.5 | RKD183: 8.2.5 | RKL183: 8.2.5 | RKT183: 8.2.5 | RLB183: 8.2.5 | RLJ183: 8.2.5 | RLR183: 8.2.5 | RLZ183: 8.2.5 | RMH183: 8.2.5 | RMP183: 8.2.5 | RMX183: 8.2.5 | RNF183: 8.2.5 | RNN183: 8.2.5 | RNV183: 8.2.5 | ROD183: 8.2.5 | ROL183: 8.2.5 | ROT183: 8.2.5 | RPB183: 8.2.5 | RPJ183: 8.2.5 | RPR183: 8.2.5 | RPZ183: 8.2.5 | RQH183: 8.2.5 | RQP183: 8.2.5 | RQX183: 8.2.5 | RRF183: 8.2.5 | RRN183: 8.2.5 | RRV183: 8.2.5 | RSD183: 8.2.5 | RSL183: 8.2.5 | RST183: 8.2.5 | RTB183: 8.2.5 | RTJ183: 8.2.5 | RTR183: 8.2.5 | RTZ183: 8.2.5 | RUH183: 8.2.5 | RUP183: 8.2.5 | RUX183: 8.2.5 | RVF183: 8.2.5 | RVN183: 8.2.5 | RVV183: 8.2.5 | RWD183: 8.2.5 | RWL183: 8.2.5 | RWT183: 8.2.5 | RXB183: 8.2.5 | RXJ183: 8.2.5 | RXR183: 8.2.5 | RXZ183: 8.2.5 | RYH183: 8.2.5 | RYP183: 8.2.5 | RYX183: 8.2.5 | RZF183: 8.2.5 | RZN183: 8.2.5 | RZV183: 8.2.5 | SAD183: 8.2.5 | SAL183: 8.2.5 | SAT183: 8.2.5 | SBB183: 8.2.5 | SBJ183: 8.2.5 | SBR183: 8.2.5 | SBZ183: 8.2.5 | SCH183: 8.2.5 | SCP183: 8.2.5 | SCX183: 8.2.5 | SDF183: 8.2.5 | SDN183: 8.2.5 | SDV183: 8.2.5 | SED183: 8.2.5 | SEL183: 8.2.5 | SET183: 8.2.5 | SFB183: 8.2.5 | SFJ183: 8.2.5 | SFR183: 8.2.5 | SFZ183: 8.2.5 | SGH183: 8.2.5 | SGP183: 8.2.5 | SGX183: 8.2.5 | SHF183: 8.2.5 | SHN183: 8.2.5 | SHV183: 8.2.5 | SID183: 8.2.5 | SIL183: 8.2.5 | SIT183: 8.2.5 | SJB183: 8.2.5 | SJJ183: 8.2.5 | SJR183: 8.2.5 | SJZ183: 8.2.5 | SKH183: 8.2.5 | SKP183: 8.2.5 | SKX183: 8.2.5 | SLF183: 8.2.5 | SLN183: 8.2.5 | SLV183: 8.2.5 | SMD183: 8.2.5 | SML183: 8.2.5 | SMT183: 8.2.5 | SNB183: 8.2.5 | SNJ183: 8.2.5 | SNR183: 8.2.5 | SNZ183: 8.2.5 | SOH183: 8.2.5 | SOP183: 8.2.5 | SOX183: 8.2.5 | SPF183: 8.2.5 | SPN183: 8.2.5 | SPV183: 8.2.5 | SQD183: 8.2.5 | SQL183: 8.2.5 | SQT183: 8.2.5 | SRB183: 8.2.5 | SRJ183: 8.2.5 | SRR183: 8.2.5 | SRZ183: 8.2.5 | SSH183: 8.2.5 | SSP183: 8.2.5 | SSX183: 8.2.5 | STF183: 8.2.5 | STN183: 8.2.5 | STV183: 8.2.5 | SUD183: 8.2.5 | SUL183: 8.2.5 | SUT183: 8.2.5 | SVB183: 8.2.5 | SVJ183: 8.2.5 | SVR183: 8.2.5 | SVZ183: 8.2.5 | SWH183: 8.2.5 | SWP183: 8.2.5 | SWX183: 8.2.5 | SXF183: 8.2.5 | SXN183: 8.2.5 | SXV183: 8.2.5 | SYD183: 8.2.5 | SYL183: 8.2.5 | SYT183: 8.2.5 | SZB183: 8.2.5 | SZJ183: 8.2.5 | SZR183: 8.2.5 | SZZ183: 8.2.5 | TAH183: 8.2.5 | TAP183: 8.2.5 | TAX183: 8.2.5 | TBF183: 8.2.5 | TBN183: 8.2.5 | TBV183: 8.2.5 | TCD183: 8.2.5 | TCL183: 8.2.5 | TCT183: 8.2.5 | TDB183: 8.2.5 | TDJ183: 8.2.5 | TDR183: 8.2.5 | TDZ183: 8.2.5 | TEH183: 8.2.5 | TEP183: 8.2.5 | TEX183: 8.2.5 | TFF183: 8.2.5 | TFN183: 8.2.5 | TFV183: 8.2.5 | TGD183: 8.2.5 | TGL183: 8.2.5 | TGT183: 8.2.5 | THB183: 8.2.5 | THJ183: 8.2.5 | THR183: 8.2.5 | THZ183: 8.2.5 | TIH183: 8.2.5 | TIP183: 8.2.5 | TIX183: 8.2.5 | TJF183: 8.2.5 | TJN183: 8.2.5 | TJV183: 8.2.5 | TKD183: 8.2.5 | TKL183: 8.2.5 | TKT183: 8.2.5 | TLB183: 8.2.5 | TLJ183: 8.2.5 | TLR183: 8.2.5 | TLZ183: 8.2.5 | TMH183: 8.2.5 | TMP183: 8.2.5 | TMX183: 8.2.5 | TNF183: 8.2.5 | TNN183: 8.2.5 | TNV183: 8.2.5 | TOD183: 8.2.5 | TOL183: 8.2.5 | TOT183: 8.2.5 | TPB183: 8.2.5 | TPJ183: 8.2.5 | TPR183: 8.2.5 | TPZ183: 8.2.5 | TQH183: 8.2.5 | TQP183: 8.2.5 | TQX183: 8.2.5 | TRF183: 8.2.5 | TRN183: 8.2.5 | TRV183: 8.2.5 | TSD183: 8.2.5 | TSL183: 8.2.5 | TST183: 8.2.5 | TTB183: 8.2.5 | TTJ183: 8.2.5 | TTR183: 8.2.5 | TTZ183: 8.2.5 | TUH183: 8.2.5 | TUP183: 8.2.5 | TUX183: 8.2.5 | TVF183: 8.2.5 | TVN183: 8.2.5 | TVV183: 8.2.5 | TWD183: 8.2.5 | TWL183: 8.2.5 | TWT183: 8.2.5 | TXB183: 8.2.5 | TXJ183: 8.2.5 | TXR183: 8.2.5 | TXZ183: 8.2.5 | TYH183: 8.2.5 | TYP183: 8.2.5 | TYX183: 8.2.5 | TZF183: 8.2.5 | TZN183: 8.2.5 | TZV183: 8.2.5 | UAD183: 8.2.5 | UAL183: 8.2.5 | UAT183: 8.2.5 | UBB183: 8.2.5 | UBJ183: 8.2.5 | UBR183: 8.2.5 | UBZ183: 8.2.5 | UCH183: 8.2.5 | UCP183: 8.2.5 | UCX183: 8.2.5 | UDF183: 8.2.5 | UDN183: 8.2.5 | UDV183: 8.2.5 | UED183: 8.2.5 | UEL183: 8.2.5 | UET183: 8.2.5 | UFB183: 8.2.5 | UFJ183: 8.2.5 | UFR183: 8.2.5 | UFZ183: 8.2.5 | UGH183: 8.2.5 | UGP183: 8.2.5 | UGX183: 8.2.5 | UHF183: 8.2.5 | UHN183: 8.2.5 | UHV183: 8.2.5 | UID183: 8.2.5 | UIL183: 8.2.5 | UIT183: 8.2.5 | UJB183: 8.2.5 | UJJ183: 8.2.5 | UJR183: 8.2.5 | UJZ183: 8.2.5 | UKH183: 8.2.5 | UKP183: 8.2.5 | UKX183: 8.2.5 | ULF183: 8.2.5 | ULN183: 8.2.5 | ULV183: 8.2.5 | UMD183: 8.2.5 | UML183: 8.2.5 | UMT183: 8.2.5 | UNB183: 8.2.5 | UNJ183: 8.2.5 | UNR183: 8.2.5 | UNZ183: 8.2.5 | UOH183: 8.2.5 | UOP183: 8.2.5 | UOX183: 8.2.5 | UPF183: 8.2.5 | UPN183: 8.2.5 | UPV183: 8.2.5 | UQD183: 8.2.5 | UQL183: 8.2.5 | UQT183: 8.2.5 | URB183: 8.2.5 | URJ183: 8.2.5 | URR183: 8.2.5 | URZ183: 8.2.5 | USH183: 8.2.5 | USP183: 8.2.5 | USX183: 8.2.5 | UTF183: 8.2.5 | UTN183: 8.2.5 | UTV183: 8.2.5 | UUD183: 8.2.5 | UUL183: 8.2.5 | UUT183: 8.2.5 | UVB183: 8.2.5 | UVJ183: 8.2.5 | UVR183: 8.2.5 | UVZ183: 8.2.5 | UWH183: 8.2.5 | UWP183: 8.2.5 | UWX183: 8.2.5 | UXF183: 8.2.5 | UXN183: 8.2.5 | UXV183: 8.2.5 | UYD183: 8.2.5 | UYL183: 8.2.5 | UYT183: 8.2.5 | UZB183: 8.2.5 | UZJ183: 8.2.5 | UZR183: 8.2.5 | UZZ183: 8.2.5 | VAH183: 8.2.5 | VAP183: 8.2.5 | VAX183: 8.2.5 | VBF183: 8.2.5 | VBN183: 8.2.5 | VBV183: 8.2.5 | VCD183: 8.2.5 | VCL183: 8.2.5 | VCT183: 8.2.5 | VDB183: 8.2.5 | VDJ183: 8.2.5 | VDR183: 8.2.5 | VDZ183: 8.2.5 | VEH183: 8.2.5 | VEP183: 8.2.5 | VEX183: 8.2.5 | VFF183: 8.2.5 | VFN183: 8.2.5 | VFV183: 8.2.5 | VGD183: 8.2.5 | VGL183: 8.2.5 | VGT183: 8.2.5 | VHB183: 8.2.5 | VHJ183: 8.2.5 | VHR183: 8.2.5 | VHZ183: 8.2.5 | VIH183: 8.2.5 | VIP183: 8.2.5 | VIX183: 8.2.5 | VJF183: 8.2.5 | VJN183: 8.2.5 | VJV183: 8.2.5 | VKD183: 8.2.5 | VKL183: 8.2.5 | VKT183: 8.2.5 | VLB183: 8.2.5 | VLJ183: 8.2.5 | VLR183: 8.2.5 | VLZ183: 8.2.5 | VMH183: 8.2.5 | VMP183: 8.2.5 | VMX183: 8.2.5 | VNF183: 8.2.5 | VNN183: 8.2.5 | VNV183: 8.2.5 | VOD183: 8.2.5 | VOL183: 8.2.5 | VOT183: 8.2.5 | VPB183: 8.2.5 | VPJ183: 8.2.5 | VPR183: 8.2.5 | VPZ183: 8.2.5 | VQH183: 8.2.5 | VQP183: 8.2.5 | VQX183: 8.2.5 | VRF183: 8.2.5 | VRN183: 8.2.5 | VRV183: 8.2.5 | VSD183: 8.2.5 | VSL183: 8.2.5 | VST183: 8.2.5 | VTB183: 8.2.5 | VTJ183: 8.2.5 | VTR183: 8.2.5 | VTZ183: 8.2.5 | VUH183: 8.2.5 | VUP183: 8.2.5 | VUX183: 8.2.5 | VVF183: 8.2.5 | VVN183: 8.2.5 | VVV183: 8.2.5 | VWD183: 8.2.5 | VWL183: 8.2.5 | VWT183: 8.2.5 | VXB183: 8.2.5 | VXJ183: 8.2.5 | VXR183: 8.2.5 | VXZ183: 8.2.5 | VYH183: 8.2.5 | VYP183: 8.2.5 | VYX183: 8.2.5 | VZF183: 8.2.5 | VZN183: 8.2.5 | VZV183: 8.2.5 | WAD183: 8.2.5 | WAL183: 8.2.5 | WAT183: 8.2.5 | WBB183: 8.2.5 | WBJ183: 8.2.5 | WBR183: 8.2.5 | WBZ183: 8.2.5 | WCH183: 8.2.5 | WCP183: 8.2.5 | WCX183: 8.2.5 | WDF183: 8.2.5 | WDN183: 8.2.5 | WDV183: 8.2.5 | WED183: 8.2.5 | WEL183: 8.2.5 | WET183: 8.2.5 | WFB183: 8.2.5 | WFJ183: 8.2.5 | WFR183: 8.2.5 | WFZ183: 8.2.5 | WGH183: 8.2.5 | WGP183: 8.2.5 | WGX183: 8.2.5 | WHF183: 8.2.5 | WHN183: 8.2.5 | WHV183: 8.2.5 | WID183: 8.2.5 | WIL183: 8.2.5 | WIT183: 8.2.5 | WJB183: 8.2.5 | WJJ183: 8.2.5 | WJR183: 8.2.5 | WJZ183: 8.2.5 | WKH183: 8.2.5 | WKP183: 8.2.5 | WKX183: 8.2.5 | WLF183: 8.2.5 | WLN183: 8.2.5 | WLV183: 8.2.5 | WMD183: 8.2.5 | WML183: 8.2.5 | WMT183: 8.2.5 | WNB183: 8.2.5 | WNJ183: 8.2.5 | WNR183: 8.2.5 | WNZ183: 8.2.5 | WOH183: 8.2.5 | WOP183: 8.2.5 | WOX183: 8.2.5 | WPF183: 8.2.5 | WPN183: 8.2.5 | WPV183: 8.2.5 | WQD183: 8.2.5 | WQL183: 8.2.5 | WQT183: 8.2.5 | WRB183: 8.2.5 | WRJ183: 8.2.5 | WRR183: 8.2.5 | WRZ183: 8.2.5 | WSH183: 8.2.5 | WSP183: 8.2.5 | WSX183: 8.2.5 | WTF183: 8.2.5 | WTN183: 8.2.5 | WTV183: 8.2.5 | WUD183: 8.2.5 | WUL183: 8.2.5 | WUT183: 8.2.5 | WVB183: 8.2.5 | WVJ183: 8.2.5 | WVR183: 8.2.5 | WVZ183: 8.2.5 | WWH183: 8.2.5 | WWP183: 8.2.5 | WWX183: 8.2.5 | WXF183: 8.2.5 | WXN183: 8.2.5 | WXV183: 8.2.5 | WYD183: 8.2.5 | WYL183: 8.2.5 | WYT183: 8.2.5 | WZB183: 8.2.5 | WZJ183: 8.2.5 | WZR183: 8.2.5 | WZZ183: 8.2.5 | XAH183: 8.2.5 | XAP183: 8.2.5 | XAX183: 8.2.5 | XBF183: 8.2.5 | XBN183: 8.2.5 | XBV183: 8.2.5 | XCD183: 8.2.5 | XCL183: 8.2.5 | XCT183: 8.2.5 | XDB183: 8.2.5 | XDJ183: 8.2.5 | XDR183: 8.2.5 | XDZ183: 8.2.5 | XEH183: 8.2.5 | XEP183: 8.2.5 | XEX183: 8.2.5
A184: Ins. Sinapi | B184: 9.2.2 | C184: 96 | D184: =IF(A184="Comp. Sinapi",VLOOKUP(C184,'COMP SINAPI'!G:M,2,0),IF(A184="Comp. Seinfra",VLOOKUP(C184,'COMP. SEINFRA'!B:G,2,0),IF(A184="COMP. ORSE",VLOOKUP(C184,'COMP. ORSE'!A:D,2,0),IF(A184="Ins. Seinfra",VLOOKUP(C184,'INS. SEINFRA'!$A:$D,2,0),IF(A184="Ins. Sinapi",VLOOKUP(C184,'INS SINAPI'!A:E,2,0),IF(A184="Ins. Orse",VLOOKUP(C184,'INS. ORSE'!A:D,2,0),IF(A184="CPU CODEVASF",VLOOKUP(C184,CPU!B:I,4,0),IF(A184="COTAÇÃO",VLOOKUP(C184,COTAÇÃO!A:D,2,0))))))))) -> ADAPTADOR PVC SOLDAVEL, COM FLANGE E ANEL DE VEDACAO, 25 MM X 3/4", PARA CAIXA D'AGUA | E184: =IF(A184="CPU CODEVASF",VLOOKUP(C184,CPU!B:I,5,0),IF(A184="INS. SEINFRA",VLOOKUP(C184,'INS. SEINFRA'!A:D,3,0),IF(A184="INS. SINAPI",VLOOKUP(C184,'INS SINAPI'!A:E,3,0),IF(A184="COMP. SINAPI",VLOOKUP(C184,'COMP SINAPI'!G:M,3,0),IF(A184="INS. ORSE",VLOOKUP(C184,'INS. ORSE'!A:D,3,0),IF(A184="COTAÇÃO",VLOOKUP(C184,COTAÇÃO!A:D,3,0),IF(A184="COMP. ORSE",VLOOKUP(C184,'COMP. ORSE'!A:D,3,0),IF(A184="COMP. SEINFRA",VLOOKUP(C184,'COMP. SEINFRA'!B:G,5,0))))))))) -> UN | F184: 1 | G184: =IF(A184="CPU CODEVASF",VLOOKUP(C184,CPU!F:I,4,0),IF(A184="COTAÇÃO",VLOOKUP(C184,COTAÇÃO!A:D,4,0),IF(A184="INS. SEINFRA",VLOOKUP(C184,'INS. SEINFRA'!A:D,4,0),IF(A184="INS. SINAPI",VLOOKUP(C184,'INS SINAPI'!A:E,5,0),IF(A184="COMP. SINAPI",VLOOKUP(C184,'COMP SINAPI'!G:M,5,0),IF(A184="INS. ORSE",VLOOKUP(C184,'INS. ORSE'!A:D,4,0),IF(A184="COMP. ORSE",VLOOKUP(C184,'COMP. ORSE'!A:D,4,0),IF(A184="COMP. SEINFRA",VLOOKUP(C184,'COMP. SEINFRA'!B:G,6,0))))))))) -> 13,68 | H184: 15.23 | I184: 15.23 | FN184: 8.2.5 | FV184: 8.2.5 | GD184: 8.2.5 | GL184: 8.2.5 | GT184: 8.2.5 | HB184: 8.2.5 | HJ184: 8.2.5 | HR184: 8.2.5 | HZ184: 8.2.5 | IH184: 8.2.5 | IP184: 8.2.5 | IX184: 8.2.5 | JF184: 8.2.5 | JN184: 8.2.5 | JV184: 8.2.5 | KD184: 8.2.5 | KL184: 8.2.5 | KT184: 8.2.5 | LB184: 8.2.5 | LJ184: 8.2.5 | LR184: 8.2.5 | LZ184: 8.2.5 | MH184: 8.2.5 | MP184: 8.2.5 | MX184: 8.2.5 | NF184: 8.2.5 | NN184: 8.2.5 | NV184: 8.2.5 | OD184: 8.2.5 | OL184: 8.2.5 | OT184: 8.2.5 | PB184: 8.2.5 | PJ184: 8.2.5 | PR184: 8.2.5 | PZ184: 8.2.5 | QH184: 8.2.5 | QP184: 8.2.5 | QX184: 8.2.5 | RF184: 8.2.5 | RN184: 8.2.5 | RV184: 8.2.5 | SD184: 8.2.5 | SL184: 8.2.5 | ST184: 8.2.5 | TB184: 8.2.5 | TJ184: 8.2.5 | TR184: 8.2.5 | TZ184: 8.2.5 | UH184: 8.2.5 | UP184: 8.2.5 | UX184: 8.2.5 | VF184: 8.2.5 | VN184: 8.2.5 | VV184: 8.2.5 | WD184: 8.2.5 | WL184: 8.2.5 | WT184: 8.2.5 | XB184: 8.2.5 | XJ184: 8.2.5 | XR184: 8.2.5 | XZ184: 8.2.5 | YH184: 8.2.5 | YP184: 8.2.5 | YX184: 8.2.5 | ZF184: 8.2.5 | ZN184: 8.2.5 | ZV184: 8.2.5 | AAD184: 8.2.5 | AAL184: 8.2.5 | AAT184: 8.2.5 | ABB184: 8.2.5 | ABJ184: 8.2.5 | ABR184: 8.2.5 | ABZ184: 8.2.5 | ACH184: 8.2.5 | ACP184: 8.2.5 | ACX184: 8.2.5 | ADF184: 8.2.5 | ADN184: 8.2.5 | ADV184: 8.2.5 | AED184: 8.2.5 | AEL184: 8.2.5 | AET184: 8.2.5 | AFB184: 8.2.5 | AFJ184: 8.2.5 | AFR184: 8.2.5 | AFZ184: 8.2.5 | AGH184: 8.2.5 | AGP184: 8.2.5 | AGX184: 8.2.5 | AHF184: 8.2.5 | AHN184: 8.2.5 | AHV184: 8.2.5 | AID184: 8.2.5 | AIL184: 8.2.5 | AIT184: 8.2.5 | AJB184: 8.2.5 | AJJ184: 8.2.5 | AJR184: 8.2.5 | AJZ184: 8.2.5 | AKH184: 8.2.5 | AKP184: 8.2.5 | AKX184: 8.2.5 | ALF184: 8.2.5 | ALN184: 8.2.5 | ALV184: 8.2.5 | AMD184: 8.2.5 | AML184: 8.2.5 | AMT184: 8.2.5 | ANB184: 8.2.5 | ANJ184: 8.2.5 | ANR184: 8.2.5 | ANZ184: 8.2.5 | AOH184: 8.2.5 | AOP184: 8.2.5 | AOX184: 8.2.5 | APF184: 8.2.5 | APN184: 8.2.5 | APV184: 8.2.5 | AQD184: 8.2.5 | AQL184: 8.2.5 | AQT184: 8.2.5 | ARB184: 8.2.5 | ARJ184: 8.2.5 | ARR184: 8.2.5 | ARZ184: 8.2.5 | ASH184: 8.2.5 | ASP184: 8.2.5 | ASX184: 8.2.5 | ATF184: 8.2.5 | ATN184: 8.2.5 | ATV184: 8.2.5 | AUD184: 8.2.5 | AUL184: 8.2.5 | AUT184: 8.2.5 | AVB184: 8.2.5 | AVJ184: 8.2.5 | AVR184: 8.2.5 | AVZ184: 8.2.5 | AWH184: 8.2.5 | AWP184: 8.2.5 | AWX184: 8.2.5 | AXF184: 8.2.5 | AXN184: 8.2.5 | AXV184: 8.2.5 | AYD184: 8.2.5 | AYL184: 8.2.5 | AYT184: 8.2.5 | AZB184: 8.2.5 | AZJ184: 8.2.5 | AZR184: 8.2.5 | AZZ184: 8.2.5 | BAH184: 8.2.5 | BAP184: 8.2.5 | BAX184: 8.2.5 | BBF184: 8.2.5 | BBN184: 8.2.5 | BBV184: 8.2.5 | BCD184: 8.2.5 | BCL184: 8.2.5 | BCT184: 8.2.5 | BDB184: 8.2.5 | BDJ184: 8.2.5 | BDR184: 8.2.5 | BDZ184: 8.2.5 | BEH184: 8.2.5 | BEP184: 8.2.5 | BEX184: 8.2.5 | BFF184: 8.2.5 | BFN184: 8.2.5 | BFV184: 8.2.5 | BGD184: 8.2.5 | BGL184: 8.2.5 | BGT184: 8.2.5 | BHB184: 8.2.5 | BHJ184: 8.2.5 | BHR184: 8.2.5 | BHZ184: 8.2.5 | BIH184: 8.2.5 | BIP184: 8.2.5 | BIX184: 8.2.5 | BJF184: 8.2.5 | BJN184: 8.2.5 | BJV184: 8.2.5 | BKD184: 8.2.5 | BKL184: 8.2.5 | BKT184: 8.2.5 | BLB184: 8.2.5 | BLJ184: 8.2.5 | BLR184: 8.2.5 | BLZ184: 8.2.5 | BMH184: 8.2.5 | BMP184: 8.2.5 | BMX184: 8.2.5 | BNF184: 8.2.5 | BNN184: 8.2.5 | BNV184: 8.2.5 | BOD184: 8.2.5 | BOL184: 8.2.5 | BOT184: 8.2.5 | BPB184: 8.2.5 | BPJ184: 8.2.5 | BPR184: 8.2.5 | BPZ184: 8.2.5 | BQH184: 8.2.5 | BQP184: 8.2.5 | BQX184: 8.2.5 | BRF184: 8.2.5 | BRN184: 8.2.5 | BRV184: 8.2.5 | BSD184: 8.2.5 | BSL184: 8.2.5 | BST184: 8.2.5 | BTB184: 8.2.5 | BTJ184: 8.2.5 | BTR184: 8.2.5 | BTZ184: 8.2.5 | BUH184: 8.2.5 | BUP184: 8.2.5 | BUX184: 8.2.5 | BVF184: 8.2.5 | BVN184: 8.2.5 | BVV184: 8.2.5 | BWD184: 8.2.5 | BWL184: 8.2.5 | BWT184: 8.2.5 | BXB184: 8.2.5 | BXJ184: 8.2.5 | BXR184: 8.2.5 | BXZ184: 8.2.5 | BYH184: 8.2.5 | BYP184: 8.2.5 | BYX184: 8.2.5 | BZF184: 8.2.5 | BZN184: 8.2.5 | BZV184: 8.2.5 | CAD184: 8.2.5 | CAL184: 8.2.5 | CAT184: 8.2.5 | CBB184: 8.2.5 | CBJ184: 8.2.5 | CBR184: 8.2.5 | CBZ184: 8.2.5 | CCH184: 8.2.5 | CCP184: 8.2.5 | CCX184: 8.2.5 | CDF184: 8.2.5 | CDN184: 8.2.5 | CDV184: 8.2.5 | CED184: 8.2.5 | CEL184: 8.2.5 | CET184: 8.2.5 | CFB184: 8.2.5 | CFJ184: 8.2.5 | CFR184: 8.2.5 | CFZ184: 8.2.5 | CGH184: 8.2.5 | CGP184: 8.2.5 | CGX184: 8.2.5 | CHF184: 8.2.5 | CHN184: 8.2.5 | CHV184: 8.2.5 | CID184: 8.2.5 | CIL184: 8.2.5 | CIT184: 8.2.5 | CJB184: 8.2.5 | CJJ184: 8.2.5 | CJR184: 8.2.5 | CJZ184: 8.2.5 | CKH184: 8.2.5 | CKP184: 8.2.5 | CKX184: 8.2.5 | CLF184: 8.2.5 | CLN184: 8.2.5 | CLV184: 8.2.5 | CMD184: 8.2.5 | CML184: 8.2.5 | CMT184: 8.2.5 | CNB184: 8.2.5 | CNJ184: 8.2.5 | CNR184: 8.2.5 | CNZ184: 8.2.5 | COH184: 8.2.5 | COP184: 8.2.5 | COX184: 8.2.5 | CPF184: 8.2.5 | CPN184: 8.2.5 | CPV184: 8.2.5 | CQD184: 8.2.5 | CQL184: 8.2.5 | CQT184: 8.2.5 | CRB184: 8.2.5 | CRJ184: 8.2.5 | CRR184: 8.2.5 | CRZ184: 8.2.5 | CSH184: 8.2.5 | CSP184: 8.2.5 | CSX184: 8.2.5 | CTF184: 8.2.5 | CTN184: 8.2.5 | CTV184: 8.2.5 | CUD184: 8.2.5 | CUL184: 8.2.5 | CUT184: 8.2.5 | CVB184: 8.2.5 | CVJ184: 8.2.5 | CVR184: 8.2.5 | CVZ184: 8.2.5 | CWH184: 8.2.5 | CWP184: 8.2.5 | CWX184: 8.2.5 | CXF184: 8.2.5 | CXN184: 8.2.5 | CXV184: 8.2.5 | CYD184: 8.2.5 | CYL184: 8.2.5 | CYT184: 8.2.5 | CZB184: 8.2.5 | CZJ184: 8.2.5 | CZR184: 8.2.5 | CZZ184: 8.2.5 | DAH184: 8.2.5 | DAP184: 8.2.5 | DAX184: 8.2.5 | DBF184: 8.2.5 | DBN184: 8.2.5 | DBV184: 8.2.5 | DCD184: 8.2.5 | DCL184: 8.2.5 | DCT184: 8.2.5 | DDB184: 8.2.5 | DDJ184: 8.2.5 | DDR184: 8.2.5 | DDZ184: 8.2.5 | DEH184: 8.2.5 | DEP184: 8.2.5 | DEX184: 8.2.5 | DFF184: 8.2.5 | DFN184: 8.2.5 | DFV184: 8.2.5 | DGD184: 8.2.5 | DGL184: 8.2.5 | DGT184: 8.2.5 | DHB184: 8.2.5 | DHJ184: 8.2.5 | DHR184: 8.2.5 | DHZ184: 8.2.5 | DIH184: 8.2.5 | DIP184: 8.2.5 | DIX184: 8.2.5 | DJF184: 8.2.5 | DJN184: 8.2.5 | DJV184: 8.2.5 | DKD184: 8.2.5 | DKL184: 8.2.5 | DKT184: 8.2.5 | DLB184: 8.2.5 | DLJ184: 8.2.5 | DLR184: 8.2.5 | DLZ184: 8.2.5 | DMH184: 8.2.5 | DMP184: 8.2.5 | DMX184: 8.2.5 | DNF184: 8.2.5 | DNN184: 8.2.5 | DNV184: 8.2.5 | DOD184: 8.2.5 | DOL184: 8.2.5 | DOT184: 8.2.5 | DPB184: 8.2.5 | DPJ184: 8.2.5 | DPR184: 8.2.5 | DPZ184: 8.2.5 | DQH184: 8.2.5 | DQP184: 8.2.5 | DQX184: 8.2.5 | DRF184: 8.2.5 | DRN184: 8.2.5 | DRV184: 8.2.5 | DSD184: 8.2.5 | DSL184: 8.2.5 | DST184: 8.2.5 | DTB184: 8.2.5 | DTJ184: 8.2.5 | DTR184: 8.2.5 | DTZ184: 8.2.5 | DUH184: 8.2.5 | DUP184: 8.2.5 | DUX184: 8.2.5 | DVF184: 8.2.5 | DVN184: 8.2.5 | DVV184: 8.2.5 | DWD184: 8.2.5 | DWL184: 8.2.5 | DWT184: 8.2.5 | DXB184: 8.2.5 | DXJ184: 8.2.5 | DXR184: 8.2.5 | DXZ184: 8.2.5 | DYH184: 8.2.5 | DYP184: 8.2.5 | DYX184: 8.2.5 | DZF184: 8.2.5 | DZN184: 8.2.5 | DZV184: 8.2.5 | EAD184: 8.2.5 | EAL184: 8.2.5 | EAT184: 8.2.5 | EBB184: 8.2.5 | EBJ184: 8.2.5 | EBR184: 8.2.5 | EBZ184: 8.2.5 | ECH184: 8.2.5 | ECP184: 8.2.5 | ECX184: 8.2.5 | EDF184: 8.2.5 | EDN184: 8.2.5 | EDV184: 8.2.5 | EED184: 8.2.5 | EEL184: 8.2.5 | EET184: 8.2.5 | EFB184: 8.2.5 | EFJ184: 8.2.5 | EFR184: 8.2.5 | EFZ184: 8.2.5 | EGH184: 8.2.5 | EGP184: 8.2.5 | EGX184: 8.2.5 | EHF184: 8.2.5 | EHN184: 8.2.5 | EHV184: 8.2.5 | EID184: 8.2.5 | EIL184: 8.2.5 | EIT184: 8.2.5 | EJB184: 8.2.5 | EJJ184: 8.2.5 | EJR184: 8.2.5 | EJZ184: 8.2.5 | EKH184: 8.2.5 | EKP184: 8.2.5 | EKX184: 8.2.5 | ELF184: 8.2.5 | ELN184: 8.2.5 | ELV184: 8.2.5 | EMD184: 8.2.5 | EML184: 8.2.5 | EMT184: 8.2.5 | ENB184: 8.2.5 | ENJ184: 8.2.5 | ENR184: 8.2.5 | ENZ184: 8.2.5 | EOH184: 8.2.5 | EOP184: 8.2.5 | EOX184: 8.2.5 | EPF184: 8.2.5 | EPN184: 8.2.5 | EPV184: 8.2.5 | EQD184: 8.2.5 | EQL184: 8.2.5 | EQT184: 8.2.5 | ERB184: 8.2.5 | ERJ184: 8.2.5 | ERR184: 8.2.5 | ERZ184: 8.2.5 | ESH184: 8.2.5 | ESP184: 8.2.5 | ESX184: 8.2.5 | ETF184: 8.2.5 | ETN184: 8.2.5 | ETV184: 8.2.5 | EUD184: 8.2.5 | EUL184: 8.2.5 | EUT184: 8.2.5 | EVB184: 8.2.5 | EVJ184: 8.2.5 | EVR184: 8.2.5 | EVZ184: 8.2.5 | EWH184: 8.2.5 | EWP184: 8.2.5 | EWX184: 8.2.5 | EXF184: 8.2.5 | EXN184: 8.2.5 | EXV184: 8.2.5 | EYD184: 8.2.5 | EYL184: 8.2.5 | EYT184: 8.2.5 | EZB184: 8.2.5 | EZJ184: 8.2.5 | EZR184: 8.2.5 | EZZ184: 8.2.5 | FAH184: 8.2.5 | FAP184: 8.2.5 | FAX184: 8.2.5 | FBF184: 8.2.5 | FBN184: 8.2.5 | FBV184: 8.2.5 | FCD184: 8.2.5 | FCL184: 8.2.5 | FCT184: 8.2.5 | FDB184: 8.2.5 | FDJ184: 8.2.5 | FDR184: 8.2.5 | FDZ184: 8.2.5 | FEH184: 8.2.5 | FEP184: 8.2.5 | FEX184: 8.2.5 | FFF184: 8.2.5 | FFN184: 8.2.5 | FFV184: 8.2.5 | FGD184: 8.2.5 | FGL184: 8.2.5 | FGT184: 8.2.5 | FHB184: 8.2.5 | FHJ184: 8.2.5 | FHR184: 8.2.5 | FHZ184: 8.2.5 | FIH184: 8.2.5 | FIP184: 8.2.5 | FIX184: 8.2.5 | FJF184: 8.2.5 | FJN184: 8.2.5 | FJV184: 8.2.5 | FKD184: 8.2.5 | FKL184: 8.2.5 | FKT184: 8.2.5 | FLB184: 8.2.5 | FLJ184: 8.2.5 | FLR184: 8.2.5 | FLZ184: 8.2.5 | FMH184: 8.2.5 | FMP184: 8.2.5 | FMX184: 8.2.5 | FNF184: 8.2.5 | FNN184: 8.2.5 | FNV184: 8.2.5 | FOD184: 8.2.5 | FOL184: 8.2.5 | FOT184: 8.2.5 | FPB184: 8.2.5 | FPJ184: 8.2.5 | FPR184: 8.2.5 | FPZ184: 8.2.5 | FQH184: 8.2.5 | FQP184: 8.2.5 | FQX184: 8.2.5 | FRF184: 8.2.5 | FRN184: 8.2.5 | FRV184: 8.2.5 | FSD184: 8.2.5 | FSL184: 8.2.5 | FST184: 8.2.5 | FTB184: 8.2.5 | FTJ184: 8.2.5 | FTR184: 8.2.5 | FTZ184: 8.2.5 | FUH184: 8.2.5 | FUP184: 8.2.5 | FUX184: 8.2.5 | FVF184: 8.2.5 | FVN184: 8.2.5 | FVV184: 8.2.5 | FWD184: 8.2.5 | FWL184: 8.2.5 | FWT184: 8.2.5 | FXB184: 8.2.5 | FXJ184: 8.2.5 | FXR184: 8.2.5 | FXZ184: 8.2.5 | FYH184: 8.2.5 | FYP184: 8.2.5 | FYX184: 8.2.5 | FZF184: 8.2.5 | FZN184: 8.2.5 | FZV184: 8.2.5 | GAD184: 8.2.5 | GAL184: 8.2.5 | GAT184: 8.2.5 | GBB184: 8.2.5 | GBJ184: 8.2.5 | GBR184: 8.2.5 | GBZ184: 8.2.5 | GCH184: 8.2.5 | GCP184: 8.2.5 | GCX184: 8.2.5 | GDF184: 8.2.5 | GDN184: 8.2.5 | GDV184: 8.2.5 | GED184: 8.2.5 | GEL184: 8.2.5 | GET184: 8.2.5 | GFB184: 8.2.5 | GFJ184: 8.2.5 | GFR184: 8.2.5 | GFZ184: 8.2.5 | GGH184: 8.2.5 | GGP184: 8.2.5 | GGX184: 8.2.5 | GHF184: 8.2.5 | GHN184: 8.2.5 | GHV184: 8.2.5 | GID184: 8.2.5 | GIL184: 8.2.5 | GIT184: 8.2.5 | GJB184: 8.2.5 | GJJ184: 8.2.5 | GJR184: 8.2.5 | GJZ184: 8.2.5 | GKH184: 8.2.5 | GKP184: 8.2.5 | GKX184: 8.2.5 | GLF184: 8.2.5 | GLN184: 8.2.5 | GLV184: 8.2.5 | GMD184: 8.2.5 | GML184: 8.2.5 | GMT184: 8.2.5 | GNB184: 8.2.5 | GNJ184: 8.2.5 | GNR184: 8.2.5 | GNZ184: 8.2.5 | GOH184: 8.2.5 | GOP184: 8.2.5 | GOX184: 8.2.5 | GPF184: 8.2.5 | GPN184: 8.2.5 | GPV184: 8.2.5 | GQD184: 8.2.5 | GQL184: 8.2.5 | GQT184: 8.2.5 | GRB184: 8.2.5 | GRJ184: 8.2.5 | GRR184: 8.2.5 | GRZ184: 8.2.5 | GSH184: 8.2.5 | GSP184: 8.2.5 | GSX184: 8.2.5 | GTF184: 8.2.5 | GTN184: 8.2.5 | GTV184: 8.2.5 | GUD184: 8.2.5 | GUL184: 8.2.5 | GUT184: 8.2.5 | GVB184: 8.2.5 | GVJ184: 8.2.5 | GVR184: 8.2.5 | GVZ184: 8.2.5 | GWH184: 8.2.5 | GWP184: 8.2.5 | GWX184: 8.2.5 | GXF184: 8.2.5 | GXN184: 8.2.5 | GXV184: 8.2.5 | GYD184: 8.2.5 | GYL184: 8.2.5 | GYT184: 8.2.5 | GZB184: 8.2.5 | GZJ184: 8.2.5 | GZR184: 8.2.5 | GZZ184: 8.2.5 | HAH184: 8.2.5 | HAP184: 8.2.5 | HAX184: 8.2.5 | HBF184: 8.2.5 | HBN184: 8.2.5 | HBV184: 8.2.5 | HCD184: 8.2.5 | HCL184: 8.2.5 | HCT184: 8.2.5 | HDB184: 8.2.5 | HDJ184: 8.2.5 | HDR184: 8.2.5 | HDZ184: 8.2.5 | HEH184: 8.2.5 | HEP184: 8.2.5 | HEX184: 8.2.5 | HFF184: 8.2.5 | HFN184: 8.2.5 | HFV184: 8.2.5 | HGD184: 8.2.5 | HGL184: 8.2.5 | HGT184: 8.2.5 | HHB184: 8.2.5 | HHJ184: 8.2.5 | HHR184: 8.2.5 | HHZ184: 8.2.5 | HIH184: 8.2.5 | HIP184: 8.2.5 | HIX184: 8.2.5 | HJF184: 8.2.5 | HJN184: 8.2.5 | HJV184: 8.2.5 | HKD184: 8.2.5 | HKL184: 8.2.5 | HKT184: 8.2.5 | HLB184: 8.2.5 | HLJ184: 8.2.5 | HLR184: 8.2.5 | HLZ184: 8.2.5 | HMH184: 8.2.5 | HMP184: 8.2.5 | HMX184: 8.2.5 | HNF184: 8.2.5 | HNN184: 8.2.5 | HNV184: 8.2.5 | HOD184: 8.2.5 | HOL184: 8.2.5 | HOT184: 8.2.5 | HPB184: 8.2.5 | HPJ184: 8.2.5 | HPR184: 8.2.5 | HPZ184: 8.2.5 | HQH184: 8.2.5 | HQP184: 8.2.5 | HQX184: 8.2.5 | HRF184: 8.2.5 | HRN184: 8.2.5 | HRV184: 8.2.5 | HSD184: 8.2.5 | HSL184: 8.2.5 | HST184: 8.2.5 | HTB184: 8.2.5 | HTJ184: 8.2.5 | HTR184: 8.2.5 | HTZ184: 8.2.5 | HUH184: 8.2.5 | HUP184: 8.2.5 | HUX184: 8.2.5 | HVF184: 8.2.5 | HVN184: 8.2.5 | HVV184: 8.2.5 | HWD184: 8.2.5 | HWL184: 8.2.5 | HWT184: 8.2.5 | HXB184: 8.2.5 | HXJ184: 8.2.5 | HXR184: 8.2.5 | HXZ184: 8.2.5 | HYH184: 8.2.5 | HYP184: 8.2.5 | HYX184: 8.2.5 | HZF184: 8.2.5 | HZN184: 8.2.5 | HZV184: 8.2.5 | IAD184: 8.2.5 | IAL184: 8.2.5 | IAT184: 8.2.5 | IBB184: 8.2.5 | IBJ184: 8.2.5 | IBR184: 8.2.5 | IBZ184: 8.2.5 | ICH184: 8.2.5 | ICP184: 8.2.5 | ICX184: 8.2.5 | IDF184: 8.2.5 | IDN184: 8.2.5 | IDV184: 8.2.5 | IED184: 8.2.5 | IEL184: 8.2.5 | IET184: 8.2.5 | IFB184: 8.2.5 | IFJ184: 8.2.5 | IFR184: 8.2.5 | IFZ184: 8.2.5 | IGH184: 8.2.5 | IGP184: 8.2.5 | IGX184: 8.2.5 | IHF184: 8.2.5 | IHN184: 8.2.5 | IHV184: 8.2.5 | IID184: 8.2.5 | IIL184: 8.2.5 | IIT184: 8.2.5 | IJB184: 8.2.5 | IJJ184: 8.2.5 | IJR184: 8.2.5 | IJZ184: 8.2.5 | IKH184: 8.2.5 | IKP184: 8.2.5 | IKX184: 8.2.5 | ILF184: 8.2.5 | ILN184: 8.2.5 | ILV184: 8.2.5 | IMD184: 8.2.5 | IML184: 8.2.5 | IMT184: 8.2.5 | INB184: 8.2.5 | INJ184: 8.2.5 | INR184: 8.2.5 | INZ184: 8.2.5 | IOH184: 8.2.5 | IOP184: 8.2.5 | IOX184: 8.2.5 | IPF184: 8.2.5 | IPN184: 8.2.5 | IPV184: 8.2.5 | IQD184: 8.2.5 | IQL184: 8.2.5 | IQT184: 8.2.5 | IRB184: 8.2.5 | IRJ184: 8.2.5 | IRR184: 8.2.5 | IRZ184: 8.2.5 | ISH184: 8.2.5 | ISP184: 8.2.5 | ISX184: 8.2.5 | ITF184: 8.2.5 | ITN184: 8.2.5 | ITV184: 8.2.5 | IUD184: 8.2.5 | IUL184: 8.2.5 | IUT184: 8.2.5 | IVB184: 8.2.5 | IVJ184: 8.2.5 | IVR184: 8.2.5 | IVZ184: 8.2.5 | IWH184: 8.2.5 | IWP184: 8.2.5 | IWX184: 8.2.5 | IXF184: 8.2.5 | IXN184: 8.2.5 | IXV184: 8.2.5 | IYD184: 8.2.5 | IYL184: 8.2.5 | IYT184: 8.2.5 | IZB184: 8.2.5 | IZJ184: 8.2.5 | IZR184: 8.2.5 | IZZ184: 8.2.5 | JAH184: 8.2.5 | JAP184: 8.2.5 | JAX184: 8.2.5 | JBF184: 8.2.5 | JBN184: 8.2.5 | JBV184: 8.2.5 | JCD184: 8.2.5 | JCL184: 8.2.5 | JCT184: 8.2.5 | JDB184: 8.2.5 | JDJ184: 8.2.5 | JDR184: 8.2.5 | JDZ184: 8.2.5 | JEH184: 8.2.5 | JEP184: 8.2.5 | JEX184: 8.2.5 | JFF184: 8.2.5 | JFN184: 8.2.5 | JFV184: 8.2.5 | JGD184: 8.2.5 | JGL184: 8.2.5 | JGT184: 8.2.5 | JHB184: 8.2.5 | JHJ184: 8.2.5 | JHR184: 8.2.5 | JHZ184: 8.2.5 | JIH184: 8.2.5 | JIP184: 8.2.5 | JIX184: 8.2.5 | JJF184: 8.2.5 | JJN184: 8.2.5 | JJV184: 8.2.5 | JKD184: 8.2.5 | JKL184: 8.2.5 | JKT184: 8.2.5 | JLB184: 8.2.5 | JLJ184: 8.2.5 | JLR184: 8.2.5 | JLZ184: 8.2.5 | JMH184: 8.2.5 | JMP184: 8.2.5 | JMX184: 8.2.5 | JNF184: 8.2.5 | JNN184: 8.2.5 | JNV184: 8.2.5 | JOD184: 8.2.5 | JOL184: 8.2.5 | JOT184: 8.2.5 | JPB184: 8.2.5 | JPJ184: 8.2.5 | JPR184: 8.2.5 | JPZ184: 8.2.5 | JQH184: 8.2.5 | JQP184: 8.2.5 | JQX184: 8.2.5 | JRF184: 8.2.5 | JRN184: 8.2.5 | JRV184: 8.2.5 | JSD184: 8.2.5 | JSL184: 8.2.5 | JST184: 8.2.5 | JTB184: 8.2.5 | JTJ184: 8.2.5 | JTR184: 8.2.5 | JTZ184: 8.2.5 | JUH184: 8.2.5 | JUP184: 8.2.5 | JUX184: 8.2.5 | JVF184: 8.2.5 | JVN184: 8.2.5 | JVV184: 8.2.5 | JWD184: 8.2.5 | JWL184: 8.2.5 | JWT184: 8.2.5 | JXB184: 8.2.5 | JXJ184: 8.2.5 | JXR184: 8.2.5 | JXZ184: 8.2.5 | JYH184: 8.2.5 | JYP184: 8.2.5 | JYX184: 8.2.5 | JZF184: 8.2.5 | JZN184: 8.2.5 | JZV184: 8.2.5 | KAD184: 8.2.5 | KAL184: 8.2.5 | KAT184: 8.2.5 | KBB184: 8.2.5 | KBJ184: 8.2.5 | KBR184: 8.2.5 | KBZ184: 8.2.5 | KCH184: 8.2.5 | KCP184: 8.2.5 | KCX184: 8.2.5 | KDF184: 8.2.5 | KDN184: 8.2.5 | KDV184: 8.2.5 | KED184: 8.2.5 | KEL184: 8.2.5 | KET184: 8.2.5 | KFB184: 8.2.5 | KFJ184: 8.2.5 | KFR184: 8.2.5 | KFZ184: 8.2.5 | KGH184: 8.2.5 | KGP184: 8.2.5 | KGX184: 8.2.5 | KHF184: 8.2.5 | KHN184: 8.2.5 | KHV184: 8.2.5 | KID184: 8.2.5 | KIL184: 8.2.5 | KIT184: 8.2.5 | KJB184: 8.2.5 | KJJ184: 8.2.5 | KJR184: 8.2.5 | KJZ184: 8.2.5 | KKH184: 8.2.5 | KKP184: 8.2.5 | KKX184: 8.2.5 | KLF184: 8.2.5 | KLN184: 8.2.5 | KLV184: 8.2.5 | KMD184: 8.2.5 | KML184: 8.2.5 | KMT184: 8.2.5 | KNB184: 8.2.5 | KNJ184: 8.2.5 | KNR184: 8.2.5 | KNZ184: 8.2.5 | KOH184: 8.2.5 | KOP184: 8.2.5 | KOX184: 8.2.5 | KPF184: 8.2.5 | KPN184: 8.2.5 | KPV184: 8.2.5 | KQD184: 8.2.5 | KQL184: 8.2.5 | KQT184: 8.2.5 | KRB184: 8.2.5 | KRJ184: 8.2.5 | KRR184: 8.2.5 | KRZ184: 8.2.5 | KSH184: 8.2.5 | KSP184: 8.2.5 | KSX184: 8.2.5 | KTF184: 8.2.5 | KTN184: 8.2.5 | KTV184: 8.2.5 | KUD184: 8.2.5 | KUL184: 8.2.5 | KUT184: 8.2.5 | KVB184: 8.2.5 | KVJ184: 8.2.5 | KVR184: 8.2.5 | KVZ184: 8.2.5 | KWH184: 8.2.5 | KWP184: 8.2.5 | KWX184: 8.2.5 | KXF184: 8.2.5 | KXN184: 8.2.5 | KXV184: 8.2.5 | KYD184: 8.2.5 | KYL184: 8.2.5 | KYT184: 8.2.5 | KZB184: 8.2.5 | KZJ184: 8.2.5 | KZR184: 8.2.5 | KZZ184: 8.2.5 | LAH184: 8.2.5 | LAP184: 8.2.5 | LAX184: 8.2.5 | LBF184: 8.2.5 | LBN184: 8.2.5 | LBV184: 8.2.5 | LCD184: 8.2.5 | LCL184: 8.2.5 | LCT184: 8.2.5 | LDB184: 8.2.5 | LDJ184: 8.2.5 | LDR184: 8.2.5 | LDZ184: 8.2.5 | LEH184: 8.2.5 | LEP184: 8.2.5 | LEX184: 8.2.5 | LFF184: 8.2.5 | LFN184: 8.2.5 | LFV184: 8.2.5 | LGD184: 8.2.5 | LGL184: 8.2.5 | LGT184: 8.2.5 | LHB184: 8.2.5 | LHJ184: 8.2.5 | LHR184: 8.2.5 | LHZ184: 8.2.5 | LIH184: 8.2.5 | LIP184: 8.2.5 | LIX184: 8.2.5 | LJF184: 8.2.5 | LJN184: 8.2.5 | LJV184: 8.2.5 | LKD184: 8.2.5 | LKL184: 8.2.5 | LKT184: 8.2.5 | LLB184: 8.2.5 | LLJ184: 8.2.5 | LLR184: 8.2.5 | LLZ184: 8.2.5 | LMH184: 8.2.5 | LMP184: 8.2.5 | LMX184: 8.2.5 | LNF184: 8.2.5 | LNN184: 8.2.5 | LNV184: 8.2.5 | LOD184: 8.2.5 | LOL184: 8.2.5 | LOT184: 8.2.5 | LPB184: 8.2.5 | LPJ184: 8.2.5 | LPR184: 8.2.5 | LPZ184: 8.2.5 | LQH184: 8.2.5 | LQP184: 8.2.5 | LQX184: 8.2.5 | LRF184: 8.2.5 | LRN184: 8.2.5 | LRV184: 8.2.5 | LSD184: 8.2.5 | LSL184: 8.2.5 | LST184: 8.2.5 | LTB184: 8.2.5 | LTJ184: 8.2.5 | LTR184: 8.2.5 | LTZ184: 8.2.5 | LUH184: 8.2.5 | LUP184: 8.2.5 | LUX184: 8.2.5 | LVF184: 8.2.5 | LVN184: 8.2.5 | LVV184: 8.2.5 | LWD184: 8.2.5 | LWL184: 8.2.5 | LWT184: 8.2.5 | LXB184: 8.2.5 | LXJ184: 8.2.5 | LXR184: 8.2.5 | LXZ184: 8.2.5 | LYH184: 8.2.5 | LYP184: 8.2.5 | LYX184: 8.2.5 | LZF184: 8.2.5 | LZN184: 8.2.5 | LZV184: 8.2.5 | MAD184: 8.2.5 | MAL184: 8.2.5 | MAT184: 8.2.5 | MBB184: 8.2.5 | MBJ184: 8.2.5 | MBR184: 8.2.5 | MBZ184: 8.2.5 | MCH184: 8.2.5 | MCP184: 8.2.5 | MCX184: 8.2.5 | MDF184: 8.2.5 | MDN184: 8.2.5 | MDV184: 8.2.5 | MED184: 8.2.5 | MEL184: 8.2.5 | MET184: 8.2.5 | MFB184: 8.2.5 | MFJ184: 8.2.5 | MFR184: 8.2.5 | MFZ184: 8.2.5 | MGH184: 8.2.5 | MGP184: 8.2.5 | MGX184: 8.2.5 | MHF184: 8.2.5 | MHN184: 8.2.5 | MHV184: 8.2.5 | MID184: 8.2.5 | MIL184: 8.2.5 | MIT184: 8.2.5 | MJB184: 8.2.5 | MJJ184: 8.2.5 | MJR184: 8.2.5 | MJZ184: 8.2.5 | MKH184: 8.2.5 | MKP184: 8.2.5 | MKX184: 8.2.5 | MLF184: 8.2.5 | MLN184: 8.2.5 | MLV184: 8.2.5 | MMD184: 8.2.5 | MML184: 8.2.5 | MMT184: 8.2.5 | MNB184: 8.2.5 | MNJ184: 8.2.5 | MNR184: 8.2.5 | MNZ184: 8.2.5 | MOH184: 8.2.5 | MOP184: 8.2.5 | MOX184: 8.2.5 | MPF184: 8.2.5 | MPN184: 8.2.5 | MPV184: 8.2.5 | MQD184: 8.2.5 | MQL184: 8.2.5 | MQT184: 8.2.5 | MRB184: 8.2.5 | MRJ184: 8.2.5 | MRR184: 8.2.5 | MRZ184: 8.2.5 | MSH184: 8.2.5 | MSP184: 8.2.5 | MSX184: 8.2.5 | MTF184: 8.2.5 | MTN184: 8.2.5 | MTV184: 8.2.5 | MUD184: 8.2.5 | MUL184: 8.2.5 | MUT184: 8.2.5 | MVB184: 8.2.5 | MVJ184: 8.2.5 | MVR184: 8.2.5 | MVZ184: 8.2.5 | MWH184: 8.2.5 | MWP184: 8.2.5 | MWX184: 8.2.5 | MXF184: 8.2.5 | MXN184: 8.2.5 | MXV184: 8.2.5 | MYD184: 8.2.5 | MYL184: 8.2.5 | MYT184: 8.2.5 | MZB184: 8.2.5 | MZJ184: 8.2.5 | MZR184: 8.2.5 | MZZ184: 8.2.5 | NAH184: 8.2.5 | NAP184: 8.2.5 | NAX184: 8.2.5 | NBF184: 8.2.5 | NBN184: 8.2.5 | NBV184: 8.2.5 | NCD184: 8.2.5 | NCL184: 8.2.5 | NCT184: 8.2.5 | NDB184: 8.2.5 | NDJ184: 8.2.5 | NDR184: 8.2.5 | NDZ184: 8.2.5 | NEH184: 8.2.5 | NEP184: 8.2.5 | NEX184: 8.2.5 | NFF184: 8.2.5 | NFN184: 8.2.5 | NFV184: 8.2.5 | NGD184: 8.2.5 | NGL184: 8.2.5 | NGT184: 8.2.5 | NHB184: 8.2.5 | NHJ184: 8.2.5 | NHR184: 8.2.5 | NHZ184: 8.2.5 | NIH184: 8.2.5 | NIP184: 8.2.5 | NIX184: 8.2.5 | NJF184: 8.2.5 | NJN184: 8.2.5 | NJV184: 8.2.5 | NKD184: 8.2.5 | NKL184: 8.2.5 | NKT184: 8.2.5 | NLB184: 8.2.5 | NLJ184: 8.2.5 | NLR184: 8.2.5 | NLZ184: 8.2.5 | NMH184: 8.2.5 | NMP184: 8.2.5 | NMX184: 8.2.5 | NNF184: 8.2.5 | NNN184: 8.2.5 | NNV184: 8.2.5 | NOD184: 8.2.5 | NOL184: 8.2.5 | NOT184: 8.2.5 | NPB184: 8.2.5 | NPJ184: 8.2.5 | NPR184: 8.2.5 | NPZ184: 8.2.5 | NQH184: 8.2.5 | NQP184: 8.2.5 | NQX184: 8.2.5 | NRF184: 8.2.5 | NRN184: 8.2.5 | NRV184: 8.2.5 | NSD184: 8.2.5 | NSL184: 8.2.5 | NST184: 8.2.5 | NTB184: 8.2.5 | NTJ184: 8.2.5 | NTR184: 8.2.5 | NTZ184: 8.2.5 | NUH184: 8.2.5 | NUP184: 8.2.5 | NUX184: 8.2.5 | NVF184: 8.2.5 | NVN184: 8.2.5 | NVV184: 8.2.5 | NWD184: 8.2.5 | NWL184: 8.2.5 | NWT184: 8.2.5 | NXB184: 8.2.5 | NXJ184: 8.2.5 | NXR184: 8.2.5 | NXZ184: 8.2.5 | NYH184: 8.2.5 | NYP184: 8.2.5 | NYX184: 8.2.5 | NZF184: 8.2.5 | NZN184: 8.2.5 | NZV184: 8.2.5 | OAD184: 8.2.5 | OAL184: 8.2.5 | OAT184: 8.2.5 | OBB184: 8.2.5 | OBJ184: 8.2.5 | OBR184: 8.2.5 | OBZ184: 8.2.5 | OCH184: 8.2.5 | OCP184: 8.2.5 | OCX184: 8.2.5 | ODF184: 8.2.5 | ODN184: 8.2.5 | ODV184: 8.2.5 | OED184: 8.2.5 | OEL184: 8.2.5 | OET184: 8.2.5 | OFB184: 8.2.5 | OFJ184: 8.2.5 | OFR184: 8.2.5 | OFZ184: 8.2.5 | OGH184: 8.2.5 | OGP184: 8.2.5 | OGX184: 8.2.5 | OHF184: 8.2.5 | OHN184: 8.2.5 | OHV184: 8.2.5 | OID184: 8.2.5 | OIL184: 8.2.5 | OIT184: 8.2.5 | OJB184: 8.2.5 | OJJ184: 8.2.5 | OJR184: 8.2.5 | OJZ184: 8.2.5 | OKH184: 8.2.5 | OKP184: 8.2.5 | OKX184: 8.2.5 | OLF184: 8.2.5 | OLN184: 8.2.5 | OLV184: 8.2.5 | OMD184: 8.2.5 | OML184: 8.2.5 | OMT184: 8.2.5 | ONB184: 8.2.5 | ONJ184: 8.2.5 | ONR184: 8.2.5 | ONZ184: 8.2.5 | OOH184: 8.2.5 | OOP184: 8.2.5 | OOX184: 8.2.5 | OPF184: 8.2.5 | OPN184: 8.2.5 | OPV184: 8.2.5 | OQD184: 8.2.5 | OQL184: 8.2.5 | OQT184: 8.2.5 | ORB184: 8.2.5 | ORJ184: 8.2.5 | ORR184: 8.2.5 | ORZ184: 8.2.5 | OSH184: 8.2.5 | OSP184: 8.2.5 | OSX184: 8.2.5 | OTF184: 8.2.5 | OTN184: 8.2.5 | OTV184: 8.2.5 | OUD184: 8.2.5 | OUL184: 8.2.5 | OUT184: 8.2.5 | OVB184: 8.2.5 | OVJ184: 8.2.5 | OVR184: 8.2.5 | OVZ184: 8.2.5 | OWH184: 8.2.5 | OWP184: 8.2.5 | OWX184: 8.2.5 | OXF184: 8.2.5 | OXN184: 8.2.5 | OXV184: 8.2.5 | OYD184: 8.2.5 | OYL184: 8.2.5 | OYT184: 8.2.5 | OZB184: 8.2.5 | OZJ184: 8.2.5 | OZR184: 8.2.5 | OZZ184: 8.2.5 | PAH184: 8.2.5 | PAP184: 8.2.5 | PAX184: 8.2.5 | PBF184: 8.2.5 | PBN184: 8.2.5 | PBV184: 8.2.5 | PCD184: 8.2.5 | PCL184: 8.2.5 | PCT184: 8.2.5 | PDB184: 8.2.5 | PDJ184: 8.2.5 | PDR184: 8.2.5 | PDZ184: 8.2.5 | PEH184: 8.2.5 | PEP184: 8.2.5 | PEX184: 8.2.5 | PFF184: 8.2.5 | PFN184: 8.2.5 | PFV184: 8.2.5 | PGD184: 8.2.5 | PGL184: 8.2.5 | PGT184: 8.2.5 | PHB184: 8.2.5 | PHJ184: 8.2.5 | PHR184: 8.2.5 | PHZ184: 8.2.5 | PIH184: 8.2.5 | PIP184: 8.2.5 | PIX184: 8.2.5 | PJF184: 8.2.5 | PJN184: 8.2.5 | PJV184: 8.2.5 | PKD184: 8.2.5 | PKL184: 8.2.5 | PKT184: 8.2.5 | PLB184: 8.2.5 | PLJ184: 8.2.5 | PLR184: 8.2.5 | PLZ184: 8.2.5 | PMH184: 8.2.5 | PMP184: 8.2.5 | PMX184: 8.2.5 | PNF184: 8.2.5 | PNN184: 8.2.5 | PNV184: 8.2.5 | POD184: 8.2.5 | POL184: 8.2.5 | POT184: 8.2.5 | PPB184: 8.2.5 | PPJ184: 8.2.5 | PPR184: 8.2.5 | PPZ184: 8.2.5 | PQH184: 8.2.5 | PQP184: 8.2.5 | PQX184: 8.2.5 | PRF184: 8.2.5 | PRN184: 8.2.5 | PRV184: 8.2.5 | PSD184: 8.2.5 | PSL184: 8.2.5 | PST184: 8.2.5 | PTB184: 8.2.5 | PTJ184: 8.2.5 | PTR184: 8.2.5 | PTZ184: 8.2.5 | PUH184: 8.2.5 | PUP184: 8.2.5 | PUX184: 8.2.5 | PVF184: 8.2.5 | PVN184: 8.2.5 | PVV184: 8.2.5 | PWD184: 8.2.5 | PWL184: 8.2.5 | PWT184: 8.2.5 | PXB184: 8.2.5 | PXJ184: 8.2.5 | PXR184: 8.2.5 | PXZ184: 8.2.5 | PYH184: 8.2.5 | PYP184: 8.2.5 | PYX184: 8.2.5 | PZF184: 8.2.5 | PZN184: 8.2.5 | PZV184: 8.2.5 | QAD184: 8.2.5 | QAL184: 8.2.5 | QAT184: 8.2.5 | QBB184: 8.2.5 | QBJ184: 8.2.5 | QBR184: 8.2.5 | QBZ184: 8.2.5 | QCH184: 8.2.5 | QCP184: 8.2.5 | QCX184: 8.2.5 | QDF184: 8.2.5 | QDN184: 8.2.5 | QDV184: 8.2.5 | QED184: 8.2.5 | QEL184: 8.2.5 | QET184: 8.2.5 | QFB184: 8.2.5 | QFJ184: 8.2.5 | QFR184: 8.2.5 | QFZ184: 8.2.5 | QGH184: 8.2.5 | QGP184: 8.2.5 | QGX184: 8.2.5 | QHF184: 8.2.5 | QHN184: 8.2.5 | QHV184: 8.2.5 | QID184: 8.2.5 | QIL184: 8.2.5 | QIT184: 8.2.5 | QJB184: 8.2.5 | QJJ184: 8.2.5 | QJR184: 8.2.5 | QJZ184: 8.2.5 | QKH184: 8.2.5 | QKP184: 8.2.5 | QKX184: 8.2.5 | QLF184: 8.2.5 | QLN184: 8.2.5 | QLV184: 8.2.5 | QMD184: 8.2.5 | QML184: 8.2.5 | QMT184: 8.2.5 | QNB184: 8.2.5 | QNJ184: 8.2.5 | QNR184: 8.2.5 | QNZ184: 8.2.5 | QOH184: 8.2.5 | QOP184: 8.2.5 | QOX184: 8.2.5 | QPF184: 8.2.5 | QPN184: 8.2.5 | QPV184: 8.2.5 | QQD184: 8.2.5 | QQL184: 8.2.5 | QQT184: 8.2.5 | QRB184: 8.2.5 | QRJ184: 8.2.5 | QRR184: 8.2.5 | QRZ184: 8.2.5 | QSH184: 8.2.5 | QSP184: 8.2.5 | QSX184: 8.2.5 | QTF184: 8.2.5 | QTN184: 8.2.5 | QTV184: 8.2.5 | QUD184: 8.2.5 | QUL184: 8.2.5 | QUT184: 8.2.5 | QVB184: 8.2.5 | QVJ184: 8.2.5 | QVR184: 8.2.5 | QVZ184: 8.2.5 | QWH184: 8.2.5 | QWP184: 8.2.5 | QWX184: 8.2.5 | QXF184: 8.2.5 | QXN184: 8.2.5 | QXV184: 8.2.5 | QYD184: 8.2.5 | QYL184: 8.2.5 | QYT184: 8.2.5 | QZB184: 8.2.5 | QZJ184: 8.2.5 | QZR184: 8.2.5 | QZZ184: 8.2.5 | RAH184: 8.2.5 | RAP184: 8.2.5 | RAX184: 8.2.5 | RBF184: 8.2.5 | RBN184: 8.2.5 | RBV184: 8.2.5 | RCD184: 8.2.5 | RCL184: 8.2.5 | RCT184: 8.2.5 | RDB184: 8.2.5 | RDJ184: 8.2.5 | RDR184: 8.2.5 | RDZ184: 8.2.5 | REH184: 8.2.5 | REP184: 8.2.5 | REX184: 8.2.5 | RFF184: 8.2.5 | RFN184: 8.2.5 | RFV184: 8.2.5 | RGD184: 8.2.5 | RGL184: 8.2.5 | RGT184: 8.2.5 | RHB184: 8.2.5 | RHJ184: 8.2.5 | RHR184: 8.2.5 | RHZ184: 8.2.5 | RIH184: 8.2.5 | RIP184: 8.2.5 | RIX184: 8.2.5 | RJF184: 8.2.5 | RJN184: 8.2.5 | RJV184: 8.2.5 | RKD184: 8.2.5 | RKL184: 8.2.5 | RKT184: 8.2.5 | RLB184: 8.2.5 | RLJ184: 8.2.5 | RLR184: 8.2.5 | RLZ184: 8.2.5 | RMH184: 8.2.5 | RMP184: 8.2.5 | RMX184: 8.2.5 | RNF184: 8.2.5 | RNN184: 8.2.5 | RNV184: 8.2.5 | ROD184: 8.2.5 | ROL184: 8.2.5 | ROT184: 8.2.5 | RPB184: 8.2.5 | RPJ184: 8.2.5 | RPR184: 8.2.5 | RPZ184: 8.2.5 | RQH184: 8.2.5 | RQP184: 8.2.5 | RQX184: 8.2.5 | RRF184: 8.2.5 | RRN184: 8.2.5 | RRV184: 8.2.5 | RSD184: 8.2.5 | RSL184: 8.2.5 | RST184: 8.2.5 | RTB184: 8.2.5 | RTJ184: 8.2.5 | RTR184: 8.2.5 | RTZ184: 8.2.5 | RUH184: 8.2.5 | RUP184: 8.2.5 | RUX184: 8.2.5 | RVF184: 8.2.5 | RVN184: 8.2.5 | RVV184: 8.2.5 | RWD184: 8.2.5 | RWL184: 8.2.5 | RWT184: 8.2.5 | RXB184: 8.2.5 | RXJ184: 8.2.5 | RXR184: 8.2.5 | RXZ184: 8.2.5 | RYH184: 8.2.5 | RYP184: 8.2.5 | RYX184: 8.2.5 | RZF184: 8.2.5 | RZN184: 8.2.5 | RZV184: 8.2.5 | SAD184: 8.2.5 | SAL184: 8.2.5 | SAT184: 8.2.5 | SBB184: 8.2.5 | SBJ184: 8.2.5 | SBR184: 8.2.5 | SBZ184: 8.2.5 | SCH184: 8.2.5 | SCP184: 8.2.5 | SCX184: 8.2.5 | SDF184: 8.2.5 | SDN184: 8.2.5 | SDV184: 8.2.5 | SED184: 8.2.5 | SEL184: 8.2.5 | SET184: 8.2.5 | SFB184: 8.2.5 | SFJ184: 8.2.5 | SFR184: 8.2.5 | SFZ184: 8.2.5 | SGH184: 8.2.5 | SGP184: 8.2.5 | SGX184: 8.2.5 | SHF184: 8.2.5 | SHN184: 8.2.5 | SHV184: 8.2.5 | SID184: 8.2.5 | SIL184: 8.2.5 | SIT184: 8.2.5 | SJB184: 8.2.5 | SJJ184: 8.2.5 | SJR184: 8.2.5 | SJZ184: 8.2.5 | SKH184: 8.2.5 | SKP184: 8.2.5 | SKX184: 8.2.5 | SLF184: 8.2.5 | SLN184: 8.2.5 | SLV184: 8.2.5 | SMD184: 8.2.5 | SML184: 8.2.5 | SMT184: 8.2.5 | SNB184: 8.2.5 | SNJ184: 8.2.5 | SNR184: 8.2.5 | SNZ184: 8.2.5 | SOH184: 8.2.5 | SOP184: 8.2.5 | SOX184: 8.2.5 | SPF184: 8.2.5 | SPN184: 8.2.5 | SPV184: 8.2.5 | SQD184: 8.2.5 | SQL184: 8.2.5 | SQT184: 8.2.5 | SRB184: 8.2.5 | SRJ184: 8.2.5 | SRR184: 8.2.5 | SRZ184: 8.2.5 | SSH184: 8.2.5 | SSP184: 8.2.5 | SSX184: 8.2.5 | STF184: 8.2.5 | STN184: 8.2.5 | STV184: 8.2.5 | SUD184: 8.2.5 | SUL184: 8.2.5 | SUT184: 8.2.5 | SVB184: 8.2.5 | SVJ184: 8.2.5 | SVR184: 8.2.5 | SVZ184: 8.2.5 | SWH184: 8.2.5 | SWP184: 8.2.5 | SWX184: 8.2.5 | SXF184: 8.2.5 | SXN184: 8.2.5 | SXV184: 8.2.5 | SYD184: 8.2.5 | SYL184: 8.2.5 | SYT184: 8.2.5 | SZB184: 8.2.5 | SZJ184: 8.2.5 | SZR184: 8.2.5 | SZZ184: 8.2.5 | TAH184: 8.2.5 | TAP184: 8.2.5 | TAX184: 8.2.5 | TBF184: 8.2.5 | TBN184: 8.2.5 | TBV184: 8.2.5 | TCD184: 8.2.5 | TCL184: 8.2.5 | TCT184: 8.2.5 | TDB184: 8.2.5 | TDJ184: 8.2.5 | TDR184: 8.2.5 | TDZ184: 8.2.5 | TEH184: 8.2.5 | TEP184: 8.2.5 | TEX184: 8.2.5 | TFF184: 8.2.5 | TFN184: 8.2.5 | TFV184: 8.2.5 | TGD184: 8.2.5 | TGL184: 8.2.5 | TGT184: 8.2.5 | THB184: 8.2.5 | THJ184: 8.2.5 | THR184: 8.2.5 | THZ184: 8.2.5 | TIH184: 8.2.5 | TIP184: 8.2.5 | TIX184: 8.2.5 | TJF184: 8.2.5 | TJN184: 8.2.5 | TJV184: 8.2.5 | TKD184: 8.2.5 | TKL184: 8.2.5 | TKT184: 8.2.5 | TLB184: 8.2.5 | TLJ184: 8.2.5 | TLR184: 8.2.5 | TLZ184: 8.2.5 | TMH184: 8.2.5 | TMP184: 8.2.5 | TMX184: 8.2.5 | TNF184: 8.2.5 | TNN184: 8.2.5 | TNV184: 8.2.5 | TOD184: 8.2.5 | TOL184: 8.2.5 | TOT184: 8.2.5 | TPB184: 8.2.5 | TPJ184: 8.2.5 | TPR184: 8.2.5 | TPZ184: 8.2.5 | TQH184: 8.2.5 | TQP184: 8.2.5 | TQX184: 8.2.5 | TRF184: 8.2.5 | TRN184: 8.2.5 | TRV184: 8.2.5 | TSD184: 8.2.5 | TSL184: 8.2.5 | TST184: 8.2.5 | TTB184: 8.2.5 | TTJ184: 8.2.5 | TTR184: 8.2.5 | TTZ184: 8.2.5 | TUH184: 8.2.5 | TUP184: 8.2.5 | TUX184: 8.2.5 | TVF184: 8.2.5 | TVN184: 8.2.5 | TVV184: 8.2.5 | TWD184: 8.2.5 | TWL184: 8.2.5 | TWT184: 8.2.5 | TXB184: 8.2.5 | TXJ184: 8.2.5 | TXR184: 8.2.5 | TXZ184: 8.2.5 | TYH184: 8.2.5 | TYP184: 8.2.5 | TYX184: 8.2.5 | TZF184: 8.2.5 | TZN184: 8.2.5 | TZV184: 8.2.5 | UAD184: 8.2.5 | UAL184: 8.2.5 | UAT184: 8.2.5 | UBB184: 8.2.5 | UBJ184: 8.2.5 | UBR184: 8.2.5 | UBZ184: 8.2.5 | UCH184: 8.2.5 | UCP184: 8.2.5 | UCX184: 8.2.5 | UDF184: 8.2.5 | UDN184: 8.2.5 | UDV184: 8.2.5 | UED184: 8.2.5 | UEL184: 8.2.5 | UET184: 8.2.5 | UFB184: 8.2.5 | UFJ184: 8.2.5 | UFR184: 8.2.5 | UFZ184: 8.2.5 | UGH184: 8.2.5 | UGP184: 8.2.5 | UGX184: 8.2.5 | UHF184: 8.2.5 | UHN184: 8.2.5 | UHV184: 8.2.5 | UID184: 8.2.5 | UIL184: 8.2.5 | UIT184: 8.2.5 | UJB184: 8.2.5 | UJJ184: 8.2.5 | UJR184: 8.2.5 | UJZ184: 8.2.5 | UKH184: 8.2.5 | UKP184: 8.2.5 | UKX184: 8.2.5 | ULF184: 8.2.5 | ULN184: 8.2.5 | ULV184: 8.2.5 | UMD184: 8.2.5 | UML184: 8.2.5 | UMT184: 8.2.5 | UNB184: 8.2.5 | UNJ184: 8.2.5 | UNR184: 8.2.5 | UNZ184: 8.2.5 | UOH184: 8.2.5 | UOP184: 8.2.5 | UOX184: 8.2.5 | UPF184: 8.2.5 | UPN184: 8.2.5 | UPV184: 8.2.5 | UQD184: 8.2.5 | UQL184: 8.2.5 | UQT184: 8.2.5 | URB184: 8.2.5 | URJ184: 8.2.5 | URR184: 8.2.5 | URZ184: 8.2.5 | USH184: 8.2.5 | USP184: 8.2.5 | USX184: 8.2.5 | UTF184: 8.2.5 | UTN184: 8.2.5 | UTV184: 8.2.5 | UUD184: 8.2.5 | UUL184: 8.2.5 | UUT184: 8.2.5 | UVB184: 8.2.5 | UVJ184: 8.2.5 | UVR184: 8.2.5 | UVZ184: 8.2.5 | UWH184: 8.2.5 | UWP184: 8.2.5 | UWX184: 8.2.5 | UXF184: 8.2.5 | UXN184: 8.2.5 | UXV184: 8.2.5 | UYD184: 8.2.5 | UYL184: 8.2.5 | UYT184: 8.2.5 | UZB184: 8.2.5 | UZJ184: 8.2.5 | UZR184: 8.2.5 | UZZ184: 8.2.5 | VAH184: 8.2.5 | VAP184: 8.2.5 | VAX184: 8.2.5 | VBF184: 8.2.5 | VBN184: 8.2.5 | VBV184: 8.2.5 | VCD184: 8.2.5 | VCL184: 8.2.5 | VCT184: 8.2.5 | VDB184: 8.2.5 | VDJ184: 8.2.5 | VDR184: 8.2.5 | VDZ184: 8.2.5 | VEH184: 8.2.5 | VEP184: 8.2.5 | VEX184: 8.2.5 | VFF184: 8.2.5 | VFN184: 8.2.5 | VFV184: 8.2.5 | VGD184: 8.2.5 | VGL184: 8.2.5 | VGT184: 8.2.5 | VHB184: 8.2.5 | VHJ184: 8.2.5 | VHR184: 8.2.5 | VHZ184: 8.2.5 | VIH184: 8.2.5 | VIP184: 8.2.5 | VIX184: 8.2.5 | VJF184: 8.2.5 | VJN184: 8.2.5 | VJV184: 8.2.5 | VKD184: 8.2.5 | VKL184: 8.2.5 | VKT184: 8.2.5 | VLB184: 8.2.5 | VLJ184: 8.2.5 | VLR184: 8.2.5 | VLZ184: 8.2.5 | VMH184: 8.2.5 | VMP184: 8.2.5 | VMX184: 8.2.5 | VNF184: 8.2.5 | VNN184: 8.2.5 | VNV184: 8.2.5 | VOD184: 8.2.5 | VOL184: 8.2.5 | VOT184: 8.2.5 | VPB184: 8.2.5 | VPJ184: 8.2.5 | VPR184: 8.2.5 | VPZ184: 8.2.5 | VQH184: 8.2.5 | VQP184: 8.2.5 | VQX184: 8.2.5 | VRF184: 8.2.5 | VRN184: 8.2.5 | VRV184: 8.2.5 | VSD184: 8.2.5 | VSL184: 8.2.5 | VST184: 8.2.5 | VTB184: 8.2.5 | VTJ184: 8.2.5 | VTR184: 8.2.5 | VTZ184: 8.2.5 | VUH184: 8.2.5 | VUP184: 8.2.5 | VUX184: 8.2.5 | VVF184: 8.2.5 | VVN184: 8.2.5 | VVV184: 8.2.5 | VWD184: 8.2.5 | VWL184: 8.2.5 | VWT184: 8.2.5 | VXB184: 8.2.5 | VXJ184: 8.2.5 | VXR184: 8.2.5 | VXZ184: 8.2.5 | VYH184: 8.2.5 | VYP184: 8.2.5 | VYX184: 8.2.5 | VZF184: 8.2.5 | VZN184: 8.2.5 | VZV184: 8.2.5 | WAD184: 8.2.5 | WAL184: 8.2.5 | WAT184: 8.2.5 | WBB184: 8.2.5 | WBJ184: 8.2.5 | WBR184: 8.2.5 | WBZ184: 8.2.5 | WCH184: 8.2.5 | WCP184: 8.2.5 | WCX184: 8.2.5 | WDF184: 8.2.5 | WDN184: 8.2.5 | WDV184: 8.2.5 | WED184: 8.2.5 | WEL184: 8.2.5 | WET184: 8.2.5 | WFB184: 8.2.5 | WFJ184: 8.2.5 | WFR184: 8.2.5 | WFZ184: 8.2.5 | WGH184: 8.2.5 | WGP184: 8.2.5 | WGX184: 8.2.5 | WHF184: 8.2.5 | WHN184: 8.2.5 | WHV184: 8.2.5 | WID184: 8.2.5 | WIL184: 8.2.5 | WIT184: 8.2.5 | WJB184: 8.2.5 | WJJ184: 8.2.5 | WJR184: 8.2.5 | WJZ184: 8.2.5 | WKH184: 8.2.5 | WKP184: 8.2.5 | WKX184: 8.2.5 | WLF184: 8.2.5 | WLN184: 8.2.5 | WLV184: 8.2.5 | WMD184: 8.2.5 | WML184: 8.2.5 | WMT184: 8.2.5 | WNB184: 8.2.5 | WNJ184: 8.2.5 | WNR184: 8.2.5 | WNZ184: 8.2.5 | WOH184: 8.2.5 | WOP184: 8.2.5 | WOX184: 8.2.5 | WPF184: 8.2.5 | WPN184: 8.2.5 | WPV184: 8.2.5 | WQD184: 8.2.5 | WQL184: 8.2.5 | WQT184: 8.2.5 | WRB184: 8.2.5 | WRJ184: 8.2.5 | WRR184: 8.2.5 | WRZ184: 8.2.5 | WSH184: 8.2.5 | WSP184: 8.2.5 | WSX184: 8.2.5 | WTF184: 8.2.5 | WTN184: 8.2.5 | WTV184: 8.2.5 | WUD184: 8.2.5 | WUL184: 8.2.5 | WUT184: 8.2.5 | WVB184: 8.2.5 | WVJ184: 8.2.5 | WVR184: 8.2.5 | WVZ184: 8.2.5 | WWH184: 8.2.5 | WWP184: 8.2.5 | WWX184: 8.2.5 | WXF184: 8.2.5 | WXN184: 8.2.5 | WXV184: 8.2.5 | WYD184: 8.2.5 | WYL184: 8.2.5 | WYT184: 8.2.5 | WZB184: 8.2.5 | WZJ184: 8.2.5 | WZR184: 8.2.5 | WZZ184: 8.2.5 | XAH184: 8.2.5 | XAP184: 8.2.5 | XAX184: 8.2.5 | XBF184: 8.2.5 | XBN184: 8.2.5 | XBV184: 8.2.5 | XCD184: 8.2.5 | XCL184: 8.2.5 | XCT184: 8.2.5 | XDB184: 8.2.5 | XDJ184: 8.2.5 | XDR184: 8.2.5 | XDZ184: 8.2.5 | XEH184: 8.2.5 | XEP184: 8.2.5 | XEX184: 8.2.5
